Workbook

Sheet CB_DATA_ (hidden)
A1: Crystal Ball Data
A3: Workbook Variables | B3: Last Var Column | C3: 0
A4: Name:
A5: Value:
A7: Worksheet Data | B7: Last Data Column Used
B8: 2
A10: Sheet Ref
A11: =CB_DATA_!#REF! ->  | B11: ='Financial Model'!#REF! -> 
A13: Sheet Guid
A14: 0c59c1eb-133d-429c-9a5e-3e60152125eb | B14: 8860a6ec-422b-400e-9de7-87ce88be893b
A16: Deleted sheet count
A19: Last row used
A20: 34 | B20: 52
A25: Data blocks
A26: CB_Block_0 | B26: CB_Block_7.0.0.0:8
A27: 㜸〱敤㕣㕢㙣ㅣ㔷ㄹ摥㌳摥㕤敦慣敤搸㡤㤳戶㈹愵㌵㉤愵㔰〷㌷㑥ㅡ㑡㠱㄰㝣㘹㉥挵㠹摤搸㐹㐱㠰㌶攳摤㌳昱㌴㍢㌳敥捣慣㘳㤷㑡慤愰摣挴愵㔲戹㠸㐲戹㔵㠰挴ぢ㤷ㄷ敥㉦㐸㐸㈰㔴㈴ㅥ攰〱挱㐳㐱〸ㅥ㐰㈸ㄲ㉦㍣㈰挱昷㥤㤹搹㥤搹昵㡥摤㙤ぢ㉥昲㐹昷昷㤹㜳㥢㜳捥㝦㍤晦㝦愶㌹㤱换攵晥㡤挴扦㑣㜹㘶㙥㕣摣昰〳㘹㑦捣戸昵扡慣〶㤶敢昸ㄳ㔳㥥㘷㙣捣㔹㝥搰㠷〶挵㡡㠵㝡扦㔰昱慤㠷㘵愹戲㈶㍤ㅦ㡤ち戹㕣愹愴㙢愸攷㈰晣㡤挴て㍡㝢つ收〱㤶㘶愶攷㤷ㅦ挴愸㡢㠱敢挹㠳㘳ㄷ挲扥挷㈶㈷㈷㈶㈷敥㍡㜲昸挸挴愱㠳㘳㌳㡤㝡搰昰攴㌱㐷㌶〲捦愸ㅦㅣ㕢㘸㉣搷慤敡摢攵挶㤲㝢㔹㍡挷攴昲愱㈳换挶㕤㙦㥣扣敢攸㔱昳㥥㝢摥㌸㠸㔷攷捥捥㑣㉦㜸搲昴㕦愴㌱ぢ㥣昲㕤戳戲㙡㜱㙤㔲㝡㤶㜳㘹㘲㘶ㅡ晦㈵收㡦愷扢㈷ㄶ㔷愴っ昸㙡改㐹愷㉡㝤ㅤㅤ〷散㈹摦㙦搸慢摣㍣摤㍥㠱愵㔶つ㍦㈸搸㌳戲㕥搷敤㜸搴㤲㍤㡦扤慢ㅢㅢ㠳昶愲㜴㝣㉢戰搶慣㘰愳㘸㉦㘱愰摡㤰㝤摥㤷攷っ攷㤲㍣㙢搸戲㘰㥦㙣㔸戵㝣㤸㜲㝤户挷㐳㈴㈷愶㤶㍦㌱攵摢㌳㉢㠶愷㘶攴㜳㘳㌲摡㥥昰慡改戶户㜶ㅦ㤷㔳㔷㙦攰㤸户㜵㙦㠷㥡ぢ㠶搷㙣㌹摥扤㘵戴昸昴っ敥散摥㍥戱㐷改㍥慦敢摥㐷㙤㘵扡戵ㄸ㠸攸㕢敤㈸ㄶ愳ㄷ〹晡〹㑡〴㐴愰㕥㈶ㄸ㈰ㄸ〴㄰昹㝦㠰㑢㤲ㅤ㔹愵㔵っ慤戲慣㔵慡㕡愵愶㔵愴㔶㌱戵捡㈵慤戲愲㔵㉣慤昲愰㔶戹㡣㌶㜱㉡昵昷㙢㔱晡敡晡攷㠶摥㌰晢㤵愹慦晤㙥晦㠱㈷攷㝦㜴㜲㜰てㅡ摤ㅦ㑤㙡搶㌳慥㠰搴㕡㔴㝣㜸攲㄰晦㙤捤ㄵ㘰ち昳愸㜹户㌹㌹㔹㍢㝡挸㌸㘲ㄴ戸慣っ攴愷〸㘵〴㙤〷捤〷㉣愷收㕥㔱戸扢㜱摡昰㘵㙢攳挶愳扡㘹户攱搴晣㔷㙣㕥戹ㄸㄸ㠱扣愱扤慥㌵㐸㐷户㐵戰㤵昴搵晢㙥㙡敦㜶挱愸㌷攴搴扡ㄵ㔶扦戲慤摡㕥昰摣攵敥戵㈷㍣昹㔰戳戶㘳㐶㔳㄰㙡㙢㙡散㡥㔵㠶㔵攱扣挶㘶㔶㕣㕦㍡㙡㝡攳昶㠲㔵扤㉣扤㐵㐹㤱㈸㙢㙡愹晢㔹ㄵ㜱晤昸扣㠳㠵㠲㕢㙢户㈴㑢捤㝢搷〳㌰戳慣㘱扥慢搲ぢ㌶㤶㡣攵扡扣㌶搵㈴㝣㈷㉡づ愴㡡㑦戸搵㠶㍦攳㍡㠱攷搶搳㌵㔳戵㌵〳㤲愶㜶挶慤挹㝣㍥愷㠴〲〴㙥㕦㥦㄰戹㍢扡昳㠲㐲㐴〲挵㘴攴敢搳㘴㌷㜱づ慢挳㉡敡㤲㌴愹扤㝡㡢挱㌸㕦㈵㘳㌲㌸㌰戱㈶敡て扥昴戵㕢っ摢挴摣㑢摢㔸搳㐶愳搵摦扢㈶㥤攰㤴攱搴敡搲换搴㝥㠲㌳搲㠷〱ち㔷㈱㄰扡敥ㅥ㔵㥤㔸ㄷㅢ㠵㉢㔶㉤㔸㈹慥㐸敢搲㑡㠰㌲㘸挸㔲㠹㕢摢㤱昴㙢㔰愴敦㈵ㄸ〵㈸㤷㜳挵㝤㙣㔴㉣㈳攵ち㤴㑥ㄹ扣㥣ㄲ攴散㤷攲攵㐱昳㠴㔵て㘴㈸㤴㠷㑤㘰㈴搴㙡ち㝤㐳㈴㔱捦愸㠶ち㘳㥦㌹〳㉡㌵㉣㈷搸㘸昱㙤〷㤷㠴㐴戴㉢ぢ㜶㥣㉣愰㈸㐸换㠳っ㕥〳搱戴㐹㠳散挶〹㈲㈲ㅢ㘴㘸㜶㡣㥣㈶㌲戶捦㤰ㄱ㘸㥦㈴㐲戶㍥搴㕤㐶㤰搸㍢㠹㤴㥤扡昲攳慥㌴摢捣㤶て愵搹㝥㙣㥣㝥㉤挱㜵〴搷ㄳㅣ〰㄰㝦㠶㠴愳㤴㐳㍥㥤昴㔷攰㔹扦㤱攰㤵〰㤰㑦㍡㘵㑥㈴慡㘸㐳㙤挷㡥㘴扢㈱搸挹捡㈸づ㐵ㄱ㉤攳愶㥤㌹㘴㉢㐴㐷㔶攷捥搰戵㜹愵㘳㕦搳㥤㌶㤳换㈱㐵㘶㌴㑤慥㜵㡢愶挹㡤㘰搳ㅥ昵搶捤攸慡㡦ㄱ扣ち愰慣摦㐲〸攵㐲㠳㜷㝢ㄶ㍤㑤捡㤷㠵㔹ㄴㅡ㐳㍤㉡昸㠸㤰㜹〴挸㄰㜲ㅤ挷㤷㕤ㅢ㥡收攰戸昹戲户愱て㜶攷敦〸改㙤㝡㜳㔷敦搰㕦昴㍣慤攸㕢挱㕥攲昷㕤㜵捣㙤愸搶㕦㐳㜰㍢㐰㥢㡥攱改晢昹㝡ち㤴㔹㙣㈷㌰户㤷㕥ㄷ㘵攵㉥㙤慣㑡愵㠱〶捤㈵挳扢㈴〳㜸㌰㑥捦挲ㄶ㜶㍤㑦搶㜱愸慤愹〲㥥㕦慥㑢ㄷ晡㈷㍣搷㘶昹慥㡤散扦㉣ㄴ㐳㍥慦昵攵摡㙣攴っ㕢㌳攱㜳㑡㔰づ㜵昰㤱敥㐲㈲搱㈹㑤㕥散㤷㝤扥摣㤵㈴㍤㐸㤲搷㘱㕢昵㍢〰㈰㈵挴㙦扡㑡㤴㠳㙣昶㝡搵㉣㙤戱搲挳㤷㜱㍡㘹昳㈱㜶挸㤱㠱搰㘱㍢つ晦㠱㍦㘴㉦㕡㜶㔳㔸っ搸ぢ搲慢挲户㘰搵㘵㌹㜴换㔲搴散捡㡡㤷㠹慣攸敢敢㌸㑦㘷昸搷ㄴ㥤戴㐹㠹㑣㙥捦慣捣㌸㡢户㠸㡡㙥㐸ち㤵っ搷㔰㔳〲㤱昲搸㜶㔷挴昴㈰㘲敥挴挶改㠷〸㈶〹づ〳ㄴ㝥〹㐹戳摤㡤㘷㌸慣㝦㡤㉥敤㑡㈵㔷㈲ㅡ㤴㡢昰搹慥挲敡㈸㕦昳〶㠲扢〱摡捣ㅦ㍡㈰㌳〸㔱愱㍣㐱㠸㉡㡣㘱㕥戰攴ㄵ搲挰ㅥㄳ㠱愵㤹㠶ㅦ戸㌶㈳㑢㐳收慣㝢搶つ㘶㉤㝦ㄵ㤱愸㔱㌳捡㍣戰㈲ㅤ㔰㤷〷摢愷慤捣㕤㕤㤵㌵摤㕣㜴ㅢ㄰㙤愷㘷㜷挲挱ㅣ摢〱㕢㔲㥤捤㌵㠱搴摢昹ㄸ㐳〸散戴昲户搲ㅢ扢㉤敦㌷て㝤挳慤ㅤ㕤戲㠲扡ㅣ㌰㐳愶㘳扥㘴㘲ㄷㄱ㌹愸昵㥢㑢㉢㥥㤴戳㐳收㐹捦慡搵㉤㐷ㄲㄹ戰㌱ㄹ慣㥢㤳㤷㄰㈵㔸㜰ㄹ〳㜴㥤㈱㜳挹㌳ㅣ㝦搵㘰㐰㜱㘳㙦敡㐹㠵㐵ち收戴攵昸㜸㡤挲㈲昳挳收攲㡡㝢〵ㄱ摢㠶敤㥣㌴㔶晤ㅤ㠱ㄵㄲ㝤㤸ㄴ㙡㠴㈶㌴㑤㤴戴㔲慦昸攱㠱㍣㤷㈳敦攵〹ㄴ慥㜲〵晡捣㌳戴㌷敤晡㈸㐶㐳㍢㥤㜳ㅡ㐴昴愸㔹搸㤷㈹㠵挹愹晡㍤散昳㈶㠰晢㑥㥥㍦摤㡡捣扤愰㤸㜵㠱㕥晥っㄹ慦挸愲ㄹ〸愱㡦㙥㑦㐸㉡㉣㈳攵㠰〳㠱㜱㍥戵㤳㕦搹㔴㙤㐸㝤㝢㕡搹ㄳ㠸㈴つ㥡㜳挶戲慣㈳ㅥ㙤ㅢ挱㥥昰㠱㘶慣㙤搴晤愸㙥挶戵㙤㠳愴㐵戲㕣慣ㅡ愴攰愹㐶攰㥥戱ㅣ摤〴㔰昴ㄷㄵㄹ敢㈸㌲搶㔵搱愰㜹㡥愱㐱㤵攷㔸敥㈵挳戳㠲ㄵ摢慡㤶昸挰昰摤㡥愰㐹㌰㌹㈵㙦㥣㘲㤹㌱搶㘶捤㥦㠷挹收㑦〰摤ㄳ㤰愳摣㍡愲ㅦ㤴慢㠹㈲晥㠹ㅥㅤ㑢㄰㌰捡㔳慡扦〵愳ㄵ搴敤〸㠸ㅣ㤵慥挶㜷㌰慥㍥㡡㤲㔰〸ㄱ敢ㄹ㈴〲慦㘰㐲挸搳挵㕤㌴捦㍢㔶〰散ㄱ㘳㈷慣㘰搶〷捡〱㤰㔵挷摢ㅢㄴ㔶ㄳ㥤挶㥢㕡攱收捥慡㤴㥡戸愹戳㍥愹㌷㕥扤㐹㜵愸㔱ㄲ㡡㘴慢㐶㑡戳㙣㌲挷㥤愴㙡㠴㔲摣戱戶ㄱ㔹㙥搳搶扥㔳㡡扣〰挵愴㘸㈶愷扦㔵ㄱち〲扤㤱㡥愲捦㍥㥢㍣ㄲㄱㅢ摡〰㘵敡愹戰㙣㈸ち〹㥥挶戵㤳㥡㉣㐷㑦攰敦㍤㔱㜶扥ㄱ愴㙡㡣昵搱愸㘶慡㕥㥦㜷㘰㈵㔴つ慦戶㐳㔸ㅡ㙢ぢ㌵㡣攲捥㕥戵㝦戸扤〹㐶㡣搸㤰㘱㤱っ㍦㌰搸㄰捣㤵㠸愸搲㍡ㅢ攲㔶㌷㡢㑢㝣㍡㈳つ㐷㘱㘰㌱愸捤捡㌵㘵㠶戵㉣昹㔱搵愱㜹㕡㔴㜲㔴㌷愷㤶㝤愸昴㠰㜲㍣捡㈹〶搷捤㜳㜴㑢攱ㄲ〳挴㙥㤴㕢愸〶〸敤㌶〷攰挹㘰攷㘰〷㍢ㄲ㠶㑥㘸㥤㔱㠲ㄶ㌳〸㌷扤〸昲㑥㡦ㄸ㠵㈰㌵㔵晡晢㜱昱戹愷㤸扥㜱㍣ㄷ㘷㈲㈶㘲戸㉢挳㝡〰㜲㤳㤱㐹㜲搱㘸ㅣ㌰て㈵㥢ㄲ㕡㠳㜱ㄹ㑤㡣㈱㥡㝣㕥㠰㕢㍣㡣㘵つ㤳㙤敡戸攷ㄶ㔸搰愶昵㡤㍤收㘹愷㕡㙦搴愴㔲挵戱慣㔶ㅡ㜹㐷攰㑢㕤〱っ戹㈹㘳㕦愲㑤㌹㡤愳ㄴ㤷㑣㈴昵㙥㜷敢挷搱㕤〹㌹㡣ㄱ慡㍥〶㈰㌳摣㜲㉡㈰搶㜱㑦㠱昶攱摥搶〵〶㜵㜹づ㈲慤愳㠸戲㙣づ昷昱㥡㔱㘴挵㙤㠹㘶㜳敥㥣㑢㥢㍤㔱㜴捡ち㡢㜶〴㡥戰捥㔰攰ㄵ㡢㌰㐶㝡攴づづ㤲扢ㅡ㐵㜷慦㍥慡ㅥ㜳㔷㠱ち㠵〱挱ㄸ㉦㑦㐱㌹散㉡ㄸ㠹〶户搶戲扡〵愳扦戴扣昵㈹〰挱㌰㌰つ㕡戴っつ㥣ㄹ攴户㌶㜰㙥㐶慢㡣〸㘹㌲㤸捡ㄸ攵㈸ㅣ昶㐰ㅡ戸㠹〷改㈵ㄷ㑡㈸搸愷㉥㠶挵㜷ㄳ挷㙤ㅣ㠱㕣敦摡戶挲〵㈳挰昵ㄷ攷㐰㕢昱㔴慤㐶㜳ㄷ晥戹ㅤ㠱㔵㕣摤〸捤搱㝤㙤㤷戲搴㥡㘸摦摤摡㔶ㄱ㕤ㄶ㍣㍣㍢㜱捡〸慡㉢㡢挱㐶㜸㜱慢㔷㤲㈸晣ㄸ晥㠸㑤摦㑥㥢㌹敦昰㈲敡ㅡ昷扥㝣搹㜱慦㌸㙡㕥〵㥦户晥㐰㈱戸㐲搹捦㐹㤶㜳晦挶㍦㤵戴㕣攱㐷ㄸ㜱㍢搳收〰㉤〷〹挷㔱㈹㤴〶㘳挸㘷搰〹㙣昷收慤〱搲挹扥㌶㍡㔱㠲㘰㤷㔰㥣㑢㉦ㅡ愱㠸ㅦ〲慤㈴㤶昰㐸㡥㍤晦㍡㔸㕦晣〰㈵㐴㌸㥥㈳㌱㔲㜸ㄵ㜲ㄹ愸㔳㠲㍣扡攲挱ぢ㈱晦㍦㔸㡡戹㜹㔳㜶晡㉦㌰戳昸㝥㍢㡡㙥㈲㡡扥搷㠱㈲挱㙢㈰㡡㝦敦㐳㈶㑥〵㠶㘷㥦㔷㈰㥣㙢摡㍤㠰扥攴ㄷ㝥晦㠷〷搰戹㠸㌸㤴㡤㠶㔰摢㙤㜸㙥㥡〸㝤ㅤ㈶〲㠳昷捡㐴㌸㠳㡣㘰ㄴ㍦㌴ㄱ㈲ㅦ挸㍣ち戶㌶ㄱㄸ摢换㌰〴ㄳ愱搶㠴㕢㠳㈷戰㙢㙤晡挷㑥攱攲慤昴ㄱ捦㠷搲昲㘷攰㤱扡慥戳㜸挱昰っ晢㠰㉡㍦改㐹㈸㌳㙦〹㌷戹㔵ㄷ昶戸㘱搳ㅡ搵㘹ㄳ㕦㐵散㘵摦昵愷㙣敦晥㍡㌰ㄵ愶搰㝤㉦㑡愲昸〲㍣㈵㠲攷㠶摣㝢昷㝤昳攴ㅦㅥ㝥晣㌸㙦慢㐵戴㕡戸〳昹㕥㐲昶戴㈷㄰搴㑤㕣ㄴ搹捦て㜳捥攰ㄳ㈵㙢戵㉥愷つ㑦㔹㐱扥㙥挷搹㤰昰ㄲ㠴ㄹㄲ摦㑥㌰㌱㜱敦㈱㌴㌱㈷摡摣㥤敡挳㈶攵㈲㥣㐸㑣㕣昹昴攲戰愱攸慡挸㝡戴㌶ぢ摦㠶㉡㝡㥥ㄳ㐹㕢㠹㍣㜵㌲〹昱慤㜶㕤㜷㤴扡㉥㍣挸㌰散ㅦ㑢㈹挴ㅦ㐸㈱挹㠳っ㉦〴㈸㈹㜵づ㤹挲㥤〰ㄹ㤱戵昶㄰㉦晤〱扢㐲㐰㌶㉦晤昵昸ㄱぢ㜶ㄱ㔸㡣㝤昱扤㥥㘸㘹㡢挶慡㠹愱㕡㘵搳㉣㈲愳づ㉦㉣㤸㡣㑢㔳㤶捥㘱㤴㙥摢ㅤ挵㤷っ搹㘱攰㉤㘴散㠲㑤㕦㕢搹扥搷㘹攰收〷昴㑣㔱㈹っ㘷㉦㡢㜱㈰㔵㌱扡戰㘹㌹㉣㈲ㅣづ戳捤㑥〳㔱ㄵ㜴㤶㜳〰愷㔲〴晦昸愵㄰敢挷㕢㐳敦㙦慦愱㡥㜳晡戱㐰晥㘰㝦摤㤴挱搸㜸㉢㌹〶ㄲ㜶㕢慤㑡攱昵昰昳攸挲㐵攷㠴摥捡慡㘷㜱ㄴ㝦㘲捥敡搳㍡昴㍦愳搷㡡戳㉥戰㌷挳搸㈹晤晦づㄴ㙣愹晦〵㘳㙦ち㤱敦㡣㌲㝣㈸㌰㝥戲㘵挸㠶㍢〲捦㌶㠲㌷敡㘰慣慢㉣㐳摥㘱㙥ㄱㅦ慦㠶搵㑡㠲挳敦㤵㙦扦ㅡ搱散㑢摢㜶愰慢〰㘴㙣愸昰㜵㠸愰慥晤搳㜲㉢㍥摤ㄶ摦㠵㡥晢捥㔸㔵捦昵㕤㌳ㄸ㕢㐴搰㜷㡣摦㥥㤹戰㜹愶挴㔷摢㠵摡慤搸㠹挱昷愰捦搹㜹〸散戳㌲㜸戱㘲㤱㡣㉣㙣㉦㤲挱敦㤰㐶ㄲ攱㈵㙡〷晦ㅡ昳晥㠶㔱挷愷慢昳昰㜵〶㉣摡ㄱ捡㉥昴㌸户摦搰攰搶攱㡥搶摢攱て㤲昵〹〴挷搴ㄲ摥昵ㅥ敥㙢晢ㅥ愴摢㐶㙢昳搹戲㌷㥦㕢戹昰っ㜰扡扤户愴㐹㠶敦攴ㄷ挹㘵扤㐲㠸㑢晢挷昱㜷晢づ㕡㡥㌶ち㍡㡦㍥攸愶㈳㙣扣づ昷搹㌶愲摦ㄷ搱㔵㑣ㄱ攰愷ㅢ㔱㠶て㠲㕥㍥戲愲昸㈲㤶㐵〶㐰㍥㔷慣〲㜴愷敡愷㌷愳敡㤱㔸㈰ぢ㥥㌱㐸㡥㘵昱㜹㌴攴㜶㠵换〶㑢㜰搹㐲㥤㈵㤰搷攳ㅥ挸攷〴捦ㄲ㙡㈲㥦㐵㠷收㐴㉣㤴㜶㥦挸㘷㌶㥢㠸愰ㄵ愰ㄶ㥡ㅣ㝦㈴搶㈲㝡ㅤ搵扡㑤攰㄰戸〰挳ㄴ㡢㤴㌵挵㌰戴昰〳㘲〶改㔷搱摦攷㡥晦昲㔹愶扦ㅤㄷ㑡㄰愲㉡㍤㜹ち㐲㌵昹㈷㤲㤳昷㔰摡㝤昲ㅦ摦㙣昲㈳㤴㤱㥣㠹ㅥ〰っ昵㠹ち晥愸挵㌴㤰攱㍥昲㈷㉥ㄲ攰㤷㥡挵㠸㠱ㄲ搵昷ち㌲攸换つ㔷慤搶㤱㠹晢ㄶ戸晥㡣㡦㝢㤴㝤挴㡢㤰昴攵ㄴ㐳㘷㙣㌱搴㡡㈵㍢昲挲敥〸搹㠰㈵昱㙢搹慥㈲扤搸㘳㠴㕦㝣㈸㐶捣愹㔳昱㤷㔳㕡ㄴ㜳〲㘱㠴ㄶ㈹改㠷ㅢ㈹㍥ㄸ㌷晥捥㜷㕢㉥㔳㔴㈰㠱㝡挲挶愴㌳搵昸〳㜱攳挳昸㉡㑢戵挹昱〶〱搳㜳㜱㘳搲愳㙡晣㜸摣昸慦㠷て㌴ㅢ挷㜴ㄸ㡥㕣㈰㤱㘴搸扡捡晡㑦㝣愱㍤㡣收〵㤳晡㜳挰っ㡢㈹㌹㔵攸戸慥㌴攸㈰㉥㠳㜸昸㐶㝡づ㜷㥢㜰〵〴㐲㌶晣㕦㈵㥣挶㥤愷㔹㈳㌰昰〹昴ㅡ㠲捤㥥慥㥥搸戹㘸捥㝢㈸攸㌷㑦晢㌸㔳搵㜶ㄴ㠹挰ㅣ挸㠷晢扢㠵㔳㍥挳㜴㙣敤㐷ㅣ㈴搳㜸㠷愴㌷攵愱〲㉢㜹昱扥ㄸ戳戹挷㕡㌴愳㍦ち攴㐰㍡〲㌲愳㍦〶ㄸ〶㘲㜸㕢㌹㌷㐲晥㔷捣晤㍥㔶扣㥦攰㜱㠰戲㈰戳㤳づ㡡ㅦ〰ㄸ㡥晦㐷ㄵ㘳㙢捡㕦愲㠹㠷攳㤷㈵挹㐸晦㄰㍢㝣ㄸ愰て敥㕢ㄱㄱ㘱㔹晦〸㑡㤲㉦愵攰㔰㉦晤㈸㉢㍥㐶昰㜱㠰㜲㠱㤳摤昶慥㜱㑤㍤㙡慥㑦愰慢㜸㡣〰㍦晤㠹㈸挳㠷〲昷攱捤摤㙤㘵ㅥ㠵攳て晢ㄱ敡㑣㝤挱㝦㉦扥挸摦攰愲晢昰㍦㈴㈹㈸挳㍥慦扤愹户戱挸〴戴挹搵㙦ㄵ㥢晤〲挶攱扡㕡ㄱㄴ㡥㐸愵㔲搲㡡㠲昸收㠲㠵㡢㌷昰㉤挷㔴㠵㄰愴〱㔵攱㐴ㄵ挷㔱愰㝦㤲㑤㠹㘳攲㐹晦ㄴ㥦㠸㕡戵㠹㥦㡥㌲㝣㄰挴慢敡晥㘰搴㍤㝥㈱㜱慤㉡慣戶ㄷㄲ晦慡㘲㈵昹挲愷㌸㤸㐲ㄶ㌲㘹慤㐴愴㈹ㅡ晡㍣㌲㐳㝤挳㥣摢〳昸㘹敢愲㝡戱㜶昱攲㍦㠷昳㘳㌷攴摦昱戶挱愷㥥晢挵ㅦ㥦晣昵扢㡦晤攵㕦㑦㍦晤敢㍦㍤昹散扦㝥扣㝣散㘷捦㍣昳搳晢扥昴散ㅦ昷㥡㕦搶扥晢捦戹㉦㍦㌲㜹昹㤱㠷捣昳㜷㥣㝣攴㥤て摥㍦戹㜰捤㜸㕦㕦㝦晦敤愳㍦扦晥戵㈳㡦㍤昴㝤昱㤳摦㕥攷〸戵㕣扣㈰㍤つ㉥㕢㑤攳ぢ挸㘰ㅡ㥣昱㑢㍡つ㉥㔷㙤搴㜲戴㔱搳㈸㈸挱愷挱〹愸ち㈳㕤㌱昰ㅦ㤲ㄹ戱攳 | B27: 㜸〱敤㝤㜷㝣ㅣ搵戵晦㕥㐹㍢搲㕤换搶扡㘰㑣〹挸挶〶㌷㠴㔶㕡㌵挰搸㜲挳㌶敥㌲愶㈳㙦㤹挵挲㉡㘶㜷㈵㙣㘲挰㌶㉤〴ㄲ㝡㑢愸捥㠳ㅦ㤰㠴ㄶ㐲㈰戴〰㠱㐰㈰㐰ㄲ㈰㠱㠴ㄲ㙡〲挹挳㤰㍣㜰愸敦晢㍤㌳戳㍢扢㍢㉢〹㠲㍦㍦晥㜸㘳敤昱扤愷摤㜳捦戹㙤收摥㥤昵㈹㥦捦昷㌹㉥晥捦慢㡣㠹㕤摢搶愷搲㘶㔷捤慣㥥捥㑥㌳㤶敥攸改㑥搵戴㈶㤳㤱昵ぢ㍢㔲改㔲㌰ㄸ敤ㅤ愰愷晣敤愹㡥ㄳ捣㡡昶㍥㌳㤹〲㤳摦攷慢愸搰㈵愰〷㥤㡦㤳搱㤴搲㘵〴攰昲㘹㠳愰㥣愰㠲㐰ㄳ〴〸㠶㄰㔴ㄲっ㈵ㄸ㐶㔰㐵㐰㤵㝡㌸挱〸㠰捡㤱〰㉢㘶捤㕣ㄲ㍤ㄶ〶戶愵㝢㤲收搴敡㤵㤶ㄹ搳㐲愱㥡㔰㑤戸扥慥扥愶㜶㙡昵慣摥捥㜴㙦搲㥣搶㙤昶愶㤳㤱捥愹搵㑢㝢愳㥤ㅤ戱㠳捣昵㉢㝡搶㤸摤搳捣㘸㙤㝤㌴ㄲ㙥づ㠵ㅢㅡㄲ㉤㉤捤㤵愳愰㜹昱慣㤹㑢㤳㘶㈲昵㔵改摣㠱㍡㤷捣㥡㔹戳搸㑣㝦㔵㍡㐷㐳㈷㔴捥敥改㡡㜴㜴㝦㐵㑡晤っ㔳挳㙣㌳搶挱㜸㥡㘶戲愳晢㤸ㅡ㤸㥤攳㘸攴㥡㙡㕡㔳愹摥慥戵㙣ㅡ戳捣捥捥攵㘶㐲攲搸㌵㍢㤵㕥ㅡ㐹㜶愵㉡扢攸㍦㌳㘹㜶挷捣搴戰慥㌹敢㘲㘶愷捤㤸慡攸㕡ㄹ㐹㉥㡥㜴㤹㘵㑣㔴㜵㔹㌱㥣ㅦ㌷扢搳ㅤ改昵㐳扢づ㑥㤹换㈳摤挷㤸㘴昱㜷ㅤ搸摢ㄱ㔷㘵㘵昸昳㤵敥攵㘵㤹〴ち昶㜴捤㕡ㅤ㐹愶㈵挷㄰㠶扣㜸㕤捤㐵㙡㤱㘳ㄷ㥢㔴㜵㥥ㄴ㘳搶搶搱㜵㤰㤹散㌶㍢㔹〸㈳㌹㈵㡦㐹ㅣ㘴挵㈱攳㈹愷㍡㡣㤲ㅡ㘲昷㈷搶㠵愵ㄸ㍢〲散㌸晢攰敥㡥㐴㑦戲㙢敡愲㡥敥㘹戵㔳ㄷ㐵搶㑤ぢ搵搶搶敡㌱㈰敡㥤挸戶㌳㔳㡢攰㡢㐸户㤹㌲昵㉥捣敥ち愰捡㕥㐳㤷㜵㙢㘵户㈹㘹㡦㤴戴㐷㑢摡㘳㈵敤昱㤲㜶戳愴㍤㔱搲㝥㑣㐹晢敡㤲昶㡥㤲昶㘳㑢摡搷㠰挷戹㉡捡换㑢散㙢捣㜹戵て扦ㄸ戸㘳摥ㄹ㝦摡敢戹㤳收晥㙡戴㥦扤戴摥慢㡡昹摥㥢㡢㕥ㄷ㡢愴搲㜶㘰搹㥤扦摡戸てㅣ昶戹挹搸昶て㍢ち昹㑡挲慥㜷㠳㠷昴敥〰㐶㌵挰戸㘹攳㌸挰戶慦㠸慣㌱昷慤ㅥ户㘷㙥㙥㝣敢㥣㜰愳ㅥ㑢㠹㜱〰㑡扤㠸㤰㌳散摦㕣晥㜲挵〵㡦愷づ扣㙦昹㕢㥦㌷㈶㍢㤷㈹づ愸㌲戲㡥㈷昳〴〰㘳㑦㠰摤㘶昵㈴ㄱㅦ㜶搱敡㐴㈴㠶㈱戲㝡㘲㙢扣㝡㘵愴ㄳ㘱敢㥡愴昷㈲昷㐴〰愵晥㘰慢敥晡攷户㍥愸扡攰〷昳㉦㥦㝢搵㠷㕢敦扤㜰戸攲㌰㉤慡㈷㤳㜹ち㠰㌱ㄵ㘰户㘹攳收户戵㔶㉦㌷晢捣敥㕥ㄳ愶户捥ぢ搷敦㌹㉥㙡愲㌹㥢つ攳昴摥攴慥〱㔰敡户戶敡摦晤戵㜹改て㑥㜸㙦挱愹㤵扦㡦愵摦ㅣ晤扡㘲㙢㤱愹愴ㄶ㠹㠹㡢搱て㌰㌸㉦㌲㈳摤搳㐲㔳摢搲昱搹㘶摦戴摡㥡㔰㝤㝤㜳㙤㕤㜳愸戱愵㌶ㄴ慥㙤づ㌷改㄰㔵搷〱ㄸ昵〰挳改挲敥㌴㐶づ㍡㜰晣搲挶㤰づ㤳愱〱㐰愹㕦摢㘵て㥦戱晣昷敦㥥摡戳昸晡昰㐹㝤ㄷㅤ㝣摣搳㡡㘳㤵㔴慢㠹捣捤〰㐶ぢ㐰㜰摡昸搶ㄵ慣㐸晢戸㍤㘷捥ㄹㅦづ改㝤㐹摦て㐰愹㕦摡捡慡敦㝢昰扥敢㍦㥤扥㘰㘳敦摥戵㡦晣昴㑥扦攲摣㈵ㄵ㤹㠶挴攰㉢㜲〰㔵㑦〷㌰㘶〰㜸㔴愴㤵っ㌳〱㤴扡搷㉥㝢挵㙢㈳ㅦㅥ㜶攲摦ㄶ摤晥昹㠸㡢㈶慥㥦摡愰㌸㘵㑡㐵㘶㤳㜹づ㠰㌱ㄷ㘰挲㠰㉤慢㘱摦扡㝤昵㠱ㄴ㥡〷愰搴捦散ㄲ㕥昹㑥㘴㜳㜵㜴挶㐱㍦㍢晢捣攷㉦搸㘷㜲愳攲挰㈲㈵㉣㈰昳㐱〰挶㐲〰换㔵㘱㜱㔵敢㘱㜴搵㈲搲ㄷ〳㈸㜵慢慤散攳戶㐳㑥昴摤㌷㙢敥㝦㡤ㄸ㜱昰愱㡦㌵户㉢捥敢愲㙣㈹㤹㤷〱ㄸ换〱〶敥〸つ扡㡤ㄲ㉢〰㤴晡愱慤扥攳戴〹挷て㍦愸㝢挱慤愷㥡㝢㥣戵搷㝤㈳ㄵ㔷っ愲㝥㈵㤹て〱㌰づ〵㤸扣戸㈷摥摢㘹㔶㐷戰㑣㠹ㅣ㘳㔶㘳ㄹ搰㥤挲摣㔴扤㌶搹ㄱ㌳慢㈷捥㤴㘶㕢扤㈲戲㙥㤲㍥㡣㤲㠷〳㈸㜵慤㕤捣㠶攳㉦㜹㙢搲愴㠵㡢敥ㄸ昱攸戲㡡㠷㑡㉦㔴㕣㤳㐸挰㡦㐴㘲昰〱㍦㡡慡㡦〶㌰摡〱ち〲㕥慦㔷㤱㈱〲愰搴㤵㜶搹㔷散搶昱攴㥢慦て㕤㜲㐵晣挹摢捦扣㘴挵ぢ㡡㑢㈱㈹㍢㠶挴攰换㡥㔳戵〹㘰㈴〰昲换㙥㘸搱挷㤰㘱㌵㠰㔲㤷搸㘵扦㔱晥散㈳㝤晥㔹㜳戶㍣ㄹ㝣昶〱㘳㡦〵㡡㉢㌰㜱敦戱㘴收㙣㘲㜴〲㜸つ〶㘸ㄸ㤹挱愰㡢摣摤〰㑡㥤㘷慢㝥㜱捥㙦㈷扦㜰挴换昳㉥㜹慦㉦昸㡦收搹㤵㡡敢㍡㔱扤㤶捣挷〱ㄸ㐹㠰㥣づ㌹㡢慤㉣㐵㝡ㅡ㐰愹戳㙣㘵㉦捦㕡㍥晥搶扥搹ぢ敥㕦戶散晥摡攵敦搵㈹慥て㐵㔹ㅦ㤹㡦〷㌰搶〱㡣㔸扣㜴㘵㜵昵搲㘴㑦㙣摦敡㤹㥤㘶㜷摣㡣敢昵攴㌸〱㐰愹搳㙣㜵愷㤷扦昶㜱㜹昷换㑢慥摦㘹摢㤱㌷愶㉥㍣戰㜲〳挸换散〹㝣㜶㌲㜲㍣㤶㐴搹搵㔶㕤㑤㉤晦つ扣捣挴㉡㌳搱㤰㘸㑡㠴㐲昱㠶摡㐸㝤挴捦㔹㝥戰敢ㄹ㝡扥㌲㜱㐸㐷㜷扣攷㜸㔹攰散㍡㌳㤲㌲戳ㄳ摦ㄴ㥢㌶戳愷户㍢㥥摡挵㥢搸㤶㡥愴捤㥤昳㘹㔹㈵〵㘲㙤㔸晥㤹㈹㈹㙦户㝣㌱捣㈲扤㘶敢扡づ㡢晣㡤㍣㌲ㄶ㝦㍤搱攲搴戹㐹昳戸っ戵挰愲㔶㑣㔹㝤愲扢愰㤶ㄶ挹戲慢㝡搶敡㥥㤴搹㉤收㑤改㕡摡ㄱ㕢㘳㈶摢㑣摥慥㤸㜱愹敡づ㈴搹㉢搰㈹㑢扡㔱㔱慣㈹攳攳摣搸挴㥣㜵㤸㍢搰㄰㘰敦㕡㌳㤹㕥扦㈲ㄲ敤㌴㐷攷戰㔸㘵㠲戰㔳づ㝡㙥㑦慣㌷挵戹㈷搹搳㤹㑢㘹㡤昷㐵戰敡㡤㉦敡㠹㥢㔸戴㤶昱昲㈹㕦㘹愹㔲扥挹㕥换㉡敡㑤搵㐸㈰㕣㈱收ㅡ㜶㑣㙥戳慢㔹㡥摡愱ㄶ㥤㈶摢㘴挹昸〱㤴㠹㕥慡㤹㔴㥣搱㔵㈷摥摢㤱㝢㘲㜱㙥戱㌱ㄳ戹敤换㕣㔲㌲搲慥晤ㅣ慣㌲搲昳㈲摤昱㑥㌳搹敦㥤愹愲㐵晡㐴〰晦㘶昴收愲摥攳攰愰搶愹昵晥攳㍢攲改搵挶㙡戳攳㤸搵㘹攰㜰昷㕡㔱㐱搷ㄶ㕣晡㘴愰昴㐶㠲㑤〰㠱㠰捦搸㡣晦㝤㘵〱㝤㡡㤵昷㜳挱晥挵敦㌹㜸㝦慣攵ㅥ〷㌷愴㈹㝦ㄷ㤶搴愹搲㔲慦㕡捥㡢愴㔶愷搹㍣晢㈵昲敥㐲㥦㑡㜰ㅡ㠰㥦㜷っ〳摥搲㜰㑥㈹攳㥤摢搰慥搹㘶㈲㠲晢㘵改摤㉡攲敦戲㙥挱㘶㥢愹㤸收扤摡㝣昴㤵㜵〶㔲攸晣㤵㕤戲昲㕡㤷㥥ㅤ㐹㐷捡扢㜰搷㠷㈸㘹㌰㑤ㄱ㈹㉢㐵挹愱㠲㜳愴〳㜶づㅡ㠲㤲㜴㘹ㄹ㈲〸㑢ㄳ㍡づ晡㡢慦搴㠶晤㔷〲戶㜳㠱㙥攴㌷昴摣扢㌷摣㔴挶て㌴扢㔷慣㕦㙢愶挸㕥㘱昴敢捡晣敥㐵㘵㑢㘲搱㠳搳ㅤ㥤愹ㅡ㔸㝡㘰戲愷㜷敤㔷愹㠷扡昴改〰捥攵㕦㡦㔶㍣昸㍡挱㕤扥昲㍥挶愶扤摤㔷㐱㙤挴㘸戹㠹㘴㙢㠵戲捦昱㥦㕣晡摢昸㉦搰ㅦ捤扦㉢㌸扥挸㥤慥ㅦ晣㤵㕤昰搰㡡愴㈹昷敥ㄵ㤲㠱户㠷㜶ㅤ搲㤳㕣ㄳ敤改㔹挳昶㌴㑣㜲愹搵愶㤹收晤昰㄰晢晥㕦敥昳㤵㉡㉤捤戹慤㜵摤㌸昳㑥摡昸㉥挰搰搶捥捥㙡㐷㘳捡㌸〷愸㔲摣㤹ㅢ攷㈲㌱㘹㙥㐷㜷愴ㄳて愵攲敤戳㑤㜳㙤㝢㥢ㄹ㘹挷敤㌵收散㜶㡥挷㥤愹昶扥㔰戸㘶㕤㘷慡㑢昵挰ㅤ扣㥦晡晢㜵慢扥㌵㘵收戰ㄹ㔷扣㜵挶㤳摦扡敦捣晤㔴户㑤㈸戸㌱收敤㕢㍦㔳㜶挱扤㘸捥㤴㕤㤹㤸摢搱㤹㌶㤳㌲㉡㔷㈵昰㥦昵㤰㐵昲㐳㌹ㄳ㈵㜱㤳㈶戹㔱㠹㔹㤸㡣昰㔴㈷扤㍥㍢㍤ㄷ㑣㠶搶㕣昱㝦㔳晥搷㙥捡㤷〹㍦㘷摡敦㘷㑡㐵愳挹㥢昴晢㘷㜶㌵㈲捥㜶㥥ㅤ㔴ㅡ㔱つ㌴攷㌶㌲昲攷㡦㈶昲攸㉡挳㥦搳〸挱㕤㕢㝣㈹挰挶㕥搸㐸㔹㐴搱㘹昷晦ㄶ㉤㕥㡦搳慤㐵换〵㜰㥣扥㤰攰㈲㠲㡢〹㉥〱㔰慢㌱ㄸ㜱㌱㠳㜴敥愵㉦㐳㕥㝦㡦攰晢〰㔸㤲㘸づ昲㐶㐰㕦挱晦慥〴愸㜲ㅥ搰㔵㕢㑤㉣愰搴敥㐰㜳愵愲慦㈲戸ㅡ愰昲ㅡ㠰挵昳捣㑥㉣㠰扦慡攷摤晥戱搰搹晦㤴㡤昶挳晢戴搱㕤㙤敢扢㘳慢㤳㍤摤ㄸ戳戹㤲㘸㡤攱㠱㜱㑡㐵㡣慥㠵㍤戳㝡搳㐶搷扣づ晣㔷搹戵摣㕣㙢㐶搲戳㜰㠳㠳㘵捡㐲㍣㜴㤴㐵挸晣昸扡晦㥦㡢ㄴ戹捤挴扤㘳㜶㥤愲昲㝢慦戵㕣戰摤㕢㌳扢〷㥢て愶㙣愵搰敤㠶㠱〵攷搷㜰ㄵ攲搳㕢㘰摤㔵敦摤戸摦㠴㉢㙥晥摣晥晦㘴戴㐲戹㜴㌵㠸搲搸㤸㐵㕡㉥㝤㉤晥ぢ昴㐷㔳攳挰挱㔵㠵收㉣㙥摣〸㔰㡡㘶愰㌹㙦慢ㄵ㔰攵㌹ㅢ户搹㠴㠲挷㥥攳㈱挶ㄹ㔹摦㐴㜰㌳挱㉤〴户ㄲ摣〶愰ㄶ㐱㤴㝤㠷て慣昸搹〱㑦㑥晥㠱㘰昹昴敤〴㍦㈵戸〳挰改㍢㔸捤摦㠹慣㜱ㄷ㠰㐷摦㤹〰戴昴㥤㥦㈳愱敦〶㔰㝣㠶捡戶敥搳昷〰ㄴ㜵搸㥥攴㈸㔸㠲摤て㙣㐰昷㐳㔳ㄳ挱㤱㜱㤸愶挳㉣㘷敤㕢捣㔹㉤㌶愱攰㐱敥㘴挸㡡戳ㅥ愵㤲挷〸㝥㑤昰㌸挱ㄳ〰慡摥㜶ㄶ搲戹㤷㝥ㄲ㜹晤ㄴ挱搳〰㡥戳㌰搰晣づ㔹攳昷〰ㅥ捥㥡〲戴㌸敢ㄹ㈴昴戳〰㙡㙦〰换㔹捦㈱㔵搴㔹㔳㈹㔰攰慣攷㠱つ攸㝥㘸慡〶ㅣ㕥捥慡㉥收慣摤㙤㐲挱愳改㄰㌴昱昱㡣㝥ㄵ㐰㝤愳愸㘳㕥㈷捦ㅢ〴㙦〲戸ㅣ昳㔷㉢慢敡昰扦㌸攱㙦㘴㝡ㅢ㐰㠵〱㜸㔷愶摦〱㜰㉥㌵ち㘵㜰戱㉦㡤戳ㅥ攸㐲〷扣ぢ㙣㐰昷㐳㔳つ攰挸㍡㠰换㘲慢戵〴散㝡ㄶ㉣㜴戵㑤㈸㜸㍥捥挷攲搲㕡戶㔱挹扦〹㍥㈲昸㤸攰ㄳ〰㔵ち㔱敦㘹改㌳昲㜰㔴搰扣晤㜰㌹愵〴㔹愳ㄴ挰愳戵㌴㠳㕦ㅣ挵敤㘷敤〷㔰晢〲㌵ㄶㅦ散ㄵ㈳㕢戴戵戴㤰愳愰戵㘸㠸〴㜴㍦㌴戵ㅦ攴戲捥捡㜶慤慤㥦ㄵㄹ㠷摥戵〹〵捦晦て㠰㈶㘹㉤㈳㘸昶㍦挰收敤㤸㔱㈰敢ㅤ〸㐶搳扡散㝣㍤挶捡慡改㔰㈴㑥搸㠹㑣㍢〳愸㔶愰愴戵散㠲㥣㜳愹搷㔱㠶搳㕡㡣㙦㠰㤲晦㐰户戱慥搰㈵扢㠳㉦愰挹㕤㠴愶㘶愲㠰慣㑢戲敤攷㠵㘲㉥㜹摥㈶ㄴ㙣㑢捣㠶㈶㘹㍦ㄳ㔹摣㈴㠲挹〴㔳〸愶〲愸摦ㄷ㜵㔳つ㜹昶㈱愸〵㜰戹愹㡥戸㉢愱ㄹ换㤸㌹昸㑦㕣ㄵ㈶戲〱㐰㜱㌳㘳㉣㍥㍥摤㠸㙣搱昶㌲㤷ㅣ〵敤愵〵㈲〱摤て㑤捤㠳㕣搶㌹搹昶昲㡢㘲捥戹摦㈶ㄴ散愸㉣㠰㈶㜱捥㑣ㄴ慡㘷ㄱ捣㈶㤸㐳㌰ㄷ㐰摤㔵搴㌹昳挸㌳㥦㘰〱㠰换㌹ぢ㠹㘳攷㠲㜳づ㐲〱攲㥣挵㐴㉥〱㔰㡢㠰ㅡ㡢㡦㑦㉦㐵戶愸㜳㌸㐹ㄶ㍡愷つ㈲〱摤て㑤㉤㠶㥣㤷㜳慥㉢收㥣㙢㙤㐲挱づ搱㔲㘸ㄲ攷ㅣ㠹㐲昵㔱〴㐷ㄳ戴ㄳ慣〲㔰㔷ㄵ㜵㑥㤴㍣㌱㠲㌸㠰换㌹〹攲散㤶戳っ〵㠸㜳㔶ㄳ搹〱愰摡㠰ㅡ㡢㡦㑦ㅦ㡢㙣㔱攷㉣㈷㐷㐱换改㠲㐸㐰昷㐳㔳㉢㈰攷攵㥣戳㡢㌹攷㉣㥢㔰戰扦戵ㄲ㥡挴㌹㝤㈸㔴ㅦ㑦戰㡥㘰㍤挱〹〰敡㌴摢㌹㤷㠲㤳㥦散㡡㘷〳㜹㑥㈴㌸〹挰㜱づ㔶㍣ㅢ㤱㌵㌶〱㜸っ换摣㐲ㄳ㘷㙤愶攰㈹〰敡㌰愰挶攲㠳愷㡣挸ㄶ㜵搶愱攴㈸㜰搶ㄹ㄰〹攸㝥㘸敡㜰挸㜹㌹㉢㔹捣㔹挷搹㠴㠲㕤㍡㙥户㡤愱ㄵ攷搲散ㅥ摢㌱㐰攴㕥晡㝣㤰昵〵〴ㄷ搲扡散戰㝣戱㤵㔵㐷㐳㐰㥣㜰〹㤹㉥〵㔰慢㠰㤲㘱昹㌲攴㥣㑢㈵㔰㠶㌳㉣敢㜶愰ぢㅤ㜰〵㜵昶㐷㔳ㄱ挸㘵ㅤ㤰ㅤ㠴㡦㉣收㠰㈳㙣㐲挱㔶㘱ㅣ㥡挴〱搷搱攴挳㡡㍡攰㝡㤰昵つ〴㌷〲戸ㅣ昰㈳㉢慢㑣㈸ㄲ〷晣㤸㑣㌷〱㈸㙥ㄷ㡡〳㙥㐶捥戹搴㔲㤷〳㡣㕢㐱㈹㤸㤷㙡ぢ㕤昲ㄳ昰〵㌴戹㡢搰搴㙡ㄴ攰攵㤲戹挵㕣㌲挷㈶ㄴ散㘰ㅥぢ㑤搲㠱敥㘱㜱昷ㄲ摣㐷㜰㍦挱㉦〰搴㜴摢㑤挳挱㜹ㄹ㍥搳换㝣扥㌷㑡㤰搰て㤲攷㈱㠲㕦〲戸摣昴〸㜱㕣〵㘳攸㕤㠳晦挴㔵㡦ㄲ昹ㄸ㠰攲昶攷㔸㝣戰攰㐶戶㘸㠷改㈴㐷㐱㠷昹つ㐴〲扡ㅦ㥡敡㠶㕣搶㌹搹㜹㘹㙡㌱攷㑣戱〹〵㝢戰㙢愱㐹㥣昳ㅣち搵㝦㈰昸㈳挱昳〴㉦〰愸〹戶㜳挰㤸㝢改㍦㤳攷㐵㠲㤷〰㕣捥㜹㠵㌸㝢㕥㍡づ㐲攲㥣㔷㠹㝣つ㐰愵㠰ㅡ㑢㕤晡㜵㘴㡢㍡㈷㐹㡥〲攷扣〵㤱㠰敥㠷愶搲㤰昳㜲捥㠸㘲捥ㄹ㙥ㄳち昶㤴晢愰㐹㥣戳ㄵ㠵敡昷〸摥㈷昸㈷挱扦〰搴㤰愲捥昹㠰㍣ㅦㄲ㙣〳㜰㥣㠳愱昷㈳㘴㡤㡦〱㍣㠶㕥㙥㕢㡢戳㍥愱攰愷〰㙡㍤㔰㘳昱昱改捦㤰㉤敡慣㜵攴㈸㜰㤶㐲㈳づ攸㝥㘸敡〴挸㜹㌹㙢摢愷㐵㔶挴ㅦ摡㠴晣ㅤ㜳㍦㜷攰扥挰㑥攷㄰ㅡ㥣㔸搹㘱ㅥ捦慤㤹㘱〹㥣晦㥢搵㥢㑡昷挸㍥搲搰挴散㥥挵㍤改搹ㅤ愹戵㥤㤱昵㈳ㄳ㜶攲㤰搵㘶㌷㜶㜹㤳搸散捤挳昵慣㕤㡢㡤晤㐴㕢㑦㙦㌲㘶捥㥦晤㜵搸〵㐶晤㄰㍥搹〰㉥㔱戸扥摣挶愶て㤲㘸㍤戸㝣晥㤳愱㌰㝦㝦捡昵㈸㌷扢㙢㄰〴㘳㔵搶愳㉢㍡搲㥤收㤰㠴搰㈵㕤㤱㠰ㄷ戱㜵ㅥ㉦㑦慣㔸㡤㝤㥢搹㐳ㄳ〷㈶㍢攲㥤ㅤ摤㈶㠳㠱㥤〸ㅥ慡㕣㘸ㅥ㠳㙤昲愵㍤愹づ㥥㈶ㅢ㥡㔸挱ㄳ㌴㙢戹攳ㄷ㕢㍦㈲㈷㈷㑦攵晣㠹㤹ㅤ摤㈹ㄴ㈳㔱㘴扡㉡搱戶扡攷㜸㥣㜶敢敤敡㍥㌰戲㌶昵戵㠸ち㍡㤱㝤㐹㘸㔴㠹㉡㈹㔱ㄵ㈵ㄵ㕦㌶㍥㐶〰㝤散ㅢ㘸愰戱愴㤹㌶慢敤搳㥤搵㐰愴㤳ㅤ搱㕥扡㑥捡慢〳㉣㈳㤰㘸晡晣ㅢ㤱敡攷戹㍣㥦捥摢挷ㄸ戸㐵㑦慢㜳㑥㔹㝡敥ㄶ㘷㑥㙢㡦〲扢ㅥ〲挳㉡㉢〱ㄶㅣ㜸昰晣散攱㤵晦攸㥣戴㝦ㄳ㌴攷㍦敤捣㙦㠳㤹戳〲㍢㠰㜹㤸搵㤸㠸㘳摢㐲ㅦ㐵㥢㘰㉥扦㠱〶ㄲ挲挳戶㍡㉣㥢㥣㡢挳ㄶ㤵㠹㠵㤱愸搹㠹攷摡㕤㤱昴㌰㉢挳㍤ち㥣ㅤ㑣搹戴㔹㍤㕤㕤ㄱ㌶㍥㌶摣戶㔸愴搳慣㐸戴昶愶㝢戰ぢ愸ㄳ〰搲㐲㙤㔴㘴ㅤ㔰㤱㜵㠲慡㑣㉣攷改ㄹ㐹㔳㔷捦㌱㤱㘴㐷㝡㜵㔷㐷慣㠲ㄹ㥥㜰昹㕡戴㕡㡣㈴㔸㤳㘴㉥㘷㔴挹㝦摡㙥㍤㜷㐶戸㙢昰散㕦㕣㠷昰愳㙤㤷㈸〳晦搴㤷㍣㕣㠱㌱㐸愶ㄶ㍤っ摡晣昸挸愰㈴挶㙣㤵㠷㔷㐸㙥㍤ㄹ㑤㔴㠶㈹挵戳ㄱ㙣慦扡ち慣㑣昰㔳㜶㉡㐰扦㍢敦攵㘰〸㉣散㠹挴攷㘲㐷戴㈷㔹㙥㥦敢慦㐰㘸㌹攸㈴㠳㍣ぢ㌱ぢ摢戹㌸戶搳搷ㄱ㌷㤳ㄵ㐴戴㘱〷愱㡣愷㈸っ㉢㠶㜸扡㕣敡昳晢㠷㔴㜸㤵㌵摦搱㌵摥摥㘱㜶㝦搵㘱㝥㠱晥扦㉦㙢㥥捥摡〶〲㜸㠴㡣敦㈲㈰慤㠷戳㑥愷㈱换晡攴㌱㡣㈰挳㐸〰晦改㈰收挷㈶昷㔸〲づ㉦昰〸㘹㤹㥣㠸攷㠱㠹ちㅣ㉥㤰㤳ㄶ㝥愹挸㄰搷〹〹挳㍡ㅣ㔱攱ㅣ戳㌷摡搰捡捤㜸挰ㅡ㘹戹㝦㠲㌹挲㔷㔲㔲㠶㔰ㅢ昹㕢搵〵挵㐲㔹㔷㥢㈹㐷㈷ㄴ㍢愸㌱ちㄶて㘷㘷㠱晥昶散戹昳捤愰攱㜹ㅦㅦ敡挹ㄵ〸攸搱攰挴㠲昷摢㠰㑥昵慦㈱㈶挰搸改ㅤ㐱搵㘳〰晣ㄷ㈰摢捦㈰㠱挷晦慥摤捦㘱㘰㌶ㄲㄸ㌷搳攸扦㌴㘳㙥㐷ㅡ㤶㔴㈶〰㤰㤴㙤捡㥤愵㕦扢㠴愶㘴㔶づ扢ㄷ㤲㜲㤶ㄲ扢ㄵ搲摤㙢㡢昱ㅥ㘴㙢搵攱㕡㙣っ挴㈴慢ててㅢ扦㑥换ㄱ㘵㙤㕢搹㉢ㄲ㌵愱昸㈶慦换敦㥣㐷晥㠳挵㡢㡣ㅡ㜸愸挹㘶㘳慤㘳昴㉥㐸㜳㉤㜳攱㠰㑤挴戵攷捤戵㘲㠰敢ㄹぢ㌷搴㍥㔴㌱扦㍢㠵㜱㈰㘰攷㌰捡て戳㤳㑢㝡搳㌹㤴挸扡㤱㌶〵㠷㐸㤶㜴㜳戲㡥㈴攳㕦㤳㠱ㅤ㜵戳㔶㈲㌲㐶㝦挹㔵㈲㤴昰㜲つ挷㔸昷敦㙡晢晡㈲㔰扥挸㤱㠱㉡昰て愵扢㌳㈷〹㉡㤸攳㌱㝤㠹㠲㜵㔰㕦㤶散㑢㑤慣户昱つ㥥㑥㜳愴〸㘴戲㌲㠸改㐴㙢㌴㠵攵㕦㥡㌳扡㥤㤲㡥慥ㄳ换捤捥〸㑦㝣㘲〲戶㔳㑢㘳㘹ㅣ㤰挹㈸攰㘹捥慦㑦㠴攰㤱㌲㍢㑡㑡攲㘴昴㌳扥攵㔶㠲㝤攸㑢㐶ㄵ愳㝡㐲慥晦㥥慥扥㜷ㄹ慦ㅢ愶晢㥣㠴㝤㔳㜰㌱搴昷戳㡥挴㔸敢㍥摦挱㥥㌴搲㌹㜶㘴㡤㜰㌲㜸㔵㍡㌸㉥㌶㠷昲昶㈰㤹挶昱㈹㝥挷愷㡡㕤愷ㄳ戳㜱扡〳敢慡捥昵挳ㄲ昳扢㘳㥤扤㜱㔳ㄶ㘵捥㤸㉤㙢戳慦㐵扣捡戸摣戰㘲搵㡦㕦㙣愷捣挷ㄷㅡ㥤㈳戰㕦晥ㅥ㑤㝦〳㍤㑤〶㍢攸〸攸摤敤㝥挷愳ㅣ㕦昸㌰㑤〰㐲㈳戲㐷挱攴㍢㜱ㄸ摡ち㔰ㅣ搳㜸㈲㈲㜳ㅥ㐷㝡㥣㡢㙤㘱捦挲ㅥ摥攳戹㔰昳㍡㉣搴搷㈲㑥愸愷ㄵ㈶挳挰搲昴㑢昶㄰㉡挱愸㈷晦㘱つ㙡晦㍦㥤㜳っ㘶ㄹ㜵ㄹ㄰㠲㠴㔷搱㉣㜸晢㔵㤲扤〷㔳摦㐳㝥㈳㍥扡ㅡㄱ㔳摦㐷㙡ㄳ㍥攰戴㤶扢攳㠰ㅤ㜸戹换㠳㌷㙣㜲㝡て戰㍢㤷扡ち㈹㘷㡤㐴慡扤㠶ㅣてㅥ㍤㠱愵㕤敤捤戰㈷ㄹ昶〲昰㙦〱㐳晥㈰㔳昴㕣〹ㄷ愸晥㉥㉥〵㉢扡戸㈴㐶ㄷ㌵㜰㔴ㄷ攷㘶戰㌴㌳㠶㔴㕣〳扡㥥〸戵扦㜹攲㠹㘹㐸晢搴戵〰㡥㠱㕣㠹摡㡢戸㐹㉣㝦㌲㠰扡〹㐸㉥攴散㐹㝣㉡㜰捥㈴扥㌷搲㜴敦捤㐰㜱㈲㜷慥摣改愷挶收扡〵㘴㑥㐱昴搲㐰挳㤹扡ㄵ㝣ㅣ搲戰ㅢ〸昱㙣㥦ち搹捡㙥〳㠹晤捡扡㡡㐷晥㜶㌰㐸攴攵愸㠵㤴㥤ㅦ晤㥦㠲㘵㈳㍥扡ㅥ扡搵ㅤ㐸㙤挲㈷ㄳ晤〶㘰〷㡥晥㥤㈲〱㈵㡤㔴㘲㘷搴捦㤱㜰㥣㡢愴ㄳ晤㈶昰攸㘶㌲摥敤捤搰㐲㠶㝤挹㜰てㄸ戶攰愳昷㐳㉥ㄳ戴晢㕤㘲㉤㐸摢㐱摢㥦㘲搳㈸挶㠳ㅥ慥愰挹敤㡢㠲㕤㔸扣捦〰㥤㐱攳㌱㤰攲㐱㙢戵戹㝥つ慥㐱〷敤㜱㌰㕢㐱㥢㐹㑢㌶㈳㉢〳攱㙣㕢搹ㄳ㐰㌰㘸ㄷて㍦慦散愹敢ㅢ㘷㈰㠹㙢敢挹㙦晦㝢㙣敢㥥㌷晤㘳扡昵㠴换愷㥥〴㔶㠲㘶捣㠱攴㘴昷户つ㜹愷㠶㙦昰㘴扥戴挵慦昴㈴㍡搲昶昷㡤㔰㕥㘱敦㝥ち摡㌶攲愳攷㐲㤹㝡ㅡ愹㥣昸捥〳㜶攰昸晥づ㘲っ慢㥥㑦㈵㜶㐶㍤㠳㠴ㄳ㕦㈲敤摥扤〰㍣晡㈰㌲㍥敢捤戰㤰っ㡢挸昰ㅣㄸ戶攰愳ㄷ㈳㤷㠹敦昳㉥戱㤱㐸摢昱㕤㐲戱愵ㄴ㝢ㄵ㐸㍥㘸戵㝢愲っ㜲慦㈳㙢㜹㙤ㄹ㔸㐶㕡㕦慡ㅣ昰〱㤴㝡〳㘲ㅢ昱搱换愹㤸㘷㔹㉣昷搸昷晡㉢㠰ㅤ搸㍤㍣昳㈲敥㌹㤸㑡散㡣攲挱ㄷ挷㍤挰㍢敥㔹㠹戴㍥㠴㡣㙦㝢㌳ㅣ㑡㠶挳挸昰づㄸ㜸ㄳ㙤ㅣ㡥摣㑥捥捤㘹晥昷㍥ぢ㌷㤶搰捥㡦㠴〴㙥㔲摦㜵ㄵ攱ㅡ摦㡥㘲ㄱ㐷戳㠸㙤㘰㜰㜵㤵㔵ㄴ戳㙦㔲㈲㐸戳慢晣ㅢ愸攲㕤㈵㙡㜳㝤〴慥㐱㜷㤵㡦挱㙣㜵㤵ㄸ挴戳㕤挵戴㤵㝤〲晡㘰挶户捦挰㈷㐱昷㥥搹㍥〷㜹㈳㍥㍡〱扤ㅣ〰㜲摢晥㙡㘰〷づ㙥〹挴㈴戸ㅤ㘰㜷㉥㔵〶㤴ㄳ㕣㔲敤戶㝦㉣㜸昴ㅡ㤶挶㠳㍣ㅥっ㥤㘴攸㈲㠳〱㠶㉤㤰搴摤挸㘵摡扥㜶㠹㜱㤷搱㙥晢㍤ㄴ㕢㑢㌱㥥戴挹㙦晢愳㠰ㄳ㌷㘸戶㝤戹㌸捣扢ㅥ戴㉡ㅥ扥搹〸㥣㑥㔲挹㘸攴㌶㤱捦㜹愶㤵〶㜶㘰㔷㡣㠱ㄸ晥㝣扡㤷㑡㈸捥捦㑥㠰㑥㑤㔹扣敤㡡㍥愴昵昱㘴攴㜱ㅥて㠶㜵㘴㔸㑦〶㥥昰㤱㜶㝥〲㜲㐵摢㜹㐸摡㐹摥挳㤸つ㤰㐰㍢摦摤㔵㠴慢㥤㥦挸㈲㑥㘲ㄱㄳ挱攰㙡攷ㅢ㈹㘶户昳㑤㐸戳㥤㑦〲㑢昱㜶扥搹收㥡っ慥㐱户㜳ㅥ晡戱摡昹㈹㄰捦戶昳搳㙣㘵㍣て㌴㤸㜶捥㠳㐱晤戴㜳ㅥㄹ摡㠸ち改搳愱㔷昱散搰㈶攴㄰ㅤ㈹㔱㝦ぢ搸㠱㠳换㌳㐶昸换㕢挱㠵㠱㜲㘲㐷慡ㅤ摣㙦戳㍡㘷戱㌴ㅥ㐰昲㘰㌸㥢っ摦㈱㐳㈳ㄸ戶㔰敦㜷㤱换戴昳ㄶ㤷㤸㉢㘰攷㔰散㕣㡡捤〴㠳㉢㘰攷〳攷〴散〲愴ㄹ戰㔹㘰㈹ㅥ戰ぢ㙤慥搹攰ㅡ㜴挰㜸㄰挹ち搸㐵㄰捦〶散ㄲ㕢搹㕣搰〷ㄳ戰㜹攰敢㈷㘰昳㐱摥㐸㥦㕣ち扤㙡〱㜲㥢㤰换〴散㝢挰づㅣ㌰㥥㝢挲㥦㑦攷っ㑣㍣昸攴ㄱ㡦换㔹㥤㉢㔸ㅡて㐵㜹㌰㕣㐹㠶慢挸挰㘳㔲㕢愸昷㙡攴㌲〱攳㐹㈸㐷捣㌵㌰㕤㐳戱㉤ㄴ㍢ㄲっ慥㠰晤ㄷ㜰㑥挰慥㐵㥡〱㍢ち㉣挵〳㜶㥤捤㜵㌴戸〶ㅤ戰㜶㌰㕢〱晢㝦㄰捦〶散〶㕢搹㉡搰〷ㄳ戰㈸昸晡〹㔸っ攴㡤昴挹㡤搰慢攲挸㙤㐲㉥ㄳ戰ㅦ〱㍢㜰挰ㄲ㄰挳㕦㕥て㕢つ㤴攳㔸㔲敤ㅥ㜶ㄳ慢㜳㌳㑢敢昰㘶戸㠵っ户㤲攱㔸㌰㙣愱摥摢㤰换〴㡣愷戳ㅣ扤慥ㅥ昶ㄳ㡡摤㑥戱㍥㌰㌰㘰挶㑦㤱㉢㍤戸㙤㌶㑥㠴㈳攵〴敤㘷㐸㌳㘸㍣㙢㔵㍣㘸㜷摡㕣敢挰㌵攸愰慤〷戳ㄵ戴扢㈰㥥つ摡摤戶㌲㥥攷ㅡ㑣搰㌶㠰捦㥡昷づ㠵摤戰扣㜰昹㝢㈲㜰ㅢ㐱搲昷㐲户㍡〹戹㑤ㄶ愷㘶慤昵晤〰〳〷㙥㈳挴昰㠷㜳㌲㔴㠲㠴㝣㌶〳㍡づ愶㑥㍢㜰て㔰敦㠳㘴㍣挵㥢攱㈱㌲晣㤲っ愷㠲㘱ぢ昵㍥㡣㕣㈶㜰㍣㈹收攸㜵摤摥㍣㐲戱㕦㔱㡣愷扡昲㤷〰㍣捡㘵戹愲攸ㄲ㠰〷扤㌶戲戴挷愸攴㐲攴㌶㈱㠷㜰㑢〰昴攳挰づ散㡡㡢㈱㠶㍦ㅣ㥣愷ㄲ㡡昳挳攳㘱㡥挹挰㍢慥昸つ搲晡㐹㌲㕥敡捤昰ㄴㄹ㥥㈶挳㘵㘰㤰㈵挰㙦㤱㉢扡〴㈸㍣摢㡢愵敥敦㈱㠱㈵挰ㄵ慥㈲㕣敤晤ㄹㄶ昱㉣㡢戸づっ昹㙥扢ㅥ戸〱摣㜶〳㔸㌶愲〴晤〷㉡戹ㄱ戹㑤挸㘵摣昶㍣戰〳扢㡤攷挹昰㠷挳㐴㔴㐲㜱㝥㜸愸捣挳㙤㝦〲㡦晥㌳ㄹ㜹攰捣㠳攱㐵㌲扣㐴〶㥥㐱ㄳ户扤㡣摣〸攷づ㘱ㄱ扥挷摣戱戶戳挳㑣㑡㘸昳㤶㑣㝦〱㉢晣挵挳㘷㡥敥㥤㠹〹昰攰㤷㝥㤵扡㕦愳敥㝢挰攰ㅡ搰摦愰㤸㝤ㄷ晤㈶搲ㅣㅢ敥〵㑢昱戱攱㉤㥢敢㍥㜰つ㝡㙣戸ㅦ捣搶搸昰㔷㠸㘷挷㠶户㙤㘵扦〰㥤㘳挳㐰㜷搱て㠲捦㡡散ㅣ㐸搲昲㠲〷㕦て〱户ㄱ㈴晤㜷㜰愸㕦㈲户挹攲戴㍡挴㝦〳㍢㜰㘴ㅦ㠱ㄸ晥㝣晡㕤㉡㐱㐲㍥㡦〲㍡捥㈵挲ㅥㅢ戶㠲㐷扦㐷挶挷扣ㄹ摥㈷挳㍦挹昰㙢㌰㙣愱摥㝦㈱㤷ㄹㅢ㜸㈸捥搱㍢㔵昴㑡搰晥㠷㘲ㅦ㔰散㌹㌰戸㠲戶つ㌸㘷㐰晦㌷搲っㅡ㡦户ㄵて摡㐷㌶搷ㅦ挱㌵攸愰㍤て㘶㉢㘸ㅦ㐳㍣ㅢ戴㑦㙤㘵㍣㐲㌷㤸〱晤捦攰㤳愰㜹摦捦扤〸昲㐶晡攴㌳攸㔵㉦㈱户〹㌹㜸摣ちㄸ摦づ㌳㜰挰㕥㠱ㄸ晥昲㤶㑤慦〲攵㌸㤶㔴㍢㘰㈵㔰愹戱㤷敥㔳慦㜹㌳㤴㤱㠱慦㡥㔳慦㠳㘱ぢ昵ㅡ挸㘵〲挶㠳㝡㡥㕥搷戲愹㥣㘲ㄵㄴ攳愱㍡㤹㠵昹㥡挰㈱㕤搸㘴攰㑢慢㘴㌶㤶つ㜷晢㈶㘵〸愸っㅥ㡦摦ㄵて㕥愵捤挵昳㜹㠳づㅥ捦昱㔹挱ㅢち昱㙣昰慡㙣㘵晦〲㝤㌰挱晢〰㝣ㄲ㍣㈳〸挹㕤昹捡ㄹ搷㑢户慡昷慥挶ぢ㘳㈶散ㄳ〶㤸㈴ㄱ挸㝦ㄲ挹㘳㠲ㅢ改挰攱㄰㔷摢㤰摢㠴ㅣ愳㑢搷攸㤱〰〳㐷㤷攷ち昱攷搳愳愸㐴挴昱晦㈷㐸㌹㔱㐰搳㜱愲换㈳攲㝡㌴ㄹ㍦昵㘶搸㤱っ㘳挸昰ㄹㄸ㈴扡㍢㈱㤷㠹慥㠲㌲㐷敦㜴搱㉢㘷〰㜶愶搸㉥ㄴㅢ〲〶㕡愱㜷㘵捥㌶挷㍦っ搸晣㠳ㄱ〵㠷㔶捡愸㉦挱攳㉢㙤改昵㥤㌸㌲挴㈴て㑡㔸㈹㍥摦戶挸㜸㈸搸㤳㉣挳捥㜶晥户㡦㌳戲ㅢ愰㙡挸愸扣ㄷ慡㠸ㄸ㈹㤵戰挶晦摡㈷㠵㉦つ挹挸搳昰散摢ㄵ㈸挳换搸つ㜵ㅡ戵愸㈳㤶散㐹昵㈴搲搵㙤㌸ㄸ㔷捤ㄷ搴㈴戰攱搳敡晦ぢ㌴㝡㤶挹㡡㤵㜵昳〵㠷㝤㝣㘱㐳㘰㑤㜷捦昱摤㘲㡤㍦挵昷昴㠸扦捡换㔹っ㠶〱敢摡〳捥ぢ㔶挱㔰ち敢㙡ㄴ㍣戴㌴ㄸ㐴ㅥ㝦㍥㘳㉣昲ㄳ㘶捤㥣戵扣㍤摣搲ㅣ㙢愸㑤挴㙡愳㜵愱㜰戸㍥摣ㄲ㡥搶戵挴敡愳愱愶挶晡㐴扣㈵㘲㡣换戰㌶㌷㐵愲搱收㐴㐳㘳㐳㈸ㅥづ㠵ㅢ㕢挲昵㔱ㄳㄲ㡤㑤㤱㤶㐸㘳㝤㝤㜰戸慤㕥敦〱ㄹ㍤ㅥ㈰㌸挲㐱㑤㈰㙡㑦愲㐶㍡愸っ㤷㝦㌴㔰㠳㍤㠰挲晡愸愸㡡攱㥥挲㉣㉢㉦㉦㌸㤱㔰㜰㜰㈵昳ちて挳搸〱戲晥㍦挰捤昹挷ㄸ扣㠵㜲愳㐸㘱㤹㍢㈶戳㉡㔳〰〲挱ㅤ㘱㌸つ㌲愶㈲㍢㙣搶捣㜶搷昹㍢㘳㙦攰㉡㠱㤳ㅤ戶攵㜸㙤㡦㔱〳捣㜰㘰㜲㕦㘲㘹散〳昴〸愰昱㕥ち攷㑤ㄵ㙣戶挱㌱戶昶散㑢ㅥ㜵ㅤ㔸攵㡢㝡晥㥤㐱捣慦㠶敢㐴㥤敢㌴〶㝢㔸搰㜵㐴㐶ㅣ㌲㍣戱慣ㄷ敦扥㐸慦㕦㠲㝤摡㌴㔱㕦㠷摤扤㌲㙢户㝣挰戶㈰㔵㌸攲㈸㠶㈴摦〷戹愱戴敢㈶慦㜰昹㜲㝢㠵〱晦ㄳ〳㌶ㄸ愷㤴挲〶㠳㜰攱㐴㐵〳晥攳㕣戴ぢ㘲㈶㥤㜵て㈴㥣㑢敤敡㠵昵㝦〳搸挱㙦㐴㔳敢㐸㙥㜶㔸敦㜰攴〱挴㈹㥤搸㤳ㅦ挴㜹捦㈶ㄸ愷㜶昷戲㐱㔵㍢搸ㄶ昲愰〸昹㡣〳㤶〳戲㝡〴㡥攱㌰挸㥡ㄸ晢㠱愵攸搸愶㝥〹㌶㡥㙦戹攳㤳攳㠶㈰昷㌷愹摢㤸〶㉤搶挰搴搲搲搴㔸㔷ㄷ愹㙦㡣㌴搷㠵敢㙢挳搱㘸㙤挸㙣㙣挰㘰ㄳ慢㌳㥢㥢㥡㠳ㄳㅣ攳づ㠰㑣㜰㑦㈷㌷㥤㌹敥㠴㔲㥦㈶慤㙡㈲㜲㉣搸挰攷㉢扤㠲㤳愰ㄹ㈵昸㡣㔶挰晣晥㍦ㄳ戸摣晥㍦ぢ㤸挲晥ㅦ㥣㙣㙢挹扥昲㔳捦〵愷㥡ち㍣扢㜹㐰摤〵搷戱ㄹ〲㡢收㌴て晦戱㌹敤つ㥡搴㜲㍥昱昶愵㙡㍣戱晢〰换㈶愵ㄷ㔰㜳挸㤳愷摥挱㉥㈴て昴㔱慤㙡〰㔶挲晤ㄳㄸ㤰〹昷㘲搰㡡㠷晢㔶戰ㄶ㠶扢ㄱ㥡㘴㍡㕡ち㘱㑣㐷㑤挸昳ち㌶㍢㠹ㄶ㈷戱慦㥤愸摡て㠹敤ㄳ扢晤愱㤹ㄵ㌴㤶〱收挷㙥㌹㜰戹戱㙢〳挶㈳㜶搳㙣㉤㝡㍣㔴挹晢㔴昵㑡㜰慡改挰㕢戱扢㈱㈷㜶㠷㠲挸搸捤〰㕤㘲㜷ㄸ㄰㐸换㐷戵㍡搸挳㠱㜵㉥㌵ㄳ㔸㠹摤ㄱ搴捣摤㔱㤱捣攱㤹敢㘰㡦㈲て㐴攵㌳て㔸㠹摤ㄶ㜷散摡挱㔲㍣㜶㔷㝢挶㙥㍥㌴㐹散㈲㄰㐶散ㄶ搸攵ㄹ㔱攴慤ㅥㅢ㠹㌷搷挶㙡㕢ㅡㅢ㕢敡ㅢ挲昱㔸㔳愴愱戹戶挱㙣〲慣㙦㠸㠶ㅢㄲ挱㠳ㅣㅢ㘳㤰〹㉥㜴㜲㜱收ㄶ㌹㌹搲慡ㄶ㈳户㝤愲扥〴㥡㔱〲㡥㡥〲收㐷晤ㄸ攰㜲愳扥ㅡㄸ㡦愸㉦戵戵攸挹㔰㈵慦扡搵㙢挰愹㤶㍢戵攸㘴捥㠹挲ち㘰㈵ちㄷ戸愳搰つ㤶攲㔱㌸捦㌳ち〷㐳㤳㐴㘱㉤㠴ㄱ㠵㤵挸攳捦㘷ㅣ㠷扣ㄵ㠵㐴㕤扣戶愱戱戶愱㌹ㄶ㘹ち搷户㠴㥡㈳搱晡㜸㌸摡ㅣ慦㙤㙥ち搵搵搶ㅢ挹っ㙢㜳㈴㤲㘸〸㌵㐴㈳㑤戱㜸戸㌶ㅥ㠹㠶攳愱晡㐴挸㙣㑡㠴㕢攲㘶㌴ㄴ㍣挴㔶慦㔳㤰搱㝣㤹㝢昰㔰〷搵㑢㔴ㅦ㔱㠷㌹愸っ㤷㍡ㄲ㈸㉥敡搴ㄹ愸〶ㄷ㕣攰挳户㑥㈹昲㑤㠰㐰昰㈸㄰㔹ㄱ㘳〳戲昹㘱㌸ㄱ戸摣㌰㥣〴㑣㘱ㄸ㡣㤳㠱昶㕡㌸ㅤ㙤㙢捦扥〰㔸㙦〶慢昵㠶㠳㔵㈰㕡㍤㜳〳っ换㡥慡愷㠱㠳㍤㌳㐲扢㘹㙥〷ㄲ捥愵愲㥥搸ㄸ戰搲㌳捦㠰戰㌲㍤㜹ㄲづ昶㑣昲㐰愱㝣㔶〳㉢㙤愲て㐶㘴㐶搵戳挰㔲扣㑤愴挱㕡㌸慡㍡㘶〶㡦戵ぢ㌲扥〳㉤㔶㘳愸㐳㔰敢㙡㙢捤㔸㑢㜳㝤㌸搲ㄲ挶摣㔹ㅢ㌷捤㐴㘳㑢㔳慣戹愵摥っ慥㜱㡣晢㉥㘴㠲㥤㑥敥ㅣ收扡㥣ㅣ㘹㔵摤挸㙤㥦㉥搹〳捤㈸挱㘷㥣〷㤸摦ㄶ捥〷㉥户㉤㕣〰㑣㘱㕢〸慥戵戵攸㈶愸㤲搷㌴敢㡢挱愹㤲㑥㉤㉥㘱捥㜱㝦ㅡ㔸㜱晦㙡㤷晢㌵扢㈴㙦挵㔴挲搳搳扤㄰㤲摥昷㝤昰愱昷昵㈱㡦㍦㥦㜱㌹昲㤶挳㙢捤收㜸挸っ㠷挳㉤㘶㌴ㅣ㡢挷㥡㙢㕢㥡愲㑤戵愱㔰㕤㐳慣戹㌱㔶㘷㕣㤱㘱㐵㘴愲戸敤ち挷ㅢㅢ㙡挳㘶〸㑢㥤㜰愴㌱㔲ㅢ㡦㐷攳㤱㜸㈲摣ㄴ㍣摥㔶慦慦㠴㡣扥ち㈰戸捥㐱㘵㝢摦㝡〷㐵〶㘱㔵ㅢ㠰㤲摥㜷㈴慡㤱改㝤搷㤲㝥ㅤ㐰㈰㜸㈲ㄸ愴㈲散㝤㥡摤㑤戳㠷㘹昶愷攰㐹づ昱〰㔴㑤㕥㍡慤㝦㑣攲戹挸慡㡤㈰㕡㥤㘷ㄹ㜴㘷㍢捦㉤攰㘰攷搹〴扡㜴ㅥ㘷㘹〷㈱㥦摡散㠹㍤〵㔸改㍣户㐱㔸㥤收挹㜳扡㠳扤㥤㍣搴挵捦户㠰㤵攸ㅤ攴㡥ㅥ㔷愰ㄲ扤昹㥥搱晢戶慤捡戸ㄳ㝣㔶戴㘲㜵昵愱戸㤹㘸㘹㙥㙣㘸〹㈷攲㜵㤱扡收㐸愸㈹㔱㕢摢㕣ㅦ㌷ㅢ㙢ㅢ㠳㘷㌹挵摦〵㤹攰搹㑥㙥㍡㜳摦㜱㜲愴㔵㝤ㄷ戹敤搳㍤捥㠱㘶㤴攰搳㕣㘳㙡㉥㉡㌵搷㤱挱㜳ㅤ晣㙣ㄲ攷㄰㍣〰扣㍡ㅦ㜸㉢㐴〷攴㠴攸㈱㄰ㄹ愲ぢ㐰㤷㄰㌹〳〷㈴戱扢攱㠹扤〸㔸〹搱挳搴㝣㠹㈷捦愵づ昶㔷攴愱㉥㝥扥〷慣㠴愸搹ㅤ㈲㡥㙦ㄲ愲㐶捦㄰㕤㙥慢㌲ㅥ〷㥦ㄵ愲挶㘸〳晡㑦㔳〲㝤愲㈹㕣摢㔸搷㔲ㅢ㡦㤹㜵攱愶晡㔰ぢ㈶慡㘸㈲㜸㠵㔳晣ㄳ㤰〹㕥改攴㘴〴扢捡挹㤱㔶㜵㌵㜲摢㈷㐴搷㐰㌳㙢愶㌹㠲㘹づ㔹㥡愳㔴㜰㡢㠳㕦㐰攲㐱〴捦〰慦戸搵㙢㠵㘸㑡㑥㠸㥥〳㤱㈱扡ㄶ㜴〹㔱㑥㉦扡捥ㄳ换㕤㕣〹搱ㅦ愹昹〶㑦㥥ㅢㅤ散ぢ攴㠱ㄹ昲昹ㄱ戰ㄲ愲〹敥㄰㘵㝡搱ㅥ㥥㈱扡挹㔶㘵扣〴㔵昶㤸搷㔰搷㄰て㈷㕡㥡捣㤶㔸㌸搶㤲㠸㌶㈵㘲捤㈱㜴慡㜸㝤㈴㠶ㄵ㘱昰㘶愷昸㤷㈱ㄳ扣挵挹㐹㉦扡搵挹㤱㔶㜵ㅢ㜲摢㈷㐴㍦㠱㘶㤴㔰搰㡢㙥㜷昰㑢㐹㕣㐶昰ㄶ昸搴ㅤ挰㕢㈱ㅡ㤳ㄳ愲扦㠱挸㄰晤っ㜴〹㔱捥扤搷㥤㥥搸扢㠰㤵㄰扤㐳捤㜷㝢昲摣敢㘰晦㐱ㅥ㤸㠱晦㝣敡㝥㘰㈵㐴㈳摣㈱㕡㑣ㅡ愷愹愰㘷㠸㝥〱㈱ㄹ摤摦〳ㅦ愶愹〷㤰攷ㄵ㝣搰㐹㍣攴㈴戸愹捡慢敡㘱㈴戶㡦攳ㅦ㠱㘶摡慢㤷〱敡攵〴㙤〰㐱㙥捣ち㝥㈵㠹㠷㄰㝣㠸扣㝡っ㜸㜱散㌶收㠰㤶捦攳挰㡡㈳捡摤㡥挸捣搷㝥㑦㐷㍣〱㈱㜱挴㈷㔰〵㐷晣〶㜹晣昹㡣㑦㤱户㠷㤷㔰㌴㔴㔷ㄷ㐶㌳つ㈵挲捤㘶愸戹〵晦攱㘶㠵てㄹ㐲戱愶戰昱㔹㠶戵挱っ㈷㘲㉤㔱戳㈵づ㠱㜸㌴ㅡ挵㤲搹㑣㌴㐷㘲攱㘸㈸㕡㘷挶㠳㑦摡敡昵攷㤰搱㉣㌹昸㤴㠳捡捥搷㑦㍢愸っ㤷晡㍤㔰㌲㕦㝦晣戱㙢扥㌶愰㐰㤷〳〴㠲捦㠰㐱㉡攲㌵㕦㍦敢㄰㡦愲て㡦㈶ㄸ㐶㔱㤹慦晦〰愲㜸㌳〸ㄴㄳ㌰捤愷㥥〷㔶扣昹㉥ち㜴ㄶ㥦搹搵捦㍦㠰㉤㕣㘷扥攰㤴㌳ち慡攰捤㍦㈱㡦㍦㥦戱〳昲㤶㌷㕢㥡ㄲ㡤㠹愶收㤸㠹㐷挷攱㔰慣㌱㔲㕦㕦㙦挲㔱昸㔷ㅦ慥㙦㘸㌰㐶㘷㔸挳㘶㈴ㄲ㙥㡣㠴㕢㙡昱〸戹㈱ㄶ㘹㡥㠶戰ㅥ挵敦㜶㠴㥡㠱㘸㡡〷晦㙣慢搷㍢㐲㐶㡦〱〸扥攸愰㜸摢愱改搲攰㑢づ㡡っ挲慡晥〲㤴㜸昳㌵户㌷㜷㈳㝤㜷㠰㐰昰㔵㌰㈰㘱㉤㜷慣搵㡦昸㤵㑢愰攰㙢づ㤱敥㤳㕦㐱搰㜱愶昶㠲㠴㝡〳㐴㙢㔰昸㈳㜴㘷㔷㍦㤳愸ㄷ㠳挲㥢愰㡢户㈷〳㠱戴㝣ㄴ㜷㜵〵㥢㜳挳晥㔷㘰㘵㔰㤸㑡捤㙦㝢昲晣摤挱搶㤰〷晡㈴㝡晦つ慣㐴敦户敥攸戵㤳挶㐱攱㈹捦攸扤ぢ㈱㈸挱捦愱〰㈲㝡㕢㙤搵㐶㍤昲㔶昴ㅡ挲昵戱㠸ㄹ㐳㌴攲㜱晣㈰㔶㙤ㄴて晣攳㠹晡㔸㍣搲㔴㤷㘸㠸㐵㠳戲て㑢ㅤ㘱挸〴摦㜷㡣㤳晢昷㝦㍡㌹搲慡晥㠵摣昶ㄹ㑥晥〷㥡㔹㔳捤㝢㜵捤㥢㜸捤㝢昴攰〷づ㝥つ㠹挷ㄲ散て㑢搴㌶攰慤㤰㍤㤴ㄳ戲〳㐰㘴挸晥つ扡〴㈷㘷㌵昴㤱㈷昶㘳㘰㈵㘴㌳愸昹㔳㑦㥥捦ㅣ散㑣昲挰っ敢〳ㄳ㈵㘴昷扡㐳㤶㔹つ摤敤ㄹ戲ㄲ〸㔱摡㤸ぢ㔵㔶㠸㘲愱挶扡摡㔰㔳㌳扢㔵㌸㠱愷愰㑤㉤㑤昱㠶㔰㔳㐳㘳㉣摣挸搵㔰愹㉤愳て㠴㑣㤰㝢慤㔲㌹㔹つ昹㥤ㅣ㘹㔵〶㜲摢㈷㐴攵搰㡣扦㠲搵㄰㜷㙦〵扦㤶挴攳〸㤶搰㐹摣戵戵㐲㜴㑢㑥㠸㤶㠱挸㄰つ〱㕤㙡戱ㅣ〸攷㔲㤵㥥搸愱挰㑡㠸摡愸戹捡㤳㘷戸㠳㍤㤸㍣㔰㈸㥦㤱挰㑡㠸㙥㜴㠵挸㌸〴㉣挵㙦挸慦昷㡣ㅢ㌷㔲㘹愹㍥っ㄰㕤㙤〷攴㜹〵㐷㍢〹敥㤲ち㘶㡣㥤愸摡〹㠹敤ㄳ㡤㥤愱㤹愵ㄸ㠷挳㥡晣扢敢㈳㠰换扤扢㍥ㄲㄸ㡦扢敢㕤㙣㉤扡て慡攴㘷㔲㜴㍢㌸㠳扢〲㡦晦㝤㝡ㄵ攰搰㔲㝦㌵昲晢ㄵ晦㡥戰㙢㝢㙣ち扥㑡㤷昳㜳ㅡ㜳昰昳ㄸ扣㤹昵㤵攲㝢昹搶户搹换㑡昶晤㜲扡戸㍦㌴ち慡昸昱㕦㠵㈸晤〷㝡搸㍡戲㝢戹搴戸㍢㍥㍡㡡ち晢昷㐰㜵㍤扦慡㤷晦敢㘷敥摦㡥攳㌶挴づ㕤昳㔳搸ㄲ挴㕢㤴㔷昴戴捡㤷昵戸攳㌷摣搹㉡㥣攲晣捡挳㠴㉣挶昹㈶慣㈳戶㈴㤹㤱挳慦㈶㘰㕦ㄸ㠴㈹晣㑤㠸ㅤ戲㌹搷摢〰㜶挹㘲昱〵㘸㝣㉤搳㡣㍢ㅡ㔳㌸昰㔲㔶㔲㕡昰㍡㘲搹㑥戴㝦慡㡥㕦晦愷㌶晣㠲挹晣昸㘸搴㘰ㄷ㡦㜷㈱捣散㐸换扢㐴㐶㠲慥昴㔸㌸挷㠸挳㑤挶戴昱换挷㌷搵晡扦㡦㐰攴㝦㌵慤㘸ㄹ戹㙥㘷㠹㙣ㅢ〱㥤㠰㐲挵扤㘵晡㕥改㜱㉣㘴戵㔵㐸ㅢち㔱㤷愰㄰ㄶ〴ㄴ戸㡦㈵昷〴昰㄰㐵〵㙡㑦㍢㐳㝡ㄵ户㜲晤㐸攴敤っ㙤攵搱〴㕥㌳〴晡㉡散晦㠳㌳慡愶㌸ㄲ㐷愹戱攷户晡㕦㌹㌹晦搵㑡㤶㠴つ㘷㥣㌳㐳搵㐱㘲㔷攴攵㐵挶晡ㅣ愶㘴㘹㜶㍥㉣昲㝣㠹昱㜹㌶㈱晦㈷〵㔴〳㌴搱㉤㝡㉤㡣㐷㕡㍥㑡昶敦㠸㜵摦㉣〶㕢㐰㘷ㄵ㜵ㄲ㜰㘸愹㍡〰㜹换㘳搳㤰㌲搲挰敥㌱搰て㝦㡤て㌷晡捦㠲㌱㥥慦㘷戲摢〵扥㈸散㌴慣㌹摤扤㍣㐲敢敡㉣㡣ㅡ慦㠰敥㐳㜹㙡㍡㑡愶㍥愲搴㕣㘴戲㙥戹ㄱ㈸换㉤愷ㄷ㜳换㘹㌶愱攰摤捥摣づㄳ户㙣㐰㈱㐸换㈷攸摣㤷㈹搹昰愲㝡〷挳㘶㄰㕣〸㐶戰攳挱ㄷ㈰晣挳㉤愹㙡㉡摡㠴㘲㌸㘲㐸㈷摦㐸戳㔷〲敤㘵改㠶㘲㤶㝥搳㈶ㄴ扣㔸昹㔰ㄶ挰㐲㑦㜷㕢㝡ㄸ戰㘲捡ㄹ㠰晡㕢〰㐳㑢㠲捥㕡㔱ㅤ攱挸㌸ㄸ挸晢㠲㐷㌹㌲摦㈶㝢愹攲慥㡣㤸摦敢㌶晦㙣㄰㔵っ㈴㉢昲㔱愴㡣敦〲㔷㥤晦㤳㝣攳㕢攷㡤㜷晦㈸㥦㍡づ㙡㥣㔰〵昴戹搴挳㘵㥥㠳㔲㙢㤰昱昲㐹㘷㌱㥦慣戱〹昹敦㑦づ㜶㐲ㄳ搴攳㌵昶㠰愸〹㜷㌶愴㈶ㅤ敥㥡㕣㑡ぢ㔲㈰㔹㌵㌹づ㈹攳㝢挰㘱㘸㘹ㅢ摦ㄸ㔲㈶㤸搹挵㠱㐷㙢扢㥣摣摣慥戰戸㤳攴扥ㄲ戸ㄱ㜹摦〴㠳愴㍦〲愹晥ㅡ㌸づ㘵っ愶㠱㕦捤㈲㜹㑢攲㔸愱㜸㤳㐲攵㡣㔷搵〹挸㝣戱㠱收㥢㡥㐴晦〳捤搶改㔵攳て㡦愴慡ㅦ㤸慥㌶㐳㈲ㅢ㤳散㐰㜳㈴㡣昰ㅣ㘸㡥戰〹挳昳㝦昲昰㌴㘸㤲㜶㝡ㅤ㙡㠵戴㝣搴ㄹづ搶扤㔴づ㥥〹㉣戸㝣晡㝡㐰挴㡦㥢〵㤶摢戹つ㘱摣〸散〸晥㔴愲戴㉦晣㔶攲昸㤹晣戱㐴㜵㌰捡㜶㕡㔳㐰晦〸㕣㡡㡢㔴〷愵㉥㐶㈶㕢㤹散昰戰戴㔸㘵㤶搸㠴晣㔷㉥〷昹摣㕦っ扣捤㌲昰晢挸㑢〳㕢〴㠹㑣㑦扦㥤ㄶ㕣〹㤲㘵晢攵㐸ㄹ㜷〰㔷搸㘴敡搴㝣〸㍡㤱挵㕢攰㈹㜹㔵㐶昲ち㑡晥ㅣ㌸慢㘹搶愹㌹攰㜶ㅡ㐵㐰摦〳㑡搵戵攰昹㘲慤攱㍡㐷㘲搰慤㠱捦散戳づ捣戶㠶ㄹ戶㥦ち㕥昰㍤摤㈶ㄴ扣愰㤹捦昶愵㌵㍣〸摢㤱戶㕡挳㙤づ㌶㘷摡攱㘳㝡㜰攱戸㍥㈰㕡〳㥦㡤㕢ㅥ扤ㄳ㈹攳ㄱ㘰〷㌱敤㌴愸ㄶㄸ攳戴㠵㠰㝥ㄴ㘲㡡て户戳ㄵ捡戶㠸㜰戱ち搵摢㠴㠲㤷㉡㍦〴㑤㔲愱㈷愱ㄷ㘹慢㐲て㍢搸㥣收晤㉢㘰挱㠵㐳昷㠰愸㄰㥦㈴㕢ㄵ㝡ㅣ㈹攳㜷挰摡捤摢晡㝤换昱昲〳㤷㙡敦ㅣ晢㥦〱㤷攲㤳㕦㉦晢㈷ㄶ戳㝦㉦㥢㔰昰摥攳攷愰㐹散㝦〱㝡㤱戶散晦愳㠳捤〹挸ぢ挰㠲ぢ挷攳〱㘱晦换挸㕢昶扦㠴㤴昱ㄲ戰㠳ち挸搸㥣ち扤〲㌱昵ㄶㄴ㜸㔵㘸搷㘲ㄵ摡挵㈶ㄴ扣慢昸㙦搰㈴ㄵ㝡ㄳ㝡㤱戶㉡昴㡥㠳㜵㈶㙥㄰㝤㐱㍥ㅦ㘵㐲晦ㄵ㄰ㄵ攲㐳捥㙡㜲敥〸敤㤹敥晣㌶㠸㡡捦ㄳ扤っㅣ㔱捣挰攱㌶㈱晦晤挰挱㙤㑥愱㕢慤㐲㍦㜱ち慤㜲ㄷ晡㍥ぢ攵ㄴ㘴㌹㤸㑦ㄹ㡤㝦〱㘷㡤〴昵㙡〸㤸戳㈳挱〷攴㘶㔵㉣敥捦挸扤つ搹挲ㄱ愷㕥㤵㐳㌲㍢攲㝣〴慥㉡〳攰㡢㡤㈱攵㡥挴愰挷㄰㍥㐷捣㍡㌰㍢㠶㤴搸㝥㉡ㄸ㐳㤴㑤挸㝦扦㜰㌰〸㑤昸挳㘳㔱搸㡣愸㡤㐲㐶愲昶昹㐷慥愸㤵㠰愸昸扣捦㜲〹ㅦ㉣ㅡ㘵挰㔹づ慣㔵ㅦ㠳㌹敢㐰㠳摣㝣敥㘷㜱㡦㈶㜷〵㜰㠵づ慣㔵ㅦ㐲㌲敢挰〰戸慡㜶〳㍦晥晦〲㙢㝦㍥㍥ㄴ㠹㐱㍢㜰㉦㐸㜸㌹昰㝤㤸攳㌹㈵扦㘷ㄳち摥㐶捣㐷㡣搲㐵㠲戰〰㑤㐵㍥挱挹挰攲て㈷挰㠱搵㈳〰㠶㤶㈸㜹愰㐸愴戳㘲㈴㝢㤰㡦㄰㠵㜵ㄴ戹㑡㔵ㅤ㌲ㄲ㠱㜷㔰㘴愶摦㡣〶㔱㠵㐱戲㝣捡㠷㠳挶ㄸ攰扣㔷㡣慥㕦㙥㔵㙦㐱㑤㜶挴摥㤹㝡昶㠷㜴戶昶搹ㄱ晢搵㘲戵晦㡢㑤㈸㜸摤昰〱搰㈴戵慦㠶㕥愷昶㙡㠶㠳捤ㄹ戱昹攰つ㝦昸㈵㙣昰愲愲㝣摡㘵搵㘶㉥㔲挶㜸㘰昳ㄶ㈴晣戱㔸昵愷ㅣ晢昷愴晤㝣㍡攵㘵晦㜳挵散㝦搶㈶ㄴ扣ㄱ㤸㡦戲挴晥愹㉥晢㠳换㠱攵愵攴㘱ㄵㄲ㍡㠳㐱㈶挸挷㔳攴搰㌵㔶㐵昸㌸㐹㈲昶㕢ㄴ㤳㠹㔸㉤㉤攵戳ㄸ㉦㑢㥦㈸㘶改攳㌶愱攰㜵扣慢愰挹㜳㌹㉣㉦搴戳㝥㜸搴昵㕢慦㔵戰捦㥦攰戳㡢㈱〹ぢ捤㐷㉦昲㙥戵㑥㌹愱㕥㠹㜷㘶㈶昱㙢慢ぢ昱㤲㔸扣㈹戳慤挳晥〵扦昹㜸㜹㉣摦㍢攳扣㤵㔱㑢㡥挲㐶㘲㐹ㄲ慦㘹㉣㑦捣㑦攱敤㘱昱ち晣㕡㘴ㅡ㍦㠵搷晤㜵㌸㥦㡣昱扡㡣户㡦㘸㠴晣㠵搶ㄲ捦攳晡ㅢ㐰昶㝣捣㘱戹㌰敢て攷つ㔲㈵㝣搵收㤷㍢㥤㙣㌴㈲晣㠵慦㤱㡤扢㕥㈳㕢愲ㅥ㐳戰慤晤㥣㡤㍥戹ㅤ攱戳ㄴ摤っ㐹愳〵愰ㄴ户㌸搲㍡〱〲㝡㕦㘰昴㘶㔴㐱㠰捦捦攷㕣昹搵攴㔷㈹收搲て㜹㍦㡡㍡㘴〸敢敥㕣㘵〹㠸昶昷㤸㠸ㅤ戹扣慢㍤㤲㑣㐶搶㔷㜴戵攳㘷㤶㡦㐹慦慥㘸挷㉦㙦愷昰㤵ㅥㅣ㕢挷て㕥改晤㘱て㡢攲㐷ㅤぢ㡤搴慡愷戹戰挱戵挰攰て愷㝤㘹晢㜴㠲ㄹ〰〱㤵〴㤶つ摡㘸㐵㌶晢摥散㍥㍥㉤㑢㤵愸晢ㅣ扦扣㔳户㔳搶㉦戳挰㙢捣〶攰敦㑤㈹ㄶ㡢㉢愰攷〰攳昲㡢敡㠳㕥㌱攵㐰㄰挴㌸戰〵㌷〰㡢㍦晣㔲㍡搹攷ㄳ㉣〰〸愸㤳㠰ㄵ㔳づ㐲戶搰㤴摢㍤㑤㔹〴㕥㘳㌱㐰搶ㄴ㠶㘸〹㌰㙥㔳㌶㐲㌷挳戴攲戲㥦捦昸戴晥愸搶攰改挸攰て㝢慥攴㕣㑥搰〶㄰㔰㝣挲㈰㐳挸㡦㔰ㅥ㠷㤰㠹攰慡挰㌷愶昸搴㐱〸㍦戴〹昸挶㤱㑦慦㠴㤰晡㌶㐸㘲昹㈱挸ㄵ㕡㝥扤愷攵㠷㠱搷㌸ㅣ㈰搷昲㈳㠰㜱㕢捥〷ㄴ戴摣戹搴戹挸㠸㔷㡦〲㘷㈶散ㄷ㍢㈶ㅣつ慣昳愶ㅡ㜷ㅢ㉦㔳搷㌸㘶昸摣㙤㝣ㄵ昸㡤〸㐰㙥ㅢ㡦〲攳㌶㠳㑦ㄷ㜲捣戸摣㌱㈳づ捥㡣ㄹ㔷㍢㔸搳挶㜲㐸て㕥〷㉣晥戰ㄹ㐵慤挷㄰慣〶〸㈸摥㄰㡢攳㍡㤰㉤㜴摣挵㡥挵㌹慤㙦つ㜸㡤㑥㠰慣攳搸晡扡㠰㜱㕢捣ㅢ㘶昱㔳て〸㉣㕤㕡攰㙤㜶㠹㥡㝥㉡㔳攷㌸㈵昸摣㍥㐹㔲ㄵ㝤㤲敤昳㘹愲㌶戳づ〴㍥㜵㍢昴攴昸㠳昷戸㔲㕣ㅦ㌸愵㈸戲摤攳㘰㡦户戱愴〴ㅦ〴ㄶ㝦昸戹ㄱ㙡㕤㑦㜰〲㐰㐰昱㤶㤰晥搰散㡤㈵敡㔴挷扡㥣晡㥦㐸㝥昶扥㙣捦㍢㤹㈸㤷㜵扣ㅢㄴ㘳㌶㔱てつ㘱戱扣㤷挳ㅦ㌸挹㝥ち挱愹〰〱昵㌴戰㔲㉣挳㔰愲㑥昰㉣昶っ昲搳敤搹㘲捦㈴捡㔵散㌳㑥戱㘷㠱挰㤲愴戶扣〵㘳㐶㥦㑤昶敦㄰㝣ㄷ㈰愰晥っ慣ㄴ㙢搵㜶慤㘷戱攷㤱㍦户戶ㄷ㄰攵㉡昶ㄵ攸㤱摡㕥〴㐲愶戶㙦㍡挵㕥㑣昶㑢〸㉥〵〸㈸摥ㄵ㐹戱ㅣ㘷㑡㔴挲戳搸敦㤳㥦攳㡡㔵㕢㡥㈹㔷㄰攵㉡㤶㌷㔰㙣〲捥㤸愲戶㍡㡡慤戶戵捡㔱散㜳户慤㙢愸㈵〲㤰㙤㕢㍦挸㔳晣扥慤ㄸ㍣㜲㈹摥〷㐹〵慦〵㈷㉢㈸㤵攴㍤㡥㘰慦戳戱っ戲攲昲㕢㙡㘷ㄹ㜱愸愷ㄱ㌷戰挴㕣㈳㝥㐸㤴慢㜶扣搱挸㘹攰扣㤷㤰攲㝥㡣㐴挶〸摥㈷〸昶㈶ㅢ㉢㉤㡤㉢㜰㔸㠷㤷㑤㈰愱㙦㈱戸ㄵ㈰愰戸〸慦挶愴愶ㄶ挳㉥昷攸捡㠵戹㄰ㄶ搹〴ㄹ㕤㙦〷㔶㜱㌵㉥㌵攲攸㕡愲ㄶ㌸㌵捡改ㄴ㍦〳㑤㜳㌴捤挶敢㉥愲㕣㌵ㅡ㡤扣搴攸㥦㐳㕡㝤㙦㕤摢慡㜶〶㐲㙣扦ㅢ〹愷㐶㐱慥㥦挵昶㝢㤰搰昷ㄲ摣〷㄰㔰㕣㉣㡢ㅤ㔶㉦㤹攱㘹挷〳攴捦敤㈵てㄱ攵戲㠳ぢ㘷㈹昶㘱㈴㔸ㄲ㡢づ㑥戵㌳晡ㄱ戲晦㡡攰㔱㠰㠰慡〱㘴戱挶㘳㐸ㄴ㡥㤱㡤㥥㘶㍣づ㕥攳〹㠰散ㄸ挹㈶晣ㅢ㘰摣愶㜰㘵散づ戲㥦㉢㥥㐱㉦捣ㄸ敡㉦昹㡤慡愷㔰㡥摡㤷㠰慤攴㘹㍢挱㑣ㄵ㔷㌳㑣㜰㉦摣㔷㌵捤㥤㔳〷㈰㈷慤㘴ㅦ扢㤵散㑦挶ㄲ㐳㜱㐵㈳㠴ㅡ㥢㌰㑤〸㑡㜱㤵㈳㠴扤㙤挲㜴㄰昴㌳搴捡㔵っ敢慢㥦㘵㡥㡢ㄷ㌱收㌹㍢㈱挶㜰攵㈲挶㌰㐶㡡㉢ㄶ㔱㌶㈹慦昸昹づ㘱㘲㕥昱㕣搹㠸挴㕥敥攲㕦愰搶㐵〰㔲晣㥦㤸攳㠲㐵㡡晦㌳ㄲ㑥㕢㔴㕣㥣㠸昸ㅥ㜹〵㜲挱㈲㠴㜱㜹〵㜲ㄱ㈳㠴戱敥〲㕦〱戶㙡㈵㐰㈵慡㔱晥摢ㄲ㠵ㅦ攲㜹愳攴ㅡ㝣㜶㉡摤敡攳㔷㥤㐲㌸㑡愱戸㈴ㄱ㤳晥㠲㠴攲㑡㐴㑣㝡搵㑥㠸㐷㡥戲㌳ㄲㅥ戵ち㌹㤱㜸㡤攸愸㑤搳慦摢〹㤱㠸摢ㄹ㉢愰㕣ㄸ㄰㕤㈱ㅥ㑤㈰㈷收敥㤲㔷㐱㉥ㄲ㠴戰㜳㕥〵戹㜰㄰挲㑥敥ち晥㤵㕡搷〰㠸㌱㝦㘳慥㡢㠰挱㝥摢㑥㠸㌱㕣っ㐸昱摣捦㔴㥣攸㐵攲ㅤ愲㌹挷㡢挴摦敤㠴㐸昴搹ㄹ㌱戸㡡昳戸挸戳㜵慡㜵挸㠹㌱㈳昳捣攷㥣㉥㠴ㄱ㜹收㥦攰㄰㠶扢捤摦㑡慤㈷〲㠸㌱敦㌱挷㈹㕤㡣㜹摦㑥㠸㌱㥢散㡣攵扤捤挸㐹㈹㐳昳㡡㍦挵㈱㔴收ㄵ捦昹㕥㈴㠶戸㡢晦㠰㕡㌹扦㑢昱ㅦ㌲㜷㈶〱扤户捤㑥㐸昱㘷搹㤹ち昱摥搹挸㠹戲昲扣攲扦攳㄰㡣扣攲㌹敦㡢㠴摦㕤晣㈷搴㝡ㅥ㠰ㄴ晦㈹㜳㥣攲愵昸捦散㠴ㄴ捦昹㥤〹慢昶ㄷ㈳㈷捡㔴㕥昱㤷㌸〴㕦㕥昱㤷㍡㠴捦晦㙤捤㍥㌲ㄸ㤴愰㌲㡡昳扤ㄴ㕦捡摣ㄵ挸㐹昱㘵挸㘵㝡攳㌵づ㡦㥦㍣㍦㜰㜸っ收搸ㅡ昰愹攲っ㉤㈶捡攸㜵㥤㤳㤳挶㝥㠳㈳㕦㑥㠹ㅦ㍡昲㜴㘶㐶晥挷㡥㠴挸㜳㔲ㄵ㙤㈲捦挹㔴㉡晣愱㙤扥㌳晡㜱㠲ㄵ挲〷㌶挱ㄹ晤㙥㜵〸晦攳慥㜰㈵ち慣攲搴摡晦㘸挰㈹㔵㕣㌲㤴〶㜲㌶愵㈹㝡㤸摢㕣捥㥣㤹敡㉡捥㤸㘲挷㝢㜹〶摥敢㄰戶收ㄹ挸㤹㔵㈴摥㜵ㅢ㌸㠲㐵㜰㈶㤵攲㐷㌲昷㄰㜲㔲晣㈸㜷昱㥣㐱愵㜸㈰昱㘵㕢㐷搹㍢㜹挵㜳㌶㤵㔲摥捥㉢㥥㌳慣㄰晥收㉥㝥っ㡢㜸ㅣ㈴㈹㝥㈷收㝥㠳㥣ㄴ扦㌳㜲㤹〶㈱戳ㄸ㝤戲ぢ换户慦㈰㘷㌳㔹㐰散ち散搰搲㉡㑥㌶㍣扣㕢戲㑥挵㔶挵㔷慤摡㔶㔵㔶扤㜳搹愱㌳㉡㉦㝢攵搷慦㥥晦捣㤱搳摥晡攴昲换㥦㜹晤晣㈷㍥戹㈷㍡敤㔷㕢戶晣㜲挱㔵㑦扣㍡㈲㜱㜵挹ㅤ摢ㄶ㕥扤㈱戴㘶挳㜱㠹㠳㈷ㅦ戸攱戰㘳㤷㠵㤶づ㥦㔲㕡㕡㕥扥搷挸㐷挷㑣っ㙥㍣敥㑥昵挰昳㍢㜶㉢㤹扦㔰㐰敥昱㠶攷ㅣ㌳㜶戳捣攰愴戳㕤捤㤰㜹㡣㘶散㙥㝢㠳㑥〸㜲㍥ㄳ㙦㔴〳慢挷搲㤶㤲㉡捥㐷摢搵ㄶ㤹挰㘸㡢昳㠰ㄷ㘹㕦㤰ㄳ㤹搸戲㠷戸㐴挹愴㐵慥昱戶挵挲挵挹㑢戸㈶〸㔷ㄵ攷㤶敤㙡慣㑣㔷㌴㈳攷㈱㉤愷㉤㌱㘳㉦换㔸㤹愲ち㡣攵㔴㈵㕣㤳㉣㘳㌹㤳㙣㔷㘳㘵㜲愲ㄹ㌹㝢㘸㥣愴挴㡣㈹㤶ㄹ㥣㔱戶慢ㄹ㌲㐹ㄵ昸㙣㥢㘳挶摥㤶ㄹ㥣㔹戶慢ㄹ㌲㔹ㄵ㜸㠳㤳㤶㜸㘳ㅦ换っ捥㌰摢搵っ㤹戴㘸㐶㉤㑡攲挵搲㠳㥣扣挴㡣㄰ㄲ扡づ〰㕢ㅦ㌲㜷㠱㥡摢收㌹㠷〹㙢㤸㕣愵㑡㘶愸〲㉥捥㔴挲搵㈸㕣㔵㥣㐸戶㙢扤㘴收愱ㄹ㑤㈸㠹㤷搴㡢㌳㤰㤸搱㙣㤹挱改㘲扢㥡㈱㌳㄰㑡捦敤愰㥣㠹挴㡣㝤㉤㌳㌸㙤㙣㔷㌳㘴㈶愲ㄹ晢愱㈴㕥攲つ捥㐸㘲挶晥㐸攸㘹〰㌸ㅢ攵㑣㐸㡡㜳㤰捣㜰て摡㌳摣㑣挸㔵攰㤵㙢㥣ㄵ㠴昰㐰㉥㈱挸搱㥢晡㠶㤶㈹づ搹挲昳㡢㕣ㅥ挵㘱㕣〸昷摢㠴㈰〴昴㑣㘰ㄵ㠷㔶㈱摤㥢㉢ㄳ㜴挶㔸挵㘱㔵㌸敥挹攵㔰ㅣ攸㠴㜰㜷ㅥ㠱㘳㥢㄰㝥㥥㐷攰㘸㈳㠴扢昲〸散晦㐲戸㌳㡦挰ㅥ㈹㠴㥦攵ㄲ㠲散㌹㜶戵搹㕤㠴攷㡥㕣ㅥ挵㉥㈴㠴㥦摡〴愹昶㐲㘰ㄵ晢㡤㤰㝥㤲㈷挳慥㈲㠴摢㜲〹㐱㌶㘹扢㐰戶㘳攱戹㌵㤷㐷戱㘵〹攱㤶㕣㐲㤰㉤挰ㄶ㘶搸㠵攷收㕣ㅥ挵愶㈰㠴㥢㙣㠲㔸摢〶慣㘲愴㘴㜱戳㠲㌹㔶㐰㜲〷㌳㐷〶挹慤㘴㑥ㄸㄸ摣㐳㤰㜳㉥㈵㡣〵㔸ㄱ挸挷〶ㅤ挱㈱晦ぢ㈰昴戶㔴
A28: Decisioneering:7.0.0.0 | B28: Decisioneering:7.0.0.0
A29: CB_Block_7.0.0.0:2 | B29: CB_Block_0
A30: 㜸〱捤㔸㑤㜰ㅢ㐹ㄵ搶㡣㌴愳ㄹ㐹㜶㐴㥣㘴㌷㍦㥢㠸㈵㐰㠲戳㕡㉢㡥㉢搹㙣㠵㡤㈵挵㡥㙢ㄳ摢㠹戴〹㕣㤸㡣㌵㍤搶慣攷㐷㜴㡦㙣㙢戹㔱ㄴ㉣〷戸㜱愱攰〸㐷㡡昳ㅥ戶攰〴㐵〱㈷㙥晣ㄴ㕢㐵搵ㄶ戵戹㔱挵㠵〳㝣慦㐷㜲㈴㔹㘱ㄳ㘳慡搲㠹㝢扡晢㜵扦㝥晤晡扤敦扤㔶㑡㐹愵㔲晦㐶愱㉦㤵っ㌵捥㌴㝡㈲㘶㐱戹ㄶ昹㍥㙢挵㕥ㄴ㡡昲㈲攷㜶敦㡥㈷攲㌴㈶攸㤶〷扡搰㉣攱扤挷っ㙢㥢㜱㠱㐹㕡㉡㘵ㄸ愶ち㍡㌱愱扦攲愰㘳搲慡㐲〶㔵戳㔶㕤摢㜸ㄷ㕣ㅢ㜱挴搹愵搲㠳㘴敤㡤㑡愵㕣㈹㕦㤹扦㍣㕦㥥扢㔴慡㜵晤戸换搹㡤㤰㜵㘳㙥晢㤷㑡敢摤つ摦㙢扤捤㝡捤㘸㡢㠵㌷搸挶摣晣㠶㝤攵㕡攵捡挲㠲晢挶ㅢ搷ち搸㍡戵㕥慢摥㘶㝥〷晣づ㡢慢づ慥慢戵敡㍡㘷敥㘱昱搴㐸ㄱ㤵㍡㙢㜹愴㌱挶戸ㄷ㙥㤶㙢㔵晣ㅦ搲ち㝡㔷换㙢㡤〶ぢ㠵ㄷ㝢摢㕥摣愳昳㤹挱㕡㙢攳㠱敤㜷㤹ㅥ㐸㤱㡣攰㠱捤㔷敤㠰㑤〵敦〸㜶摦づ㌷ㄹ昵戴㘰戹敢㌹ㄹ摣㘴晡攲愴㡤晡㑡㉡慦搵慡戵戶捤㘳挹㤲㌶㜸㝤搲㙣戹㔳㜹㐸ㄴ戹㐶㡥㤲㝡㤴㝣摦㔶攴㥥㈴㘵㤶㉡〳㤵㙥愲㥡ㄹ㕡㔹㤲㑢㑢ㄵ㈵昳㑦㔸摣昰挲㍣㘶慡㤶慤㕡ㅢ慡搵㔲㉤㐷戵㤸㙡戹慡戵愹㕡㙤搵昲㔴敢㕤搵摡挲㥣㐱㌱戲㔹戵㕦㝥㝥攱摢㝦昸㜳㕤扢昹挱改慥昱㠳㝢扦㤸㈹㄰慦㔵㥣慤扣捡攲㐳㌲〴㡤捥昴散扡㉣㘰戶ㄶ㈴㔷㔱㘷愲㘵搲㍤慤㠴づ摢搵搱挲晤ㄵ㠲㕡ㄴ挶㙣㌷慥摢戱㥤つ搶㙤捥挲搸挴愴㔹戹㉡㘹搱捡㈹㌹㌶㔸㥤敢昷挰愱㈸㥢㐳㕣昲㜲㈰攱愴挰昵搲㤹愴㌶昴㐹捥㝣摢ㄶ敤搸摥昰搹昹戱㉢㈷扤挱捡摥㠹㍤㕦㤴挱㜲㤹㐷摤づ㘹昴戰昸㐸㐳㈶挳搰愷㔰㐹攸愱㉦㌶戸㘹㑥攳㤳㌳㠹㘸ㄲ㤱㘰〹ㅦ㤴〱慤㜰ㄴㅤ㠸㔸㡦〲摢ぢて改㜲ぢ㌳㘰㝡慦㙦挵㜵㙥敦挰㈳㥦戰扥㕣㥥愳㝦㥦づ㐹㐰㈴㜷挱扤敡㔶㉡捥挲㥣㍤㙦㙢攴〲捦敢㔱挷戰愶㄰㍣昴㐲㈷摡㤱㉥㜶㌴㠰晦㐸户㘹昶㍡㑣づㄵ摣愶捤㌷ㄹ摣㤶慦搴㡦戹戵㠸㜳收摢㌱㜳攴〰㈱昴㑢愳㠳㘲㠹㐷〱㡤㥦愹摡㠲㍤㜱摦㔹㌷搹愸ㅡ㜵㐳㐷㥣㥥㑣㙣挴㘰㝤㙡㥣昶㠴挹扥㘵つ㐰ㅡㄳ㔲搲戳攳换愴昱㉦敥㝡〹昹㤵㌱㌲㐰㉤摡㜸㍡㜵㠹戳慦敦㔱昷㐹戴㠸㌰戵捤㠸扥敦㤴〹㈹㤱ぢ㄰ㄴ〹ㄶ㑡昱㘶㠳㜵慦戵挵㜸㠳㔱㤰㘳㡥㍣敡㜱㈲㌱昸㘳㡢㠹搹㌵㔲㍤㔰搵㜹㜵㜸搴扤戵ㅢ㌳㜸戳〳㜹ㄱ㙤攲㕥㤳㍣改挴挸㤴㘴㑦㄰㑥㡥っ㉦㐵慤慥㈰慦攵㤱㍦㑡㔹㜴戶㙤散改摣㡤ㅣ㤶挹愸改㔴㈶㤵愱㠲㌰㥡㑥挳㤵攷挶ㅣ㔵㠶っ攲㉤㠶戱㜹挸㜲〸㥣攷㥦㘹搱愸㜹搱扡㐹㤰戱ㄷ晦㤵㤷㐷㝤愵㝣ㅦ摡㠳㤶㝣㐶㡥愴㡥㈳捡㤰愰㑦慣㠶㌶㤹㠸愷挹㠹㠶㜴㐶㜶㑢戳㉦㍣晤㈸㤲敤㥥㘵晣㝦㈷慢敡㑣晦昴户戶㠱搹户敤搰昱ㄹ晦敦晡㈲㠹㑣昲㙣昳㌸㔵㈷㔰攵㔲摡摦㠱㙥㑦搵㈴㈵㑡捡慥搲搳㜶㍣㈷㙥敢㙤收㙤戶㘳㡣㈱扦㌲っ㔲㜳ち㘹挴敢昸晣ぢ〹搶㘳㑡戲捣㤷愹㍡㠹㉡㤷换㈵昸愹攷捣搳戲㥦捡㄰戲㑥ㄲ㜲㉦づ㔰㠰换摤㠹㙣㘷挹㙥㈱㉦换昶戳㌲愳ㄶ〵ㅤ㐴㈷㕥愴㤹㌵搸㈶㙣㝥摢㜳ㄸ㌷㘸愰㠱散㉦㠳愴㑣攸搲戳〵挴㑡愷㌴㉤㙦㑣摡㙢㘵挰敢㝣㕦㠳挳搹攵捡㍥晥㡦敦㕤㝢㡢づ㤶换㔱挶㘴㥥愱敡ㄵ㔴ㅡ㘹昲戹扤攱〸ㄶ㥤〸ㅡ敤㘸攷㌶㔴挹㐴㤲昴㠸ㅡ昷攲㤷昶て㈳㡣摡挱㐹㌹扥捣ㄹ〰㤰㌷㠱〳昲㡣戴攲搴㐴㡡㕣㜴㑡ㅡ攳㤰ㅢ捥扡て㍣戶㐳攰㝤㙥㍦〹㔹㕢慤㉢攲㐸㐶晤戳晢改昵㘸㌵㡡敢㥥攸昸㜶敦晣〴㜲㐲㜹搸㘶㈱戰㡢〳挲㍥㙤㔲搴改㌰㘷㠲㡣㡤愸换㕢㙣愵晥㈲愰ㅦ㙥㉡㈹㡡〴㍥挵㔰㜴㔵㐱㌹㤸攳㈹攴ㄲ愹㙦ㅣ晢搹昲㐷敦㝤敢㉤㜲㐵㈵㤷㌳捦攲ぢ㌷搱挸㈱て〲㤲㤴愳㑣㡤㠴收攳㤴㠲摦挵戳挵敢昸慣㙡㜳ㄸ㜷挴㠵ㄹっ㥡㠹昱つ㈵挳㠹挷扣〸ち㐷愴㐹㘲㑣昹改ㄸ㍢㈴戸戴㐳㌲㘸愹捣㘳㘳挱㐰㥥㥢㄰敡㠰昷愵㝤〴㕣㝣㑥㐱攸愵㤹摤愶挴摡戲㤰愸愲㐷㐵搱晥ち㔶ㄳ攵㈳㜸捤㠴昴㔴㤲慢㜲㕢㘱戴ㄳ㑡挹㌵㐱昹づ㌱㌴戳㔹㍡㐶づ㝦戲㉣㈰ㄲ挳㜴挸㙡〸挱㘷㈷改㉡挹㑢昷摥㜲㉢づ㐲㐴晦昱㔶愰挷㕢㤳㌳昹㐲㌳㘴〷㉡㥣ちㅥ㐶㝣㙢㈳㡡戶攸戵㌰㉤㝢愲捤㔸㑣慦愹㝣㤰㍣〹愹つ晢㑦愷㐷㕥㑣㝤扤ㄳ㤱戲㘲㤹㌱敢慦愲㤵㕥攲㉤搹㔳晥㠴昳搳㑢敢昱㑦ㅦ扤㍦㕢㥤扥昹攳㡦扦昳晢昷㍦晣敥㥢捡ㅦ晢㠴散㙢晣捥慦扥昷㤷户扦晦戹扦㝤昳搱昴㐵慥㔱㄰㜹愶〰㕥挴挴㈳敥ㅥ㝥㌵扤搸㘷㜹㌷㌱つ㙡ㅢ㉥㄰〹挹㤵㤳㜵㥢㙤㥣扡㍥攵㉥㜳捦昱扤㤰㤱改㈰㙤愵㤷攷ㅤ戶㠹㐴㙡㍤愲㔷㙥ㄴ㑥戹㑤㙥㠷㠲攲㑤搸敡ㅤㅤ改㐹㙦搱摣慡ㄷち㙣㈳㌱㤳摡㐷㕣㠲㜴摣㕣㌷〸㤷敤㡥㜸ㄱ摣㐹晥昰〱昵愰㈴〰愶㉡慡慡ㄸ慡㜱㐰㡦㐸改㕦〰慢㜳㐳ㅥ㜸扤戴㜲晦㝥㘹㘵敤㝡㘹搱㈹㐱㌳昸ㅤ㈵㐰收愵㑡慣㔳㉦搳捥㠹愱ㄲ昶㍤㝢㥡㐵㔶㕦㤰扦㉣昴昳摦昴愴㌰扥㤷〷㤲㥦㤹㕦㐴愵㔰㤶㈱㕤收㐲扦㐱㥤㈲㐵㙣ち攰晡㐵㔴搳戵慡㌵㤴搵改㕦挲搸㘷㌰㤶㔸昸挰㔱㡡ㄴ攰㘵㌶㐳㡦㈷昳ㄲ㉡㠵愰㕡㌲㝦慤摦愰㡥㈲昷㐵挳㉣愳ㅡ㤴㈲敤㑦扥㙤㔲㙡㌴㤵㔶㠸〱㌹慢㍥㐷晤㐵摦㉦つ摣㑤攸ㄵㅡㅡ昹〹㐴㈷捤㕤㕣昲㐲摢㐷㕥攳㔸㜵挶㍡㔶㠳搹搶㕤㉦挴㥢搰愲搴摣ㄷ搶㜶攵㑡㜹搷ㄷ㠱昲扢扥ㄷ㝤昲换慦ㄶ㙥捣晣愸晡挳慦㝤昹搱昱捦㝥晥ㄳ攵户㝤挲昸㑦ㄳ㐵㍡㠲㤴㙦㠱㌶㑦ㄷ〷挲㙢㈴敦㥢㤳㄰㘵㕦㍥㍣㍢晥昸戸㠵挷㐴㡦㜴㤶㐶㈲愶㐹㍦挹愸搷て挶㙢㠰敡㜴戵摡㙦㜰㡡晦㠱て㕤搳㈸㈸㥦挳㠸㜹ㄵ㤵㐲挷愷㈳㉢扦挶ㅥ戴捦㔷搰㌱㔴㐵㈳敡㌸㘲㔳㤲戹㐴〷ㅣ㑢㠶昳㜹㤹〸晦㈳扦㤸晡昸㈷㡢昹晦〰挱㐹㠶㘵 | B30: 㜸〱敤㕣㕢㙣ㅣ㔷ㄹ摥㌳摥㕤敦慣敤搸㡤搳㑢㑡㘹㕤㑡㕢愸㠳ㅢ㈷つ愵㐰〸扥㌴㤷搶㠹摤搸㐹愹〰㙤挶扢㘷攲㘹㜶㘶摣㤹㔹㈷㉥㤵㕡㐱戹〹ちㄲ昷㐲戹愸㐲㤵㜸攱昲挲晤〵〹〹㠴㕡㠹〷㐰㐲㐲愲㈰〴て㈰ㄴ〴て㍣㈰挱昷㥤㤹搹㥤搹昵㡥摤㙤ぢ㉥昲㐹昷昷㤹㜳㥢㜳捥㝦㍤晦㝦愶㌹㤱换攵晥㡤挴扦㑣㜹㘶慥㕢㕣昷〳㘹㑦捣戸昵扡慣〶㤶敢昸ㄳ㔳㥥㘷慣捦㔹㝥搰㠷〶挵㡡㠵㝡扦㔰昱慤㠷㘵愹戲㈶㍤ㅦ㡤ち戹㕣愹愴㙢愸攷㈰晣㡤挴て㍡㝢つ收〱㤶㘶愶攷㤷ㅦ挴愸㡢㠱敢挹㝤㘳㘷挳扥㠷㈷㈷㈷㈶㈷敥㌸㜸攰攰挴晥㝤㘳㌳㡤㝡搰昰攴㘱㐷㌶〲捦愸敦ㅢ㕢㘸㉣搷慤敡扤㜲㝤挹扤㈰㥤挳㜲㜹晦挱㘵攳㡥㌷㑤摥㜱攸㤰㜹搷㕤㙦ㅡ挴慢㜳愷㘶愶ㄷ㍣㘹晡㉦搱㤸〵㑥昹㡥㔹㔹戵戸㌶㈹㍤换㌹㍦㌱㌳㡤晦ㄲ昳挷搳㥤ㄳ㡢㉢㔲〶㝣戵昴愴㔳㤵扥㡥㡥〳昶㤴敦㌷散㔵㙥㥥㙥ㅦ挵㔲慢㠶ㅦㄴ散ㄹ㔹慦敢㜶㍣㙡挹㥥挷摥搵㡤昵㐱㝢㔱㍡扥ㄵ㔸㙢㔶戰㕥戴㤷㌰㔰㙤挸㍥攳换搳㠶㜳㕥㥥㌲㙣㔹戰㡦㌵慣㕡㍥㑣戹扥㕢攳㈱㤲ㄳ㔳换㥦㤸昲敤㤹ㄵ挳㔳㌳昲戹㌱ㄹ㙤㡦㝡搵㜴摢㥢扡㡦换愹慢㌷㜰捣㥢扢户㐳捤㔹挳㙢戶ㅣ敦摥㌲㕡㝣㝡〶户㜷㙦㥦搸愳㜴㥦搷㜷敦愳戶㌲摤㕡っ㐴昴慤㜶ㄴ㡢搱㡢〴晤〴㈵〲㈲㔰㉦ㄳっ㄰っ〲㠸晣摦挱㈵挹㡥慣搲㉡㠶㔶㔹搶㉡㔵慤㔲搳㉡㔲慢㤸㕡攵扣㔶㔹搱㉡㤶㔶㜹㔰慢㕣㐰㥢㌸㤵晡晢戵㈸㜹㑢昷晥昶搰㙦㔶收㍦晢㡦㡢て晣敤昴㜳扦ㅡ摣㠵㐶昷㐵㤳㥡昵㡣㡢㈰戵ㄶㄵㅦ㤸搸捦㝦㥢㜳〵㤸挲㍣㘴摥㘹㑥㑥搶づ敤㌷づㅡ〵㉥㉢〳昹㈹㐲ㄹ㐱摢㐱昳㝥换愹戹ㄷㄵ敥慥㥢㌶㝣搹摡戸昱愸㙥摡㙤㌸㌵晦㔵ㅢ㔷㉥〶㐶㈰慦㙤慦㙢つ搲搱㙤ㄱ㙣㈵㝤昵扥敢摢扢㥤㌵敡つ㌹㜵挹ち慢㕦摤㔶㙤㉦㜸敥㜲昷摡愳㥥㝣愸㔹摢㌱愳㈹〸戵㌵㌵㜶挷㉡挳慡㜰㕥㘳㌳㉢慥㉦ㅤ㌵扤㜱㝢挱慡㕥㤰摥愲愴㐸㤴㌵戵搴㉢㔹ㄵ㜱晤昸扣㠳㠵㠲㕢㙢慦㐹㤶㥡㜷㕦ち挰捣戲㠶昹慥㑡㉦㔸㕦㌲㤶敢昲慡㔴㤳昰㥤愸搸㥢㉡㍥敡㔶ㅢ晥㡣敢〴㥥㕢㑦搷㑣搵搶っ㐸㥡摡㐹户㈶昳昹㥣ㄲち㄰戸㝤㝤㐲攴㙥敢捥ぢちㄱ〹ㄴ㤳㤱慦㐹㤳摤挴㘹慣づ慢愸㑢搲愴昶摡㑤〶攳㝣㤵㡣挹攰挰挴㥡愸㍦昸搲搷㙤㌲㙣ㄳ㜳㉦㙦㘳㑤ㅢ㡤㔶㝦昷㥡㜴㠲攳㠶㔳慢㑢㉦㔳晢〹捥㐸ㅦ〶㈸㕣㠶㐰攸扡㝢㔴㜵攲㤲㔸㉦㕣戴㙡挱㑡㜱㐵㕡攷㔷〲㤴㐱㐳㤶㑡摣摡㡥愴㕦㠱㈲㝤㌷挱㈸㐰戹㥣㉢敥㘱愳㘲ㄹ㈹㔷愰㜴捡攰攵㤴㈰㘷扦ㄴ㉦て㥡㐷慤㝡㈰㐳愱㍣㙣〲㈳愱㔶㔳攸ㅢ㈲㠹㝡㐶㌵㔴ㄸ㝢捣ㄹ㔰愹㘱㌹挱㝡㡢㙦㍢戸㈴㈴愲ㅤ㔹戰敤㘴〱㐵㐱㕡ㅥ㘴昰ㅡ㠸愶㑤ㅡ㘴㌷㑥㄰ㄱ搹㈰㐳戳㘳攴㌴㤱戱㝤㠶㡣㐰晢㈴ㄱ戲昵晥敥㌲㠲挴摥㐹愴散搴㤵ㅦ㜷愴搹㐶戶㝣㈸捤慥挴挶改㔷ㄱ㕣㑤㜰つ挱㕥〰昱㐷㐸㌸㑡㌹攴搳㐹㝦ㄵ㥥昵敢〸㕥つ〰昹愴㔳收㐴愲㡡㌶搴㔶散㐸戶ㅢ㠲㥤慣㡣攲㔰ㄴ搱㌲㙥摡㤹㐳戶㐲㜴㘴㜵㙥て㕤㥢㔷㍡昶㤶敥戴㤹㕣づ㈹㌲愳㘹㜲慤㥢㌴㑤㙥〴㥢昶愸户㙥㐰㔷㝤㡣攰㐶㠰戲晥ㅡ㐲㈸ㄷㅡ扣㕢戳攸㘹㔲扥㈲捣愲搰ㄸ敡㔱挱㐷㠴捣㈳㐰㠶㤰敢㌸扥散搸搰㌴〷挷捤㔷扣つ扤慦㍢㝦㐷㐸㙦搳㥢㍢㝡㠷晥愲ㄷ㘸㐵摦〴昶ㄲ扦改慡㘳㙥㐶戵㝥ぢ挱慤〰㙤㍡㠶愷敦ㄷ敡㈹㔰㘶戱㥤挰摣㙥㝡㕤㤴㤵扢戴扥㉡㤵〶ㅡ㌴㤷っ敦扣っ攰挱㌸㌱ぢ㕢搸昵㍣㔹挷愱戶愶ち㜸㝥戹㍡㕤攸ㅦ昵㕣㥢攵㍢㌶戲晦㡡㔰っ昹扣搶㤷㙢戳㤱㌳㙣捤㠴捦㈹㐱㌹搴挱〷扢ぢ㠹㐴愷㌴㜹戱㕦昶昹㜲㐷㤲昴㈰㐹㕥㡦㙤搵㙦〳㠰㤴㄰扦散㉡㔱昶戱搹ㅢ㔴戳戴挵㑡て㕦挶改愴捤㠷搸㈱㐷〶㐲㠷敤㌴晣〷晥㤰扤㘸搹㑤㘱㌱㘰㉦㐸慦ち摦㠲㔵㤷攵搰㉤㑢㔱戳㈳㉢㕥㈱戲愲慦慦攳㍣㥤攱㕦㔳㜴搲㈶㈵㌲戹㍤戳㌲攳㉣摥㈲㉡扡㈱㈹㔴㌲㕣㐳㑤〹㐴捡㘳摢ㅤㄱ搳㠳㠸戹ㅤㅢ愷敦㈷㤸㈴㌸〰㔰㜸づ㤲㘶慢ㅢ捦㜰㔸晦ㅡ㕤摡㤵㑡慥㐴㌴㈸ㄷ攱戳㕤㠵搵㈱扥收㡤〴㜷〲戴㤹㍦㜴㐰㘶㄰愲㐲㜹㠲㄰㔵ㄸ挳㍣㙢挹㡢愴㠱㕤㈶〲㑢㌳つ㍦㜰㙤㐶㤶㠶捣㔹昷㤴ㅢ捣㕡晥㉡㈲㔱愳㘶㤴戹㝦㐵㍡愰㉥て戶㑦㕢㤹扢扡㉡㙢扡戹攸㌶㈰摡㑥捣㙥㠷㠳㌹戶〳戶愴㍡㥢㙢〲愹户昳㌱㠶㄰搸㘹攵㙦愵㌷㜶㑢摥㙦ㅥ晡㠶㕢㍢扡㘴〵㜵㌹㘰㠶㑣挷㝣挹挴㉥㈲㜲㔰敢㌷㤷㔶㍣㈹㘷㠷捣㘳㥥㔵慢㕢㡥㈴㌲㘰㘳㌲㔸㌷㈷捦㈳㑡戰攰㌲〶攸㍡㐳收㤲㘷㌸晥慡挱㠰攲晡敥搴㤳ち㡢ㄴ捣㘹换昱昱ㅡ㠵㐵收㠷捤挵ㄵ昷㈲㈲戶つ摢㌹㘶慣晡摢〲㉢㈴晡㌰㈹搴〸㑤㘸㥡㈸㘹愵㕥昱挳〳㜹㉥㐷摥换ㄳ㈸㕣攵ち昴㤹㘷㘸㙦摡昵㔱㡣㠶㜶㍡攷㌴㠸攸㔱戳戰㉦㔳ち㤳㔳昵扢搸攷捤〰昷ㅣ㍢㜳愲ㄵ㤹㝢㔱㌱敢〲扤晣ㄹ㌲㕥㤱㐵㌳㄰㐲ㅦ摤慥㤰㔴㔸㐶捡〱〷〲攳㝣㙡㈷扦戲愹摡㤰晡㜶戵戲㐷ㄱ㐹ㅡ㌴攷㡣㘵㔹㐷㍣摡㌶㠲㕤攱〳捤㔸摢愸晢㔱摤㡣㙢摢〶㐹㡢㘴戹㔸㌵㐸挱㔳㡤挰㍤㘹㌹扡〹愰攸㉦㉡㌲㉥愱挸戸愴㡡〶捤搳っつ慡㍣挷㜲捦ㅢ㥥ㄵ慣搸㔶戵挴〷㠶敦戶〵㑤㠲挹㈹㜹攳ㄴ换㡣戱㌶㙢晥っ㑣㌶㝦〲攸㥥㠰ㅣ攵搶ㄱ晤愰㕣㑤ㄴ昱㑦昴攸㔸㠲㠰㔱㥥㔲晤慤ㄸ慤愰㙥㐷㐰攴愸㜴㌹扥㠳㜱昹㔱㤴㠴㐲㠸㔸捦㈰ㄱ㜸〵ㄳ㐲㥥㉥敥愲㜹挶戱〲㘰㡦ㄸ㍢㙡〵戳㍥㔰づ㠰慣㍡摥㕥慢戰㥡攸㌴摥搴ち㌷㜴㔶愵搴挴昵㥤昵㐹扤昱摡つ慡㐳㡤㤲㔰㈴㥢㌵㔲㥡㘵㠳㌹㙥㈷㔵㈳㤴攲㡥戵㡤挸㜲㥢戶昶㥤㔲攴㐵㈸㈶㐵㌳㌹晤㙤㡡㔰㄰攸㡤㜴ㄴ㝤昶搹攴㤱㠸搸搰〶㈸㔳㑦㠵㘵㐳㔱㐸昰〴慥㥤搴㘴㌹㝡〲㝦敦㡡戲昳㡤㈰㔵㘳㕣ㅡ㡤㙡愶敡昵㜹〷㔶㐲搵昰㙡摢㠴愵戱戶㔰挳㈸敥散㔵晢㠷摢㥢㘰挴㠸つㄹㄶ挹昰〳㠳つ挱㕣㠹㠸㉡慤戳㈱㙥㜵戳戸挴愷㤳搲㜰ㄴ〶ㄶ㠳摡慣㕣㔳㘶㔸换㤲ㅦ㔵ㅤ㥡愷㐵㈵㐷㜵㜳㙡搹㠷㑡て㈸挷愳㥣㘲㜰摤㍣㑤户ㄴ㉥㌱㐰散㐶戹㠵㙡㠰搰㙥㜳〰㥥っ戶て㜶戰㈳㘱攸㠴搶ㄹ㈵㘸㌱㠳㜰搳㡢㈰敦昴㠸㔱〸㔲㔳愵扦ㅥㄱ㥦㝦㤲改㙢㐷㜲㜱㈶㘲㈲㠶扢㌲慣〷㈰㌷ㄹ㤹㈴ㄷ㡤挶〱昳㔰戲㈹愱㌵ㄸ㤷搱挴ㄸ愲挹攷〵戸挵挳㔸搶㌰搹愶㡥㝢㙥㠱〵㙤㕡㕦摦㘵㥥㜰慡昵㐶㑤㉡㔵ㅣ换㙡愵㤱户〵扥搴ㄵ挰㤰㥢㌲昶㈵摡㤴ㄳ㌸㑡㜱挹㐴㔲敦㜶户㝥〴摤㤵㤰挳ㄸ愱敡㘳〰㌲挳㉤愷〲㘲ㅤ昷ㄴ㘸ㅦ敥㙥㕤㘰㔰㤷攷㈰搲㍡㡡㈸换收㜰ㅦ慦ㄹ㐵㔶摣㤶㘸㌶攷捥戹戴搹ㄳ㐵挷慤戰㘸㕢攰〸敢っ〵㕥戱〸㘳愴㐷敥攰㈰戹换㔱㜴昷昲愳敡㌱㜷ㄹ愸㔰ㄸ㄰㡣昱昲ㄴ㤴挳慥㠲㤱㘸㜰㙢㉤慢㕢㌰晡㑢换㕢㥦〲㄰っ〳搳愰㐵换搰挰㤹㐱㝥㜳〳攷〶戴捡㠸㤰㈶㠳愹㡣㔱㡥挲㘱て愴㠱㥢㜸㤰㕥㜲愱㠴㠲㍤敡㘲㔸㝣㌷㜱摣挶ㄱ挸昵慥㙡㉢㕣㌰〲㕣㝦㜱昶戶ㄵ㑦搵㙡㌴㜷攱㥦摢ㄶ㔸挵搵㡤搰ㅣ摤搳㜶㈹㑢慤㠹昶摤㑤㙤ㄵ搱㘵挱〳戳ㄳ挷㡤愰扡戲ㄸ慣㠷ㄷ户㝡㈵㠹挲て攱㡦搸昰敤戴㤹昳づ㉦愲慥㜱敦换ㄷㅣ昷愲愳收㔵昰㜹敢てㄴ㠲㉢㤴晤㥣㘴㌹昷㙦晣㔳㐹换ㄵ㝥㠰ㄱ户㌲㙤づ搰㜲㤰㜰ㅣ㤵㐲㘹㌰㠶㝣〶㥤挰㜶㙦摥ㅡ㈰㥤散㘹愳ㄳ㈵〸㜶〸挵㌹晦㤲ㄱ㡡昸㍥搰㑡㘲〹㡦攴搸昳㘷挰晡攲㝢㈸㈱挲昱ㅣ㠹㤱挲㡤挸㘵愰㑥〹昲攸㡡〷㉦㠴晣晦㘰㈹收收つ搹改扦挰捣攲扢敤㈸扡㥥㈸晡㑥〷㡡〴慦㠱㈸晥扤〷㤹㌸ㄵㄸ㥥㝤㐱㠱㜰慥㘹攷〰晡戲㕦昸晤ㅦㅥ㐰攷㈲攲㔰㌶ㅡ㐲㙤㌷攳戹㘹㈲昴㜵㤸〸っ摥㉢ㄳ攱㈴㌲㠲㔱晣搰㐴㠸㝣㈰昳㈸搸摣㐴㘰㙣㉦挳㄰㑣㠴㕡ㄳ㙥つ㥥挰慥戲改ㅦ㍢㡥㡢户搲㐷㍣ㅦ㑡换㥦㠱㐷敡敡捥攲〵挳㌳散扤慡晣㤸㈷愱捣扣㈵摣攴㔶㕤搸攳摡つ㙢㔴愷つ㝣ㄵ戱㤷㝤挷㥦戲戵晢敢挰㔴㤸㐲昷扤㈸㠹攲㡢昰㤴〸㥥ㅢ㜲敦搹昳昵㘳扦㝢昸昱㈳扣慤ㄶ搱㙡攱㌶攴㝢〹搹搳㥥㐰㔰㌷㜱㔱攴㑡㝥㤸㜳ㄲ㥦㈸㔹慢㜵㌹㙤㜸捡ち昲㜵㍢捥㠶㠴㤷㈰捣㤰昸戶㠳㠹㠹㝢て愱㠹㌹搱收敥㔴ㅦ㌶㈹ㄷ攱㐴㘲攲捡愷ㄷ㠷つ㐵㔷㐵搶愳戵㔹昸㈶㔴搱ぢ㥣㐸摡㑡攴愹㤳㐹㠸㙦戴敢扡㐳搴㜵攱㐱㠶㘱晦㔸㑡㈱晥㐰ち㐹ㅥ㘴㜸㈱㐰㐹愹搳挸ㄴ㙥〷挸㠸慣戵㠷㜸改て搸ㄱ〲戲㜹改慦挷㡦㔸戰㡢挰㘲散㡢敦昵㐴㑢㕢㌴㔶㑤っ搵㉡㥢㘶ㄱㄹ㜵㜸㘱挱㘴㕣㥡戲㜴づ愰㜴换敥㈸扥㘴挸づ〳㙦㈱㘳ㄷ㙣晡摡捡昶摤㑥〳㌷㍦愰㘷㡡㑡㘱㌸扢㔹㡣〳愹㡡搱㠵㑤换㘱ㄱ攱㜰㤸㙤㜶ㅡ㠸慡愰戳㥣扤㌸㤵㈲昸挷㉦㠵㔸㍦摥ㅡ晡捡昶ㅡ敡㌸愷ㅦぢ攴て昶搷昵ㄹ㡣㡤户㤲㘳㈰㘱户搴慡ㄴ㕥て㍦㠳㉥㕣㜴㑥攸慤慣㝡ㄶ㠷昰㈷收慣㍥慤㐳晦㌳㝡慤㌸敢㉣㝢㌳㡣㥤搲晦敦㐰挱愶晡㕦㌰昶愶㄰昹㐰㤴攱㐳㠱昱㤳㑤㐳㌶摣ㄱ㜸戶ㄱ扣㔱〷㘳㕤㘵ㄹ昲づ㜳㡢昸㜸㌵慣㔶ㄲㅣ㝥慦㝣晢搵㠸㘶㕦摡戶〳㕤〵㈰㘳㐳㠵㘷㈰㠲扡昶㑦换慤昸㜴㕢㝣㈷㍡敥㌹㘹㔵㍤搷㜷捤㘰㙣ㄱ㐱摦㌱㝥㝢㘶挲收㤹ㄲ㕦㙤ㄷ㙡㌷㘱㈷〶摦㡤㍥愷收㈱戰㑦挹攰愵㡡㐵㌲戲戰戵㐸〶扦㐳ㅡ㐹㠴㤷愸ㅤ晣㉢捣晢ㅡ㐶ㅤ㥦慥捥挳搷ㄹ戰㘸㕢㈸扢搰攳摣㝥㐳㠳㕢㠷㍢㕡昷挲ㅦ㈴敢ㄳ〸㡥愹㈵扣昳摤摣搷昶㍤㐸户㡤搶收戳㘵㙦㍥户㜲攱㘹攰㜴㙢㙦㐹㤳っ摦挹㉦㤲换㝡㠵㄰㤷昶㡦攰敦搶ㅤ戴ㅣ㙤ㄴ㜴ㅥ㝤搰㑤㐷搸㜸ㅤ敥戳㉤㐴扦捦愱慢㤸㈲挰㑦㌷愲っㅦ〴扤㝣㘴㐵昱㈵㉣㡢っ㠰㝣慥㔸〵攸㑥搵㑦㙤㐴搵㈳戱㐰ㄶ㍣㘳㤰ㅣ换攲ぢ㘸挸敤ち㤷つ㤶攰戲㠵㍡㑢㈰慦挷㍤㤰捦〹㥥㈵搴㐴㍥㠷づ捤㠹㔸㈸敤㍥㤱捦㙣㌴ㄱ㐱㉢㐰㉤㌴㌹晥㐸慣㐵昴㍡慡㜵㥢挰㈱㜰〱㠶㈹ㄶ㈹㙢㡡㘱㘸攱㝢挴っ搲捦愳扦捦ㅦ㜹敥㔹愶扦ㅣㄱ㑡㄰愲㉡㍤㜹ち㐲㌵昹㡦㈷㈷敦愱戴晢攴㥦搸㘸昲㈳㤴㤱㥣㠹ㅥ〰っ昵㠹ち晥愸挵㌴㤰攱㍥昲㈷捥ㄱ攰㤷㥡挵㠸㠱ㄲ搵昷㈲㌲攸换つ㔷慤㉥㈱ㄳ昷㉤㜰晤ㄹㅦ昷㈸晢㠸ㄷ㈱改换㈹㠶捥搸㘲愸ㄵ㑢㜶攴㠵摤ㄶ戲〱㑢攲搷戲㕤㐵㝡戱挷〸扦昸㘰㡣㤸攳挷攳㉦愷戴㈸收〴挲〸㉤㔲搲て㌷㔲㝣㈰㙥晣慤㙦户㕣愶愸㐰〲昵㠴㡤㐹㘷慡昱晢攳挶〷昰㔵㤶㙡㤳攳つ〲愶攷攳挶愴㐷搵昸昱戸昱㥦て散㙤㌶㡥改㌰ㅣ戹㐰㈲挹戰㜵㤵昵㥦昸㐲㝢ㄸ捤ぢ㈶昵攷㠰ㄹㄶ㔳㜲慡搰㜱㕤㘹搰㐱㕣〶昱昰㡤昴ㅣ敥㌶攱ち〸㠴㙣昸扦㑡㌸㠱㍢㑦戳㐶㘰攰ㄳ攸㌵〴㥢㍤㕤㍤戱㜳搱㥣昷㔰搰㙦㥥昰㜱愶慡㙤㉢ㄲ㠱㌹㤰て昷㜷ㄳ愷㝣㠶改搸摡㡦㌸㐸愶昱づ㐹㙦捡㐳〵㔶昲攲扤㌱㘶㜳㡦戵㘸㐶㝦ㄴ挸㠱㜴〴㘴㐶㝦っ㌰っ挴昰戶㜲㙥㠴晣慦㤸晢扤慣㜸ㅦ挱攳〰㘵㐱㘶㈷ㅤㄴ摦て㌰ㅣ晦㡦㉡挶搶㤴扦㐴ㄳて挷㉦㑢㤲㤱晥㐱㜶昸㄰㐰ㅦ摣户㈲㈲挲戲晥㘱㤴㈴㕦㑡挱愱㕥晡ㄱ㔶㝣㤴攰〹㠰㜲㠱㤳摤昲慥㜱㑤㍤㙡慥㡦愱慢㜸㡣〰㍦晤攳㔱㠶て〵敥挳㕢扡摢捡㍣ち挷ㅦ昶㈳搴㤹晡㠲晦㙥㝣㤱扦捥㐵昷攱㝦㐸㔲㔰㠶㝤㕥㝢㜳㙦㘳㤱〹㘸㤳慢摦㉡㌶晢㐵㡣挳㜵戵㈲㈸ㅣ㤱㑡愵愴ㄵ〵昱捤〵ぢㄷ㙦攰㕢づ慢ち㈱㐸〳慡挲㠹㉡㡥愰㐰晦㈴㥢ㄲ挷挴㤳晥㈹㍥ㄱ戵㙡ㄳ㍦ㅤ㘵昸㈰㠸㔷搵晤挱愸㝢晣㐲攲㕡㔵㔸㙤㉦㈴晥㔵挵㑡昲㠵㑦㜲㌰㠵㉣㘴搲㕡㠹㐸㔳㌴昴〵㘴㠶晡㠶㌹户晢昱搳㉥㠹敡戹摡戹㜳晦ㅣ捥㡦㕤㥢㝦挷摢〷㥦㝣晥㘷扦晦挴㉦摥㜵昸㑦晦㝡敡愹㕦晣攱ㄳ捦晥敢㠷换㠷㝦昲昴搳㍦扥攷换捦晥㝥户昹ㄵ敤摢晦㥣晢捡㈳㤳ㄷㅥ㜹挸㍣㜳摢戱㐷ㅥ㜸昰扥挹㠵㉢挶晢晡晡晢㙦ㅤ晤改㌵慦ㅢ㜹散愱敦㡡ㅦ晤晡㙡㐷愸攵攲〵改㘹㜰搹㙡ㅡ㕦㐴〶搳攰㡣㕦搶㘹㜰戹㙡愳㤶愳㡤㥡㐶㐱〹㍥つ㑥㐰㔵ㄸ改㡡㠱晦〰慢ㄲ戴㉣
A31: Decisioneering:7.0.0.0 | B31: Decisioneering:7.0.0.0
A32: CB_Block_7.3.0.0:1 | B32: CB_Block_7.0.0.0:7
A33: 㜸〱捤㔸ぢ㜰ㅢ挵ㄹ搶㥥㜵㝡㔹㝥㐰ㅥ〵〳㠹昳愰㈶戵㈳散㌸㘹〲㌴㠹㉤挹戲ㄵ㍦ㄳ㈹づ戴㘹㤴戳戴戲㉥扥㠷㜳㜷㝥〸㘸〸愴㠵㔰〲㠴〲㈵㈹㄰愰㠴㔷㠱っ搰㌶㤹㈹㔳㍡㐰㈹㥤改挰搰挰〰㔳㥡㤴㈹㔰㈸〴㑡㕢摡㘱摡㈹敤晦敦㥤㘵㕢扥㑢㐲㐸㘷㜲㠹㝥敦敥扦晢敤摥敥晦㝦晦扦攷㈲㉥㤷敢扦昰攰㕦㝣摣㔸㌸㍢㤱搷つ㉡㠷㈲慡㈴搱戴㈱慡㡡ㅥ㙡搶㌴㈱摦㈱敡㐶〹㜴昰愴㐴搰敢㝣㑡ㄷ㉦愵扥搴㌰搵㜴攸挴扢㕣㍥㥦㥦〳㍤㠲攰慦㜲慣攲挷㔱㐱㌷㠸㘴㈴摣摤户〹㔰ㄳ㠶慡搱扡敡㕥㜳散昲㠶㠶㔰㐳㘸㜱攳愲挶㔰㝤㕤㜵㘴㐸㌲㠶㌴扡㕣愱㐳㠶㈶㐸㜵搵㍤㐳㝤㤲㤸㙥愷昹愴㍡㐰㤵攵戴慦扥戱㑦㔸扣慣㘱昱㤲㈵搹ぢ㉥㔸ㄶ㠴愹㕤㍤㤱㜰ㅢ㤵〶〱敦㘴愱㝡〰戵㉢ㄲ敥搱㘸昶㘴㘱昲戸ㄱぢ愳㌴㉤攲㡥㔱慡㠹㑡㝦㈸ㄲ㠶晦ㄳ㜶〵㙡㑢㐳摤㠹㐴㕡㌰っ慡攱扢昹攵敥㜴㕦慦㈰つ㔱㡦捣㤶攳㤳㝢〵慤㑢㤰㘹㤹扣㔶愷㙢〴愵㥦㘲㡤㤷㕢㠷挴㡣ㅢ㑥戱㘴㠱摤㈴搶〶㠵扡㈳攱㐸㑥搰っ〶㠹ㄳ搴摡昵㘶㌳㠵慣㘵戰晥慣〵户㠵㤴㕡㌶挲收挳ㄵ㝡㔱昸㐰㜸晣㈰㉡慣㔱搵㙣㔸㜵〳㜱晦ㄳ慣㙣攲愰㔲攸挵愵〴㉥搵挷愵搲㕣㉡挳愵㈸㤷捡㜲愹㝥㉥㤵攳㔲㈲㤷摡挴愵〶愰捦搸攳昳㝡㌹敢㜹敢搲㐷づ搵㜳㠷㔷摤㝢愴攲戶〳㙦晥㘶㜵㄰戱扡攰㥤㐲㕤搴㌸㐹㠷捦攳晢ㅣ晦ㅥ〶愱㌷㉦㥢㐷㄰愵㝡摡㡦攷ㄳ㔷㌲㜴搴〳㈵㌸户愰ㅣ㔱ㄵ㠳㡥ㅡ㔱挱㄰扣㜲㡦愰㔱挵昰㐳愷㕡㌶捡㉣攱挸㌲搶㌶㌶㍡㘰搵〰愱㤲ㄵ㈷愰㤴戲〶ㄳ㠹㠰扢㤵戸㑤改昳搸㌹㜰㥢愰攷っ愱㑦愲昳㡢㡥ㅡ昷つ慣㙢慤㈱㑡㝡〸㈰㕢㌵㜵㘸㄰㜷昴㘴攱㌰〳㐶愳昰㤴㠱㘰㜴㠳㝦攱㘹昲㤷㠳っ昸㔱改㐷㈵㔲ㄱ晣挱挷搲〵㑦㠷㌲㉣㌱慡捡㠲愸㥣愴挳つ㑥〳搰搵㤶〵㐷㌵㘱〴扣㜰ㅣ㝡㔱愸ㅥ晦ㅤ㥢㠶㠰㠵戲㑢戲㑢戳つつ㤹㈵昵㐲愳挰愳昹㝦ㅥ㑦㥡つ晤㠳昲㍡㔱挹愸㈳捣戵捡攴㠴挸㉣㈷㡡㔴ㅢ㤴㤳㠲搶㑦挱㑢戵㜸㌴㈰㌳㔷㑡收〷㘹愹㡣㙢敥㔱㐵挵搰㠳㌲晢㥢挸换㝤慡㔴㙡㔶㠰户㔵㉤㘰㈹㠰愱晤慣㝦㠷愸㐰〹㘵〲摡〲慣挴㝡㥡㡤〸っ搳攷搴㤱㤸㈸〱敤搰捣㔹㙣㔸㐴搵㌴㉡〹ㄸ〵㈲㉡捤㘶挵戴〸㤶㕢㉥挷㌴㔵㑥㔰㐵㘷慢㥡挹扡慥愱晤ㅡ搵㤱搸愲搴㄰挰㥣捥づぢ㍡ㅤ㈷㡥摡慣昹慡㘱㜵㐸挹攸㘷搹㉢ㄳ㠶㘰搰慡㘲摤㌸挸㤴㘱〹㈰㔱慡戳敤㥢㔵㍣㡣戹㕥昳愸㘸慡捦㈹㔲〳㤵慡㝤捥摡㤸㐶㌷ㄷ戴㔳㔶搴っ㠱㜱㤸愲㝥捡㕢㥡㉡㜳㕤㐰㠰慡㑥ㄵ戶扣㕡戹㐷㑣て㔰㉤㐱㌱慣搲っ㝢搵ㄹ愸㠲敤㔶搲㔴慦敤㔶攰㐵㠱换㌳㜳㈷戶㘶㕢㐶つち㕣㤲㠱昵㐲㝣㌳昲㐹昴攳㤹㤳扡㤸㜳㠲攲捣㐹捤㌱㌵㍤愴㈳㘷㘸慡㌴㔹搳㥣ㄹㄶ㘰捥㑣愷㥡愱敥ㄲ捥敤㈲ㄸ㥥摤㈸㕣㙥昸ぢて挴昰㤲ㄲ攰㤴扡㈲挶㘰昱ち愷搱挷㠲挳〴ㄳ挶攸㘰挷㍦㠵〴愲挶ㄹ㡤㥤㌲ㅡ㈲晥㔸㤸㤹㍥搹㐹㌱㈵㔱㌵昴㕥㉦昱㍡敡㙣㘹㝢搲㝡搱ぢち㜳㄰㐲捥㈸㥡㘶つ㥣て㥣㠳㐴㜱㉡慥㤸㌱㈷扣晦戸㕤攲㜲㡦㌲昱㠴㔳㐱搷挶摥攷ㅤ㘳㈳ち戶昷晦敤捣㜱搳慣户㙦ㄹ〶捦㙥ㄳ㤴㡣㐴戵愳ㅥ㈱挱ㄵ昹愷愳㤸㠱㘲㈶〸晥捦挰摤挷㝢戶㤸ㅣ㝡㠷㌱㉥愶㔲㄰㘷愰㠶㜶㐷㍣㘷㠰昴㜴ちㅡ㤸㌷晦㉥攰搹ㅥ㌱戳㔳〵戳ㅤ㠶㄰ㄸ㔰搴ㄱ攰㈶㌰っ㕥㐷昲㐰㜰扦搷㡢㐷ㄷ㠰㥦昵㜰㉥捥㐵攰晦㥦〰ㄶ愱〳敢搷慦户㘲つ攷攲摦㠱㤶愳㥣㥥㤵捤㡣㤹捤搴攵攳㈴㘰㐷㉥晥㙤〰㜲戴㈶昶㤲愳㈴捦㡦㠸ㄹ㈳攷挹㔱戱㍦㘷攰㔰ㅦ㍣戸摥晤戰ㄵ昵昰㜷て㈴捥㉣㤳昶㥦〳㌵晦㉣ㄴㄸ㉣〲〱㌳㑥㝡〲晥㌹㘶搵㡤ㄱ搴敥戰ち昱ㅥㄳ㤹㐰㠷㉡㘴㘲㐲ㅡ㜲㙥慦㤵㜱晢㈲慡㍣〸㔹㠸㔶㠹㍤㈳挰〲挰㉥挳㘲㠶㙡㍥㙣挰ㄸ攱㠶㠴㕢昷㌰づ搵㈱扤㈸㜱昱㝣愹捦㙥慥昸ㄸ搶㝣换㤲攰㌴ち㌷㠷昸ㄴ晣㈳慢㤷慤挴㥢㐱㈰㠰搹戰㝦㉥㡡㜹㈰㜸戴愸捦㐵㌶ㄵ㌸㔴敥㤱㔴〳搷㕢㉥㐷㌴戸㤸㘸愲搰㈱捡愲㌱愳㔰敤ㅡ㤲晢愸㤶〴㠵愴㑦㉢戴昶㔰㉤つ〶㉦昴搳㉡收挶ㄳ㐸慣㌶摢㉢搲ㄱ㘴㠸搹㔳㔵㤰㜰㐷㠶㜴㐳㘵㠹摢慣愹晡愸摡愵ㅡ㔱㔱ㅦ㤴㠴晣㝣ㅢ戵愹㔹㤷愳ち〴〰つ攲挰戱㍡愹㠳㠳㌴㘳戳挶㠴㍡〴㙦㄰㡦㥥ち㈱㠴㌹㌰㥣㠶㡢戰㤰攱ぢ㌹㤳摢搸㠵㘲攲㔹㈱〵昸㝣ㅣ戸㄰㌹㌱㌶㐲㝢攲㝦て捥昷㌹㈷戶㜷攵昷挰㌰㤱㍢㉡㈰〴㤲〰㍥㉥㠲㑣挷愸攵㕣㈸㔴㔹㍦ㅥ愹捦㌶攵㌳ㄳ搶挲挵㉥㥥〱㔳ㄳ㡤㍣㈶挳㐱扣捤㈵㌵捡慥㙣㍥㔶㘱挹搷㍡㔵ㅢ攸㔳搵〱扣㐶㤴换㔸搳㜳㤴ㅡ㜸挵㉡㤵捤晢㈱㤶㘱㡦㑡㑡㈶㕤愵㉣慦㐳㈵愶换㉣㤵昶搴㐰愹㈴愶愵㔹㡤扣〶㕢㠳㔷戰㈳昷㙦摣㕥ㅢ㉥㙦扡昳摤㙢㕥摣晥搴戵ㄷ㤱㔷㉤㠵㜷愱搶昱晣昵㠷摢㙦㤸昷昶㔵ㅢ换ㄷ㘸㍣㌲捦㜱㐵扥㑡攸㔸㤱㉤㜸㐵㔲㌴㈴㕡㥡㘵㠶捦捡扥㉣搸㌹攴㍤ㄹ㙦㌶㤹㠳户㡥㤶㘵㕢㌵㌱㈳㔹㌱㜸扡搹戵㠳昶㐳㡥搳愳敡㈲愶㥡㘵搹愴㈶㈸㍡ㄲ㤴㤲捥㥦㍥愹挶〸㠹捦㠶㐵㐵㠷㘹㤸㈷㘲戹㈲㡢挹㉢㌰捦㤰慣戴ち㠳晡㈹攱ㄵ㘸㌰收挳摣㠲㜰㠴攳㠸㡦昳㥤愰㤵扢㍣戵㠰收㌱㙦搵㔰攲㕣㡢㔰愲〰㌶〵㉢攵㌱㔴ㅣ㈵㤰ㄵ愵㈱戸㍣戸㐱㡣㘷愰㈵㜶昴㕥㐸摤㔸搸慦挳㌱ぢ㐱慣㙡㕤ㅢㅦ扦㌵㝤愱て㌸㍣〶户攳捥㠷搰ㄳ换㑤慢挱ㅣ〹㘹摡捦づㅦ㙢挵㤶ㄸ挸戲㍥㘸㤴攵攳挵ㄸ愴挴挱㙣㠷搰㐷愵㤸慡挹㠲㔱㙥㔶㤰戵㘴㠸ㄲ㤶づ攲㥡㉣愰㤵攱挷ㄲ攰㉤㠹晡戲捤㐳㠶摡㈹㉡晥㉣〸㘶㡡㔶㤳㌰ち㑤挲㈸㙢ち㘶搷攰ㅤ挷っ㥤㠰愵昶ぢ挰㜶㌹㔹㑣晢戰㠲昷㤰㔳挲㍣㠱搱㔸挲てㅢ㡡て戳㔱㈰攱敡㈲昲㌶扦つ挰㜱㠷㈰㐶攲搶攱昱㠳ㄱ㜳挴〳晦挸〹㈶㤰㤰㌰㌱㙥昲㥦て㘸㍣ㄲ㌸㘶㔰散昹㜸散㠳攴挷㔷㐰㡢挹扦㜳戰〳晣晣㤸㈰㘱〱㝦㤵㤸㍣攰㔰㑦〳㠸昲㐸㌸㌵挱㤸㍤攸ㄷ愷㐱㥢挹㥤㘳ㄴ㕣㠹戹〶㡥㘱㥦慢晣㡢愱㔴㠹㥣㕥㡤㑤㑢㔰㝣ㄵ挵㔲ㄴ换㔰㕣㠰攲㐲ㄴㄷ愱昸ㅡ㡡攵㈸㔶愰㔸㠹愲〹㐵㌳㡡㌰㡡〸㡡㈸㡡ㄶㄴ㌱ㄴ慤㈸摡㔰挴㔱慣㐲搱㡥愲〳㐵㈷㡡㉥㄰㘵ㅥ㠲ㅥ㠶㉦攷敦〶㌱昶昰戸㑢挷㍣ㄸ㍣捤㐰ㄶ㡦㈸㘱攴㈵㜰ぢ㉣㘲㍣㌱㑢散收捦摡㔸扥っ摦〹摤挵挹㙡㘱㉣收愳愵戶〹㌸㙡搰〲昸挷㈰㜶㌸㡥挷㌷ㄸ捦昱㜱っ㍥㥥搵㈰愶㜷㡡㘹㑤搵搵慣㔱㥤〰㤶慦挶慢㜲ㄶ㌲摦㘶戲て㄰㔹㜶捥㍡㠳㤸〷㍢㔱㠹㈷㡥㙦收㑦㠰㈸㉢㈱㜸㘴ㄸ㜸㍤㐹慣㌷㑢㔲昵㔸攸搴㍤㙢戱㘹搲昷㑤㑦㉦㌴㉤㠸㠹㡡㈰㐱㤲㤸㐹㐵㈹ㅤ㑣㈵愸㤰〲〷㠶て㍦㈹扣〱㑢㝡㙡戸㘱㜱㘸㔴搲㘵昲㤰ㄵㄱ㍦㜸晡㤲攰昲㘹㜷㠴㝦戰㘱挵挶ㄹ㜳捥晤㠰㍣㘸㈹㡡扦㍦ㄲ㌴ㅡ㕣㡦㘹捥ㄸ㜸捤愰扢搷ㅡ㌰㈵攸摥㙢㈹㡡㠳㉥㐱换㉢㈰㜹㌶㐰慤愴㔹㤷㑤戴扢㥤搰敥戲ㄴ㤷㍤扥㐵晡捣㕦摦㜹攳㘳㡢㝡摦㔸㈰㉥㈲㘸挲〵㌴㍦愲㤹㐸㜷㌸㈱摤㙥㈹敥慢㔹昴敡攱㘷㕥敦㝥昸戲㉦搷扥㕣戳晢㈰㐱㍦戰㐳摡攵㠴㜴㥢愵㜸收㤱晢㝦戴愳㍤摢晣攸㘷昳㉥昷㔵摥晦㍣㐱㘷戲㐳扡挵〹改㘶㑢㜱㐳㑤㝡换扥㔷昶㜵摣㥣摢㝢㐹晢搶摦戹〹㝡愴ㅤ搲㑥㈷愴ㅢ㉤挵扦扥㌲㙦㙤㜲攷㜵敤㑦㝥扡戹㜱ㄳ昷㘲㡥愰㕢摢㈱敤㜰㐲扡捥㔲㥣㜱㔳晤㜳㠷〲晢摢慥㜹愳收搵㉤戱攷㘷ㄲ攴〶㍢愴敤㑥㐸搷㔸㡡㈷㘷晥㌰昹攲扥敢㥡昶敦摥昲户捦搶敦㝦㡦㈰挱搸㈱㝤摢〹㘹㥢愵昸㡥愴摥㝥捦㤱㔷㍡ㅦ摥㕣昵搲㡣㙤扢㔶ㄱ㘴㈹㍢愴慤㑥㐸㔷㔸㡡慡ㅤ〳㑢㘳㝦㝣愲攵挰晣㥤搱㜷挹戴㌳〹㔲㥤ㅤ搲攵㑥㐸㤷㔹㡡捡搶㙤㤱㤶ㄵ㔵慤㍦㝤㈴㝦搷捡摦戶㝦㡦㌴㌹㈰㡤㍡㈱㡤㔸㡡攷ㅥ慦敤㝡晤㤹㠳昱㥦挸㡢敦㝣敢攰愱㌸㐱搲戵㕢㤳攱㠴愴㕢㡡㕦㍣昷敦㑥㝦收㠵昶〷㍥慣慣㥣㤱㡣㝤㤷㈰㜳摢㈱つ㍡㈱愹㤶攲搶昵ㄵ愵敢戶敦㔹㜵晤㉦㐹昳㤲扤ㄷ敥㈲㐸晦㜶㐸㤲ㄳ搲㠰愵㔸晡㝥攷㥤敦㈷挴昰㥥昸挳㥤㜹㝥搳㐱㠲㌱挴づ㈹攷㠴搴㙦㈹摥㌹敦慥て扦㜵昸攳㤶㈷〳㜱昷㥣〳攱捤〴〳㤱ㅤ㔲挶〹㈹㙤㈹づ慤摥户慤晤〶愵改捡㠷收摥ㅤ㝥攲㈵㡤㘰㌴戳㐳摡攸㠴㤴戲ㄴ㡦㍥㥤昸㔵㜲捦搵㤱晤ㅦ㍤㜰捦挶搷捥扣㠹㘰㐸戴㐳㕡敦㠴昴つ㑢昱㤷㝦〴户挵㥦慡㙥摦㝢㜰戶㝡㔶敦戵晢〹挶㔵㍢愴㡢㥤㤰搶㔹ち㙦摤慦㍢㉥挹扣搹㜶摢㘹扤㠷㍦㝡㘷攱ㅣ㠲挱搹づ㈹改㠴㤴戰ㄴ㡦㉥㡢晦愱攵慤昳㘲昷搶㝦晦收㉦扤昱改㑥㠲ㄱ摥づ愹挷〹愹摢㔲昸㌹攵攰戳㕢㝦ㅣ扢㑡㜱搷搷敤㤰づ㄰㑣ㄳ散㤰㍡㥣㤰摡㉤挵ぢ昷捤㝡㝣㐳㙦㌸扥敢㄰晦挹摦㙢愶昵ㄲ捣㌵散㤰摡㥣㤰㕡㉤挵挵㡤㉦㝤㜰㝥昹换戱㕢㕥㍥摣戱昵㠹㔵ㅢ〹㈶㉣㜶㐸㔱㈷愴㠸愵㜸攵戴〷ㅢ扤㔷㕦摢戵㝢晡摣㥥搹つ㉢㜷ㄱ捣㝡散㤰㥡㥣㤰㔶㕡㡡昲㠵㝦晤晡づ昷摥昸慤㥦晣扣敡捡㐳㤹つ㤵㘳昹ㄲ㡦㜹挲㐵㐵㐹散㠴慦戶ㄳ㜲挴摡攲㙦敢㉤昰慤㍣㡦搹㘱〹㝣晤攲㔹〶敦收㉥㍣㌱慣戱㑦捣㜸㙦攲㔷挰慡扦〰捥攴㜴ちㄱ昱捥攴㝦ㄶ愱㔱ㄴ㘷㙡㤸敡挵昰㍤㡡㍥㌶㤶㤶㘲㉡㤶摣晤戳愶晦㌴㝥戳戹昴㝦㄰㐷慦〵
A34: Decisioneering:7.3.0.0 | B34: Decisioneering:7.0.0.0
B35: CB_Block_7.0.0.0:6
B37: Decisioneering:7.0.0.0
B38: CB_Block_7.0.0.0:5
B40: Decisioneering:7.0.0.0
B41: CB_Block_7.0.0.0:4
B43: Decisioneering:7.0.0.0
B44: CB_Block_7.0.0.0:3
B46: Decisioneering:7.0.0.0
B47: CB_Block_7.0.0.0:2
B49: Decisioneering:7.0.0.0
B50: CB_Block_7.0.0.0:1
B52: Decisioneering:7.0.0.0

Sheet Overview
B2: Financial Model of a Nodules Mining Concession

Sheet User Interface
B2: Financial Model of a Nodules Mining Concession
K3: Graphical Results
B5: Payment System | C5: Ad Valorem
B6: Annual Production Level | C6: 3 | D6: million dry tons/yr
F7: ="Key Results: "&IF(C5=B116,TEXT(C5,0)&" "&C12*100&"%/ "&D12*100&"%",TEXT(C5,0)&" "&C14*100&"%/"&D14*100&"%") -> Key Results: Ad Valorem 6%/ 6%
B8: Financial Payment System Variables | F8: Collector IRR | G8: =IF($C$5=$B$116,'Financial Model'!AK43,'Financial Model'!AK46) -> 0.1698462308
F9: ISA Lifetime Revenues | G9: ="$"&FIXED(IF($C$5=$B$116,'Financial Model'!AR$43,'Financial Model'!AR$46),0)&" million" -> $4,309 million
C10: 1st Stage | D10: 2nd Stage | F10: ISA Net Present Value* | G10: ="$"&FIXED(IF($C$5=$B$116,'Financial Model'!AP$43,'Financial Model'!AP$46),0)&" million" -> $2,599 million
B11: Ad Valorem | C11: of GVM† | D11: of GVM† | F11: Effective Tax Rate (collector) | G11: =IF($C$5=$B$116,'Financial Model'!AM$43,'Financial Model'!AM$46) -> 0.4462396975
C12: 0.06 | D12: 0.06
B13: Blended | C13: of GVM† | D13: of BTP‡ | F13: CAPEX | G13: =" $"&FIXED(G33,0)&" million" -> $4,028 million
C14: 0.01 | D14: 0.1 | F14: OPEX | G14: =" $"&FIXED(G41,0)&" million/yr" -> $1,036 million/yr
C15: † GVM = Gross metal value in nodules | F15: Annual Metal Revenue | G15: =" $"&FIXED(G66,0)&" million/yr" -> $2,598 million/yr
C16: ‡ BTP = Before tax profit | F16: * social discount rate = 10%
B19: Project Timing
C20: Start Year | D20: End Year | F20: Exploitation Contract Period (years)
B21: Prefeasibility | C21: 1 | D21: 6 | F21: =B23 -> Design & Build | G21: =D23-C23+1 -> 3
B22: Feasibility | C22: 4 | D22: 7 | F22: =B24 -> Ramp-Up | G22: =D24-C24+1 -> 2
B23: Design & Build | C23: 8 | D23: 10 | F23: =B25 -> Full Operations | G23: =D25-C25+1 -> 24
B24: Ramp-Up | C24: 11 | D24: 12 | F24: =B26 -> Shut Down | G24: =D26-C26+1 -> 1
B25: Full Operations | C25: 13 | D25: 36 | F25: TOTAL | G25: =SUM(G21:G24) -> 30
B26: Shut Down | C26: 37 | D26: 37
B29: Upfront Project Capital Expenditures (US $millions)
C30: CAPEX | D30: % Nodule Collector | F30: Total CAPEX (US $millions)
B31: Pre-Feasibility Phase | C31: 37.145 | D31: 0.4423 | F31: Nodule Collector | G31: =SUMPRODUCT(C31:C36,D31:D36) -> 1840.540434
B32: Feasibility Phase | C32: 276 | D32: 0.6562 | F32: Metals Processor | G32: =SUM(C31:C36)-G31 -> 2187.104567
B33: Collection System | C33: 638 | D33: 1 | F33: TOTAL | G33: =G32+G31 -> 4027.645
B34: Mining Support Vessel | C34: 900 | D34: 1
B35: Transport Vessels | C35: 105 | D35: 1
B36: Metallurgical Processing Plant | C36: 2071.5 | D36: 0
B38: Project Annual Operational Expenditures | F38: Total Annual OPEX (US $millions)
B39: Nodule Collectors | C39: 127.53 | D39: /ton nodules/yr | F39: Nodule Collector | G39: =C39*$C$6 -> 382.59
B40: Metals Processors | C40: 217.95 | D40: /ton nodules/yr | F40: Metals Processor | G40: =C40*$C$6 -> 653.85
F41: TOTAL | G41: =G39+G40 -> 1036.44
B42: Ongoing/Maintenance Capital Expenditures (US $millions)
C43: CAPEX | D43: Interval (yrs)
B44: Collectors | C44: 40 | D44: 2
B45: Risers | C45: 42.25 | D45: 5
B46: Moorings | C46: 6 | D46: 5
B49: Metals Compositions & Yields | F49: Annual Recovered Metal
C50: Composition | D50: Yields | G50: Annual Metal (kt/yr)
B51: Manganese | C51: 0.284 | D51: 0.9 | F51: Manganese | G51: =$C$6*C51*D51*1000 -> 766.8
B52: Nickel | C52: 0.013 | D52: 0.95 | F52: Nickel | G52: =$C$6*C52*D52*1000 -> 37.05
B53: Cobalt | C53: 0.002 | D53: 0.85 | F53: Cobalt | G53: =$C$6*C53*D53*1000 -> 5.1
B54: Copper | C54: 0.011 | D54: 0.9 | F54: Copper | G54: =$C$6*C54*D54*1000 -> 29.7
B56: Metals Price Forecasts
B57: Use Override Prices | C57: 0
B58: 0 = modeled prices; 1 = model prices with user provided long-term price; 2 = fixed overrides
C59: User-provided | D59: Fixed Price
C60: Long Term Price | D60: Override | F60: Annual Metal Revenue ($million/yr)
C61: ($/ton) | D61: ($/ton) | G61: Avg. Annual Revenue
B62: Manganese (Metal Avg or Ore) | C62: 1640 | D62: 1640 | F62: Manganese | G62: =G51*C62/1000 -> 1257.552
B63: Nickel | C63: 22962 | D63: 22962 | F63: Nickel | G63: =G52*C63/1000 -> 850.7421
B64: Cobalt | C64: 55535 | D64: 55535 | F64: Cobalt | G64: =G53*C64/1000 -> 283.2285
B65: Copper | C65: 6965 | D65: 6965 | F65: Copper | G65: =G54*C65/1000 -> 206.8605
B66: Prepare Price Projections --> | F66: TOTAL | G66: =SUM(G62:G65) -> 2598.3831
B70: Exploration Contract Fees
B71: Exploration Contract Application Fee | D71: 500000
B72: Annual Administrative Fee During Exploration Contract | D72: 47000
B74: Exploitation Contract Fees
B75: Exploration Contract Application Fee | D75: 1000000
B76: Annual Administrative Fee During Exploration Contract | D76: 100000
B78: Environmental Sustainability Funds
B79: Annual Payment (% of Gross Metal Value) | D79: 0.01
B80: Lifetime Maximum (US $million) | D80: 500000000
B82: Corporate Taxes
B83: Sponsor State Tax Rate | D83: 0.25
B84: Metal Processor Host Nation Tax Rate | D84: 0.25
B115: Payment Systems
B116: Ad Valorem
B117: Blended

Sheet Financial Model
B1: Financial Model of a Nodules Mining Concession | G1: abc | H1: = Cells whose values are set on User Interface Sheet | AH1: =$B$1 -> Financial Model of a Nodules Mining Concession | CM1: Financial Model of a Nodules Mining Concession
G2: abc | H2: = Cells whosse values are set on this sheet | P2: WORKING CALCULATIONS for STOCHASTIC VARIABLES --- To be hidden when model is distributed
B3: Production Related Parameters | AH3: Cash Flow Model | CM3: Calculations for Plots
B4: Project Scale | S4: Stocastic Multiplier | T4: Likely Multipler | U4: Stochastic MIN | V4: Stochastic MAX | AH4: Summary | CN4: Metals Revenue | CO4: Processor OPEx | CP4: Processor Taxes | CQ4: Processor Profit | CR4: Nodules | CS4: Collector OPEx | CT4: Net Op Revenue | CU4: ISA Take | CV4: SS Take | CW4: Other Take | CX4: Collector Take
D5: Production Minimum (for simulation) | E5: Production Maximum (for simulation) | P5: Average Production | Q5: =F7 -> million tonnes dry nodules/annum | R5: =C7*S5 -> 3 | S5: 1 | T5: 1 | U5: =D7 -> 0.9 | V5: =E7 -> 1.1 | AA5: Payment System Types | AH5: Production | AJ5: =DEC2BIN(AJ6,7) -> 0000001 | AK5: 0000010 | AL5: 0000011 | AM5: 0000100 | AN5: 0000101 | AO5: 0000110 | AP5: 0000111 | AQ5: 0001000 | AR5: 0001001 | AS5: 0001010 | AT5: 0001011 | AU5: 0001100 | AV5: 0001101 | AW5: 0001110 | AX5: 0001111 | AY5: 0010000 | AZ5: 0010001 | BA5: 0010010 | BB5: 0010011 | BC5: 0010100 | BD5: 0010101 | BE5: 0010110 | BF5: 0010111 | BG5: 0011000 | BH5: 0011001 | BI5: 0011010 | BJ5: 0011011 | BK5: 0011100 | BL5: 0011101 | BM5: 0011110 | BN5: 0011111 | BO5: 0100000 | BP5: 0100001 | BQ5: 0100010 | BR5: 0100011 | BS5: 0100100 | BT5: 0100101 | BU5: 0100110 | BV5: 0100111 | BW5: 0101000 | BX5: 0101001 | BY5: 0101010 | BZ5: 0101011 | CA5: 0101100 | CB5: 0101101 | CC5: 0101110 | CD5: 0101111 | CE5: 0110000 | CF5: 0110001 | CG5: =DEC2BIN(CG6,7) -> 0110010 | CM5: Blank | CO5: =CP5+CP8 -> 46681.8502 | CP5: =CQ5+CQ9 -> 42751.24671 | CQ5: =CR10 -> 30959.43625 | CS5: =CT12 -> 18798.05081 | CU5: =CV5+CV14 -> 14489.43035 | CV5: =CW5+CW15 -> 10909.61431 | CW5: =CX16 -> 10409.61431
C6: Expected | D6: % of expected | E6: % of expected | AA6: Ad Valorem | AH6: Output | AI6: Year | AJ6: 1 | AK6: 2 | AL6: 3 | AM6: 4 | AN6: 5 | AO6: 6 | AP6: 7 | AQ6: 8 | AR6: 9 | AS6: 10 | AT6: 11 | AU6: 12 | AV6: 13 | AW6: 14 | AX6: 15 | AY6: 16 | AZ6: 17 | BA6: 18 | BB6: 19 | BC6: 20 | BD6: 21 | BE6: 22 | BF6: 23 | BG6: 24 | BH6: 25 | BI6: 26 | BJ6: 27 | BK6: 28 | BL6: 29 | BM6: 30 | BN6: 31 | BO6: 32 | BP6: 33 | BQ6: 34 | BR6: 35 | BS6: 36 | BT6: 37 | BU6: 38 | BV6: 39 | BW6: 40 | BX6: 41 | BY6: 42 | BZ6: 43 | CA6: 44 | CB6: 45 | CC6: 46 | CD6: 47 | CE6: 48 | CF6: 49 | CG6: 50 | CM6: Metals Revenue | CN6: =CN37 -> 65231.40477
B7: Average Production | C7: ='User Interface'!C6 -> 3 | D7: 0.9 | E7: 1.1 | F7: million tonnes dry nodules/annum | AA7: Blended | AH7: Nodules Recovered | AI7: million tonnes | AJ7: =IF(AJ89,$R$5,IF(AJ88,$R$5/($Q$19+1)+#REF!,0)) -> 0 | AK7: =IF(AK89,$R$5,IF(AK88,$R$5/($Q$19+1)+AJ7,0)) -> 0 | AL7: 0 | AM7: 0 | AN7: 0 | AO7: 0 | AP7: 0 | AQ7: 0 | AR7: 0 | AS7: 0 | AT7: 1 | AU7: 2 | AV7: 3 | AW7: 3 | AX7: 3 | AY7: 3 | AZ7: 3 | BA7: 3 | BB7: 3 | BC7: 3 | BD7: 3 | BE7: 3 | BF7: 3 | BG7: 3 | BH7: 3 | BI7: 3 | BJ7: 3 | BK7: 3 | BL7: 3 | BM7: 3 | BN7: 3 | BO7: 3 | BP7: 3 | BQ7: 3 | BR7: 3 | BS7: 3 | BT7: 0 | BU7: 0 | BV7: 0 | BW7: 0 | BX7: 0 | BY7: 0 | BZ7: 0 | CA7: 0 | CB7: 0 | CC7: 0 | CD7: 0 | CE7: 0 | CF7: 0 | CG7: =IF(CG89,$R$5,IF(CG88,$R$5/($Q$19+1)+#REF!,0)) -> 0 | CM7: Processor Operating Costs | CO7: =-CN38 -> 18549.55457
B8: Design Capacity | C8: 3 | D8: - n/a - | E8: - n/a - | F8: million tonnes dry nodules/annum | AH8: Copper | AI8: million tonnes | AJ8: =AJ96 -> 0 | AK8: 0 | AL8: 0 | AM8: 0 | AN8: 0 | AO8: 0 | AP8: 0 | AQ8: 0 | AR8: 0 | AS8: 0 | AT8: 0.0096426 | AU8: 0.0192852 | AV8: 0.0289278 | AW8: 0.0289278 | AX8: 0.0289278 | AY8: 0.0289278 | AZ8: 0.0289278 | BA8: 0.0289278 | BB8: 0.0289278 | BC8: 0.0289278 | BD8: 0.0289278 | BE8: 0.0289278 | BF8: 0.0289278 | BG8: 0.0289278 | BH8: 0.0289278 | BI8: 0.0289278 | BJ8: 0.0289278 | BK8: 0.0289278 | BL8: 0.0289278 | BM8: 0.0289278 | BN8: 0.0289278 | BO8: 0.0289278 | BP8: =BP96 -> 0.0289278 | BQ8: 0.0289278 | BR8: 0.0289278 | BS8: 0.0289278 | BT8: 0 | BU8: 0 | BV8: 0 | BW8: 0 | BX8: 0 | BY8: 0 | BZ8: 0 | CA8: 0 | CB8: 0 | CC8: 0 | CD8: 0 | CE8: 0 | CF8: 0 | CG8: 0 | CM8: Processor Taxes | CP8: =-CN39 -> 3930.603489
AH9: Cobalt | AI9: million tonnes | AJ9: =AJ97 -> 0 | AK9: 0 | AL9: 0 | AM9: 0 | AN9: 0 | AO9: 0 | AP9: 0 | AQ9: 0 | AR9: 0 | AS9: 0 | AT9: 0.001785 | AU9: 0.00357 | AV9: 0.005355 | AW9: 0.005355 | AX9: 0.005355 | AY9: 0.005355 | AZ9: 0.005355 | BA9: 0.005355 | BB9: 0.005355 | BC9: 0.005355 | BD9: 0.005355 | BE9: 0.005355 | BF9: 0.005355 | BG9: 0.005355 | BH9: 0.005355 | BI9: 0.005355 | BJ9: 0.005355 | BK9: 0.005355 | BL9: 0.005355 | BM9: 0.005355 | BN9: 0.005355 | BO9: 0.005355 | BP9: =BP97 -> 0.005355 | BQ9: 0.005355 | BR9: 0.005355 | BS9: 0.005355 | BT9: 0 | BU9: 0 | BV9: 0 | BW9: 0 | BX9: 0 | BY9: 0 | BZ9: 0 | CA9: 0 | CB9: 0 | CC9: 0 | CD9: 0 | CE9: 0 | CF9: 0 | CG9: 0 | CM9: Profit | CQ9: =CN40 -> 11791.81047
B10: Project Scheduling | AH10: Nickel | AI10: million tonnes | AJ10: =AJ98 -> 0 | AK10: 0 | AL10: 0 | AM10: 0 | AN10: 0 | AO10: 0 | AP10: 0 | AQ10: 0 | AR10: 0 | AS10: 0 | AT10: 0.01235 | AU10: 0.0247 | AV10: 0.03705 | AW10: 0.03705 | AX10: 0.03705 | AY10: 0.03705 | AZ10: 0.03705 | BA10: 0.03705 | BB10: 0.03705 | BC10: 0.03705 | BD10: 0.03705 | BE10: 0.03705 | BF10: 0.03705 | BG10: 0.03705 | BH10: 0.03705 | BI10: 0.03705 | BJ10: 0.03705 | BK10: 0.03705 | BL10: 0.03705 | BM10: 0.03705 | BN10: 0.03705 | BO10: 0.03705 | BP10: =BP98 -> 0.03705 | BQ10: 0.03705 | BR10: 0.03705 | BS10: 0.03705 | BT10: 0 | BU10: 0 | BV10: 0 | BW10: 0 | BX10: 0 | BY10: 0 | BZ10: 0 | CA10: 0 | CB10: 0 | CC10: 0 | CD10: 0 | CE10: 0 | CF10: 0 | CG10: 0 | CM10: Revenue from Nodules | CR10: =CN43 -> 30959.43625
D11: Phase Duration | AH11: Manganese | AI11: million tonnes | AJ11: =AJ95 -> 0 | AK11: 0 | AL11: 0 | AM11: 0 | AN11: 0 | AO11: 0 | AP11: 0 | AQ11: 0 | AR11: 0 | AS11: 0 | AT11: 0.2556 | AU11: 0.5112 | AV11: 0.7668 | AW11: 0.7668 | AX11: 0.7668 | AY11: 0.7668 | AZ11: 0.7668 | BA11: 0.7668 | BB11: 0.7668 | BC11: 0.7668 | BD11: 0.7668 | BE11: 0.7668 | BF11: 0.7668 | BG11: 0.7668 | BH11: 0.7668 | BI11: 0.7668 | BJ11: 0.7668 | BK11: 0.7668 | BL11: 0.7668 | BM11: 0.7668 | BN11: 0.7668 | BO11: 0.7668 | BP11: =BP95 -> 0.7668 | BQ11: 0.7668 | BR11: 0.7668 | BS11: 0.7668 | BT11: 0 | BU11: 0 | BV11: 0 | BW11: 0 | BX11: 0 | BY11: 0 | BZ11: 0 | CA11: 0 | CB11: 0 | CC11: 0 | CD11: 0 | CE11: 0 | CF11: 0 | CG11: 0 | CM11: Operating Costs | CS11: =-CN44 -> 12161.38543
C12: Phase Planned Start | D12: Expected | E12: Shortest Possible (for simulation) | F12: Longest Possible (for simulation) | G12: Can Overlap With Previous? | H12: Modeled Start | P12: Project Scheduling Inputs | CM12: Net Operating Revenue | CT12: =CN45 -> 18798.05081
C13: year | D13: years | E13: years | F13: years | H13: year | Q13: Duration (yrs) | R13: Stochastic Add | S13: Min | T13: Max | CM13: ISA Take | CU13: =CN46 -> 4308.620463
B14: Pre Feasibility | C14: ='User Interface'!C21 -> 1 | D14: =('User Interface'!D21-'User Interface'!C21+1) -> 6 | E14: 5 | F14: 7 | G14: - n/a - | H14: =C14 -> 1 | P14: Pre Feasibility | Q14: =D14+R14 -> 6 | R14: 0 | S14: =E14-D14 -> -1 | T14: =F14-D14 -> 1 | AH14: Cash Flows: Independent Collector | CM14: SS Take | CV14: =CN47 -> 3579.816045
B15: Feasibility | C15: ='User Interface'!C22 -> 4 | D15: =('User Interface'!D22-'User Interface'!C22+1) -> 4 | E15: 3 | F15: 5 | G15: YES | H15: =IF(EXACT(UPPER(TRIM(G15)),"YES"),C15,IF(C15<(H14+Q14),H14+Q14,C15)) -> 4 | P15: Feasibility Start | Q15: =D15+R15 -> 4 | R15: 0 | S15: =E15-D15 -> -1 | T15: =F15-D15 -> 1 | AH15: Expenditure | AI15: Year | AJ15: 1 | AK15: 2 | AL15: 3 | AM15: 4 | AN15: 5 | AO15: 6 | AP15: 7 | AQ15: 8 | AR15: 9 | AS15: 10 | AT15: 11 | AU15: 12 | AV15: 13 | AW15: 14 | AX15: 15 | AY15: 16 | AZ15: 17 | BA15: 18 | BB15: 19 | BC15: 20 | BD15: 21 | BE15: 22 | BF15: 23 | BG15: 24 | BH15: 25 | BI15: 26 | BJ15: 27 | BK15: 28 | BL15: 29 | BM15: 30 | BN15: 31 | BO15: 32 | BP15: 33 | BQ15: 34 | BR15: 35 | BS15: 36 | BT15: 37 | BU15: 38 | BV15: 39 | BW15: 40 | BX15: 41 | BY15: 42 | BZ15: 43 | CA15: 44 | CB15: 45 | CC15: 46 | CD15: 47 | CE15: 48 | CF15: 49 | CG15: 50 | CM15: Other Take | CW15: =CN48 -> 500
B16: Total Active Exploitation Period | D16: ='User Interface'!G25 -> 30 | P16: Total Active Exploitation Period | Q16: =D16 -> 30 | AH16: Capital & Maintenance Costs | AI16: million USD | AJ16: =-SUM(AJ148:AJ153) -> -2.738205583 | AK16: -2.738205583 | AL16: -2.738205583 | AM16: -48.01600558 | AN16: -48.01600558 | AO16: -48.01600558 | AP16: -45.2778 | AQ16: -547.6666667 | AR16: -547.6666667 | AS16: -547.6666667 | AT16: 0 | AU16: -40 | AV16: 0 | AW16: -40 | AX16: -48.25 | AY16: -40 | AZ16: 0 | BA16: -40 | BB16: 0 | BC16: -88.25 | BD16: 0 | BE16: -40 | BF16: 0 | BG16: -40 | BH16: -48.25 | BI16: -40 | BJ16: 0 | BK16: -40 | BL16: 0 | BM16: -88.25 | BN16: 0 | BO16: -40 | BP16: =-SUM(BP148:BP153) -> 0 | BQ16: -40 | BR16: -48.25 | BS16: -40 | BT16: 196.45 | BU16: 0 | BV16: 0 | BW16: 0 | BX16: 0 | BY16: 0 | BZ16: 0 | CA16: 0 | CB16: 0 | CC16: 0 | CD16: 0 | CE16: 0 | CF16: 0 | CG16: 0 | CM16: Collector Take | CX16: =CN49 -> 10409.61431
B17: Design and Build | C17: ='User Interface'!C23 -> 8 | D17: =('User Interface'!D23-'User Interface'!C23+1) -> 3 | E17: 3 | F17: 4 | G17: NO | H17: =IF(EXACT(UPPER(TRIM(G17)),"YES"),C17,IF(C17<(H15+Q15),H15+Q15,C17)) -> 8 | P17: Design and Build Start | Q17: =D17+R17 -> 3 | R17: 0 | S17: =E17-D17 -> 0 | T17: =F17-D17 -> 1 | AH17: Operating Costs | AI17: million USD | AJ17: =-SUM(AJ156:AJ157) -> 0 | AK17: 0 | AL17: 0 | AM17: 0 | AN17: 0 | AO17: 0 | AP17: 0 | AQ17: 0 | AR17: 0 | AS17: 0 | AT17: -255.06 | AU17: -318.825 | AV17: -382.59 | AW17: -382.59 | AX17: -382.59 | AY17: -382.59 | AZ17: -382.59 | BA17: -382.59 | BB17: -382.59 | BC17: -382.59 | BD17: -382.59 | BE17: -382.59 | BF17: -382.59 | BG17: -382.59 | BH17: -382.59 | BI17: -382.59 | BJ17: -382.59 | BK17: -382.59 | BL17: -382.59 | BM17: -382.59 | BN17: -382.59 | BO17: -382.59 | BP17: =-SUM(BP156:BP157) -> -382.59 | BQ17: -382.59 | BR17: -382.59 | BS17: -382.59 | BT17: 0 | BU17: 0 | BV17: 0 | BW17: 0 | BX17: 0 | BY17: 0 | BZ17: 0 | CA17: 0 | CB17: 0 | CC17: 0 | CD17: 0 | CE17: 0 | CF17: 0 | CG17: 0
B18: Operation Phase | C18: total duration -> | D18: =D20+D19 -> 26 | G18: NO | P18: Operation Duration | Q18: =Q20+Q19 -> 26 | AH18: Financing Cost | AI18: million USD | AJ18: =IF(UPPER(TRIM($D$81))="YES",AJ202,0) -> 0 | AK18: 0 | AL18: 0 | AM18: 0 | AN18: 0 | AO18: 0 | AP18: 0 | AQ18: 0 | AR18: 0 | AS18: 0 | AT18: 0 | AU18: 0 | AV18: 0 | AW18: 0 | AX18: 0 | AY18: 0 | AZ18: 0 | BA18: 0 | BB18: 0 | BC18: 0 | BD18: 0 | BE18: 0 | BF18: 0 | BG18: 0 | BH18: 0 | BI18: 0 | BJ18: 0 | BK18: 0 | BL18: 0 | BM18: 0 | BN18: 0 | BO18: 0 | BP18: =IF(UPPER(TRIM($D$81))="YES",BP202,0) -> 0 | BQ18: 0 | BR18: 0 | BS18: 0 | BT18: 0 | BU18: 0 | BV18: 0 | BW18: 0 | BX18: 0 | BY18: 0 | BZ18: 0 | CA18: 0 | CB18: 0 | CC18: 0 | CD18: 0 | CE18: 0 | CF18: 0 | CG18: 0
B19: Ramp Up | C19: ='User Interface'!C24 -> 11 | D19: =('User Interface'!D24-'User Interface'!C24+1) -> 2 | E19: 2 | F19: 2 | G19: NO | H19: =IF(EXACT(UPPER(TRIM(G19)),"YES"),C19,IF(C19<(H17+Q17),H17+Q17,C19)) -> 11 | P19: Ramp Up | Q19: =D19+R19 -> 2 | R19: 0 | S19: =E19-D19 -> 0 | T19: =F19-D19 -> 0 | AH19: Fees | AI19: million USD | AJ19: =-AJ170 -> -0.547 | AK19: -0.047 | AL19: -0.047 | AM19: -1.147 | AN19: -0.147 | AO19: -0.147 | AP19: -0.1 | AQ19: -0.1 | AR19: -0.1 | AS19: -0.1 | AT19: -0.1 | AU19: -0.1 | AV19: -0.1 | AW19: -0.1 | AX19: -0.1 | AY19: -0.1 | AZ19: -0.1 | BA19: -0.1 | BB19: -0.1 | BC19: -0.1 | BD19: -0.1 | BE19: -0.1 | BF19: -0.1 | BG19: -0.1 | BH19: -0.1 | BI19: -0.1 | BJ19: -0.1 | BK19: -0.1 | BL19: -0.1 | BM19: -0.1 | BN19: -0.1 | BO19: -0.1 | BP19: =-BP170 -> -0.1 | BQ19: -0.1 | BR19: -0.1 | BS19: -0.1 | BT19: 0 | BU19: 0 | BV19: 0 | BW19: 0 | BX19: 0 | BY19: 0 | BZ19: 0 | CA19: 0 | CB19: 0 | CC19: 0 | CD19: 0 | CE19: 0 | CF19: 0 | CG19: 0 | CM19: Expenditure
B20: Full Operation | C20: =H20 -> 13 | D20: =D16-(D17+D19+D21) -> 24 | G20: NO | H20: =H19+Q19 -> 13 | P20: Full Operation | Q20: =Q16-(Q17+Q19+Q21) -> 24 | AH20: Taxes (Ad Valorem) | AI20: million USD | AJ20: =AJ227+AJ228 -> 0 | AK20: 0 | AL20: 0 | AM20: 0 | AN20: 0 | AO20: 0 | AP20: 0 | AQ20: 0 | AR20: 0 | AS20: 0 | AT20: 0 | AU20: 0 | AV20: 0 | AW20: -6.34809288 | AX20: -144.9115839 | AY20: -148.6793007 | AZ20: -159.8585164 | BA20: -150.7302728 | BB20: -162.2166927 | BC20: -141.1042922 | BD20: -164.0161023 | BE20: -154.6132605 | BF20: -165.091881 | BG20: -155.9541464 | BH20: -154.5710521 | BI20: -156.6302089 | BJ20: -166.5922483 | BK20: -159.7988004 | BL20: -174.7406642 | BM20: -153.066101 | BN20: -175.1481625 | BO20: -165.0121488 | BP20: =BP227+BP228 -> -175.4023173 | BQ20: -165.9113551 | BR20: -164.1465343 | BS20: -166.15981 | BT20: -49.1125 | BU20: 0 | BV20: 0 | BW20: 0 | BX20: 0 | BY20: 0 | BZ20: 0 | CA20: 0 | CB20: 0 | CC20: 0 | CD20: 0 | CE20: 0 | CF20: 0 | CG20: 0 | CO20: 0 | CP20: 1 | CQ20: 2 | CR20: 3 | CS20: 4 | CT20: 5 | CU20: 6 | CV20: 7 | CW20: 8 | CX20: 9 | CY20: 10 | CZ20: 11 | DA20: 12 | DB20: 13 | DC20: 14 | DD20: 15 | DE20: 16 | DF20: 17 | DG20: 18 | DH20: 19 | DI20: 20 | DJ20: 21 | DK20: 22 | DL20: 23 | DM20: 24 | DN20: 25 | DO20: 26 | DP20: 27 | DQ20: 28 | DR20: 29 | DS20: 30 | DT20: 31 | DU20: 32 | DV20: 33 | DW20: 34 | DX20: 35 | DY20: 36 | DZ20: 37 | EA20: 38 | EB20: 39 | EC20: 40 | ED20: 41 | EE20: 42 | EF20: 43 | EG20: 44 | EH20: 45 | EI20: 46 | EJ20: 47 | EK20: 48 | EL20: 49
B21: Shutdown | C21: - n/a - | D21: =('User Interface'!D26-'User Interface'!C26+1) -> 1 | E21: 1 | F21: 1 | G21: NO | H21: =H20+Q20 -> 37 | P21: Shutdown | Q21: =D21+R21 -> 1 | R21: 0 | S21: =E21-D21 -> 0 | T21: =F21-D21 -> 0 | AH21: Taxes (Before Tax) | AI21: million USD | AJ21: =AJ265+AJ266 -> 0 | AK21: 0 | AL21: 0 | AM21: 0 | AN21: 0 | AO21: 0 | AP21: 0 | AQ21: 0 | AR21: 0 | AS21: 0 | AT21: 0 | AU21: 0 | AV21: 0 | AW21: -22.0540206 | AX21: -126.9133765 | AY21: -129.7123589 | AZ21: -137.6498994 | BA21: -131.3406595 | BB21: -139.5236903 | BC21: -124.8354917 | BD21: -140.9545566 | BE21: -134.4281101 | BF21: -141.8062368 | BG21: -135.4921218 | BH21: -134.5893535 | BI21: -136.0271948 | BJ21: -142.9928635 | BK21: -138.2758493 | BL21: -148.7827831 | BM21: -133.649088 | BN21: -149.1065624 | BO21: -141.9958368 | BP21: =BP265+BP266 -> -149.3059875 | BQ21: -142.711319 | BR21: -141.5047546 | BS21: -142.9071714 | BT21: -34.37875 | BU21: 0 | BV21: 0 | BW21: 0 | BX21: 0 | BY21: 0 | BZ21: 0 | CA21: 0 | CB21: 0 | CC21: 0 | CD21: 0 | CE21: 0 | CF21: 0 | CG21: 0 | CM21: Capital & Maint Costs | CN21: million USD | CO21: ='Financial Model'!AJ16 -> -2.738205583 | CP21: ='Financial Model'!AK16 -> -2.738205583 | CQ21: ='Financial Model'!AL16 -> -2.738205583 | CR21: ='Financial Model'!AM16 -> -48.01600558 | CS21: ='Financial Model'!AN16 -> -48.01600558 | CT21: ='Financial Model'!AO16 -> -48.01600558 | CU21: ='Financial Model'!AP16 -> -45.2778 | CV21: ='Financial Model'!AQ16 -> -547.6666667 | CW21: ='Financial Model'!AR16 -> -547.6666667 | CX21: ='Financial Model'!AS16 -> -547.6666667 | CY21: ='Financial Model'!AT16 -> 0 | CZ21: ='Financial Model'!AU16 -> -40 | DA21: ='Financial Model'!AV16 -> 0 | DB21: ='Financial Model'!AW16 -> -40 | DC21: ='Financial Model'!AX16 -> -48.25 | DD21: ='Financial Model'!AY16 -> -40 | DE21: ='Financial Model'!AZ16 -> 0 | DF21: ='Financial Model'!BA16 -> -40 | DG21: ='Financial Model'!BB16 -> 0 | DH21: ='Financial Model'!BC16 -> -88.25 | DI21: ='Financial Model'!BD16 -> 0 | DJ21: ='Financial Model'!BE16 -> -40 | DK21: ='Financial Model'!BF16 -> 0 | DL21: ='Financial Model'!BG16 -> -40 | DM21: ='Financial Model'!BH16 -> -48.25 | DN21: ='Financial Model'!BI16 -> -40 | DO21: ='Financial Model'!BJ16 -> 0 | DP21: ='Financial Model'!BK16 -> -40 | DQ21: ='Financial Model'!BL16 -> 0 | DR21: ='Financial Model'!BM16 -> -88.25 | DS21: ='Financial Model'!BN16 -> 0 | DT21: ='Financial Model'!BO16 -> -40 | DU21: ='Financial Model'!BP16 -> 0 | DV21: ='Financial Model'!BQ16 -> -40 | DW21: ='Financial Model'!BR16 -> -48.25 | DX21: ='Financial Model'!BS16 -> -40 | DY21: ='Financial Model'!BT16 -> 196.45 | DZ21: ='Financial Model'!BU16 -> 0 | EA21: ='Financial Model'!BV16 -> 0 | EB21: ='Financial Model'!BW16 -> 0 | EC21: ='Financial Model'!BX16 -> 0 | ED21: ='Financial Model'!BY16 -> 0 | EE21: ='Financial Model'!BZ16 -> 0 | EF21: ='Financial Model'!CA16 -> 0 | EG21: ='Financial Model'!CB16 -> 0 | EH21: ='Financial Model'!CC16 -> 0 | EI21: ='Financial Model'!CD16 -> 0 | EJ21: ='Financial Model'!CE16 -> 0 | EK21: ='Financial Model'!CF16 -> 0 | EL21: ='Financial Model'!CG16 -> 0
AH22: Taxes (Specific) | AI22: million USD | AJ22: =AJ303+AJ304 -> 0 | AK22: 0 | AL22: 0 | AM22: 0 | AN22: 0 | AO22: 0 | AP22: 0 | AQ22: 0 | AR22: 0 | AS22: 0 | AT22: 0 | AU22: 0 | AV22: 0 | AW22: 0 | AX22: -152.2104755 | AY22: -156.1799541 | AZ22: -167.4991879 | BA22: -158.4711787 | BB22: -170.1358434 | BC22: -149.1364958 | BD22: -172.149246 | BE22: -162.8155972 | BF22: -173.347675 | BG22: -164.3127977 | BH22: -163.0115223 | BI22: -165.0657181 | BJ22: -175.0174227 | BK22: -168.2720872 | BL22: -183.2736982 | BM22: -161.6476336 | BN22: -183.7294522 | BO22: -173.5735941 | BP22: =BP303+BP304 -> -184.0101644 | BQ22: -174.5807118 | BR22: -172.8520759 | BS22: -174.8563951 | BT22: -49.1125 | BU22: 0 | BV22: 0 | BW22: 0 | BX22: 0 | BY22: 0 | BZ22: 0 | CA22: 0 | CB22: 0 | CC22: 0 | CD22: 0 | CE22: 0 | CF22: 0 | CG22: 0 | CM22: Operating Costs | CN22: million USD | CO22: ='Financial Model'!AJ17 -> 0 | CP22: ='Financial Model'!AK17 -> 0 | CQ22: ='Financial Model'!AL17 -> 0 | CR22: ='Financial Model'!AM17 -> 0 | CS22: ='Financial Model'!AN17 -> 0 | CT22: ='Financial Model'!AO17 -> 0 | CU22: ='Financial Model'!AP17 -> 0 | CV22: ='Financial Model'!AQ17 -> 0 | CW22: ='Financial Model'!AR17 -> 0 | CX22: ='Financial Model'!AS17 -> 0 | CY22: ='Financial Model'!AT17 -> -255.06 | CZ22: ='Financial Model'!AU17 -> -318.825 | DA22: ='Financial Model'!AV17 -> -382.59 | DB22: ='Financial Model'!AW17 -> -382.59 | DC22: ='Financial Model'!AX17 -> -382.59 | DD22: ='Financial Model'!AY17 -> -382.59 | DE22: ='Financial Model'!AZ17 -> -382.59 | DF22: ='Financial Model'!BA17 -> -382.59 | DG22: ='Financial Model'!BB17 -> -382.59 | DH22: ='Financial Model'!BC17 -> -382.59 | DI22: ='Financial Model'!BD17 -> -382.59 | DJ22: ='Financial Model'!BE17 -> -382.59 | DK22: ='Financial Model'!BF17 -> -382.59 | DL22: ='Financial Model'!BG17 -> -382.59 | DM22: ='Financial Model'!BH17 -> -382.59 | DN22: ='Financial Model'!BI17 -> -382.59 | DO22: ='Financial Model'!BJ17 -> -382.59 | DP22: ='Financial Model'!BK17 -> -382.59 | DQ22: ='Financial Model'!BL17 -> -382.59 | DR22: ='Financial Model'!BM17 -> -382.59 | DS22: ='Financial Model'!BN17 -> -382.59 | DT22: ='Financial Model'!BO17 -> -382.59 | DU22: ='Financial Model'!BP17 -> -382.59 | DV22: ='Financial Model'!BQ17 -> -382.59 | DW22: ='Financial Model'!BR17 -> -382.59 | DX22: ='Financial Model'!BS17 -> -382.59 | DY22: ='Financial Model'!BT17 -> 0 | DZ22: ='Financial Model'!BU17 -> 0 | EA22: ='Financial Model'!BV17 -> 0 | EB22: ='Financial Model'!BW17 -> 0 | EC22: ='Financial Model'!BX17 -> 0 | ED22: ='Financial Model'!BY17 -> 0 | EE22: ='Financial Model'!BZ17 -> 0 | EF22: ='Financial Model'!CA17 -> 0 | EG22: ='Financial Model'!CB17 -> 0 | EH22: ='Financial Model'!CC17 -> 0 | EI22: ='Financial Model'!CD17 -> 0 | EJ22: ='Financial Model'!CE17 -> 0 | EK22: ='Financial Model'!CF17 -> 0 | EL22: ='Financial Model'!CG17 -> 0
AH23: Taxes (Blended) | AI23: million USD | AJ23: =AJ341+AJ342 -> 0 | AK23: 0 | AL23: 0 | AM23: 0 | AN23: 0 | AO23: 0 | AP23: 0 | AQ23: 0 | AR23: 0 | AS23: 0 | AT23: 0 | AU23: 0 | AV23: 0 | AW23: 0 | AX23: -149.0576901 | AY23: -152.5638298 | AZ23: -162.7051438 | BA23: -154.5464945 | BB23: -164.9864131 | BC23: -146.0498997 | BD23: -166.7282305 | BE23: -158.3049481 | BF23: -167.7657283 | BG23: -159.600624 | BH23: -158.4027783 | BI23: -160.2524687 | BJ23: -169.2114842 | BK23: -163.1250839 | BL23: -176.6072628 | BM23: -157.1284511 | BN23: -177.0017668 | BO23: -167.8673562 | BP23: =BP341+BP342 -> -177.245228 | BQ23: -168.738933 | BR23: -167.1715529 | BS23: -168.9778606 | BT23: -44.20125 | BU23: 0 | BV23: 0 | BW23: 0 | BX23: 0 | BY23: 0 | BZ23: 0 | CA23: 0 | CB23: 0 | CC23: 0 | CD23: 0 | CE23: 0 | CF23: 0 | CG23: 0 | CM23: Financing Cost | CN23: million USD | CO23: ='Financial Model'!AJ18 -> 0 | CP23: ='Financial Model'!AK18 -> 0 | CQ23: ='Financial Model'!AL18 -> 0 | CR23: ='Financial Model'!AM18 -> 0 | CS23: ='Financial Model'!AN18 -> 0 | CT23: ='Financial Model'!AO18 -> 0 | CU23: ='Financial Model'!AP18 -> 0 | CV23: ='Financial Model'!AQ18 -> 0 | CW23: ='Financial Model'!AR18 -> 0 | CX23: ='Financial Model'!AS18 -> 0 | CY23: ='Financial Model'!AT18 -> 0 | CZ23: ='Financial Model'!AU18 -> 0 | DA23: ='Financial Model'!AV18 -> 0 | DB23: ='Financial Model'!AW18 -> 0 | DC23: ='Financial Model'!AX18 -> 0 | DD23: ='Financial Model'!AY18 -> 0 | DE23: ='Financial Model'!AZ18 -> 0 | DF23: ='Financial Model'!BA18 -> 0 | DG23: ='Financial Model'!BB18 -> 0 | DH23: ='Financial Model'!BC18 -> 0 | DI23: ='Financial Model'!BD18 -> 0 | DJ23: ='Financial Model'!BE18 -> 0 | DK23: ='Financial Model'!BF18 -> 0 | DL23: ='Financial Model'!BG18 -> 0 | DM23: ='Financial Model'!BH18 -> 0 | DN23: ='Financial Model'!BI18 -> 0 | DO23: ='Financial Model'!BJ18 -> 0 | DP23: ='Financial Model'!BK18 -> 0 | DQ23: ='Financial Model'!BL18 -> 0 | DR23: ='Financial Model'!BM18 -> 0 | DS23: ='Financial Model'!BN18 -> 0 | DT23: ='Financial Model'!BO18 -> 0 | DU23: ='Financial Model'!BP18 -> 0 | DV23: ='Financial Model'!BQ18 -> 0 | DW23: ='Financial Model'!BR18 -> 0 | DX23: ='Financial Model'!BS18 -> 0 | DY23: ='Financial Model'!BT18 -> 0 | DZ23: ='Financial Model'!BU18 -> 0 | EA23: ='Financial Model'!BV18 -> 0 | EB23: ='Financial Model'!BW18 -> 0 | EC23: ='Financial Model'!BX18 -> 0 | ED23: ='Financial Model'!BY18 -> 0 | EE23: ='Financial Model'!BZ18 -> 0 | EF23: ='Financial Model'!CA18 -> 0 | EG23: ='Financial Model'!CB18 -> 0 | EH23: ='Financial Model'!CC18 -> 0 | EI23: ='Financial Model'!CD18 -> 0 | EJ23: ='Financial Model'!CE18 -> 0 | EK23: ='Financial Model'!CF18 -> 0 | EL23: ='Financial Model'!CG18 -> 0
B24: Cost-related parameters | AH24: Environmental Levies | AI24: million USD | AJ24: =AJ181 -> 0 | AK24: 0 | AL24: 0 | AM24: 0 | AN24: 0 | AO24: 0 | AP24: 0 | AQ24: 0 | AR24: 0 | AS24: 0 | AT24: -27.14244981 | AU24: -27.42591823 | AV24: -27.64087592 | AW24: -27.77331745 | AX24: -27.98588684 | AY24: -28.16468815 | AZ24: -28.28867708 | BA24: -28.37806652 | BB24: -28.53556961 | BC24: -28.63563422 | BD24: -28.72500068 | BE24: -28.78660172 | BF24: -28.83458767 | BG24: -28.925579 | BH24: -28.99781078 | BI24: -28.99429507 | BJ24: -28.98626351 | BK24: -17.77877774 | BL24: 0 | BM24: 0 | BN24: 0 | BO24: 0 | BP24: =BP181 -> 0 | BQ24: 0 | BR24: 0 | BS24: 0 | BT24: 0 | BU24: 0 | BV24: 0 | BW24: 0 | BX24: 0 | BY24: 0 | BZ24: 0 | CA24: 0 | CB24: 0 | CC24: 0 | CD24: 0 | CE24: 0 | CF24: 0 | CG24: 0 | CM24: Fees | CN24: million USD | CO24: ='Financial Model'!AJ19 -> -0.547 | CP24: ='Financial Model'!AK19 -> -0.047 | CQ24: ='Financial Model'!AL19 -> -0.047 | CR24: ='Financial Model'!AM19 -> -1.147 | CS24: ='Financial Model'!AN19 -> -0.147 | CT24: ='Financial Model'!AO19 -> -0.147 | CU24: ='Financial Model'!AP19 -> -0.1 | CV24: ='Financial Model'!AQ19 -> -0.1 | CW24: ='Financial Model'!AR19 -> -0.1 | CX24: ='Financial Model'!AS19 -> -0.1 | CY24: ='Financial Model'!AT19 -> -0.1 | CZ24: ='Financial Model'!AU19 -> -0.1 | DA24: ='Financial Model'!AV19 -> -0.1 | DB24: ='Financial Model'!AW19 -> -0.1 | DC24: ='Financial Model'!AX19 -> -0.1 | DD24: ='Financial Model'!AY19 -> -0.1 | DE24: ='Financial Model'!AZ19 -> -0.1 | DF24: ='Financial Model'!BA19 -> -0.1 | DG24: ='Financial Model'!BB19 -> -0.1 | DH24: ='Financial Model'!BC19 -> -0.1 | DI24: ='Financial Model'!BD19 -> -0.1 | DJ24: ='Financial Model'!BE19 -> -0.1 | DK24: ='Financial Model'!BF19 -> -0.1 | DL24: ='Financial Model'!BG19 -> -0.1 | DM24: ='Financial Model'!BH19 -> -0.1 | DN24: ='Financial Model'!BI19 -> -0.1 | DO24: ='Financial Model'!BJ19 -> -0.1 | DP24: ='Financial Model'!BK19 -> -0.1 | DQ24: ='Financial Model'!BL19 -> -0.1 | DR24: ='Financial Model'!BM19 -> -0.1 | DS24: ='Financial Model'!BN19 -> -0.1 | DT24: ='Financial Model'!BO19 -> -0.1 | DU24: ='Financial Model'!BP19 -> -0.1 | DV24: ='Financial Model'!BQ19 -> -0.1 | DW24: ='Financial Model'!BR19 -> -0.1 | DX24: ='Financial Model'!BS19 -> -0.1 | DY24: ='Financial Model'!BT19 -> 0 | DZ24: ='Financial Model'!BU19 -> 0 | EA24: ='Financial Model'!BV19 -> 0 | EB24: ='Financial Model'!BW19 -> 0 | EC24: ='Financial Model'!BX19 -> 0 | ED24: ='Financial Model'!BY19 -> 0 | EE24: ='Financial Model'!BZ19 -> 0 | EF24: ='Financial Model'!CA19 -> 0 | EG24: ='Financial Model'!CB19 -> 0 | EH24: ='Financial Model'!CC19 -> 0 | EI24: ='Financial Model'!CD19 -> 0 | EJ24: ='Financial Model'!CE19 -> 0 | EK24: ='Financial Model'!CF19 -> 0 | EL24: ='Financial Model'!CG19 -> 0
B25: Cost Discounts | AH25: Revenues (Ad Valorem) | AI25: million USD | AJ25: =AJ213 -> 0 | AK25: 0 | AL25: 0 | AM25: 0 | AN25: 0 | AO25: 0 | AP25: 0 | AQ25: 0 | AR25: 0 | AS25: 0 | AT25: 389.4455122 | AU25: 787.3940141 | AV25: 1190.771941 | AW25: 1196.890803 | AX25: 1206.487543 | AY25: 1214.56002 | AZ25: 1220.144805 | BA25: 1224.257557 | BB25: 1231.305758 | BC25: 1235.806609 | BD25: 1239.829414 | BE25: 1242.649254 | BF25: 1244.899638 | BG25: 1248.985639 | BH25: 1252.208884 | BI25: 1252.170901 | BJ25: 1251.962838 | BK25: 1253.835667 | BL25: 1256.139169 | BM25: 1257.94434 | BN25: 1258.024245 | BO25: 1257.379589 | BP25: =BP213 -> 1259.185318 | BQ25: 1261.545199 | BR25: 1262.926118 | BS25: 1262.685472 | BT25: 0 | BU25: 0 | BV25: 0 | BW25: 0 | BX25: 0 | BY25: 0 | BZ25: 0 | CA25: 0 | CB25: 0 | CC25: 0 | CD25: 0 | CE25: 0 | CF25: 0 | CG25: 0 | CM25: Sponsoring State Tax | CN25: million USD | CO25: =IF('User Interface'!$C$5="Ad Valorem", 'Financial Model'!AJ20,'Financial Model'!AJ23) -> 0 | CP25: =IF('User Interface'!$C$5="Ad Valorem", 'Financial Model'!AK20,'Financial Model'!AK23) -> 0 | CQ25: =IF('User Interface'!$C$5="Ad Valorem", 'Financial Model'!AL20,'Financial Model'!AL23) -> 0 | CR25: =IF('User Interface'!$C$5="Ad Valorem", 'Financial Model'!AM20,'Financial Model'!AM23) -> 0 | CS25: =IF('User Interface'!$C$5="Ad Valorem", 'Financial Model'!AN20,'Financial Model'!AN23) -> 0 | CT25: =IF('User Interface'!$C$5="Ad Valorem", 'Financial Model'!AO20,'Financial Model'!AO23) -> 0 | CU25: =IF('User Interface'!$C$5="Ad Valorem", 'Financial Model'!AP20,'Financial Model'!AP23) -> 0 | CV25: =IF('User Interface'!$C$5="Ad Valorem", 'Financial Model'!AQ20,'Financial Model'!AQ23) -> 0 | CW25: =IF('User Interface'!$C$5="Ad Valorem", 'Financial Model'!AR20,'Financial Model'!AR23) -> 0 | CX25: =IF('User Interface'!$C$5="Ad Valorem", 'Financial Model'!AS20,'Financial Model'!AS23) -> 0 | CY25: =IF('User Interface'!$C$5="Ad Valorem", 'Financial Model'!AT20,'Financial Model'!AT23) -> 0 | CZ25: =IF('User Interface'!$C$5="Ad Valorem", 'Financial Model'!AU20,'Financial Model'!AU23) -> 0 | DA25: =IF('User Interface'!$C$5="Ad Valorem", 'Financial Model'!AV20,'Financial Model'!AV23) -> 0 | DB25: =IF('User Interface'!$C$5="Ad Valorem", 'Financial Model'!AW20,'Financial Model'!AW23) -> -6.34809288 | DC25: =IF('User Interface'!$C$5="Ad Valorem", 'Financial Model'!AX20,'Financial Model'!AX23) -> -144.9115839 | DD25: =IF('User Interface'!$C$5="Ad Valorem", 'Financial Model'!AY20,'Financial Model'!AY23) -> -148.6793007 | DE25: =IF('User Interface'!$C$5="Ad Valorem", 'Financial Model'!AZ20,'Financial Model'!AZ23) -> -159.8585164 | DF25: =IF('User Interface'!$C$5="Ad Valorem", 'Financial Model'!BA20,'Financial Model'!BA23) -> -150.7302728 | DG25: =IF('User Interface'!$C$5="Ad Valorem", 'Financial Model'!BB20,'Financial Model'!BB23) -> -162.2166927 | DH25: =IF('User Interface'!$C$5="Ad Valorem", 'Financial Model'!BC20,'Financial Model'!BC23) -> -141.1042922 | DI25: =IF('User Interface'!$C$5="Ad Valorem", 'Financial Model'!BD20,'Financial Model'!BD23) -> -164.0161023 | DJ25: =IF('User Interface'!$C$5="Ad Valorem", 'Financial Model'!BE20,'Financial Model'!BE23) -> -154.6132605 | DK25: =IF('User Interface'!$C$5="Ad Valorem", 'Financial Model'!BF20,'Financial Model'!BF23) -> -165.091881 | DL25: =IF('User Interface'!$C$5="Ad Valorem", 'Financial Model'!BG20,'Financial Model'!BG23) -> -155.9541464 | DM25: =IF('User Interface'!$C$5="Ad Valorem", 'Financial Model'!BH20,'Financial Model'!BH23) -> -154.5710521 | DN25: =IF('User Interface'!$C$5="Ad Valorem", 'Financial Model'!BI20,'Financial Model'!BI23) -> -156.6302089 | DO25: =IF('User Interface'!$C$5="Ad Valorem", 'Financial Model'!BJ20,'Financial Model'!BJ23) -> -166.5922483 | DP25: =IF('User Interface'!$C$5="Ad Valorem", 'Financial Model'!BK20,'Financial Model'!BK23) -> -159.7988004 | DQ25: =IF('User Interface'!$C$5="Ad Valorem", 'Financial Model'!BL20,'Financial Model'!BL23) -> -174.7406642 | DR25: =IF('User Interface'!$C$5="Ad Valorem", 'Financial Model'!BM20,'Financial Model'!BM23) -> -153.066101 | DS25: =IF('User Interface'!$C$5="Ad Valorem", 'Financial Model'!BN20,'Financial Model'!BN23) -> -175.1481625 | DT25: =IF('User Interface'!$C$5="Ad Valorem", 'Financial Model'!BO20,'Financial Model'!BO23) -> -165.0121488 | DU25: =IF('User Interface'!$C$5="Ad Valorem", 'Financial Model'!BP20,'Financial Model'!BP23) -> -175.4023173 | DV25: =IF('User Interface'!$C$5="Ad Valorem", 'Financial Model'!BQ20,'Financial Model'!BQ23) -> -165.9113551 | DW25: =IF('User Interface'!$C$5="Ad Valorem", 'Financial Model'!BR20,'Financial Model'!BR23) -> -164.1465343 | DX25: =IF('User Interface'!$C$5="Ad Valorem", 'Financial Model'!BS20,'Financial Model'!BS23) -> -166.15981 | DY25: =IF('User Interface'!$C$5="Ad Valorem", 'Financial Model'!BT20,'Financial Model'!BT23) -> -49.1125 | DZ25: =IF('User Interface'!$C$5="Ad Valorem", 'Financial Model'!BU20,'Financial Model'!BU23) -> 0 | EA25: =IF('User Interface'!$C$5="Ad Valorem", 'Financial Model'!BV20,'Financial Model'!BV23) -> 0 | EB25: =IF('User Interface'!$C$5="Ad Valorem", 'Financial Model'!BW20,'Financial Model'!BW23) -> 0 | EC25: =IF('User Interface'!$C$5="Ad Valorem", 'Financial Model'!BX20,'Financial Model'!BX23) -> 0 | ED25: =IF('User Interface'!$C$5="Ad Valorem", 'Financial Model'!BY20,'Financial Model'!BY23) -> 0 | EE25: =IF('User Interface'!$C$5="Ad Valorem", 'Financial Model'!BZ20,'Financial Model'!BZ23) -> 0 | EF25: =IF('User Interface'!$C$5="Ad Valorem", 'Financial Model'!CA20,'Financial Model'!CA23) -> 0 | EG25: =IF('User Interface'!$C$5="Ad Valorem", 'Financial Model'!CB20,'Financial Model'!CB23) -> 0 | EH25: =IF('User Interface'!$C$5="Ad Valorem", 'Financial Model'!CC20,'Financial Model'!CC23) -> 0 | EI25: =IF('User Interface'!$C$5="Ad Valorem", 'Financial Model'!CD20,'Financial Model'!CD23) -> 0 | EJ25: =IF('User Interface'!$C$5="Ad Valorem", 'Financial Model'!CE20,'Financial Model'!CE23) -> 0 | EK25: =IF('User Interface'!$C$5="Ad Valorem", 'Financial Model'!CF20,'Financial Model'!CF23) -> 0 | EL25: =IF('User Interface'!$C$5="Ad Valorem", 'Financial Model'!CG20,'Financial Model'!CG23) -> 0
B26: Cost Savings Relative to First Mover | C26: % | D26: 0 | E26: out of first mover costs | AH26: Revenues (Before Tax profit) | AI26: million USD | AJ26: =AJ251 -> 0 | AK26: 0 | AL26: 0 | AM26: 0 | AN26: 0 | AO26: 0 | AP26: 0 | AQ26: 0 | AR26: 0 | AS26: 0 | AT26: 382.2335583 | AU26: 772.8126434 | AV26: 1168.720609 | AW26: 1174.726159 | AX26: 1184.145181 | AY26: 1192.068168 | AZ26: 1197.549531 | BA26: 1201.586121 | BB26: 1208.5038 | BC26: 1212.921301 | BD26: 1216.86961 | BE26: 1219.637231 | BF26: 1221.845941 | BG26: 1225.856275 | BH26: 1229.019831 | BI26: 1228.982551 | BJ26: 1228.778341 | BK26: 1230.616488 | BL26: 1232.877332 | BM26: 1234.649074 | BN26: 1234.7275 | BO26: 1234.094782 | BP26: =BP251 -> 1235.867072 | BQ26: 1238.183251 | BR26: 1239.538598 | BS26: 1239.302408 | BT26: 0 | BU26: 0 | BV26: 0 | BW26: 0 | BX26: 0 | BY26: 0 | BZ26: 0 | CA26: 0 | CB26: 0 | CC26: 0 | CD26: 0 | CE26: 0 | CF26: 0 | CG26: 0
C27: % | D27: =1-D26 -> 1 | E27: percent of first mover costs | AH27: Revenues (Specific) | AI27: million USD | AJ27: =AJ289 -> 0 | AK27: 0 | AL27: 0 | AM27: 0 | AN27: 0 | AO27: 0 | AP27: 0 | AQ27: 0 | AR27: 0 | AS27: 0 | AT27: 376.6242608 | AU27: 761.4715774 | AV27: 1151.569573 | AW27: 1157.486991 | AX27: 1166.767789 | AY27: 1174.574505 | AZ27: 1179.975429 | BA27: 1183.952781 | BB27: 1190.768943 | BC27: 1195.121617 | BD27: 1199.011985 | BE27: 1201.738991 | BF27: 1203.915288 | BG27: 1207.86677 | BH27: 1210.9839 | BI27: 1210.947168 | BJ27: 1210.745954 | BK27: 1212.557127 | BL27: 1214.784793 | BM27: 1216.530534 | BN27: 1216.607809 | BO27: 1215.984376 | BP27: =BP289 -> 1217.730658 | BQ27: 1220.012847 | BR27: 1221.348304 | BS27: 1221.11558 | BT27: 0 | BU27: 0 | BV27: 0 | BW27: 0 | BX27: 0 | BY27: 0 | BZ27: 0 | CA27: 0 | CB27: 0 | CC27: 0 | CD27: 0 | CE27: 0 | CF27: 0 | CG27: 0 | CM27: Environmental Levies | CN27: million USD | CO27: ='Financial Model'!AJ24 -> 0 | CP27: ='Financial Model'!AK24 -> 0 | CQ27: ='Financial Model'!AL24 -> 0 | CR27: ='Financial Model'!AM24 -> 0 | CS27: ='Financial Model'!AN24 -> 0 | CT27: ='Financial Model'!AO24 -> 0 | CU27: ='Financial Model'!AP24 -> 0 | CV27: ='Financial Model'!AQ24 -> 0 | CW27: ='Financial Model'!AR24 -> 0 | CX27: ='Financial Model'!AS24 -> 0 | CY27: ='Financial Model'!AT24 -> -27.14244981 | CZ27: ='Financial Model'!AU24 -> -27.42591823 | DA27: ='Financial Model'!AV24 -> -27.64087592 | DB27: ='Financial Model'!AW24 -> -27.77331745 | DC27: ='Financial Model'!AX24 -> -27.98588684 | DD27: ='Financial Model'!AY24 -> -28.16468815 | DE27: ='Financial Model'!AZ24 -> -28.28867708 | DF27: ='Financial Model'!BA24 -> -28.37806652 | DG27: ='Financial Model'!BB24 -> -28.53556961 | DH27: ='Financial Model'!BC24 -> -28.63563422 | DI27: ='Financial Model'!BD24 -> -28.72500068 | DJ27: ='Financial Model'!BE24 -> -28.78660172 | DK27: ='Financial Model'!BF24 -> -28.83458767 | DL27: ='Financial Model'!BG24 -> -28.925579 | DM27: ='Financial Model'!BH24 -> -28.99781078 | DN27: ='Financial Model'!BI24 -> -28.99429507 | DO27: ='Financial Model'!BJ24 -> -28.98626351 | DP27: ='Financial Model'!BK24 -> -17.77877774 | DQ27: ='Financial Model'!BL24 -> 0 | DR27: ='Financial Model'!BM24 -> 0 | DS27: ='Financial Model'!BN24 -> 0 | DT27: ='Financial Model'!BO24 -> 0 | DU27: ='Financial Model'!BP24 -> 0 | DV27: ='Financial Model'!BQ24 -> 0 | DW27: ='Financial Model'!BR24 -> 0 | DX27: ='Financial Model'!BS24 -> 0 | DY27: ='Financial Model'!BT24 -> 0 | DZ27: ='Financial Model'!BU24 -> 0 | EA27: ='Financial Model'!BV24 -> 0 | EB27: ='Financial Model'!BW24 -> 0 | EC27: ='Financial Model'!BX24 -> 0 | ED27: ='Financial Model'!BY24 -> 0 | EE27: ='Financial Model'!BZ24 -> 0 | EF27: ='Financial Model'!CA24 -> 0 | EG27: ='Financial Model'!CB24 -> 0 | EH27: ='Financial Model'!CC24 -> 0 | EI27: ='Financial Model'!CD24 -> 0 | EJ27: ='Financial Model'!CE24 -> 0 | EK27: ='Financial Model'!CF24 -> 0 | EL27: ='Financial Model'!CG24 -> 0
B28: Capital Expenses and Duration [CAPEX] | AH28: Revenues (Blended) | AI28: million USD | AJ28: =AJ327 -> 0 | AK28: 0 | AL28: 0 | AM28: 0 | AN28: 0 | AO28: 0 | AP28: 0 | AQ28: 0 | AR28: 0 | AS28: 0 | AT28: 371.0149633 | AU28: 750.1305113 | AV28: 1134.418537 | AW28: 1140.247823 | AX28: 1149.390396 | AY28: 1157.080842 | AZ28: 1162.401327 | BA28: 1166.319442 | BB28: 1173.034086 | BC28: 1177.321934 | BD28: 1181.154359 | BE28: 1183.84075 | BF28: 1185.984634 | BG28: 1189.877265 | BH28: 1192.94797 | BI28: 1192.911784 | BJ28: 1192.713568 | BK28: 1194.497765 | BL28: 1196.692253 | BM28: 1198.411994 | BN28: 1198.488118 | BO28: 1197.873971 | BP28: =BP327 -> 1199.594244 | BQ28: 1201.842443 | BR28: 1203.15801 | BS28: 1202.928752 | BT28: 0 | BU28: 0 | BV28: 0 | BW28: 0 | BX28: 0 | BY28: 0 | BZ28: 0 | CA28: 0 | CB28: 0 | CC28: 0 | CD28: 0 | CE28: 0 | CF28: 0 | CG28: 0 | CM28: Revenues from Nodules | CN28: million USD | CO28: =IF('User Interface'!$C$5="Ad Valorem", 'Financial Model'!AJ25,'Financial Model'!AJ28) -> 0 | CP28: =IF('User Interface'!$C$5="Ad Valorem", 'Financial Model'!AK25,'Financial Model'!AK28) -> 0 | CQ28: =IF('User Interface'!$C$5="Ad Valorem", 'Financial Model'!AL25,'Financial Model'!AL28) -> 0 | CR28: =IF('User Interface'!$C$5="Ad Valorem", 'Financial Model'!AM25,'Financial Model'!AM28) -> 0 | CS28: =IF('User Interface'!$C$5="Ad Valorem", 'Financial Model'!AN25,'Financial Model'!AN28) -> 0 | CT28: =IF('User Interface'!$C$5="Ad Valorem", 'Financial Model'!AO25,'Financial Model'!AO28) -> 0 | CU28: =IF('User Interface'!$C$5="Ad Valorem", 'Financial Model'!AP25,'Financial Model'!AP28) -> 0 | CV28: =IF('User Interface'!$C$5="Ad Valorem", 'Financial Model'!AQ25,'Financial Model'!AQ28) -> 0 | CW28: =IF('User Interface'!$C$5="Ad Valorem", 'Financial Model'!AR25,'Financial Model'!AR28) -> 0 | CX28: =IF('User Interface'!$C$5="Ad Valorem", 'Financial Model'!AS25,'Financial Model'!AS28) -> 0 | CY28: =IF('User Interface'!$C$5="Ad Valorem", 'Financial Model'!AT25,'Financial Model'!AT28) -> 389.4455122 | CZ28: =IF('User Interface'!$C$5="Ad Valorem", 'Financial Model'!AU25,'Financial Model'!AU28) -> 787.3940141 | DA28: =IF('User Interface'!$C$5="Ad Valorem", 'Financial Model'!AV25,'Financial Model'!AV28) -> 1190.771941 | DB28: =IF('User Interface'!$C$5="Ad Valorem", 'Financial Model'!AW25,'Financial Model'!AW28) -> 1196.890803 | DC28: =IF('User Interface'!$C$5="Ad Valorem", 'Financial Model'!AX25,'Financial Model'!AX28) -> 1206.487543 | DD28: =IF('User Interface'!$C$5="Ad Valorem", 'Financial Model'!AY25,'Financial Model'!AY28) -> 1214.56002 | DE28: =IF('User Interface'!$C$5="Ad Valorem", 'Financial Model'!AZ25,'Financial Model'!AZ28) -> 1220.144805 | DF28: =IF('User Interface'!$C$5="Ad Valorem", 'Financial Model'!BA25,'Financial Model'!BA28) -> 1224.257557 | DG28: =IF('User Interface'!$C$5="Ad Valorem", 'Financial Model'!BB25,'Financial Model'!BB28) -> 1231.305758 | DH28: =IF('User Interface'!$C$5="Ad Valorem", 'Financial Model'!BC25,'Financial Model'!BC28) -> 1235.806609 | DI28: =IF('User Interface'!$C$5="Ad Valorem", 'Financial Model'!BD25,'Financial Model'!BD28) -> 1239.829414 | DJ28: =IF('User Interface'!$C$5="Ad Valorem", 'Financial Model'!BE25,'Financial Model'!BE28) -> 1242.649254 | DK28: =IF('User Interface'!$C$5="Ad Valorem", 'Financial Model'!BF25,'Financial Model'!BF28) -> 1244.899638 | DL28: =IF('User Interface'!$C$5="Ad Valorem", 'Financial Model'!BG25,'Financial Model'!BG28) -> 1248.985639 | DM28: =IF('User Interface'!$C$5="Ad Valorem", 'Financial Model'!BH25,'Financial Model'!BH28) -> 1252.208884 | DN28: =IF('User Interface'!$C$5="Ad Valorem", 'Financial Model'!BI25,'Financial Model'!BI28) -> 1252.170901 | DO28: =IF('User Interface'!$C$5="Ad Valorem", 'Financial Model'!BJ25,'Financial Model'!BJ28) -> 1251.962838 | DP28: =IF('User Interface'!$C$5="Ad Valorem", 'Financial Model'!BK25,'Financial Model'!BK28) -> 1253.835667 | DQ28: =IF('User Interface'!$C$5="Ad Valorem", 'Financial Model'!BL25,'Financial Model'!BL28) -> 1256.139169 | DR28: =IF('User Interface'!$C$5="Ad Valorem", 'Financial Model'!BM25,'Financial Model'!BM28) -> 1257.94434 | DS28: =IF('User Interface'!$C$5="Ad Valorem", 'Financial Model'!BN25,'Financial Model'!BN28) -> 1258.024245 | DT28: =IF('User Interface'!$C$5="Ad Valorem", 'Financial Model'!BO25,'Financial Model'!BO28) -> 1257.379589 | DU28: =IF('User Interface'!$C$5="Ad Valorem", 'Financial Model'!BP25,'Financial Model'!BP28) -> 1259.185318 | DV28: =IF('User Interface'!$C$5="Ad Valorem", 'Financial Model'!BQ25,'Financial Model'!BQ28) -> 1261.545199 | DW28: =IF('User Interface'!$C$5="Ad Valorem", 'Financial Model'!BR25,'Financial Model'!BR28) -> 1262.926118 | DX28: =IF('User Interface'!$C$5="Ad Valorem", 'Financial Model'!BS25,'Financial Model'!BS28) -> 1262.685472 | DY28: =IF('User Interface'!$C$5="Ad Valorem", 'Financial Model'!BT25,'Financial Model'!BT28) -> 0 | DZ28: =IF('User Interface'!$C$5="Ad Valorem", 'Financial Model'!BU25,'Financial Model'!BU28) -> 0 | EA28: =IF('User Interface'!$C$5="Ad Valorem", 'Financial Model'!BV25,'Financial Model'!BV28) -> 0 | EB28: =IF('User Interface'!$C$5="Ad Valorem", 'Financial Model'!BW25,'Financial Model'!BW28) -> 0 | EC28: =IF('User Interface'!$C$5="Ad Valorem", 'Financial Model'!BX25,'Financial Model'!BX28) -> 0 | ED28: =IF('User Interface'!$C$5="Ad Valorem", 'Financial Model'!BY25,'Financial Model'!BY28) -> 0 | EE28: =IF('User Interface'!$C$5="Ad Valorem", 'Financial Model'!BZ25,'Financial Model'!BZ28) -> 0 | EF28: =IF('User Interface'!$C$5="Ad Valorem", 'Financial Model'!CA25,'Financial Model'!CA28) -> 0 | EG28: =IF('User Interface'!$C$5="Ad Valorem", 'Financial Model'!CB25,'Financial Model'!CB28) -> 0 | EH28: =IF('User Interface'!$C$5="Ad Valorem", 'Financial Model'!CC25,'Financial Model'!CC28) -> 0 | EI28: =IF('User Interface'!$C$5="Ad Valorem", 'Financial Model'!CD25,'Financial Model'!CD28) -> 0 | EJ28: =IF('User Interface'!$C$5="Ad Valorem", 'Financial Model'!CE25,'Financial Model'!CE28) -> 0 | EK28: =IF('User Interface'!$C$5="Ad Valorem", 'Financial Model'!CF25,'Financial Model'!CF28) -> 0 | EL28: =IF('User Interface'!$C$5="Ad Valorem", 'Financial Model'!CG25,'Financial Model'!CG28) -> 0
C29: First Mover Investment (expected) | D29: Modeled Investment (expected) | E29: Investment Possible Minimum (for simulation) | F29: Investment Possible Maximum (for simulation) | G29: Deployment Period | H29: Nodule Collection Allocation | I29: Nodule Processing Allocation | J29: Costs are spread uniformly? | K29: Percent Equity Finance | L29: Residual Value | P29: Capital Expenses and Duration [CAPEX] | R29: Stochastic Modeled Investment | X29: Collection | Y29: Processing | AH29: Royalties & Levies | CM29: Royalties and Fees | CO29: =IF('User Interface'!$C$5="Ad Valorem", 'Financial Model'!AJ30,'Financial Model'!AJ33)+CO24 -> -0.547 | CP29: =IF('User Interface'!$C$5="Ad Valorem", 'Financial Model'!AK30,'Financial Model'!AK33)+CP24 -> -0.047 | CQ29: =IF('User Interface'!$C$5="Ad Valorem", 'Financial Model'!AL30,'Financial Model'!AL33)+CQ24 -> -0.047 | CR29: =IF('User Interface'!$C$5="Ad Valorem", 'Financial Model'!AM30,'Financial Model'!AM33)+CR24 -> -1.147 | CS29: =IF('User Interface'!$C$5="Ad Valorem", 'Financial Model'!AN30,'Financial Model'!AN33)+CS24 -> -0.147 | CT29: =IF('User Interface'!$C$5="Ad Valorem", 'Financial Model'!AO30,'Financial Model'!AO33)+CT24 -> -0.147 | CU29: =IF('User Interface'!$C$5="Ad Valorem", 'Financial Model'!AP30,'Financial Model'!AP33)+CU24 -> -0.1 | CV29: =IF('User Interface'!$C$5="Ad Valorem", 'Financial Model'!AQ30,'Financial Model'!AQ33)+CV24 -> -0.1 | CW29: =IF('User Interface'!$C$5="Ad Valorem", 'Financial Model'!AR30,'Financial Model'!AR33)+CW24 -> -0.1 | CX29: =IF('User Interface'!$C$5="Ad Valorem", 'Financial Model'!AS30,'Financial Model'!AS33)+CX24 -> -0.1 | CY29: =IF('User Interface'!$C$5="Ad Valorem", 'Financial Model'!AT30,'Financial Model'!AT33)+CY24 -> -54.38489962 | CZ29: =IF('User Interface'!$C$5="Ad Valorem", 'Financial Model'!AU30,'Financial Model'!AU33)+CZ24 -> -109.8036729 | DA29: =IF('User Interface'!$C$5="Ad Valorem", 'Financial Model'!AV30,'Financial Model'!AV33)+DA24 -> -165.9452555 | DB29: =IF('User Interface'!$C$5="Ad Valorem", 'Financial Model'!AW30,'Financial Model'!AW33)+DB24 -> -166.7399047 | DC29: =IF('User Interface'!$C$5="Ad Valorem", 'Financial Model'!AX30,'Financial Model'!AX33)+DC24 -> -168.015321 | DD29: =IF('User Interface'!$C$5="Ad Valorem", 'Financial Model'!AY30,'Financial Model'!AY33)+DD24 -> -169.0881289 | DE29: =IF('User Interface'!$C$5="Ad Valorem", 'Financial Model'!AZ30,'Financial Model'!AZ33)+DE24 -> -169.8320625 | DF29: =IF('User Interface'!$C$5="Ad Valorem", 'Financial Model'!BA30,'Financial Model'!BA33)+DF24 -> -170.3683991 | DG29: =IF('User Interface'!$C$5="Ad Valorem", 'Financial Model'!BB30,'Financial Model'!BB33)+DG24 -> -171.3134177 | DH29: =IF('User Interface'!$C$5="Ad Valorem", 'Financial Model'!BC30,'Financial Model'!BC33)+DH24 -> -171.9138053 | DI29: =IF('User Interface'!$C$5="Ad Valorem", 'Financial Model'!BD30,'Financial Model'!BD33)+DI24 -> -172.4500041 | DJ29: =IF('User Interface'!$C$5="Ad Valorem", 'Financial Model'!BE30,'Financial Model'!BE33)+DJ24 -> -172.8196103 | DK29: =IF('User Interface'!$C$5="Ad Valorem", 'Financial Model'!BF30,'Financial Model'!BF33)+DK24 -> -173.107526 | DL29: =IF('User Interface'!$C$5="Ad Valorem", 'Financial Model'!BG30,'Financial Model'!BG33)+DL24 -> -173.653474 | DM29: =IF('User Interface'!$C$5="Ad Valorem", 'Financial Model'!BH30,'Financial Model'!BH33)+DM24 -> -174.0868647 | DN29: =IF('User Interface'!$C$5="Ad Valorem", 'Financial Model'!BI30,'Financial Model'!BI33)+DN24 -> -174.0657704 | DO29: =IF('User Interface'!$C$5="Ad Valorem", 'Financial Model'!BJ30,'Financial Model'!BJ33)+DO24 -> -174.0175811 | DP29: =IF('User Interface'!$C$5="Ad Valorem", 'Financial Model'!BK30,'Financial Model'!BK33)+DP24 -> -174.2716876 | DQ29: =IF('User Interface'!$C$5="Ad Valorem", 'Financial Model'!BL30,'Financial Model'!BL33)+DQ24 -> -174.5865117 | DR29: =IF('User Interface'!$C$5="Ad Valorem", 'Financial Model'!BM30,'Financial Model'!BM33)+DR24 -> -174.8399358 | DS29: =IF('User Interface'!$C$5="Ad Valorem", 'Financial Model'!BN30,'Financial Model'!BN33)+DS24 -> -174.8415948 | DT29: =IF('User Interface'!$C$5="Ad Valorem", 'Financial Model'!BO30,'Financial Model'!BO33)+DT24 -> -174.7409939 | DU29: =IF('User Interface'!$C$5="Ad Valorem", 'Financial Model'!BP30,'Financial Model'!BP33)+DU24 -> -174.986049 | DV29: =IF('User Interface'!$C$5="Ad Valorem", 'Financial Model'!BQ30,'Financial Model'!BQ33)+DV24 -> -175.3097791 | DW29: =IF('User Interface'!$C$5="Ad Valorem", 'Financial Model'!BR30,'Financial Model'!BR33)+DW24 -> -175.4999811 | DX29: =IF('User Interface'!$C$5="Ad Valorem", 'Financial Model'!BS30,'Financial Model'!BS33)+DX24 -> -175.4562324 | DY29: =IF('User Interface'!$C$5="Ad Valorem", 'Financial Model'!BT30,'Financial Model'!BT33)+DY24 -> 0 | DZ29: =IF('User Interface'!$C$5="Ad Valorem", 'Financial Model'!BU30,'Financial Model'!BU33)+DZ24 -> 0 | EA29: =IF('User Interface'!$C$5="Ad Valorem", 'Financial Model'!BV30,'Financial Model'!BV33)+EA24 -> 0 | EB29: =IF('User Interface'!$C$5="Ad Valorem", 'Financial Model'!BW30,'Financial Model'!BW33)+EB24 -> 0 | EC29: =IF('User Interface'!$C$5="Ad Valorem", 'Financial Model'!BX30,'Financial Model'!BX33)+EC24 -> 0 | ED29: =IF('User Interface'!$C$5="Ad Valorem", 'Financial Model'!BY30,'Financial Model'!BY33)+ED24 -> 0 | EE29: =IF('User Interface'!$C$5="Ad Valorem", 'Financial Model'!BZ30,'Financial Model'!BZ33)+EE24 -> 0 | EF29: =IF('User Interface'!$C$5="Ad Valorem", 'Financial Model'!CA30,'Financial Model'!CA33)+EF24 -> 0 | EG29: =IF('User Interface'!$C$5="Ad Valorem", 'Financial Model'!CB30,'Financial Model'!CB33)+EG24 -> 0 | EH29: =IF('User Interface'!$C$5="Ad Valorem", 'Financial Model'!CC30,'Financial Model'!CC33)+EH24 -> 0 | EI29: =IF('User Interface'!$C$5="Ad Valorem", 'Financial Model'!CD30,'Financial Model'!CD33)+EI24 -> 0 | EJ29: =IF('User Interface'!$C$5="Ad Valorem", 'Financial Model'!CE30,'Financial Model'!CE33)+EJ24 -> 0 | EK29: =IF('User Interface'!$C$5="Ad Valorem", 'Financial Model'!CF30,'Financial Model'!CF33)+EK24 -> 0 | EL29: =IF('User Interface'!$C$5="Ad Valorem", 'Financial Model'!CG30,'Financial Model'!CG33)+EL24 -> 0
B30: Operation Stage | C30: million USD | D30: million USD | E30: % of expected | F30: % of expected | G30: Years | H30: % of Investment | I30: % of Investment | J30: * see note | K30: % | L30: % of Investment | R30: mlllion USD | S30: Stocastic Multiplier | T30: Likely Multipler | U30: Stochastic MIN | V30: Stochastic MAX | X30: mlllion USD | Y30: mlllion USD | AH30: ="(Ad Valorem - "&TEXT(E126,"##.0%")&"/"&TEXT(E128,"##.0%")&")" -> (Ad Valorem - 6.0%/6.0%) | AI30: million USD | AJ30: =AJ223+AJ225 -> 0 | AK30: 0 | AL30: 0 | AM30: 0 | AN30: 0 | AO30: 0 | AP30: 0 | AQ30: 0 | AR30: 0 | AS30: 0 | AT30: -54.28489962 | AU30: -109.7036729 | AV30: -165.8452555 | AW30: -166.6399047 | AX30: -167.915321 | AY30: -168.9881289 | AZ30: -169.7320625 | BA30: -170.2683991 | BB30: -171.2134177 | BC30: -171.8138053 | BD30: -172.3500041 | BE30: -172.7196103 | BF30: -173.007526 | BG30: -173.553474 | BH30: -173.9868647 | BI30: -173.9657704 | BJ30: -173.9175811 | BK30: -174.1716876 | BL30: -174.4865117 | BM30: -174.7399358 | BN30: -174.7415948 | BO30: -174.6409939 | BP30: =BP223+BP225 -> -174.886049 | BQ30: -175.2097791 | BR30: -175.3999811 | BS30: -175.3562324 | BT30: 0 | BU30: 0 | BV30: 0 | BW30: 0 | BX30: 0 | BY30: 0 | BZ30: 0 | CA30: 0 | CB30: 0 | CC30: 0 | CD30: 0 | CE30: 0 | CF30: 0 | CG30: 0 | CM30: Zero Line | CO30: 0 | CP30: 0 | CQ30: 0 | CR30: 0 | CS30: 0 | CT30: 0 | CU30: 0 | CV30: 0 | CW30: 0 | CX30: 0 | CY30: 0 | CZ30: 0 | DA30: 0 | DB30: 0 | DC30: 0 | DD30: 0 | DE30: 0 | DF30: 0 | DG30: 0 | DH30: 0 | DI30: 0 | DJ30: 0 | DK30: 0 | DL30: 0 | DM30: 0 | DN30: 0 | DO30: 0 | DP30: 0 | DQ30: 0 | DR30: 0 | DS30: 0 | DT30: 0 | DU30: 0 | DV30: 0 | DW30: 0 | DX30: 0 | DY30: 0 | DZ30: 0 | EA30: 0 | EB30: 0 | EC30: 0 | ED30: 0 | EE30: 0 | EF30: 0 | EG30: 0 | EH30: 0 | EI30: 0 | EJ30: 0 | EK30: 0 | EL30: 0
B31: Pre-Feasibility Phase | C31: ='User Interface'!C31 -> 37.145 | D31: =C31*$D$27 -> 37.145 | E31: 0.8 | F31: 1.2 | G31: =Q14 -> 6 | H31: ='User Interface'!D31 -> 0.4423 | I31: =1-H31 -> 0.5577 | J31: Yes | K31: 1 | L31: 0 | P31: Pre-Feasibility Phase | R31: =D31*S31 -> 37.145 | S31: 1 | T31: 1 | U31: =E31 -> 0.8 | V31: 1.2 | W31: =P31 -> Pre-Feasibility Phase | X31: =R31*H31 -> 16.4292335 | Y31: =R31*I31 -> 20.7157665 | AH31: ="(Before Tax Profit - "&TEXT(E131,"#0.0%")&"/"&TEXT(E133,"#0.0%")&")" -> (Before Tax Profit - 30.0%/30.0%) | AI31: million USD | AJ31: =AJ261+AJ263 -> 0 | AK31: 0 | AL31: 0 | AM31: 0 | AN31: 0 | AO31: 0 | AP31: 0 | AQ31: 0 | AR31: 0 | AS31: 0 | AT31: 0 | AU31: 0 | AV31: 0 | AW31: -37.80689246 | AX31: -217.5657884 | AY31: -222.3640438 | AZ31: -235.9712562 | BA31: -225.1554162 | BB31: -239.183469 | BC31: -214.0037 | BD31: -241.6363827 | BE31: -230.4481888 | BF31: -243.0964059 | BG31: -232.2722088 | BH31: -230.7246059 | BI31: -233.1894768 | BJ31: -245.1306232 | BK31: -237.0443131 | BL31: -255.0561997 | BM31: -229.1127222 | BN31: -255.6112499 | BO31: -243.4214346 | BP31: =BP261+BP263 -> -255.9531215 | BQ31: -244.6479754 | BR31: -242.5795793 | BS31: -244.9837224 | BT31: -58.935 | BU31: 0 | BV31: 0 | BW31: 0 | BX31: 0 | BY31: 0 | BZ31: 0 | CA31: 0 | CB31: 0 | CC31: 0 | CD31: 0 | CE31: 0 | CF31: 0 | CG31: 0 | CN31: Total | CO31: =SUM(CO21:CO28)+CO29 -> -3.832205583 | CP31: -2.832205583 | CQ31: -2.832205583 | CR31: -50.31000558 | CS31: -48.31000558 | CT31: -48.31000558 | CU31: -45.4778 | CV31: -547.8666667 | CW31: -547.8666667 | CX31: -547.8666667 | CY31: 52.75816276 | CZ31: 291.2394229 | DA31: 614.4958099 | DB31: 573.3394885 | DC31: 434.6347516 | DD31: 445.9379021 | DE31: 479.4755492 | DF31: 452.0908184 | DG31: 486.5500782 | DH31: 423.2128767 | DI31: 491.9483068 | DJ31: 463.7397816 | DK31: 495.175643 | DL31: 467.7624392 | DM31: 463.6131564 | DN31: 469.7906266 | DO31: 499.676745 | DP31: 479.2964013 | DQ31: 524.1219927 | DR31: 459.0983029 | DS31: 525.3444876 | DT31: 494.9364465 | DU31: =SUM(DU21:DU28)+DU29 -> 526.1069519 | DV31: 497.6340652 | DW31: 492.3396029 | DX31: 498.37943 | DY31: 147.3375 | DZ31: 0 | EA31: 0 | EB31: 0 | EC31: 0 | ED31: 0 | EE31: 0 | EF31: 0 | EG31: 0 | EH31: 0 | EI31: 0 | EJ31: 0 | EK31: 0 | EL31: 0
B32: Feasibility Phase | C32: ='User Interface'!C32 -> 276 | D32: =C32*$D$27 -> 276 | E32: 0.8 | F32: 1.2 | G32: =Q15 -> 4 | H32: ='User Interface'!D32 -> 0.6562 | I32: =1-H32 -> 0.3438 | J32: Yes | K32: 1 | L32: 0 | P32: Feasibility Phase | R32: =D32*S32 -> 276 | S32: 1 | T32: 1 | U32: 0.8 | V32: 1.2 | W32: Feasibility Phase | X32: =R32*H32 -> 181.1112 | Y32: =R32*I32 -> 94.8888 | AH32: ="(Specific - "&TEXT(E135,"##")&" cents/lb nodule)" -> (Specific - 2 cents/lb nodule) | AI32: million USD | AJ32: =AJ299+AJ301 -> 0 | AK32: 0 | AL32: 0 | AM32: 0 | AN32: 0 | AO32: 0 | AP32: 0 | AQ32: 0 | AR32: 0 | AS32: 0 | AT32: -33 | AU32: -66 | AV32: -99 | AW32: -99 | AX32: -99 | AY32: -99 | AZ32: -99 | BA32: -99 | BB32: -99 | BC32: -99 | BD32: -99 | BE32: -99 | BF32: -99 | BG32: -99 | BH32: -99 | BI32: -99 | BJ32: -99 | BK32: -99 | BL32: -99 | BM32: -99 | BN32: -99 | BO32: -99 | BP32: =BP299+BP301 -> -99 | BQ32: -99 | BR32: -99 | BS32: -99 | BT32: 0 | BU32: 0 | BV32: 0 | BW32: 0 | BX32: 0 | BY32: 0 | BZ32: 0 | CA32: 0 | CB32: 0 | CC32: 0 | CD32: 0 | CE32: 0 | CF32: 0 | CG32: 0 | CN32: Total Cumulative | CO32: =CO31 -> -3.832205583 | CP32: =CO32+CP31 -> -6.664411167 | CQ32: -9.49661675 | CR32: -59.80662233 | CS32: -108.1166279 | CT32: -156.4266335 | CU32: -201.9044335 | CV32: -749.7711002 | CW32: -1297.637767 | CX32: -1845.504434 | CY32: -1792.746271 | CZ32: -1501.506848 | DA32: -887.0110379 | DB32: -313.6715495 | DC32: 120.9632021 | DD32: 566.9011042 | DE32: 1046.376653 | DF32: 1498.467472 | DG32: 1985.01755 | DH32: 2408.230427 | DI32: 2900.178733 | DJ32: 3363.918515 | DK32: 3859.094158 | DL32: 4326.856597 | DM32: 4790.469753 | DN32: 5260.26038 | DO32: 5759.937125 | DP32: 6239.233526 | DQ32: 6763.355519 | DR32: 7222.453822 | DS32: 7747.79831 | DT32: 8242.734756 | DU32: 8768.841708 | DV32: =DU32+DV31 -> 9266.475773 | DW32: 9758.815376 | DX32: 10257.19481 | DY32: 10404.53231 | DZ32: 10404.53231 | EA32: 10404.53231 | EB32: 10404.53231 | EC32: 10404.53231 | ED32: 10404.53231 | EE32: 10404.53231 | EF32: 10404.53231 | EG32: 10404.53231 | EH32: 10404.53231 | EI32: 10404.53231 | EJ32: 10404.53231 | EK32: 10404.53231 | EL32: 10404.53231
B33: Design & Build - Collection System | C33: ='User Interface'!C33 -> 638 | D33: =C33*$D$27 -> 638 | E33: 0.8 | F33: 1.2 | G33: =Q17 -> 3 | H33: ='User Interface'!D33 -> 1 | I33: =1-H33 -> 0 | J33: Yes | K33: 1 | L33: 0.15 | P33: Design & Build - Collection System | R33: =D33*S33 -> 638 | S33: 1 | T33: 1 | U33: 0.8 | V33: 1.2 | W33: Design & Build - Collection System | X33: =R33*H33 -> 638 | Y33: =R33*I33 -> 0 | AH33: ="(Blended: "&"Ad Val - "&TEXT(E141,"#0.0%")&"/"&TEXT(G141,"#0.0%")&"; "&"Profit - "&TEXT(E142,"#0.0%")&"/"&TEXT(G142,"#0.0%")&"; "&"Specific - "&TEXT(E143,"##")&" cents/lb nodule)" -> (Blended: Ad Val - 1.0%/1.0%; Profit - 0.0%/10.0%; Specific - 2 cents/lb nodule) | AI33: million USD | AJ33: =AJ337+AJ339 -> 0 | AK33: 0 | AL33: 0 | AM33: 0 | AN33: 0 | AO33: 0 | AP33: 0 | AQ33: 0 | AR33: 0 | AS33: 0 | AT33: -9.04748327 | AU33: -18.28394549 | AV33: -27.64087592 | AW33: -27.77331745 | AX33: -94.23374909 | AY33: -95.97083471 | AZ33: -100.6020743 | BA33: -97.06539742 | BB33: -101.8628643 | BC33: -93.54670074 | BD33: -102.8264365 | BE33: -99.14435641 | BF33: -103.3971336 | BG33: -99.85918968 | BH33: -99.39904559 | BI33: -100.2176145 | BJ33: -104.1913676 | BK33: -101.5286519 | BL33: -107.5732021 | BM33: -98.95818981 | BN33: -107.791051 | BO33: -103.7145462 | BP33: =BP337+BP339 -> -107.9233317 | BQ33: -104.1967112 | BR33: -103.5317981 | BS33: -104.3273101 | BT33: -19.645 | BU33: 0 | BV33: 0 | BW33: 0 | BX33: 0 | BY33: 0 | BZ33: 0 | CA33: 0 | CB33: 0 | CC33: 0 | CD33: 0 | CE33: 0 | CF33: 0 | CG33: 0
B34: Design & Build - Surface Vessels | C34: ='User Interface'!C34+'User Interface'!C35 -> 1005 | D34: =C34 -> 1005 | E34: 0.8 | F34: 1.2 | G34: =Q17 -> 3 | H34: =SUMPRODUCT('User Interface'!C34:C35,'User Interface'!D34:D35)/SUM('User Interface'!C34:C35) -> 1 | I34: =1-H34 -> 0 | J34: Yes | K34: 1 | L34: 0.15 | P34: Design & Build - Surface Vessels | R34: =D34*S34 -> 1005 | S34: 1 | T34: 1 | U34: 0.8 | V34: 1.2 | W34: Design & Build - Surface Vessels | X34: =R34*H34 -> 1005 | Y34: =R34*I34 -> 0 | AH34: Net Cash Flow After Royalties
B35: Design & Build - Processing plant | C35: ='User Interface'!C36 -> 2071.5 | D35: =C35*$D$27 -> 2071.5 | E35: 0.8 | F35: 1.2 | G35: =Q17 -> 3 | H35: ='User Interface'!D36 -> 0 | I35: =1-H35 -> 1 | J35: Yes | K35: 1 | L35: 0.15 | P35: Design & Build - Processing plant | R35: =D35*S35 -> 2071.5 | S35: 1 | T35: 1 | U35: 0.8 | V35: 1.2 | W35: Design & Build - Processing plant | X35: =R35*H35 -> 0 | Y35: =R35*I35 -> 2071.5 | AH35: ="Net Cash Flow "&AH30 -> Net Cash Flow (Ad Valorem - 6.0%/6.0%) | AI35: million USD | AJ35: =SUM(AJ$16:AJ$19)+AJ20+AJ24+AJ25+AJ30 -> -3.285205583 | AK35: -2.785205583 | AL35: -2.785205583 | AM35: -49.16300558 | AN35: -48.16300558 | AO35: -48.16300558 | AP35: -45.3778 | AQ35: -547.7666667 | AR35: -547.7666667 | AS35: -547.7666667 | AT35: 52.85816276 | AU35: 291.3394229 | AV35: 614.5958099 | AW35: 573.4394885 | AX35: 434.7347516 | AY35: 446.0379021 | AZ35: 479.5755492 | BA35: 452.1908184 | BB35: 486.6500782 | BC35: 423.3128767 | BD35: 492.0483068 | BE35: 463.8397816 | BF35: 495.275643 | BG35: 467.8624392 | BH35: 463.7131564 | BI35: 469.8906266 | BJ35: 499.776745 | BK35: 479.3964013 | BL35: 524.2219927 | BM35: 459.1983029 | BN35: 525.4444876 | BO35: 495.0364465 | BP35: =SUM(BP$16:BP$19)+BP20+BP24+BP25+BP30 -> 526.2069519 | BQ35: 497.7340652 | BR35: 492.4396029 | BS35: 498.47943 | BT35: 147.3375 | BU35: 0 | BV35: 0 | BW35: 0 | BX35: 0 | BY35: 0 | BZ35: 0 | CA35: 0 | CB35: 0 | CC35: 0 | CD35: 0 | CE35: 0 | CF35: 0 | CG35: 0 | CN35: Lifetime Revenue
L36: * Note: If "yes", then investments are assumed to occur uniformly over the deployment period. | P36: Residual Value | R36: =-SUMPRODUCT(R31:R35,L31:L35) -> -557.175 | W36: Residual Value | X36: =-SUMPRODUCT(X31:X35,L31:L35) -> -246.45 | Y36: =-SUMPRODUCT(Y31:Y35,L31:L35) -> -310.725 | AH36: ="Net Cash Flow "&AH31 -> Net Cash Flow (Before Tax Profit - 30.0%/30.0%) | AI36: million USD | AJ36: =SUM(AJ$16:AJ$19,AJ26)+AJ31+AJ21+AJ24 -> -3.285205583 | AK36: -2.785205583 | AL36: -2.785205583 | AM36: -49.16300558 | AN36: -48.16300558 | AO36: -48.16300558 | AP36: -45.3778 | AQ36: -547.7666667 | AR36: -547.7666667 | AS36: -547.7666667 | AT36: 99.93110845 | AU36: 386.4617252 | AV36: 758.3897332 | AW36: 664.4019285 | AX36: 380.7401296 | AY36: 389.1370767 | AZ36: 412.9496983 | BA36: 394.0219784 | BB36: 418.5710708 | BC36: 374.506475 | BD36: 422.8636698 | BE36: 403.2843303 | BF36: 425.4187104 | BG36: 406.4763653 | BH36: 403.7680604 | BI36: 408.0815843 | BJ36: 428.9785906 | BK36: 414.8275479 | BL36: 446.3483494 | BM36: 400.9472639 | BN36: 447.3196873 | BO36: 425.9875105 | BP36: =SUM(BP$16:BP$19,BP26)+BP31+BP21+BP24 -> 447.9179626 | BQ36: 428.1339569 | BR36: 424.5142637 | BS36: 428.7215142 | BT36: 103.13625 | BU36: 0 | BV36: 0 | BW36: 0 | BX36: 0 | BY36: 0 | BZ36: 0 | CA36: 0 | CB36: 0 | CC36: 0 | CD36: 0 | CE36: 0 | CF36: 0 | CG36: 0 | CN36: millions
B37: Maintenance CapEx (recurring replacements) | CM37: Metals Revenue | CN37: =IF('User Interface'!$C$5='User Interface'!$B$116,'Financial Model'!AU$77,'Financial Model'!AU$80) -> 65231.40477
C38: Investment (expected) | D38: Investment Possible Minimum (for simulation) | E38: Investment Possible Maximum (for simulation) | F38: Frequency (expected) | G38: Frequency Possible Minimum (for simulation) | H38: Frequency Possible Maximum (for simulation) | I38: Nodule Collection Allocation | J38: Nodule Processing Allocation | AH38: ="Net Cash Flow "&AH32 -> Net Cash Flow (Specific - 2 cents/lb nodule) | AI38: million USD | AJ38: =SUM(AJ$16:AJ$19)+AJ27+AJ32+AJ22+AJ24 -> -3.285205583 | AK38: -2.785205583 | AL38: -2.785205583 | AM38: -49.16300558 | AN38: -48.16300558 | AO38: -48.16300558 | AP38: -45.3778 | AQ38: -547.7666667 | AR38: -547.7666667 | AS38: -547.7666667 | AT38: 61.32181095 | AU38: 309.1206592 | AV38: 642.238697 | AW38: 608.0236736 | AX38: 456.6314265 | AY38: 468.5398624 | AZ38: 502.4975638 | BA38: 475.4135361 | BB38: 510.4075301 | BC38: 447.4094873 | BD38: 516.4477379 | BE38: 488.4467917 | BF38: 520.0430249 | BG38: 492.9383931 | BH38: 489.034567 | BI38: 495.1971544 | BJ38: 525.0522681 | BK38: 504.8162617 | BL38: 549.8210946 | BM38: 484.9429007 | BN38: 551.1883566 | BO38: 520.7207823 | BP38: =SUM(BP$16:BP$19)+BP27+BP32+BP22+BP24 -> 552.0304932 | BQ38: 523.7421353 | BR38: 518.5562278 | BS38: 524.5691852 | BT38: 147.3375 | BU38: 0 | BV38: 0 | BW38: 0 | BX38: 0 | BY38: 0 | BZ38: 0 | CA38: 0 | CB38: 0 | CC38: 0 | CD38: 0 | CE38: 0 | CF38: 0 | CG38: 0 | CM38: Processor Operating Costs | CN38: =IF('User Interface'!$C$5='User Interface'!$B$116,'Financial Model'!AV$77,'Financial Model'!AV$80) -> -18549.55457
B39: Capital Expenditure Type | C39: million USD | D39: % of expected | E39: % of expected | F39: Years* (integer only) | G39: Years* (integer only) | H39: Years* (integer only) | I39: % of Investment | J39: % of Investment | P39: Maintenance CapEx (recurring replacements) | R39: million USD | S39: Stocastic Multiplier | T39: Likely Multipler | U39: Stochastic MIN | V39: Stochastic MAX | W39: Frequency (yrs) | X39: Stocastic Add | Y39: Stochastic MIN | Z39: Stochastic MAX | AH39: Net Cash Flow: Blended | AI39: million USD | AJ39: =SUM(AJ$16:AJ$19)+AJ28+AJ33+AJ23+AJ24 -> -3.285205583 | AK39: -2.785205583 | AL39: -2.785205583 | AM39: -49.16300558 | AN39: -48.16300558 | AO39: -48.16300558 | AP39: -45.3778 | AQ39: -547.7666667 | AR39: -547.7666667 | AS39: -547.7666667 | AT39: 79.66503018 | AU39: 345.4956476 | AV39: 696.4467849 | AW39: 662.0111882 | AX39: 447.1730702 | AY39: 457.6914893 | AZ39: 488.1154314 | BA39: 463.6394835 | BB39: 494.9592394 | BC39: 438.149699 | BD39: 500.1846916 | BE39: 474.9148442 | BF39: 503.2971848 | BG39: 478.801872 | BH39: 475.208335 | BI39: 480.757406 | BJ39: 507.6344525 | BK39: 489.3752517 | BL39: 529.8217884 | BM39: 471.3853534 | BN39: 531.0053003 | BO39: 503.6020685 | BP39: =SUM(BP$16:BP$19)+BP28+BP33+BP23+BP24 -> 531.7356839 | BQ39: 506.2167989 | BR39: 501.5146588 | BS39: 506.9335817 | BT39: 132.60375 | BU39: 0 | BV39: 0 | BW39: 0 | BX39: 0 | BY39: 0 | BZ39: 0 | CA39: 0 | CB39: 0 | CC39: 0 | CD39: 0 | CE39: 0 | CF39: 0 | CG39: 0 | CM39: Processor Taxes | CN39: =IF('User Interface'!$C$5='User Interface'!$B$116,'Financial Model'!AW$77,'Financial Model'!AW$80) -> -3930.603489
B40: Operations - Collectors | C40: ='User Interface'!C44 -> 40 | D40: 0.8 | E40: 1.2 | F40: ='User Interface'!D44 -> 2 | G40: 2 | H40: 3 | I40: 1 | J40: =1-I40 -> 0 | P40: Operations - Collectors | R40: =C40*S40 -> 40 | S40: 1 | T40: 1 | U40: =D40 -> 0.8 | V40: 1.2 | W40: =IF(F40=0,0,F40+X40) -> 2 | X40: 0 | Y40: =G40-$F40 -> 0 | Z40: 1 | CM40: Profit | CN40: =IF('User Interface'!$C$5='User Interface'!$B$116,'Financial Model'!AY$77,'Financial Model'!AY$80) -> 11791.81047
B41: Operations - Risers | C41: ='User Interface'!C45 -> 42.25 | D41: 0.8 | E41: 1.2 | F41: ='User Interface'!D45 -> 5 | G41: 4 | H41: 5 | I41: 1 | J41: =1-I41 -> 0 | P41: Operations - Risers | R41: =C41*S41 -> 42.25 | S41: 1 | T41: 1 | U41: 0.8 | V41: 1.2 | W41: =F41+X41 -> 5 | X41: 0 | Y41: -1 | Z41: 0 | AU41: CumRev_Coll | AV41: CumCost_Coll | AW41: CumNetCF_Coll | AX41: CollCumNetCF | AY41: ISACumRev_Coll | AZ41: SSCumRev_Coll | BA41: OthCumRev_Coll | BB41: Coll_Take | BC41: ISA Take_Coll | BD41: SS Take_Coll | BE41: Oth Take_Coll | CM41: Payment for Nodules | CN41: =IF('User Interface'!$C$5='User Interface'!$B$116,'Financial Model'!AX$77,'Financial Model'!AX$80) -> -30959.43625
B42: Operations - Moorings | C42: ='User Interface'!C46 -> 6 | D42: 0.8 | E42: 1.2 | F42: ='User Interface'!D46 -> 5 | G42: 4 | H42: 5 | I42: 1 | J42: =1-I42 -> 0 | P42: Operations - Maintenance Item 3 | R42: =C42*S42 -> 6 | S42: 1 | T42: 1 | U42: 0.8 | V42: 1.2 | W42: =F42+X42 -> 5 | X42: 0 | Y42: -1 | Z42: 0 | AH42: Contractor Cash Flow: Independent Collector | AJ42: Collector NPV | AK42: Collector IRR | AL42: Collector Take (Post Tax) | AM42: Collector Effective Tax Rate | AN42: ISA Metrics | AO42: Average Revenue to ISA | AP42: ISA Revenue NPV (excl Env Levies) (million USD) | AQ42: ISA Revenue (first 5 years only) | AR42: ISA Cumulative Revenues | AS42: Other Metrics | AT42: Collector | AU42: Collector Cumulative Undiscounted Revenue | AV42: Cumulative Undisc. Costs (excl tax,fees & rylty) | AW42: Cumulative Net Cash Flows (excl tax, fees, & rylty) | AX42: Collector's Net Cash Flow | AY42: ISA Revenues | AZ42: Sponsoring State Revenues | BA42: Other | BB42: Collector's Take (Post Tax) | BC42: ISA Take | BD42: Sponsoring State Take | BE42: Other Take | CN42: Collector
B43: Operations - Maintenance Item 4 | C43: 0 | D43: 0.8 | E43: 1.2 | F43: 0 | G43: 0 | H43: 1 | I43: 0 | J43: =1-I43 -> 1 | P43: Operations - Maintenance Item 4 | R43: =C43*S43 -> 0 | S43: 1 | T43: 1 | U43: 0.8 | V43: 1.2 | W43: =F43+X43 -> 0 | X43: 0 | Y43: 0 | Z43: 1 | AE43: AdVal | AH43: Coll: Ad Valorem | AI43: ="("&TEXT(E$126,"##.0%")&"/"&TEXT(E$128,"##.0%")&")" -> (6.0%/6.0%) | AJ43: =AJ35+NPV($D$79,AK35:CG35) -> 114.2793803 | AK43: =IFERROR(IRR(AJ35:CG35),-1%) -> 0.1698462308 | AL43: =BB43 -> 0.5537603025 | AM43: =1-AL43 -> 0.4462396975 | AO43: =-SUM(AJ30:CG30)/$D$18 -> 165.5207101 | AP43: =-$AJ$19-NPV($D$82,$AK$19:$CG$19)-$AJ30-NPV($D$82,$AK30:$CG30) -> 2599.387703 | AQ43: =-SUM(OFFSET($AJ$19,0,0,1,H$19-1+5))-SUM(OFFSET($AJ30,0,0,1,H$19-1+5)) -> 667.3710538 | AR43: =AY43 -> 4308.620463 | AT43: AV | AU43: =SUM(AJ25:CG25) -> 30959.43625 | AV43: =SUM(AJ$16:CG$18) -> -12161.38543 | AW43: =AU43+AV43 -> 18798.05081 | AX43: =SUM(AJ243:CG243) -> 10409.61431 | AY43: =SUM(AJ244:CG244) -> 4308.620463 | AZ43: =SUM(AJ245:CG245) -> 3579.816045 | BA43: =SUM(AJ246:CG246) -> 500 | BB43: =AX43/$AW43 -> 0.5537603025 | BC43: 0.2292057036 | BD43: 0.1904354914 | BE43: 0.02659850242 | CM43: Revenue from Nodules | CN43: =IF('User Interface'!$C$5='User Interface'!$B$116,'Financial Model'!AU$43,'Financial Model'!AU$46) -> 30959.43625
B44: Operations - Maintenance Item 5 | C44: 0 | D44: 0.8 | E44: 1.2 | F44: 0 | G44: 0 | H44: 1 | I44: 0 | J44: =1-I44 -> 1 | P44: Operations - Maintenance Item 5 | R44: =C44*S44 -> 0 | S44: 1 | T44: 1 | U44: 0.8 | V44: 1.2 | W44: =F44+X44 -> 0 | X44: 0 | Y44: 0 | Z44: 1 | AE44: Prof | AH44: Coll: Before Tax Profit | AI44: ="("&TEXT(E$131,"#0.0%")&"/"&TEXT(E$133,"#0.0%")&")" -> (30.0%/30.0%) | AJ44: =AJ36+NPV($D$79,AK36:CG36) -> 123.8400855 | AK44: =IFERROR(IRR(AJ36:CG36),-1%) -> 0.1733428231 | AL44: =BB44 -> 0.5104500955 | AM44: =1-AL44 -> 0.4895499045 | AO44: =-SUM(AJ31:CG31)/$D$18 -> 204.4574529 | AP44: =-$AJ$19-NPV($D$82,$AK$19:$CG$19)-$AJ31-NPV($D$82,$AK31:$CG31) -> 3086.258917 | AQ44: =-SUM(OFFSET($AJ$19,0,0,1,H$19-1+5))-SUM(OFFSET($AJ31,0,0,1,H$19-1+5)) -> 258.3546808 | AR44: =AY44 -> 5320.975776 | AT44: BTP | AU44: =SUM(AJ26:CG26) -> 30386.11335 | AV44: =SUM(AJ$16:CG$18) -> -12161.38543 | AW44: =AU44+AV44 -> 18224.72792 | AX44: =SUM($AJ281:$CG281) -> 9302.814108 | AY44: =SUM($AJ282:$CG282) -> 5320.975776 | AZ44: =SUM($AJ283:$CG283) -> 3100.938036 | BA44: =SUM($AJ284:$CG284) -> 500 | BB44: 0.5104500955 | BC44: 0.2919646208 | BD44: 0.1701500318 | BE44: 0.02743525183 | CM44: Operating Costs | CN44: =IF('User Interface'!$C$5='User Interface'!$B$116,'Financial Model'!AV$43,'Financial Model'!AV$46) -> -12161.38543
F45: * Years between replacement. If years are 0, then no recurring CapEx is modeled | P45: Operations Cost | S45: Stocastic Multiplier | T45: Likely Multipler | U45: Stochastic MIN | V45: Stochastic MAX | AE45: Spec | AH45: Coll: Scpecifc | AI45: ="( "&TEXT(E$135,"##")&" cents/lb nodule)" -> ( 2 cents/lb nodule) | AJ45: =AJ38+NPV($D$79,AK38:CG38) -> 155.5753517 | AK45: =IFERROR(IRR(AJ38:CG38),-1%) -> 0.1766299629 | AL45: 0.6211589311 | AM45: 0.3788410689 | AO45: =-SUM(AJ32:CG32)/$D$18 -> 95.19230769 | AP45: =-$AJ$19-NPV($D$82,$AK$19:$CG$19)-$AJ32-NPV($D$82,$AK32:$CG32) -> 1500.862537 | AQ45: =-SUM(OFFSET($AJ$19,0,0,1,H$19-1+5))-SUM(OFFSET($AJ32,0,0,1,H$19-1+5)) -> 398.982 | AR45: 2480.082 | AT45: SPC | AU45: =SUM(AJ27:CG27) -> 29940.19555 | AV45: =SUM(AJ$16:CG$18) -> -12161.38543 | AW45: =AU45+AV45 -> 17778.81011 | AX45: =SUM($AJ319:$CG319) -> 11043.46669 | AY45: =SUM($AJ320:$CG320) -> 2480.082 | AZ45: =SUM($AJ321:$CG321) -> 3755.261427 | BA45: =SUM($AJ322:$CG322) -> 500 | BB45: 0.6211589311 | BC45: 0.1394965121 | BD45: 0.2112211899 | BE45: 0.02812336691 | CM45: Net Operating Revenue | CN45: =IF('User Interface'!$C$5='User Interface'!$B$116,'Financial Model'!AW$43,'Financial Model'!AW$46) -> 18798.05081
P46: Integrated | Q46: Normal OPEX (USD/ tonne/ year) | R46: =R48+R50 -> 345.48 | S46: 1 | T46: 1 | U46: =U48 -> 0.8 | V46: =V48 -> 1.2 | AE46: Blend | AH46: Coll: Blended | AI46: ="("&TEXT(E141,"#0.0%")&"/"&TEXT(G141,"#0.0%")&"; "&"Profit - "&TEXT(E142,"#0.0%")&"/"&TEXT(G142,"#0.0%")&"; "&"Specific - "&TEXT(E143,"##")&" cents/lb nodule)" -> (1.0%/1.0%; Profit - 0.0%/10.0%; Specific - 2 cents/lb nodule) | AJ46: =AJ39+NPV($D$79,AK39:CG39) -> 172.8976541 | AK46: =IFERROR(IRR(AJ39:CG39),-1%) -> 0.1802567465 | AL46: 0.6262842611 | AM46: 0.3737157389 | AO46: =-SUM(AJ33:CG33)/$D$18 -> 89.77892995 | AP46: =-$AJ$19-NPV($D$82,$AK$19:$CG$19)-$AJ33-NPV($D$82,$AK33:$CG33) -> 1371.687687 | AQ46: =-SUM(OFFSET($AJ$19,0,0,1,H$19-1+5))-SUM(OFFSET($AJ33,0,0,1,H$19-1+5)) -> 179.9613712 | AR46: 2339.334179 | AT46: BLD | AU46: =SUM(AJ28:CG28) -> 29494.27774 | AV46: =SUM(AJ$16:CG$18) -> -12161.38543 | AW46: =AU46+AV46 -> 17332.89231 | AX46: =SUM($AJ362:$CG362) -> 10855.31765 | AY46: =SUM($AJ363:$CG363) -> 2339.334179 | AZ46: =SUM($AJ364:$CG364) -> 3638.240478 | BA46: =SUM($AJ365:$CG365) -> 500 | BB46: 0.6262842611 | BC46: 0.1349650212 | BD46: 0.2099038299 | BE46: 0.02884688782 | CM46: ISA Take | CN46: =IF('User Interface'!$C$5='User Interface'!$B$116,'Financial Model'!AR$43,'Financial Model'!AR$46) -> 4308.620463
B47: Operational Expenses [OPEX} | P47: Integrated | Q47: Fixed (ratio - during ramp) | R47: =(R48*R49+R50*R51)/(R48+R50) -> 0.5 | S47: 1 | CM47: SS Take | CN47: =IF('User Interface'!$C$5='User Interface'!$B$116,'Financial Model'!AZ$43,'Financial Model'!AZ$46) -> 3579.816045
C48: First Mover OPEX Cost (expected) | D48: Modeled OPEX Cost (expected) | E48: OpEx Possible Minimum (for simulation) | F48: OpEx Possible Maximum (for simulation) | G48: Fraction Fixed (During Ramp) | H48: Fraction Variable (During Ramp) | P48: Collection & Transport | Q48: Normal OPEX (USD/ tonne/ year) | R48: =D50*S48 -> 127.53 | S48: 1 | T48: 1 | U48: =E50 -> 0.8 | V48: =F50 -> 1.2 | CM48: Other Take | CN48: =IF('User Interface'!$C$5='User Interface'!$B$116,'Financial Model'!BA$43,'Financial Model'!BA$46) -> 500
B49: Operation Stage | C49: USD/ tonne/ year | D49: USD/ tonne/ year | E49: % of expected | F49: % of expected | G49: ratio | H49: ratio | P49: Collection & Transport | Q49: Fixed (ratio - during ramp) | R49: =G50*S49 -> 0.5 | S49: 1 | CM49: Collector Take | CN49: =IF('User Interface'!$C$5='User Interface'!$B$116,'Financial Model'!AX$43,'Financial Model'!AX$46) -> 10409.61431
B50: Nodule Collection & Transport Op Cost | C50: ='User Interface'!C39 -> 127.53 | D50: =C50*28%*D27+C50*(1-28%) -> 127.53 | E50: 0.8 | F50: 1.2 | G50: 0.5 | H50: =1-G50 -> 0.5 | P50: Processing | Q50: Normal OPEX (USD/ tonne/ year) | R50: =D51*S50 -> 217.95 | S50: 1 | T50: 1 | U50: =E51 -> 0.8 | V50: =F51 -> 1.2
B51: Nodule Processing Operations Cost | C51: ='User Interface'!C40 -> 217.95 | D51: =C51 -> 217.95 | E51: 0.8 | F51: 1.2 | G51: 0.5 | H51: =1-G51 -> 0.5 | P51: Processing | Q51: Fixed (ratio - during ramp) | R51: =G51*S51 -> 0.5 | S51: 1
B53: Site restoration cost | C53: 50 | D53: million USD
B55: Revenue-related Parameters | AH55: Cash Flows: Independent Processor
B56: Nodule Metal Content and Yield | P56: Nodule Metal Content and Yield | AH56: Expenditure | AI56: Year | AJ56: 1 | AK56: 2 | AL56: 3 | AM56: 4 | AN56: 5 | AO56: 6 | AP56: 7 | AQ56: 8 | AR56: 9 | AS56: 10 | AT56: 11 | AU56: 12 | AV56: 13 | AW56: 14 | AX56: 15 | AY56: 16 | AZ56: 17 | BA56: 18 | BB56: 19 | BC56: 20 | BD56: 21 | BE56: 22 | BF56: 23 | BG56: 24 | BH56: 25 | BI56: 26 | BJ56: 27 | BK56: 28 | BL56: 29 | BM56: 30 | BN56: 31 | BO56: 32 | BP56: 33 | BQ56: 34 | BR56: 35 | BS56: 36 | BT56: 37 | BU56: 38 | BV56: 39 | BW56: 40 | BX56: 41 | BY56: 42 | BZ56: 43 | CA56: 44 | CB56: 45 | CC56: 46 | CD56: 47 | CE56: 48 | CF56: 49 | CG56: 50
C57: Content | E57: Yield | M57: 2000 | Q57: Content | T57: Yield | AH57: Capital & Maintenance Costs | AI57: million USD | AJ57: =AJ399+AJ402 -> -3.45262775 | AK57: -3.45262775 | AL57: -3.45262775 | AM57: -27.17482775 | AN57: -27.17482775 | AO57: -27.17482775 | AP57: -23.7222 | AQ57: -690.5 | AR57: -690.5 | AS57: -690.5 | AT57: 0 | AU57: 0 | AV57: 0 | AW57: 0 | AX57: 0 | AY57: 0 | AZ57: 0 | BA57: 0 | BB57: 0 | BC57: 0 | BD57: 0 | BE57: 0 | BF57: 0 | BG57: 0 | BH57: 0 | BI57: 0 | BJ57: 0 | BK57: 0 | BL57: 0 | BM57: 0 | BN57: 0 | BO57: 0 | BP57: =BP399+BP402 -> 0 | BQ57: 0 | BR57: 0 | BS57: 0 | BT57: 310.725 | BU57: 0 | BV57: 0 | BW57: 0 | BX57: 0 | BY57: 0 | BZ57: 0 | CA57: 0 | CB57: 0 | CC57: 0 | CD57: 0 | CE57: 0 | CF57: 0 | CG57: 0
C58: All values are mass fraction of dry nodule | E58: All values are mass fraction of process metal | M58: 25000 | R58: Uncertainty | S58: Uncertainty | U58: Uncertainty | V58: Uncertainty | W58: Uncertainty | AH58: Operating Costs | AI58: million USD | AJ58: =AJ401 -> 0 | AK58: 0 | AL58: 0 | AM58: 0 | AN58: 0 | AO58: 0 | AP58: 0 | AQ58: 0 | AR58: 0 | AS58: 0 | AT58: -435.9 | AU58: -544.875 | AV58: -653.85 | AW58: -653.85 | AX58: -653.85 | AY58: -653.85 | AZ58: -653.85 | BA58: -653.85 | BB58: -653.85 | BC58: -653.85 | BD58: -653.85 | BE58: -653.85 | BF58: -653.85 | BG58: -653.85 | BH58: -653.85 | BI58: -653.85 | BJ58: -653.85 | BK58: -653.85 | BL58: -653.85 | BM58: -653.85 | BN58: -653.85 | BO58: -653.85 | BP58: =BP401 -> -653.85 | BQ58: -653.85 | BR58: -653.85 | BS58: -653.85 | BT58: 0 | BU58: 0 | BV58: 0 | BW58: 0 | BX58: 0 | BY58: 0 | BZ58: 0 | CA58: 0 | CB58: 0 | CC58: 0 | CD58: 0 | CE58: 0 | CF58: 0 | CG58: 0
B59: Metal | C59: Nominal Value (expected) | D59: Std Deviation | E59: Nominal Value (expected) | F59: Min | G59: Max | M59: 50000 | Q59: Modeled Value | R59: Multiplier | S59: Std Deviation | T59: Modeled Value | U59: Expected Value | V59: Min | W59: Max | X59: Net Recovery | AH59: Financing Costs | AI59: million USD | AJ59: =IF(UPPER(TRIM($D$81))="YES",AJ403,0) -> 0 | AK59: 0 | AL59: 0 | AM59: 0 | AN59: 0 | AO59: 0 | AP59: 0 | AQ59: 0 | AR59: 0 | AS59: 0 | AT59: 0 | AU59: 0 | AV59: 0 | AW59: 0 | AX59: 0 | AY59: 0 | AZ59: 0 | BA59: 0 | BB59: 0 | BC59: 0 | BD59: 0 | BE59: 0 | BF59: 0 | BG59: 0 | BH59: 0 | BI59: 0 | BJ59: 0 | BK59: 0 | BL59: 0 | BM59: 0 | BN59: 0 | BO59: 0 | BP59: =IF(UPPER(TRIM($D$81))="YES",BP403,0) -> 0 | BQ59: 0 | BR59: 0 | BS59: 0 | BT59: 0 | BU59: 0 | BV59: 0 | BW59: 0 | BX59: 0 | BY59: 0 | BZ59: 0 | CA59: 0 | CB59: 0 | CC59: 0 | CD59: 0 | CE59: 0 | CF59: 0 | CG59: 0
B60: Manganese | C60: ='User Interface'!C51 -> 0.284 | D60: 0.038 | E60: ='User Interface'!D51 -> 0.9 | F60: 0.87 | G60: 0.93 | M60: 7000 | P60: Manganese | Q60: =C60*R60 -> 0.284 | R60: 1 | S60: =D60/C60 -> 0.1338028169 | T60: =E60+U60 -> 0.9 | U60: 0 | V60: =F60-E60 -> -0.03 | W60: =G60-E60 -> 0.03 | X60: =Q60*T60 -> 0.2556 | AH60: Nodules Cost (Ad Valorem) | AI60: million USD | AJ60: =AJ418 -> 0 | AK60: 0 | AL60: 0 | AM60: 0 | AN60: 0 | AO60: 0 | AP60: 0 | AQ60: 0 | AR60: 0 | AS60: 0 | AT60: -389.4455122 | AU60: -787.3940141 | AV60: -1190.771941 | AW60: -1196.890803 | AX60: -1206.487543 | AY60: -1214.56002 | AZ60: -1220.144805 | BA60: -1224.257557 | BB60: -1231.305758 | BC60: -1235.806609 | BD60: -1239.829414 | BE60: -1242.649254 | BF60: -1244.899638 | BG60: -1248.985639 | BH60: -1252.208884 | BI60: -1252.170901 | BJ60: -1251.962838 | BK60: -1253.835667 | BL60: -1256.139169 | BM60: -1257.94434 | BN60: -1258.024245 | BO60: -1257.379589 | BP60: =BP418 -> -1259.185318 | BQ60: -1261.545199 | BR60: -1262.926118 | BS60: -1262.685472 | BT60: 0 | BU60: 0 | BV60: 0 | BW60: 0 | BX60: 0 | BY60: 0 | BZ60: 0 | CA60: 0 | CB60: 0 | CC60: 0 | CD60: 0 | CE60: 0 | CF60: 0 | CG60: 0
B61: Nickel | C61: ='User Interface'!C52 -> 0.013 | D61: 0.002 | E61: ='User Interface'!D52 -> 0.95 | F61: 0.92 | G61: 0.98 | P61: Nickel | Q61: 0.013 | R61: 1 | S61: =D61/C61 -> 0.1538461538 | T61: =E61+U61 -> 0.95 | U61: 0 | V61: =F61-E61 -> -0.03 | W61: =G61-E61 -> 0.03 | X61: =Q61*T61 -> 0.01235 | AH61: Nodules Cost (Before Tax) | AI61: million USD | AJ61: =AJ442 -> 0 | AK61: 0 | AL61: 0 | AM61: 0 | AN61: 0 | AO61: 0 | AP61: 0 | AQ61: 0 | AR61: 0 | AS61: 0 | AT61: -382.2335583 | AU61: -772.8126434 | AV61: -1168.720609 | AW61: -1174.726159 | AX61: -1184.145181 | AY61: -1192.068168 | AZ61: -1197.549531 | BA61: -1201.586121 | BB61: -1208.5038 | BC61: -1212.921301 | BD61: -1216.86961 | BE61: -1219.637231 | BF61: -1221.845941 | BG61: -1225.856275 | BH61: -1229.019831 | BI61: -1228.982551 | BJ61: -1228.778341 | BK61: -1230.616488 | BL61: -1232.877332 | BM61: -1234.649074 | BN61: -1234.7275 | BO61: -1234.094782 | BP61: =BP442 -> -1235.867072 | BQ61: -1238.183251 | BR61: -1239.538598 | BS61: -1239.302408 | BT61: 0 | BU61: 0 | BV61: 0 | BW61: 0 | BX61: 0 | BY61: 0 | BZ61: 0 | CA61: 0 | CB61: 0 | CC61: 0 | CD61: 0 | CE61: 0 | CF61: 0 | CG61: 0
B62: Cobalt | C62: ='User Interface'!C53 -> 0.002 | D62: 0.0005 | E62: ='User Interface'!D53 -> 0.85 | F62: 0.8 | G62: 0.9 | P62: Cobalt | Q62: 0.0021 | R62: 1 | S62: =D62/C62 -> 0.25 | T62: =E62+U62 -> 0.85 | U62: 0 | V62: =F62-E62 -> -0.05 | W62: =G62-E62 -> 0.05 | X62: =Q62*T62 -> 0.001785 | AH62: Nodules Cost (Specific) | AI62: million USD | AJ62: =AJ466 -> 0 | AK62: 0 | AL62: 0 | AM62: 0 | AN62: 0 | AO62: 0 | AP62: 0 | AQ62: 0 | AR62: 0 | AS62: 0 | AT62: -376.6242608 | AU62: -761.4715774 | AV62: -1151.569573 | AW62: -1157.486991 | AX62: -1166.767789 | AY62: -1174.574505 | AZ62: -1179.975429 | BA62: -1183.952781 | BB62: -1190.768943 | BC62: -1195.121617 | BD62: -1199.011985 | BE62: -1201.738991 | BF62: -1203.915288 | BG62: -1207.86677 | BH62: -1210.9839 | BI62: -1210.947168 | BJ62: -1210.745954 | BK62: -1212.557127 | BL62: -1214.784793 | BM62: -1216.530534 | BN62: -1216.607809 | BO62: -1215.984376 | BP62: =BP466 -> -1217.730658 | BQ62: -1220.012847 | BR62: -1221.348304 | BS62: -1221.11558 | BT62: 0 | BU62: 0 | BV62: 0 | BW62: 0 | BX62: 0 | BY62: 0 | BZ62: 0 | CA62: 0 | CB62: 0 | CC62: 0 | CD62: 0 | CE62: 0 | CF62: 0 | CG62: 0
B63: Copper | C63: ='User Interface'!C54 -> 0.011 | D63: 0.0024 | E63: ='User Interface'!D54 -> 0.9 | F63: 0.85 | G63: 0.95 | P63: Copper | Q63: 0.010714 | R63: 1 | S63: =D63/C63 -> 0.2181818182 | T63: =E63+U63 -> 0.9 | U63: 0 | V63: =F63-E63 -> -0.05 | W63: =G63-E63 -> 0.05 | X63: =Q63*T63 -> 0.0096426 | AH63: Nodules Cost (Blended) | AI63: million USD | AJ63: =AJ490 -> 0 | AK63: 0 | AL63: 0 | AM63: 0 | AN63: 0 | AO63: 0 | AP63: 0 | AQ63: 0 | AR63: 0 | AS63: 0 | AT63: -371.0149633 | AU63: -750.1305113 | AV63: -1134.418537 | AW63: -1140.247823 | AX63: -1149.390396 | AY63: -1157.080842 | AZ63: -1162.401327 | BA63: -1166.319442 | BB63: -1173.034086 | BC63: -1177.321934 | BD63: -1181.154359 | BE63: -1183.84075 | BF63: -1185.984634 | BG63: -1189.877265 | BH63: -1192.94797 | BI63: -1192.911784 | BJ63: -1192.713568 | BK63: -1194.497765 | BL63: -1196.692253 | BM63: -1198.411994 | BN63: -1198.488118 | BO63: -1197.873971 | BP63: =BP490 -> -1199.594244 | BQ63: -1201.842443 | BR63: -1203.15801 | BS63: -1202.928752 | BT63: 0 | BU63: 0 | BV63: 0 | BW63: 0 | BX63: 0 | BY63: 0 | BZ63: 0 | CA63: 0 | CB63: 0 | CC63: 0 | CD63: 0 | CE63: 0 | CF63: 0 | CG63: 0
B65: Use Override Prices | C65: ='User Interface'!C57 -> 0 | D65: (0 = No, use default modeled prices; 1 = Yes, model prices with user provided long-term price; 2 = Yes, use fixed overrides from section below) | AH65: Taxes (Ad Valorem) | AI65: million USD | AJ65: =AJ425 -> 0 | AK65: 0 | AL65: 0 | AM65: 0 | AN65: 0 | AO65: 0 | AP65: 0 | AQ65: 0 | AR65: 0 | AS65: 0 | AT65: 0 | AU65: 0 | AV65: 0 | AW65: 0 | AX65: -38.00913109 | AY65: -172.6657359 | AZ65: -174.2113195 | BA65: -175.3495193 | BB65: -177.3001018 | BC65: -178.5457075 | BD65: -179.6590147 | BE65: -180.4394026 | BF65: -181.062194 | BG65: -182.1929905 | BH65: -183.0850203 | BI65: -183.0745086 | BJ65: -183.0169274 | BK65: -183.5352309 | BL65: -184.1727226 | BM65: -184.6723018 | BN65: -184.6944155 | BO65: -184.5160077 | BP65: =BP425 -> -185.0157414 | BQ65: -185.668836 | BR65: -186.0510039 | BS65: -185.9844054 | BT65: -77.68125 | BU65: 0 | BV65: 0 | BW65: 0 | BX65: 0 | BY65: 0 | BZ65: 0 | CA65: 0 | CB65: 0 | CC65: 0 | CD65: 0 | CE65: 0 | CF65: 0 | CG65: 0
AH66: Taxes (Before Tax) | AI66: million USD | AJ66: =AJ449 -> 0 | AK66: 0 | AL66: 0 | AM66: 0 | AN66: 0 | AO66: 0 | AP66: 0 | AQ66: 0 | AR66: 0 | AS66: 0 | AT66: 0 | AU66: 0 | AV66: 0 | AW66: 0 | AX66: -60.0970469 | AY66: -178.288699 | AZ66: -179.8601381 | BA66: -181.0173784 | BB66: -183.0005914 | BC66: -184.2670344 | BD66: -185.3989657 | BE66: -186.1924084 | BF66: -186.8256182 | BG66: -187.9753314 | BH66: -188.8822837 | BI66: -188.8715961 | BJ66: -188.8130516 | BK66: -189.3400257 | BL66: -189.9881817 | BM66: -190.4961182 | BN66: -190.5186018 | BO66: -190.3372095 | BP66: =BP449 -> -190.845303 | BQ66: -191.5093231 | BR66: -191.8978841 | BS66: -191.8301715 | BT66: -77.68125 | BU66: 0 | BV66: 0 | BW66: 0 | BX66: 0 | BY66: 0 | BZ66: 0 | CA66: 0 | CB66: 0 | CC66: 0 | CD66: 0 | CE66: 0 | CF66: 0 | CG66: 0
B67: Price Overrides | D67: Modeled | E67: Fixed | AH67: Taxes (Specific) | AI67: million USD | AJ67: =AJ473 -> 0 | AK67: 0 | AL67: 0 | AM67: 0 | AN67: 0 | AO67: 0 | AP67: 0 | AQ67: 0 | AR67: 0 | AS67: 0 | AT67: 0 | AU67: 0 | AV67: 0 | AW67: 0 | AX67: -77.27653697 | AY67: -182.6621147 | AZ67: -184.2536636 | BA67: -185.4257132 | BB67: -187.4343056 | BC67: -188.7169553 | BD67: -189.863372 | BE67: -190.6669685 | BF67: -191.3082815 | BG67: -192.4727077 | BH67: -193.3912663 | BI67: -193.3804419 | BJ67: -193.3211482 | BK67: -193.854866 | BL67: -194.5113166 | BM67: -195.0257532 | BN67: -195.0485245 | BO67: -194.8648109 | BP67: =BP473 -> -195.3794065 | BQ67: -196.0519241 | BR67: -196.4454576 | BS67: -196.3768784 | BT67: -77.68125 | BU67: 0 | BV67: 0 | BW67: 0 | BX67: 0 | BY67: 0 | BZ67: 0 | CA67: 0 | CB67: 0 | CC67: 0 | CD67: 0 | CE67: 0 | CF67: 0 | CG67: 0
D68: Long-term Value | E68: Price Override | P68: Index Used to Randomly Choose Among Price Series | AH68: Taxes (Blended) | AI68: million USD | AJ68: =AJ497 -> 0 | AK68: 0 | AL68: 0 | AM68: 0 | AN68: 0 | AO68: 0 | AP68: 0 | AQ68: 0 | AR68: 0 | AS68: 0 | AT68: 0 | AU68: 0 | AV68: 0 | AW68: 0 | AX68: -94.45602704 | AY68: -187.0355304 | AZ68: -188.6471891 | BA68: -189.834048 | BB68: -191.8680197 | BC68: -193.1668762 | BD68: -194.3277784 | BE68: -195.1415286 | BF68: -195.7909448 | BG68: -196.970084 | BH68: -197.9002489 | BI68: -197.8892878 | BJ68: -197.8292449 | BK68: -198.3697064 | BL68: -199.0344515 | BM68: -199.5553881 | BN68: -199.5784472 | BO68: -199.3924123 | BP68: =BP497 -> -199.9135101 | BQ68: -200.5945251 | BR68: -200.9930311 | BS68: -200.9235854 | BT68: -77.68125 | BU68: 0 | BV68: 0 | BW68: 0 | BX68: 0 | BY68: 0 | BZ68: 0 | CA68: 0 | CB68: 0 | CC68: 0 | CD68: 0 | CE68: 0 | CF68: 0 | CG68: 0
D69: $/tonne | E69: $/tonne | Q69: Index | R69: Min Index | S69: Max Index
B70: Manganese | D70: ='User Interface'!C62 -> 1640 | E70: ='User Interface'!D62 -> 1640 | P70: Manganese | Q70: 0 | R70: 0 | S70: 1000 | AH70: Revenues | AI70: million USD | AJ70: =AJ400 -> 0 | AK70: 0 | AL70: 0 | AM70: 0 | AN70: 0 | AO70: 0 | AP70: 0 | AQ70: 0 | AR70: 0 | AS70: 0 | AT70: 820.5600915 | AU70: 1659.035947 | AV70: 2508.95158 | AW70: 2521.843997 | AX70: 2542.064289 | AY70: 2559.072964 | AZ70: 2570.840083 | BA70: 2579.505634 | BB70: 2594.356165 | BC70: 2603.839438 | BD70: 2612.315473 | BE70: 2618.256865 | BF70: 2622.998414 | BG70: 2631.607601 | BH70: 2638.398965 | BI70: 2638.318935 | BJ70: 2637.880547 | BK70: 2641.826591 | BL70: 2646.680059 | BM70: 2650.483547 | BN70: 2650.651907 | BO70: 2649.29362 | BP70: =BP400 -> 2653.098284 | BQ70: 2658.070543 | BR70: 2660.980134 | BS70: 2660.473094 | BT70: 0 | BU70: 0 | BV70: 0 | BW70: 0 | BX70: 0 | BY70: 0 | BZ70: 0 | CA70: 0 | CB70: 0 | CC70: 0 | CD70: 0 | CE70: 0 | CF70: 0 | CG70: 0
B71: Nickel | D71: ='User Interface'!C63 -> 22962 | E71: ='User Interface'!D63 -> 22962 | P71: Nickel | Q71: =$Q$70 -> 0 | AH71: Net Cash Flow (Ad Valorem) | AI71: million USD | AJ71: =SUM(AJ$57:AJ$59)+AJ60+AJ65+AJ$70 -> -3.45262775 | AK71: =SUM(AK$57:AK$59)+AK60+AK65+AK$70 -> -3.45262775 | AL71: -3.45262775 | AM71: -27.17482775 | AN71: -27.17482775 | AO71: -27.17482775 | AP71: -23.7222 | AQ71: -690.5 | AR71: -690.5 | AS71: -690.5 | AT71: -4.785420661 | AU71: 326.7669333 | AV71: 664.3296388 | AW71: 671.103194 | AX71: 643.7176144 | AY71: 517.9972078 | AZ71: 522.6339586 | BA71: 526.048558 | BB71: 531.9003054 | BC71: 535.6371225 | BD71: 538.9770442 | BE71: 541.3182079 | BF71: 543.1865819 | BG71: 546.5789715 | BH71: 549.255061 | BI71: 549.2235258 | BJ71: 549.0507821 | BK71: 550.6056928 | BL71: 552.5181678 | BM71: 554.0169055 | BN71: 554.0832465 | BO71: 553.5480231 | BP71: 555.0472241 | BQ71: 557.0065081 | BR71: 558.1530118 | BS71: 557.9532162 | BT71: 233.04375 | BU71: 0 | BV71: 0 | BW71: 0 | BX71: 0 | BY71: 0 | BZ71: 0 | CA71: 0 | CB71: 0 | CC71: 0 | CD71: 0 | CE71: 0 | CF71: 0 | CG71: 0
B72: Cobalt | D72: ='User Interface'!C64 -> 55535 | E72: ='User Interface'!D64 -> 55535 | P72: Cobalt | Q72: =$Q$70 -> 0 | AH72: Net Cash Flow (Before Tax) | AI72: million USD | AJ72: =SUM(AJ$57:AJ$59)+AJ61+AJ66+AJ$70 -> -3.45262775 | AK72: -3.45262775 | AL72: -3.45262775 | AM72: -27.17482775 | AN72: -27.17482775 | AO72: -27.17482775 | AP72: -23.7222 | AQ72: -690.5 | AR72: -690.5 | AS72: -690.5 | AT72: 2.426533269 | AU72: 341.3483039 | AV72: 686.380971 | AW72: 693.2678385 | AX72: 643.9720605 | AY72: 534.866097 | AZ72: 539.5804142 | BA72: 543.0521351 | BB72: 549.0017743 | BC72: 552.8011032 | BD72: 556.1968971 | BE72: 558.5772253 | BF72: 560.4768547 | BG72: 563.9259943 | BH72: 566.6468511 | BI72: 566.6147883 | BJ72: 566.4391548 | BK72: 568.020077 | BL72: 569.9645452 | BM72: 571.4883546 | BN72: 571.5558055 | BO72: 571.0116285 | BP72: 572.5359091 | BQ72: 574.5279692 | BR72: 575.6936524 | BS72: 575.4905144 | BT72: 233.04375 | BU72: 0 | BV72: 0 | BW72: 0 | BX72: 0 | BY72: 0 | BZ72: 0 | CA72: 0 | CB72: 0 | CC72: 0 | CD72: 0 | CE72: 0 | CF72: 0 | CG72: 0
B73: Copper | D73: ='User Interface'!C65 -> 6965 | E73: ='User Interface'!D65 -> 6965 | P73: Copper | Q73: =$Q$70 -> 0 | AH73: Net Cash Flow (Specific) | AI73: million USD | AJ73: =SUM(AJ$57:AJ$59)+AJ62+AJ67+AJ$70 -> -3.45262775 | AK73: -3.45262775 | AL73: -3.45262775 | AM73: -27.17482775 | AN73: -27.17482775 | AO73: -27.17482775 | AP73: -23.7222 | AQ73: -690.5 | AR73: -690.5 | AS73: -690.5 | AT73: 8.035830769 | AU73: 352.6893699 | AV73: 703.5320072 | AW73: 710.5070065 | AX73: 644.169963 | AY73: 547.9863441 | AZ73: 552.7609908 | BA73: 556.2771396 | BB73: 562.3029167 | BC73: 566.1508659 | BD73: 569.5901161 | BE73: 572.0009055 | BF73: 573.9248446 | BG73: 577.4181231 | BH73: 580.1737989 | BI73: 580.1413258 | BJ73: 579.9634447 | BK73: 581.5645981 | BL73: 583.5339498 | BM73: 585.0772595 | BN73: 585.1455735 | BO73: 584.5944327 | BP73: 586.1382196 | BQ73: 588.1557723 | BR73: 589.3363728 | BS73: 589.1306353 | BT73: 233.04375 | BU73: 0 | BV73: 0 | BW73: 0 | BX73: 0 | BY73: 0 | BZ73: 0 | CA73: 0 | CB73: 0 | CC73: 0 | CD73: 0 | CE73: 0 | CF73: 0 | CG73: 0
AH74: Net Cash Flow (Blended) | AI74: million USD | AJ74: =SUM(AJ$57:AJ$59)+AJ63+AJ68+AJ$70 -> -3.45262775 | AK74: -3.45262775 | AL74: -3.45262775 | AM74: -27.17482775 | AN74: -27.17482775 | AO74: -27.17482775 | AP74: -23.7222 | AQ74: -690.5 | AR74: -690.5 | AS74: -690.5 | AT74: 13.64512827 | AU74: 364.030436 | AV74: 720.6830434 | AW74: 727.7461744 | AX74: 644.3678655 | AY74: 561.1065912 | AZ74: 565.9415674 | BA74: 569.5021441 | BB74: 575.6040592 | BC74: 579.5006287 | BD74: 582.9833351 | BE74: 585.4245858 | BF74: 587.3728345 | BG74: 590.9102519 | BH74: 593.7007467 | BI74: 593.6678633 | BJ74: 593.4877346 | BK74: 595.1091192 | BL74: 597.1033544 | BM74: 598.6661644 | BN74: 598.7353416 | BO74: 598.1772369 | BP74: 599.7405302 | BQ74: 601.7835753 | BR74: 602.9790932 | BS74: 602.7707561 | BT74: 233.04375 | BU74: 0 | BV74: 0 | BW74: 0 | BX74: 0 | BY74: 0 | BZ74: 0 | CA74: 0 | CB74: 0 | CC74: 0 | CD74: 0 | CE74: 0 | CF74: 0 | CG74: 0
AH76: Contractor Cash Flow: Independent Processor | AJ76: NPV | AK76: IRR | AU76: Processor Cumulative Undiscounted Revenue | AV76: Cumulative Undisc. Costs (excl tax & nodules) | AW76: Cumulative Undisc. Taxes | AX76: Cumulative Undisc. Cost of Nodules | AY76: Cumulative Undisc. Net Cash Flows
AH77: Proc: Ad Valorem | AI77: ="("&TEXT(E$126,"##.0%")&"/"&TEXT(E$128,"##.0%")&")" -> (6.0%/6.0%) | AJ77: =AJ71+NPV($D$79,AK71:CG71) -> 124.9167045 | AK77: =IFERROR(IRR(AJ71:CG71),-1%) -> 0.1694079386 | AU77: =SUM(AJ$70:CG$70) -> 65231.40477 | AV77: =SUM(AJ$57:CG$59) -> -18549.55457 | AW77: =SUM(AJ65:CG65) -> -3930.603489 | AX77: =SUM(AJ60:CG60) -> -30959.43625 | AY77: =SUM(AU77:AX77) -> 11791.81047
B78: OTHER PROJECT FINANCIAL CHARACTERISTICS | AH78: Proc: Before Tax Profit | AI78: ="("&TEXT(E$131,"#0.0%")&"/"&TEXT(E$133,"#0.0%")&")" -> (30.0%/30.0%) | AJ78: =AJ72+NPV($D$79,AK72:CG72) -> 152.9075913 | AK78: =IFERROR(IRR(AJ72:CG72),-1%) -> 0.1735716982 | AU78: =SUM(AJ$70:CG$70) -> 65231.40477 | AV78: =SUM(AJ$57:CG$59) -> -18549.55457 | AW78: =SUM(AJ66:CG66) -> -4073.934212 | AX78: =SUM(AJ61:CG61) -> -30386.11335 | AY78: =SUM(AU78:AX78) -> 12221.80264
B79: Contractor Discount Rate | D79: 0.15 | AH79: Proc: Scpecifc | AI79: ="( "&TEXT(E$135,"##")&" cents/lb nodule)" -> ( 2 cents/lb nodule) | AJ79: =AJ73+NPV($D$79,AK73:CG73) -> 174.6782811 | AK79: =IFERROR(IRR(AJ73:CG73),-1%) -> 0.1767678545 | AU79: 65231.40477 | AV79: -18549.55457 | AW79: -4185.413663 | AX79: -29940.19555 | AY79: 12556.24099
B80: Financing Interest Rate | D80: 0.07 | AH80: ="Proc: "&AH$33 -> Proc: (Blended: Ad Val - 1.0%/1.0%; Profit - 0.0%/10.0%; Specific - 2 cents/lb nodule) | AJ80: =AJ74+NPV($D$79,AK74:CG74) -> 196.4489708 | AK80: =IFERROR(IRR(AJ74:CG74),-1%) -> 0.179928364 | AU80: 65231.40477 | AV80: -18549.55457 | AW80: -4296.893115 | AX80: -29494.27774 | AY80: 12890.67934
B81: Include Finance Cost in IRR & NPV Calcs? | D81: No | E81: (always included in tax calculations)
B82: Societal Discount Rate | D82: 0.0227 | E82: to assess NPV to common heritage
AH83: Project Schedule
B84: Accounting Parameters for Depreciation | D84: =IF(UPPER(E114)="YES","(Depreciation costs irrelevant with unlimited carryforward)","") -> (Depreciation costs irrelevant with unlimited carryforward) | AH84: Stage | AI84: Year | AJ84: 1 | AK84: 2 | AL84: 3 | AM84: 4 | AN84: 5 | AO84: 6 | AP84: 7 | AQ84: 8 | AR84: 9 | AS84: 10 | AT84: 11 | AU84: 12 | AV84: 13 | AW84: 14 | AX84: 15 | AY84: 16 | AZ84: 17 | BA84: 18 | BB84: 19 | BC84: 20 | BD84: 21 | BE84: 22 | BF84: 23 | BG84: 24 | BH84: 25 | BI84: 26 | BJ84: 27 | BK84: 28 | BL84: 29 | BM84: 30 | BN84: 31 | BO84: 32 | BP84: 33 | BQ84: 34 | BR84: 35 | BS84: 36 | BT84: 37 | BU84: 38 | BV84: 39 | BW84: 40 | BX84: 41 | BY84: 42 | BZ84: 43 | CA84: 44 | CB84: 45 | CC84: 46 | CD84: 47 | CE84: 48 | CF84: 49 | CG84: 50
E85: Depreciation Method | AH85: Pre Feasibility | AJ85: =IF(AJ$84<$H14,0,IF(AJ$84>=($H14+$Q14),0,1)) -> 1 | AK85: 1 | AL85: 1 | AM85: 1 | AN85: 1 | AO85: 1 | AP85: 0 | AQ85: 0 | AR85: 0 | AS85: 0 | AT85: 0 | AU85: 0 | AV85: 0 | AW85: 0 | AX85: 0 | AY85: 0 | AZ85: 0 | BA85: 0 | BB85: 0 | BC85: 0 | BD85: 0 | BE85: 0 | BF85: 0 | BG85: 0 | BH85: 0 | BI85: 0 | BJ85: 0 | BK85: 0 | BL85: 0 | BM85: 0 | BN85: 0 | BO85: 0 | BP85: =IF(BP$84<$H14,0,IF(BP$84>=($H14+$Q14),0,1)) -> 0 | BQ85: 0 | BR85: 0 | BS85: 0 | BT85: 0 | BU85: 0 | BV85: 0 | BW85: 0 | BX85: 0 | BY85: 0 | BZ85: 0 | CA85: 0 | CB85: 0 | CC85: 0 | CD85: 0 | CE85: 0 | CF85: 0 | CG85: 0
A86: XXX | B86: Asset | E86: SL, DB,DDB, SYD‡ | F86: Accounting Life | G86: Start Acquisition | H86: Spread Years | I86: Service Yr | J86: Salvage | AH86: Feasibility | AJ86: =IF(AJ$84<$H15,0,IF(AJ$84>=($H15+$Q15),0,1)) -> 0 | AK86: 0 | AL86: 0 | AM86: 1 | AN86: 1 | AO86: 1 | AP86: 1 | AQ86: 0 | AR86: 0 | AS86: 0 | AT86: 0 | AU86: 0 | AV86: 0 | AW86: 0 | AX86: 0 | AY86: 0 | AZ86: 0 | BA86: 0 | BB86: 0 | BC86: 0 | BD86: 0 | BE86: 0 | BF86: 0 | BG86: 0 | BH86: 0 | BI86: 0 | BJ86: 0 | BK86: 0 | BL86: 0 | BM86: 0 | BN86: 0 | BO86: 0 | BP86: =IF(BP$84<$H15,0,IF(BP$84>=($H15+$Q15),0,1)) -> 0 | BQ86: 0 | BR86: 0 | BS86: 0 | BT86: 0 | BU86: 0 | BV86: 0 | BW86: 0 | BX86: 0 | BY86: 0 | BZ86: 0 | CA86: 0 | CB86: 0 | CC86: 0 | CD86: 0 | CE86: 0 | CF86: 0 | CG86: 0
B87: =B31 -> Pre-Feasibility Phase | E87: DB | F87: 8 | G87: =H14 -> 1 | H87: =IF(UPPER(TRIM(J31))="YES",G31,0) -> 6 | I87: =H19 -> 11 | J87: =L31 -> 0 | AH87: Design and Build | AJ87: =IF(AJ$84<$H17,0,IF(AJ$84>=($H17+$Q17),0,1)) -> 0 | AK87: 0 | AL87: 0 | AM87: 0 | AN87: 0 | AO87: 0 | AP87: 0 | AQ87: 1 | AR87: 1 | AS87: 1 | AT87: 0 | AU87: 0 | AV87: 0 | AW87: 0 | AX87: 0 | AY87: 0 | AZ87: 0 | BA87: 0 | BB87: 0 | BC87: 0 | BD87: 0 | BE87: 0 | BF87: 0 | BG87: 0 | BH87: 0 | BI87: 0 | BJ87: 0 | BK87: 0 | BL87: 0 | BM87: 0 | BN87: 0 | BO87: 0 | BP87: =IF(BP$84<$H17,0,IF(BP$84>=($H17+$Q17),0,1)) -> 0 | BQ87: 0 | BR87: 0 | BS87: 0 | BT87: 0 | BU87: 0 | BV87: 0 | BW87: 0 | BX87: 0 | BY87: 0 | BZ87: 0 | CA87: 0 | CB87: 0 | CC87: 0 | CD87: 0 | CE87: 0 | CF87: 0 | CG87: 0
B88: =B32 -> Feasibility Phase | E88: DB | F88: 8 | G88: =H15 -> 4 | H88: =IF(UPPER(TRIM(J32))="YES",G32,0) -> 4 | I88: =H19 -> 11 | J88: =L32 -> 0 | AH88: Ramp Up | AJ88: =IF(AJ$84<$H19,0,IF(AJ$84>=($H19+$Q19),0,1)) -> 0 | AK88: 0 | AL88: 0 | AM88: 0 | AN88: 0 | AO88: 0 | AP88: 0 | AQ88: 0 | AR88: 0 | AS88: 0 | AT88: 1 | AU88: 1 | AV88: 0 | AW88: 0 | AX88: 0 | AY88: 0 | AZ88: 0 | BA88: 0 | BB88: 0 | BC88: 0 | BD88: 0 | BE88: 0 | BF88: 0 | BG88: 0 | BH88: 0 | BI88: 0 | BJ88: 0 | BK88: 0 | BL88: 0 | BM88: 0 | BN88: 0 | BO88: 0 | BP88: =IF(BP$84<$H19,0,IF(BP$84>=($H19+$Q19),0,1)) -> 0 | BQ88: 0 | BR88: 0 | BS88: 0 | BT88: 0 | BU88: 0 | BV88: 0 | BW88: 0 | BX88: 0 | BY88: 0 | BZ88: 0 | CA88: 0 | CB88: 0 | CC88: 0 | CD88: 0 | CE88: 0 | CF88: 0 | CG88: 0
B89: =B33 -> Design & Build - Collection System | E89: DB | F89: 8 | G89: =H17 -> 8 | H89: =IF(UPPER(TRIM(J33))="YES",G33,0) -> 3 | I89: =H19 -> 11 | J89: =L33 -> 0.15 | AH89: Full Operation | AJ89: =IF(AJ$84<$H20,0,IF(AJ$84>=($H20+$Q20),0,1)) -> 0 | AK89: 0 | AL89: 0 | AM89: 0 | AN89: 0 | AO89: 0 | AP89: 0 | AQ89: 0 | AR89: 0 | AS89: 0 | AT89: 0 | AU89: 0 | AV89: 1 | AW89: 1 | AX89: 1 | AY89: 1 | AZ89: 1 | BA89: 1 | BB89: 1 | BC89: 1 | BD89: 1 | BE89: 1 | BF89: 1 | BG89: 1 | BH89: 1 | BI89: 1 | BJ89: 1 | BK89: 1 | BL89: 1 | BM89: 1 | BN89: 1 | BO89: 1 | BP89: =IF(BP$84<$H20,0,IF(BP$84>=($H20+$Q20),0,1)) -> 1 | BQ89: 1 | BR89: 1 | BS89: 1 | BT89: 0 | BU89: 0 | BV89: 0 | BW89: 0 | BX89: 0 | BY89: 0 | BZ89: 0 | CA89: 0 | CB89: 0 | CC89: 0 | CD89: 0 | CE89: 0 | CF89: 0 | CG89: 0
B90: =B34 -> Design & Build - Surface Vessels | E90: DB | F90: 8 | G90: =G89 -> 8 | H90: =IF(UPPER(TRIM(J34))="YES",G34,0) -> 3 | I90: =I89 -> 11 | J90: =L34 -> 0.15 | AH90: Shutdown | AJ90: =IF(AJ$84<$H21,0,IF(AJ$84>=($H21+$Q21),0,1)) -> 0 | AK90: 0 | AL90: 0 | AM90: 0 | AN90: 0 | AO90: 0 | AP90: 0 | AQ90: 0 | AR90: 0 | AS90: 0 | AT90: 0 | AU90: 0 | AV90: 0 | AW90: 0 | AX90: 0 | AY90: 0 | AZ90: 0 | BA90: 0 | BB90: 0 | BC90: 0 | BD90: 0 | BE90: 0 | BF90: 0 | BG90: 0 | BH90: 0 | BI90: 0 | BJ90: 0 | BK90: 0 | BL90: 0 | BM90: 0 | BN90: 0 | BO90: 0 | BP90: =IF(BP$84<$H21,0,IF(BP$84>=($H21+$Q21),0,1)) -> 0 | BQ90: 0 | BR90: 0 | BS90: 0 | BT90: 1 | BU90: 0 | BV90: 0 | BW90: 0 | BX90: 0 | BY90: 0 | BZ90: 0 | CA90: 0 | CB90: 0 | CC90: 0 | CD90: 0 | CE90: 0 | CF90: 0 | CG90: 0
B91: =B35 -> Design & Build - Processing plant | E91: DB | F91: 8 | G91: =G90 -> 8 | H91: =IF(UPPER(TRIM(J35))="YES",G35,0) -> 3 | I91: =I90 -> 11 | J91: =L35 -> 0.15
H92: ‡ SL = Straight-line depreciation; DB = declining balance depreciation; DDB = double declining balance depreciation; SYD = sum of years digits depreciation. See: | I92: Excel Financial Functions | AH92: Production Levels
AH93: Nodule Collection | AI93: dry ton nodules / annum | AJ93: =AJ7*1000000 -> 0 | AK93: 0 | AL93: 0 | AM93: 0 | AN93: 0 | AO93: 0 | AP93: 0 | AQ93: 0 | AR93: 0 | AS93: 0 | AT93: 1000000 | AU93: 2000000 | AV93: 3000000 | AW93: 3000000 | AX93: 3000000 | AY93: 3000000 | AZ93: 3000000 | BA93: 3000000 | BB93: 3000000 | BC93: 3000000 | BD93: 3000000 | BE93: 3000000 | BF93: 3000000 | BG93: 3000000 | BH93: 3000000 | BI93: 3000000 | BJ93: 3000000 | BK93: 3000000 | BL93: 3000000 | BM93: 3000000 | BN93: 3000000 | BO93: 3000000 | BP93: =BP7*1000000 -> 3000000 | BQ93: 3000000 | BR93: 3000000 | BS93: 3000000 | BT93: 0 | BU93: 0 | BV93: 0 | BW93: 0 | BX93: 0 | BY93: 0 | BZ93: 0 | CA93: 0 | CB93: 0 | CC93: 0 | CD93: 0 | CE93: 0 | CF93: 0 | CG93: 0
AI94: dry Mton nodules / annum | AJ94: =AJ93/1000000 -> 0 | AK94: =AK93/1000000 -> 0 | AL94: 0 | AM94: 0 | AN94: 0 | AO94: 0 | AP94: 0 | AQ94: 0 | AR94: 0 | AS94: 0 | AT94: 1 | AU94: 2 | AV94: 3 | AW94: 3 | AX94: 3 | AY94: 3 | AZ94: 3 | BA94: 3 | BB94: 3 | BC94: 3 | BD94: 3 | BE94: 3 | BF94: 3 | BG94: 3 | BH94: 3 | BI94: 3 | BJ94: 3 | BK94: 3 | BL94: 3 | BM94: 3 | BN94: 3 | BO94: 3 | BP94: 3 | BQ94: 3 | BR94: 3 | BS94: 3 | BT94: 0 | BU94: 0 | BV94: 0 | BW94: 0 | BX94: 0 | BY94: 0 | BZ94: 0 | CA94: 0 | CB94: 0 | CC94: 0 | CD94: 0 | CE94: 0 | CF94: 0 | CG94: 0
B95: FINANCIAL PAYMENT REGIME | AH95: Production: Manganese | AI95: Mton metal / annum | AJ95: =AJ$94*$X60 -> 0 | AK95: 0 | AL95: 0 | AM95: 0 | AN95: 0 | AO95: 0 | AP95: 0 | AQ95: 0 | AR95: 0 | AS95: 0 | AT95: 0.2556 | AU95: 0.5112 | AV95: 0.7668 | AW95: 0.7668 | AX95: 0.7668 | AY95: 0.7668 | AZ95: 0.7668 | BA95: 0.7668 | BB95: 0.7668 | BC95: 0.7668 | BD95: 0.7668 | BE95: 0.7668 | BF95: 0.7668 | BG95: 0.7668 | BH95: 0.7668 | BI95: 0.7668 | BJ95: 0.7668 | BK95: 0.7668 | BL95: 0.7668 | BM95: 0.7668 | BN95: 0.7668 | BO95: 0.7668 | BP95: =BP$94*$X60 -> 0.7668 | BQ95: 0.7668 | BR95: 0.7668 | BS95: 0.7668 | BT95: 0 | BU95: 0 | BV95: 0 | BW95: 0 | BX95: 0 | BY95: 0 | BZ95: 0 | CA95: 0 | CB95: 0 | CC95: 0 | CD95: 0 | CE95: 0 | CF95: 0 | CG95: 0
B96: Non-royalty Taxes and Fees | AH96: Production: Copper | AI96: Mton metal / annum | AJ96: =AJ$94*$X63 -> 0 | AK96: 0 | AL96: 0 | AM96: 0 | AN96: 0 | AO96: 0 | AP96: 0 | AQ96: 0 | AR96: 0 | AS96: 0 | AT96: 0.0096426 | AU96: 0.0192852 | AV96: 0.0289278 | AW96: 0.0289278 | AX96: 0.0289278 | AY96: 0.0289278 | AZ96: 0.0289278 | BA96: 0.0289278 | BB96: 0.0289278 | BC96: 0.0289278 | BD96: 0.0289278 | BE96: 0.0289278 | BF96: 0.0289278 | BG96: 0.0289278 | BH96: 0.0289278 | BI96: 0.0289278 | BJ96: 0.0289278 | BK96: 0.0289278 | BL96: 0.0289278 | BM96: 0.0289278 | BN96: 0.0289278 | BO96: 0.0289278 | BP96: =BP$94*$X63 -> 0.0289278 | BQ96: 0.0289278 | BR96: 0.0289278 | BS96: 0.0289278 | BT96: 0 | BU96: 0 | BV96: 0 | BW96: 0 | BX96: 0 | BY96: 0 | BZ96: 0 | CA96: 0 | CB96: 0 | CC96: 0 | CD96: 0 | CE96: 0 | CF96: 0 | CG96: 0
B97: EXPLORATION | E97: Amount | AH97: Production: Cobalt | AI97: Mton metal / annum | AJ97: =AJ$94*$X62 -> 0 | AK97: 0 | AL97: 0 | AM97: 0 | AN97: 0 | AO97: 0 | AP97: 0 | AQ97: 0 | AR97: 0 | AS97: 0 | AT97: 0.001785 | AU97: 0.00357 | AV97: 0.005355 | AW97: 0.005355 | AX97: 0.005355 | AY97: 0.005355 | AZ97: 0.005355 | BA97: 0.005355 | BB97: 0.005355 | BC97: 0.005355 | BD97: 0.005355 | BE97: 0.005355 | BF97: 0.005355 | BG97: 0.005355 | BH97: 0.005355 | BI97: 0.005355 | BJ97: 0.005355 | BK97: 0.005355 | BL97: 0.005355 | BM97: 0.005355 | BN97: 0.005355 | BO97: 0.005355 | BP97: =BP$94*$X62 -> 0.005355 | BQ97: 0.005355 | BR97: 0.005355 | BS97: 0.005355 | BT97: 0 | BU97: 0 | BV97: 0 | BW97: 0 | BX97: 0 | BY97: 0 | BZ97: 0 | CA97: 0 | CB97: 0 | CC97: 0 | CD97: 0 | CE97: 0 | CF97: 0 | CG97: 0
B98: Exploration License Application Fee | E98: ='User Interface'!D71/1000000 -> 0.5 | F98: million USD | AH98: Production: Nickel | AI98: Mton metal / annum | AJ98: =AJ$94*$X61 -> 0 | AK98: 0 | AL98: 0 | AM98: 0 | AN98: 0 | AO98: 0 | AP98: 0 | AQ98: 0 | AR98: 0 | AS98: 0 | AT98: 0.01235 | AU98: 0.0247 | AV98: 0.03705 | AW98: 0.03705 | AX98: 0.03705 | AY98: 0.03705 | AZ98: 0.03705 | BA98: 0.03705 | BB98: 0.03705 | BC98: 0.03705 | BD98: 0.03705 | BE98: 0.03705 | BF98: 0.03705 | BG98: 0.03705 | BH98: 0.03705 | BI98: 0.03705 | BJ98: 0.03705 | BK98: 0.03705 | BL98: 0.03705 | BM98: 0.03705 | BN98: 0.03705 | BO98: 0.03705 | BP98: =BP$94*$X61 -> 0.03705 | BQ98: 0.03705 | BR98: 0.03705 | BS98: 0.03705 | BT98: 0 | BU98: 0 | BV98: 0 | BW98: 0 | BX98: 0 | BY98: 0 | BZ98: 0 | CA98: 0 | CB98: 0 | CC98: 0 | CD98: 0 | CE98: 0 | CF98: 0 | CG98: 0
B99: Annual admin fee during Exploration License | E99: ='User Interface'!D72/1000000 -> 0.047 | F99: million USD/annum
AH100: Prices
B101: EXPLOITATION | E101: Amount [million USD] | AH101: Metal Unit Price | AJ101: 1 | AK101: 2 | AL101: 3 | AM101: 4 | AN101: 5 | AO101: 6 | AP101: 7 | AQ101: 8 | AR101: 9 | AS101: 10 | AT101: 11 | AU101: 12 | AV101: 13 | AW101: 14 | AX101: 15 | AY101: 16 | AZ101: 17 | BA101: 18 | BB101: 19 | BC101: 20 | BD101: 21 | BE101: 22 | BF101: 23 | BG101: 24 | BH101: 25 | BI101: 26 | BJ101: 27 | BK101: 28 | BL101: 29 | BM101: 30 | BN101: 31 | BO101: 32 | BP101: 33 | BQ101: 34 | BR101: 35 | BS101: 36 | BT101: 37 | BU101: 38 | BV101: 39 | BW101: 40 | BX101: 41 | BY101: 42 | BZ101: 43 | CA101: 44 | CB101: 45 | CC101: 46 | CD101: 47 | CE101: 48 | CF101: 49 | CG101: 50 | CH101: Average
B102: Exploitation License Application Fee | E102: ='User Interface'!D75/1000000 -> 1 | F102: million USD
B103: Annual admin fee during Exploitation License | E103: ='User Interface'!D76/1000000 -> 0.1 | F103: million USD/annum | AH103: Manganese | AI103: USD/tonne | AJ103: =IF(over_price?=2,$E70,IF(over_price?=0,INDEX('Material prices'!AB$8:AB$1008,$Q70+1),INDEX('Material prices'!IN$8:IN$1008,$Q70+1))) -> 1636 | AK103: =IF(over_price?=2,$E70,IF(over_price?=0,INDEX('Material prices'!AC$8:AC$1008,$Q70+1),INDEX('Material prices'!IO$8:IO$1008,$Q70+1))) -> 1636 | AL103: =IF(over_price?=2,$E70,IF(over_price?=0,INDEX('Material prices'!AD$8:AD$1008,$Q70+1),INDEX('Material prices'!IP$8:IP$1008,$Q70+1))) -> 1641.377706 | AM103: =IF(over_price?=2,$E70,IF(over_price?=0,INDEX('Material prices'!AE$8:AE$1008,$Q70+1),INDEX('Material prices'!IQ$8:IQ$1008,$Q70+1))) -> 1642.556842 | AN103: =IF(over_price?=2,$E70,IF(over_price?=0,INDEX('Material prices'!AF$8:AF$1008,$Q70+1),INDEX('Material prices'!IR$8:IR$1008,$Q70+1))) -> 1638.087117 | AO103: =IF(over_price?=2,$E70,IF(over_price?=0,INDEX('Material prices'!AG$8:AG$1008,$Q70+1),INDEX('Material prices'!IS$8:IS$1008,$Q70+1))) -> 1643.809047 | AP103: =IF(over_price?=2,$E70,IF(over_price?=0,INDEX('Material prices'!AH$8:AH$1008,$Q70+1),INDEX('Material prices'!IT$8:IT$1008,$Q70+1))) -> 1642.400784 | AQ103: =IF(over_price?=2,$E70,IF(over_price?=0,INDEX('Material prices'!AI$8:AI$1008,$Q70+1),INDEX('Material prices'!IU$8:IU$1008,$Q70+1))) -> 1645.031029 | AR103: =IF(over_price?=2,$E70,IF(over_price?=0,INDEX('Material prices'!AJ$8:AJ$1008,$Q70+1),INDEX('Material prices'!IV$8:IV$1008,$Q70+1))) -> 1642.905367 | AS103: =IF(over_price?=2,$E70,IF(over_price?=0,INDEX('Material prices'!AK$8:AK$1008,$Q70+1),INDEX('Material prices'!IW$8:IW$1008,$Q70+1))) -> 1643.674231 | AT103: =IF(over_price?=2,$E70,IF(over_price?=0,INDEX('Material prices'!AL$8:AL$1008,$Q70+1),INDEX('Material prices'!IX$8:IX$1008,$Q70+1))) -> 1644.762693 | AU103: =IF(over_price?=2,$E70,IF(over_price?=0,INDEX('Material prices'!AM$8:AM$1008,$Q70+1),INDEX('Material prices'!IY$8:IY$1008,$Q70+1))) -> 1645.474257 | AV103: =IF(over_price?=2,$E70,IF(over_price?=0,INDEX('Material prices'!AN$8:AN$1008,$Q70+1),INDEX('Material prices'!IZ$8:IZ$1008,$Q70+1))) -> 1647.748738 | AW103: =IF(over_price?=2,$E70,IF(over_price?=0,INDEX('Material prices'!AO$8:AO$1008,$Q70+1),INDEX('Material prices'!JA$8:JA$1008,$Q70+1))) -> 1643.209294 | AX103: =IF(over_price?=2,$E70,IF(over_price?=0,INDEX('Material prices'!AP$8:AP$1008,$Q70+1),INDEX('Material prices'!JB$8:JB$1008,$Q70+1))) -> 1642.979901 | AY103: =IF(over_price?=2,$E70,IF(over_price?=0,INDEX('Material prices'!AQ$8:AQ$1008,$Q70+1),INDEX('Material prices'!JC$8:JC$1008,$Q70+1))) -> 1645.313591 | AZ103: =IF(over_price?=2,$E70,IF(over_price?=0,INDEX('Material prices'!AR$8:AR$1008,$Q70+1),INDEX('Material prices'!JD$8:JD$1008,$Q70+1))) -> 1646.267285 | BA103: =IF(over_price?=2,$E70,IF(over_price?=0,INDEX('Material prices'!AS$8:AS$1008,$Q70+1),INDEX('Material prices'!JE$8:JE$1008,$Q70+1))) -> 1644.822198 | BB103: =IF(over_price?=2,$E70,IF(over_price?=0,INDEX('Material prices'!AT$8:AT$1008,$Q70+1),INDEX('Material prices'!JF$8:JF$1008,$Q70+1))) -> 1647.606751 | BC103: =IF(over_price?=2,$E70,IF(over_price?=0,INDEX('Material prices'!AU$8:AU$1008,$Q70+1),INDEX('Material prices'!JG$8:JG$1008,$Q70+1))) -> 1650.744254 | BD103: =IF(over_price?=2,$E70,IF(over_price?=0,INDEX('Material prices'!AV$8:AV$1008,$Q70+1),INDEX('Material prices'!JH$8:JH$1008,$Q70+1))) -> 1652.460464 | BE103: =IF(over_price?=2,$E70,IF(over_price?=0,INDEX('Material prices'!AW$8:AW$1008,$Q70+1),INDEX('Material prices'!JI$8:JI$1008,$Q70+1))) -> 1649.270137 | BF103: =IF(over_price?=2,$E70,IF(over_price?=0,INDEX('Material prices'!AX$8:AX$1008,$Q70+1),INDEX('Material prices'!JJ$8:JJ$1008,$Q70+1))) -> 1647.656867 | BG103: =IF(over_price?=2,$E70,IF(over_price?=0,INDEX('Material prices'!AY$8:AY$1008,$Q70+1),INDEX('Material prices'!JK$8:JK$1008,$Q70+1))) -> 1648.549155 | BH103: =IF(over_price?=2,$E70,IF(over_price?=0,INDEX('Material prices'!AZ$8:AZ$1008,$Q70+1),INDEX('Material prices'!JL$8:JL$1008,$Q70+1))) -> 1649.769691 | BI103: =IF(over_price?=2,$E70,IF(over_price?=0,INDEX('Material prices'!BA$8:BA$1008,$Q70+1),INDEX('Material prices'!JM$8:JM$1008,$Q70+1))) -> 1646.618722 | BJ103: =IF(over_price?=2,$E70,IF(over_price?=0,INDEX('Material prices'!BB$8:BB$1008,$Q70+1),INDEX('Material prices'!JN$8:JN$1008,$Q70+1))) -> 1641.157936 | BK103: =IF(over_price?=2,$E70,IF(over_price?=0,INDEX('Material prices'!BC$8:BC$1008,$Q70+1),INDEX('Material prices'!JO$8:JO$1008,$Q70+1))) -> 1641.001858 | BL103: =IF(over_price?=2,$E70,IF(over_price?=0,INDEX('Material prices'!BD$8:BD$1008,$Q70+1),INDEX('Material prices'!JP$8:JP$1008,$Q70+1))) -> 1641.035394 | BM103: =IF(over_price?=2,$E70,IF(over_price?=0,INDEX('Material prices'!BE$8:BE$1008,$Q70+1),INDEX('Material prices'!JQ$8:JQ$1008,$Q70+1))) -> 1644.480739 | BN103: =IF(over_price?=2,$E70,IF(over_price?=0,INDEX('Material prices'!BF$8:BF$1008,$Q70+1),INDEX('Material prices'!JR$8:JR$1008,$Q70+1))) -> 1642.028534 | BO103: =IF(over_price?=2,$E70,IF(over_price?=0,INDEX('Material prices'!BG$8:BG$1008,$Q70+1),INDEX('Material prices'!JS$8:JS$1008,$Q70+1))) -> 1636.193157 | BP103: =IF(over_price?=2,$E70,IF(over_price?=0,INDEX('Material prices'!BH$8:BH$1008,$Q70+1),INDEX('Material prices'!JT$8:JT$1008,$Q70+1))) -> 1639.874266 | BQ103: =IF(over_price?=2,$E70,IF(over_price?=0,INDEX('Material prices'!BI$8:BI$1008,$Q70+1),INDEX('Material prices'!JU$8:JU$1008,$Q70+1))) -> 1644.255209 | BR103: =IF(over_price?=2,$E70,IF(over_price?=0,INDEX('Material prices'!BJ$8:BJ$1008,$Q70+1),INDEX('Material prices'!JV$8:JV$1008,$Q70+1))) -> 1647.810536 | BS103: =IF(over_price?=2,$E70,IF(over_price?=0,INDEX('Material prices'!BK$8:BK$1008,$Q70+1),INDEX('Material prices'!JW$8:JW$1008,$Q70+1))) -> 1644.25983 | BT103: =IF(over_price?=2,$E70,IF(over_price?=0,INDEX('Material prices'!BL$8:BL$1008,$Q70+1),INDEX('Material prices'!JX$8:JX$1008,$Q70+1))) -> 1642.154205 | BU103: =IF(over_price?=2,$E70,IF(over_price?=0,INDEX('Material prices'!BM$8:BM$1008,$Q70+1),INDEX('Material prices'!JY$8:JY$1008,$Q70+1))) -> 1640.542035 | BV103: =IF(over_price?=2,$E70,IF(over_price?=0,INDEX('Material prices'!BN$8:BN$1008,$Q70+1),INDEX('Material prices'!JZ$8:JZ$1008,$Q70+1))) -> 1640.874606 | BW103: =IF(over_price?=2,$E70,IF(over_price?=0,INDEX('Material prices'!BO$8:BO$1008,$Q70+1),INDEX('Material prices'!KA$8:KA$1008,$Q70+1))) -> 1644.003415 | BX103: =IF(over_price?=2,$E70,IF(over_price?=0,INDEX('Material prices'!BP$8:BP$1008,$Q70+1),INDEX('Material prices'!KB$8:KB$1008,$Q70+1))) -> 1639.825385 | BY103: =IF(over_price?=2,$E70,IF(over_price?=0,INDEX('Material prices'!BQ$8:BQ$1008,$Q70+1),INDEX('Material prices'!KC$8:KC$1008,$Q70+1))) -> 1640.349634 | BZ103: =IF(over_price?=2,$E70,IF(over_price?=0,INDEX('Material prices'!BR$8:BR$1008,$Q70+1),INDEX('Material prices'!KD$8:KD$1008,$Q70+1))) -> 1639.699244 | CA103: =IF(over_price?=2,$E70,IF(over_price?=0,INDEX('Material prices'!BS$8:BS$1008,$Q70+1),INDEX('Material prices'!KE$8:KE$1008,$Q70+1))) -> 1640.098252 | CB103: =IF(over_price?=2,$E70,IF(over_price?=0,INDEX('Material prices'!BT$8:BT$1008,$Q70+1),INDEX('Material prices'!KF$8:KF$1008,$Q70+1))) -> 1638.558408 | CC103: =IF(over_price?=2,$E70,IF(over_price?=0,INDEX('Material prices'!BU$8:BU$1008,$Q70+1),INDEX('Material prices'!KG$8:KG$1008,$Q70+1))) -> 1638.694161 | CD103: =IF(over_price?=2,$E70,IF(over_price?=0,INDEX('Material prices'!BV$8:BV$1008,$Q70+1),INDEX('Material prices'!KH$8:KH$1008,$Q70+1))) -> 1641.565777 | CE103: =IF(over_price?=2,$E70,IF(over_price?=0,INDEX('Material prices'!BW$8:BW$1008,$Q70+1),INDEX('Material prices'!KI$8:KI$1008,$Q70+1))) -> 1638.529443 | CF103: =IF(over_price?=2,$E70,IF(over_price?=0,INDEX('Material prices'!BX$8:BX$1008,$Q70+1),INDEX('Material prices'!KJ$8:KJ$1008,$Q70+1))) -> 1639.17548 | CG103: =IF(over_price?=2,$E70,IF(over_price?=0,INDEX('Material prices'!BY$8:BY$1008,$Q70+1),INDEX('Material prices'!KK$8:KK$1008,$Q70+1))) -> 1636.526515 | CH103: =SUMPRODUCT(AJ103:CG103,AJ7:CG7)/SUM(AJ7:CG7) -> 1645.214063
B104: Minimum Fixed fee during Exploitation License | E104: 1 | F104: million USD/annum | AH104: Nickel | AI104: USD/tonne | AJ104: =IF(over_price?=2,$E71,IFERROR(IF(over_price?=0,INDEX('Material prices'!CE$8:CE$1008,$Q71+1),INDEX('Material prices'!KQ$8:KQ$1008,$Q71+1)),0)) -> 11831 | AK104: =IF(over_price?=2,$E71,IFERROR(IF(over_price?=0,INDEX('Material prices'!CF$8:CF$1008,$Q71+1),INDEX('Material prices'!KR$8:KR$1008,$Q71+1)),0)) -> 9594 | AL104: =IF(over_price?=2,$E71,IFERROR(IF(over_price?=0,INDEX('Material prices'!CG$8:CG$1008,$Q71+1),INDEX('Material prices'!KS$8:KS$1008,$Q71+1)),0)) -> 10144 | AM104: =IF(over_price?=2,$E71,IFERROR(IF(over_price?=0,INDEX('Material prices'!CH$8:CH$1008,$Q71+1),INDEX('Material prices'!KT$8:KT$1008,$Q71+1)),0)) -> 11790.36026 | AN104: =IF(over_price?=2,$E71,IFERROR(IF(over_price?=0,INDEX('Material prices'!CI$8:CI$1008,$Q71+1),INDEX('Material prices'!KU$8:KU$1008,$Q71+1)),0)) -> 13210.67627 | AO104: =IF(over_price?=2,$E71,IFERROR(IF(over_price?=0,INDEX('Material prices'!CJ$8:CJ$1008,$Q71+1),INDEX('Material prices'!KV$8:KV$1008,$Q71+1)),0)) -> 14455.43841 | AP104: =IF(over_price?=2,$E71,IFERROR(IF(over_price?=0,INDEX('Material prices'!CK$8:CK$1008,$Q71+1),INDEX('Material prices'!KW$8:KW$1008,$Q71+1)),0)) -> 15517.47293 | AQ104: =IF(over_price?=2,$E71,IFERROR(IF(over_price?=0,INDEX('Material prices'!CL$8:CL$1008,$Q71+1),INDEX('Material prices'!KX$8:KX$1008,$Q71+1)),0)) -> 16520.09634 | AR104: =IF(over_price?=2,$E71,IFERROR(IF(over_price?=0,INDEX('Material prices'!CM$8:CM$1008,$Q71+1),INDEX('Material prices'!KY$8:KY$1008,$Q71+1)),0)) -> 17380.50107 | AS104: =IF(over_price?=2,$E71,IFERROR(IF(over_price?=0,INDEX('Material prices'!CN$8:CN$1008,$Q71+1),INDEX('Material prices'!KZ$8:KZ$1008,$Q71+1)),0)) -> 18145.45202 | AT104: =IF(over_price?=2,$E71,IFERROR(IF(over_price?=0,INDEX('Material prices'!CO$8:CO$1008,$Q71+1),INDEX('Material prices'!LA$8:LA$1008,$Q71+1)),0)) -> 18859.8763 | AU104: =IF(over_price?=2,$E71,IFERROR(IF(over_price?=0,INDEX('Material prices'!CP$8:CP$1008,$Q71+1),INDEX('Material prices'!LB$8:LB$1008,$Q71+1)),0)) -> 19534.152 | AV104: =IF(over_price?=2,$E71,IFERROR(IF(over_price?=0,INDEX('Material prices'!CQ$8:CQ$1008,$Q71+1),INDEX('Material prices'!LC$8:LC$1008,$Q71+1)),0)) -> 20044.94851 | AW104: =IF(over_price?=2,$E71,IFERROR(IF(over_price?=0,INDEX('Material prices'!CR$8:CR$1008,$Q71+1),INDEX('Material prices'!LD$8:LD$1008,$Q71+1)),0)) -> 20511.42754 | AX104: =IF(over_price?=2,$E71,IFERROR(IF(over_price?=0,INDEX('Material prices'!CS$8:CS$1008,$Q71+1),INDEX('Material prices'!LE$8:LE$1008,$Q71+1)),0)) -> 21049.30396 | AY104: =IF(over_price?=2,$E71,IFERROR(IF(over_price?=0,INDEX('Material prices'!CT$8:CT$1008,$Q71+1),INDEX('Material prices'!LF$8:LF$1008,$Q71+1)),0)) -> 21481.18258 | AZ104: =IF(over_price?=2,$E71,IFERROR(IF(over_price?=0,INDEX('Material prices'!CU$8:CU$1008,$Q71+1),INDEX('Material prices'!LG$8:LG$1008,$Q71+1)),0)) -> 21783.90235 | BA104: =IF(over_price?=2,$E71,IFERROR(IF(over_price?=0,INDEX('Material prices'!CV$8:CV$1008,$Q71+1),INDEX('Material prices'!LH$8:LH$1008,$Q71+1)),0)) -> 22087.86098 | BB104: =IF(over_price?=2,$E71,IFERROR(IF(over_price?=0,INDEX('Material prices'!CW$8:CW$1008,$Q71+1),INDEX('Material prices'!LI$8:LI$1008,$Q71+1)),0)) -> 22434.3936 | BC104: =IF(over_price?=2,$E71,IFERROR(IF(over_price?=0,INDEX('Material prices'!CX$8:CX$1008,$Q71+1),INDEX('Material prices'!LJ$8:LJ$1008,$Q71+1)),0)) -> 22648.85399 | BD104: =IF(over_price?=2,$E71,IFERROR(IF(over_price?=0,INDEX('Material prices'!CY$8:CY$1008,$Q71+1),INDEX('Material prices'!LK$8:LK$1008,$Q71+1)),0)) -> 22853.1293 | BE104: =IF(over_price?=2,$E71,IFERROR(IF(over_price?=0,INDEX('Material prices'!CZ$8:CZ$1008,$Q71+1),INDEX('Material prices'!LL$8:LL$1008,$Q71+1)),0)) -> 23062.13237 | BF104: =IF(over_price?=2,$E71,IFERROR(IF(over_price?=0,INDEX('Material prices'!DA$8:DA$1008,$Q71+1),INDEX('Material prices'!LM$8:LM$1008,$Q71+1)),0)) -> 23265.13403 | BG104: =IF(over_price?=2,$E71,IFERROR(IF(over_price?=0,INDEX('Material prices'!DB$8:DB$1008,$Q71+1),INDEX('Material prices'!LN$8:LN$1008,$Q71+1)),0)) -> 23465.13563 | BH104: =IF(over_price?=2,$E71,IFERROR(IF(over_price?=0,INDEX('Material prices'!DC$8:DC$1008,$Q71+1),INDEX('Material prices'!LO$8:LO$1008,$Q71+1)),0)) -> 23617.27374 | BI104: =IF(over_price?=2,$E71,IFERROR(IF(over_price?=0,INDEX('Material prices'!DD$8:DD$1008,$Q71+1),INDEX('Material prices'!LP$8:LP$1008,$Q71+1)),0)) -> 23708.4642 | BJ104: =IF(over_price?=2,$E71,IFERROR(IF(over_price?=0,INDEX('Material prices'!DE$8:DE$1008,$Q71+1),INDEX('Material prices'!LQ$8:LQ$1008,$Q71+1)),0)) -> 23831.49094 | BK104: =IF(over_price?=2,$E71,IFERROR(IF(over_price?=0,INDEX('Material prices'!DF$8:DF$1008,$Q71+1),INDEX('Material prices'!LR$8:LR$1008,$Q71+1)),0)) -> 23914.96232 | BL104: =IF(over_price?=2,$E71,IFERROR(IF(over_price?=0,INDEX('Material prices'!DG$8:DG$1008,$Q71+1),INDEX('Material prices'!LS$8:LS$1008,$Q71+1)),0)) -> 24006.89768 | BM104: =IF(over_price?=2,$E71,IFERROR(IF(over_price?=0,INDEX('Material prices'!DH$8:DH$1008,$Q71+1),INDEX('Material prices'!LT$8:LT$1008,$Q71+1)),0)) -> 24017.43094 | BN104: =IF(over_price?=2,$E71,IFERROR(IF(over_price?=0,INDEX('Material prices'!DI$8:DI$1008,$Q71+1),INDEX('Material prices'!LU$8:LU$1008,$Q71+1)),0)) -> 24073.83933 | BO104: =IF(over_price?=2,$E71,IFERROR(IF(over_price?=0,INDEX('Material prices'!DJ$8:DJ$1008,$Q71+1),INDEX('Material prices'!LV$8:LV$1008,$Q71+1)),0)) -> 24149.49473 | BP104: =IF(over_price?=2,$E71,IFERROR(IF(over_price?=0,INDEX('Material prices'!DK$8:DK$1008,$Q71+1),INDEX('Material prices'!LW$8:LW$1008,$Q71+1)),0)) -> 24186.9333 | BQ104: =IF(over_price?=2,$E71,IFERROR(IF(over_price?=0,INDEX('Material prices'!DL$8:DL$1008,$Q71+1),INDEX('Material prices'!LX$8:LX$1008,$Q71+1)),0)) -> 24235.63347 | BR104: =IF(over_price?=2,$E71,IFERROR(IF(over_price?=0,INDEX('Material prices'!DM$8:DM$1008,$Q71+1),INDEX('Material prices'!LY$8:LY$1008,$Q71+1)),0)) -> 24257.23843 | BS104: =IF(over_price?=2,$E71,IFERROR(IF(over_price?=0,INDEX('Material prices'!DN$8:DN$1008,$Q71+1),INDEX('Material prices'!LZ$8:LZ$1008,$Q71+1)),0)) -> 24324.81286 | BT104: =IF(over_price?=2,$E71,IFERROR(IF(over_price?=0,INDEX('Material prices'!DO$8:DO$1008,$Q71+1),INDEX('Material prices'!MA$8:MA$1008,$Q71+1)),0)) -> 24370.19676 | BU104: =IF(over_price?=2,$E71,IFERROR(IF(over_price?=0,INDEX('Material prices'!DP$8:DP$1008,$Q71+1),INDEX('Material prices'!MB$8:MB$1008,$Q71+1)),0)) -> 24397.27004 | BV104: =IF(over_price?=2,$E71,IFERROR(IF(over_price?=0,INDEX('Material prices'!DQ$8:DQ$1008,$Q71+1),INDEX('Material prices'!MC$8:MC$1008,$Q71+1)),0)) -> 24432.83156 | BW104: =IF(over_price?=2,$E71,IFERROR(IF(over_price?=0,INDEX('Material prices'!DR$8:DR$1008,$Q71+1),INDEX('Material prices'!MD$8:MD$1008,$Q71+1)),0)) -> 24448.25255 | BX104: =IF(over_price?=2,$E71,IFERROR(IF(over_price?=0,INDEX('Material prices'!DS$8:DS$1008,$Q71+1),INDEX('Material prices'!ME$8:ME$1008,$Q71+1)),0)) -> 24524.8795 | BY104: =IF(over_price?=2,$E71,IFERROR(IF(over_price?=0,INDEX('Material prices'!DT$8:DT$1008,$Q71+1),INDEX('Material prices'!MF$8:MF$1008,$Q71+1)),0)) -> 24566.92672 | BZ104: =IF(over_price?=2,$E71,IFERROR(IF(over_price?=0,INDEX('Material prices'!DU$8:DU$1008,$Q71+1),INDEX('Material prices'!MG$8:MG$1008,$Q71+1)),0)) -> 24584.22294 | CA104: =IF(over_price?=2,$E71,IFERROR(IF(over_price?=0,INDEX('Material prices'!DV$8:DV$1008,$Q71+1),INDEX('Material prices'!MH$8:MH$1008,$Q71+1)),0)) -> 24651.76625 | CB104: =IF(over_price?=2,$E71,IFERROR(IF(over_price?=0,INDEX('Material prices'!DW$8:DW$1008,$Q71+1),INDEX('Material prices'!MI$8:MI$1008,$Q71+1)),0)) -> 24636.64609 | CC104: =IF(over_price?=2,$E71,IFERROR(IF(over_price?=0,INDEX('Material prices'!DX$8:DX$1008,$Q71+1),INDEX('Material prices'!MJ$8:MJ$1008,$Q71+1)),0)) -> 24617.16319 | CD104: =IF(over_price?=2,$E71,IFERROR(IF(over_price?=0,INDEX('Material prices'!DY$8:DY$1008,$Q71+1),INDEX('Material prices'!MK$8:MK$1008,$Q71+1)),0)) -> 24674.32241 | CE104: =IF(over_price?=2,$E71,IFERROR(IF(over_price?=0,INDEX('Material prices'!DZ$8:DZ$1008,$Q71+1),INDEX('Material prices'!ML$8:ML$1008,$Q71+1)),0)) -> 24680.20573 | CF104: =IF(over_price?=2,$E71,IFERROR(IF(over_price?=0,INDEX('Material prices'!EA$8:EA$1008,$Q71+1),INDEX('Material prices'!MM$8:MM$1008,$Q71+1)),0)) -> 24662.37308 | CG104: =IF(over_price?=2,$E71,IFERROR(IF(over_price?=0,INDEX('Material prices'!EB$8:EB$1008,$Q71+1),INDEX('Material prices'!MN$8:MN$1008,$Q71+1)),0)) -> 24660.87863 | CH104: =SUMPRODUCT(AJ104:CG104,AJ$7:CG$7)/SUM(AJ$7:CG$7) -> 22892.85081
AH105: Cobalt | AI105: USD/tonne | AJ105: =IF(over_price?=2,$E72,IFERROR(IF(over_price?=0,INDEX('Material prices'!EH$8:EH$1008,$Q72+1),INDEX('Material prices'!MT$8:MT$1008,$Q72+1)),0)) -> 29568 | AK105: =IF(over_price?=2,$E72,IFERROR(IF(over_price?=0,INDEX('Material prices'!EI$8:EI$1008,$Q72+1),INDEX('Material prices'!MU$8:MU$1008,$Q72+1)),0)) -> 26180 | AL105: =IF(over_price?=2,$E72,IFERROR(IF(over_price?=0,INDEX('Material prices'!EJ$8:EJ$1008,$Q72+1),INDEX('Material prices'!MV$8:MV$1008,$Q72+1)),0)) -> 58520 | AM105: =IF(over_price?=2,$E72,IFERROR(IF(over_price?=0,INDEX('Material prices'!EK$8:EK$1008,$Q72+1),INDEX('Material prices'!MW$8:MW$1008,$Q72+1)),0)) -> 58191.72196 | AN105: =IF(over_price?=2,$E72,IFERROR(IF(over_price?=0,INDEX('Material prices'!EL$8:EL$1008,$Q72+1),INDEX('Material prices'!MX$8:MX$1008,$Q72+1)),0)) -> 57692.88587 | AO105: =IF(over_price?=2,$E72,IFERROR(IF(over_price?=0,INDEX('Material prices'!EM$8:EM$1008,$Q72+1),INDEX('Material prices'!MY$8:MY$1008,$Q72+1)),0)) -> 57567.61651 | AP105: =IF(over_price?=2,$E72,IFERROR(IF(over_price?=0,INDEX('Material prices'!EN$8:EN$1008,$Q72+1),INDEX('Material prices'!MZ$8:MZ$1008,$Q72+1)),0)) -> 57432.52468 | AQ105: =IF(over_price?=2,$E72,IFERROR(IF(over_price?=0,INDEX('Material prices'!EO$8:EO$1008,$Q72+1),INDEX('Material prices'!NA$8:NA$1008,$Q72+1)),0)) -> 57376.53283 | AR105: =IF(over_price?=2,$E72,IFERROR(IF(over_price?=0,INDEX('Material prices'!EP$8:EP$1008,$Q72+1),INDEX('Material prices'!NB$8:NB$1008,$Q72+1)),0)) -> 57102.69465 | AS105: =IF(over_price?=2,$E72,IFERROR(IF(over_price?=0,INDEX('Material prices'!EQ$8:EQ$1008,$Q72+1),INDEX('Material prices'!NC$8:NC$1008,$Q72+1)),0)) -> 57016.68421 | AT105: =IF(over_price?=2,$E72,IFERROR(IF(over_price?=0,INDEX('Material prices'!ER$8:ER$1008,$Q72+1),INDEX('Material prices'!ND$8:ND$1008,$Q72+1)),0)) -> 56879.2605 | AU105: =IF(over_price?=2,$E72,IFERROR(IF(over_price?=0,INDEX('Material prices'!ES$8:ES$1008,$Q72+1),INDEX('Material prices'!NE$8:NE$1008,$Q72+1)),0)) -> 56731.16313 | AV105: =IF(over_price?=2,$E72,IFERROR(IF(over_price?=0,INDEX('Material prices'!ET$8:ET$1008,$Q72+1),INDEX('Material prices'!NF$8:NF$1008,$Q72+1)),0)) -> 56555.24613 | AW105: =IF(over_price?=2,$E72,IFERROR(IF(over_price?=0,INDEX('Material prices'!EU$8:EU$1008,$Q72+1),INDEX('Material prices'!NG$8:NG$1008,$Q72+1)),0)) -> 56355.09973 | AX105: =IF(over_price?=2,$E72,IFERROR(IF(over_price?=0,INDEX('Material prices'!EV$8:EV$1008,$Q72+1),INDEX('Material prices'!NH$8:NH$1008,$Q72+1)),0)) -> 56227.52189 | AY105: =IF(over_price?=2,$E72,IFERROR(IF(over_price?=0,INDEX('Material prices'!EW$8:EW$1008,$Q72+1),INDEX('Material prices'!NI$8:NI$1008,$Q72+1)),0)) -> 55991.35219 | AZ105: =IF(over_price?=2,$E72,IFERROR(IF(over_price?=0,INDEX('Material prices'!EX$8:EX$1008,$Q72+1),INDEX('Material prices'!NJ$8:NJ$1008,$Q72+1)),0)) -> 55934.80556 | BA105: =IF(over_price?=2,$E72,IFERROR(IF(over_price?=0,INDEX('Material prices'!EY$8:EY$1008,$Q72+1),INDEX('Material prices'!NK$8:NK$1008,$Q72+1)),0)) -> 55846.60919 | BB105: =IF(over_price?=2,$E72,IFERROR(IF(over_price?=0,INDEX('Material prices'!EZ$8:EZ$1008,$Q72+1),INDEX('Material prices'!NL$8:NL$1008,$Q72+1)),0)) -> 55848.1498 | BC105: =IF(over_price?=2,$E72,IFERROR(IF(over_price?=0,INDEX('Material prices'!FA$8:FA$1008,$Q72+1),INDEX('Material prices'!NM$8:NM$1008,$Q72+1)),0)) -> 55660.02117 | BD105: =IF(over_price?=2,$E72,IFERROR(IF(over_price?=0,INDEX('Material prices'!FB$8:FB$1008,$Q72+1),INDEX('Material prices'!NN$8:NN$1008,$Q72+1)),0)) -> 55549.81032 | BE105: =IF(over_price?=2,$E72,IFERROR(IF(over_price?=0,INDEX('Material prices'!FC$8:FC$1008,$Q72+1),INDEX('Material prices'!NO$8:NO$1008,$Q72+1)),0)) -> 55582.37427 | BF105: =IF(over_price?=2,$E72,IFERROR(IF(over_price?=0,INDEX('Material prices'!FD$8:FD$1008,$Q72+1),INDEX('Material prices'!NP$8:NP$1008,$Q72+1)),0)) -> 55496.78754 | BG105: =IF(over_price?=2,$E72,IFERROR(IF(over_price?=0,INDEX('Material prices'!FE$8:FE$1008,$Q72+1),INDEX('Material prices'!NQ$8:NQ$1008,$Q72+1)),0)) -> 55401.6644 | BH105: =IF(over_price?=2,$E72,IFERROR(IF(over_price?=0,INDEX('Material prices'!FF$8:FF$1008,$Q72+1),INDEX('Material prices'!NR$8:NR$1008,$Q72+1)),0)) -> 55421.2332 | BI105: =IF(over_price?=2,$E72,IFERROR(IF(over_price?=0,INDEX('Material prices'!FG$8:FG$1008,$Q72+1),INDEX('Material prices'!NS$8:NS$1008,$Q72+1)),0)) -> 55235.3215 | BJ105: =IF(over_price?=2,$E72,IFERROR(IF(over_price?=0,INDEX('Material prices'!FH$8:FH$1008,$Q72+1),INDEX('Material prices'!NT$8:NT$1008,$Q72+1)),0)) -> 55093.89159 | BK105: =IF(over_price?=2,$E72,IFERROR(IF(over_price?=0,INDEX('Material prices'!FI$8:FI$1008,$Q72+1),INDEX('Material prices'!NU$8:NU$1008,$Q72+1)),0)) -> 55183.80931 | BL105: =IF(over_price?=2,$E72,IFERROR(IF(over_price?=0,INDEX('Material prices'!FJ$8:FJ$1008,$Q72+1),INDEX('Material prices'!NV$8:NV$1008,$Q72+1)),0)) -> 55336.72128 | BM105: =IF(over_price?=2,$E72,IFERROR(IF(over_price?=0,INDEX('Material prices'!FK$8:FK$1008,$Q72+1),INDEX('Material prices'!NW$8:NW$1008,$Q72+1)),0)) -> 55395.17757 | BN105: =IF(over_price?=2,$E72,IFERROR(IF(over_price?=0,INDEX('Material prices'!FL$8:FL$1008,$Q72+1),INDEX('Material prices'!NX$8:NX$1008,$Q72+1)),0)) -> 55288.89422 | BO105: =IF(over_price?=2,$E72,IFERROR(IF(over_price?=0,INDEX('Material prices'!FM$8:FM$1008,$Q72+1),INDEX('Material prices'!NY$8:NY$1008,$Q72+1)),0)) -> 55278.73902 | BP105: =IF(over_price?=2,$E72,IFERROR(IF(over_price?=0,INDEX('Material prices'!FN$8:FN$1008,$Q72+1),INDEX('Material prices'!NZ$8:NZ$1008,$Q72+1)),0)) -> 55101.49734 | BQ105: =IF(over_price?=2,$E72,IFERROR(IF(over_price?=0,INDEX('Material prices'!FO$8:FO$1008,$Q72+1),INDEX('Material prices'!OA$8:OA$1008,$Q72+1)),0)) -> 55033.74098 | BR105: =IF(over_price?=2,$E72,IFERROR(IF(over_price?=0,INDEX('Material prices'!FP$8:FP$1008,$Q72+1),INDEX('Material prices'!OB$8:OB$1008,$Q72+1)),0)) -> 54987.92735 | BS105: =IF(over_price?=2,$E72,IFERROR(IF(over_price?=0,INDEX('Material prices'!FQ$8:FQ$1008,$Q72+1),INDEX('Material prices'!OC$8:OC$1008,$Q72+1)),0)) -> 54932.62385 | BT105: =IF(over_price?=2,$E72,IFERROR(IF(over_price?=0,INDEX('Material prices'!FR$8:FR$1008,$Q72+1),INDEX('Material prices'!OD$8:OD$1008,$Q72+1)),0)) -> 54830.89263 | BU105: =IF(over_price?=2,$E72,IFERROR(IF(over_price?=0,INDEX('Material prices'!FS$8:FS$1008,$Q72+1),INDEX('Material prices'!OE$8:OE$1008,$Q72+1)),0)) -> 54733.02474 | BV105: =IF(over_price?=2,$E72,IFERROR(IF(over_price?=0,INDEX('Material prices'!FT$8:FT$1008,$Q72+1),INDEX('Material prices'!OF$8:OF$1008,$Q72+1)),0)) -> 54689.09233 | BW105: =IF(over_price?=2,$E72,IFERROR(IF(over_price?=0,INDEX('Material prices'!FU$8:FU$1008,$Q72+1),INDEX('Material prices'!OG$8:OG$1008,$Q72+1)),0)) -> 54742.71128 | BX105: =IF(over_price?=2,$E72,IFERROR(IF(over_price?=0,INDEX('Material prices'!FV$8:FV$1008,$Q72+1),INDEX('Material prices'!OH$8:OH$1008,$Q72+1)),0)) -> 54699.66751 | BY105: =IF(over_price?=2,$E72,IFERROR(IF(over_price?=0,INDEX('Material prices'!FW$8:FW$1008,$Q72+1),INDEX('Material prices'!OI$8:OI$1008,$Q72+1)),0)) -> 54941.91092 | BZ105: =IF(over_price?=2,$E72,IFERROR(IF(over_price?=0,INDEX('Material prices'!FX$8:FX$1008,$Q72+1),INDEX('Material prices'!OJ$8:OJ$1008,$Q72+1)),0)) -> 55028.76595 | CA105: =IF(over_price?=2,$E72,IFERROR(IF(over_price?=0,INDEX('Material prices'!FY$8:FY$1008,$Q72+1),INDEX('Material prices'!OK$8:OK$1008,$Q72+1)),0)) -> 55202.6303 | CB105: =IF(over_price?=2,$E72,IFERROR(IF(over_price?=0,INDEX('Material prices'!FZ$8:FZ$1008,$Q72+1),INDEX('Material prices'!OL$8:OL$1008,$Q72+1)),0)) -> 55088.80154 | CC105: =IF(over_price?=2,$E72,IFERROR(IF(over_price?=0,INDEX('Material prices'!GA$8:GA$1008,$Q72+1),INDEX('Material prices'!OM$8:OM$1008,$Q72+1)),0)) -> 55183.93653 | CD105: =IF(over_price?=2,$E72,IFERROR(IF(over_price?=0,INDEX('Material prices'!GB$8:GB$1008,$Q72+1),INDEX('Material prices'!ON$8:ON$1008,$Q72+1)),0)) -> 55093.70987 | CE105: =IF(over_price?=2,$E72,IFERROR(IF(over_price?=0,INDEX('Material prices'!GC$8:GC$1008,$Q72+1),INDEX('Material prices'!OO$8:OO$1008,$Q72+1)),0)) -> 55207.63585 | CF105: =IF(over_price?=2,$E72,IFERROR(IF(over_price?=0,INDEX('Material prices'!GD$8:GD$1008,$Q72+1),INDEX('Material prices'!OP$8:OP$1008,$Q72+1)),0)) -> 55030.2227 | CG105: =IF(over_price?=2,$E72,IFERROR(IF(over_price?=0,INDEX('Material prices'!GE$8:GE$1008,$Q72+1),INDEX('Material prices'!OQ$8:OQ$1008,$Q72+1)),0)) -> 55054.59238 | CH105: =SUMPRODUCT(AJ105:CG105,AJ$7:CG$7)/SUM(AJ$7:CG$7) -> 55580.78193
E106: Rate [% of Gross Value Mined] | F106: Maximum Fund Value [million USD] | AH106: Copper | AI106: USD/tonne | AJ106: =IF(over_price?=2,$E73,IFERROR(IF(over_price?=0,INDEX('Material prices'!GK$8:GK$1008,$Q73+1),INDEX('Material prices'!OW$8:OW$1008,$Q73+1)),0)) -> 5636 | AK106: =IF(over_price?=2,$E73,IFERROR(IF(over_price?=0,INDEX('Material prices'!GL$8:GL$1008,$Q73+1),INDEX('Material prices'!OX$8:OX$1008,$Q73+1)),0)) -> 4947.8 | AL106: =IF(over_price?=2,$E73,IFERROR(IF(over_price?=0,INDEX('Material prices'!GM$8:GM$1008,$Q73+1),INDEX('Material prices'!OY$8:OY$1008,$Q73+1)),0)) -> 6270 | AM106: =IF(over_price?=2,$E73,IFERROR(IF(over_price?=0,INDEX('Material prices'!GN$8:GN$1008,$Q73+1),INDEX('Material prices'!OZ$8:OZ$1008,$Q73+1)),0)) -> 6372.519146 | AN106: =IF(over_price?=2,$E73,IFERROR(IF(over_price?=0,INDEX('Material prices'!GO$8:GO$1008,$Q73+1),INDEX('Material prices'!PA$8:PA$1008,$Q73+1)),0)) -> 6472.283025 | AO106: =IF(over_price?=2,$E73,IFERROR(IF(over_price?=0,INDEX('Material prices'!GP$8:GP$1008,$Q73+1),INDEX('Material prices'!PB$8:PB$1008,$Q73+1)),0)) -> 6542.669685 | AP106: =IF(over_price?=2,$E73,IFERROR(IF(over_price?=0,INDEX('Material prices'!GQ$8:GQ$1008,$Q73+1),INDEX('Material prices'!PC$8:PC$1008,$Q73+1)),0)) -> 6609.259527 | AQ106: =IF(over_price?=2,$E73,IFERROR(IF(over_price?=0,INDEX('Material prices'!GR$8:GR$1008,$Q73+1),INDEX('Material prices'!PD$8:PD$1008,$Q73+1)),0)) -> 6648.307773 | AR106: =IF(over_price?=2,$E73,IFERROR(IF(over_price?=0,INDEX('Material prices'!GS$8:GS$1008,$Q73+1),INDEX('Material prices'!PE$8:PE$1008,$Q73+1)),0)) -> 6719.915243 | AS106: =IF(over_price?=2,$E73,IFERROR(IF(over_price?=0,INDEX('Material prices'!GT$8:GT$1008,$Q73+1),INDEX('Material prices'!PF$8:PF$1008,$Q73+1)),0)) -> 6777.306055 | AT106: =IF(over_price?=2,$E73,IFERROR(IF(over_price?=0,INDEX('Material prices'!GU$8:GU$1008,$Q73+1),INDEX('Material prices'!PG$8:PG$1008,$Q73+1)),0)) -> 6814.530809 | AU106: =IF(over_price?=2,$E73,IFERROR(IF(over_price?=0,INDEX('Material prices'!GV$8:GV$1008,$Q73+1),INDEX('Material prices'!PH$8:PH$1008,$Q73+1)),0)) -> 6888.479272 | AV106: =IF(over_price?=2,$E73,IFERROR(IF(over_price?=0,INDEX('Material prices'!GW$8:GW$1008,$Q73+1),INDEX('Material prices'!PI$8:PI$1008,$Q73+1)),0)) -> 6911.661529 | AW106: =IF(over_price?=2,$E73,IFERROR(IF(over_price?=0,INDEX('Material prices'!GX$8:GX$1008,$Q73+1),INDEX('Material prices'!PJ$8:PJ$1008,$Q73+1)),0)) -> 6917.261654 | AX106: =IF(over_price?=2,$E73,IFERROR(IF(over_price?=0,INDEX('Material prices'!GY$8:GY$1008,$Q73+1),INDEX('Material prices'!PK$8:PK$1008,$Q73+1)),0)) -> 6957.052011 | AY106: =IF(over_price?=2,$E73,IFERROR(IF(over_price?=0,INDEX('Material prices'!GZ$8:GZ$1008,$Q73+1),INDEX('Material prices'!PL$8:PL$1008,$Q73+1)),0)) -> 6973.741407 | AZ106: =IF(over_price?=2,$E73,IFERROR(IF(over_price?=0,INDEX('Material prices'!HA$8:HA$1008,$Q73+1),INDEX('Material prices'!PM$8:PM$1008,$Q73+1)),0)) -> 6977.988768 | BA106: =IF(over_price?=2,$E73,IFERROR(IF(over_price?=0,INDEX('Material prices'!HB$8:HB$1008,$Q73+1),INDEX('Material prices'!PN$8:PN$1008,$Q73+1)),0)) -> 6942.876087 | BB106: =IF(over_price?=2,$E73,IFERROR(IF(over_price?=0,INDEX('Material prices'!HC$8:HC$1008,$Q73+1),INDEX('Material prices'!PO$8:PO$1008,$Q73+1)),0)) -> 6938.314809 | BC106: =IF(over_price?=2,$E73,IFERROR(IF(over_price?=0,INDEX('Material prices'!HD$8:HD$1008,$Q73+1),INDEX('Material prices'!PP$8:PP$1008,$Q73+1)),0)) -> 6943.123595 | BD106: =IF(over_price?=2,$E73,IFERROR(IF(over_price?=0,INDEX('Material prices'!HE$8:HE$1008,$Q73+1),INDEX('Material prices'!PQ$8:PQ$1008,$Q73+1)),0)) -> 6949.409005 | BE106: =IF(over_price?=2,$E73,IFERROR(IF(over_price?=0,INDEX('Material prices'!HF$8:HF$1008,$Q73+1),INDEX('Material prices'!PR$8:PR$1008,$Q73+1)),0)) -> 6965.649143 | BF106: =IF(over_price?=2,$E73,IFERROR(IF(over_price?=0,INDEX('Material prices'!HG$8:HG$1008,$Q73+1),INDEX('Material prices'!PS$8:PS$1008,$Q73+1)),0)) -> 6928.166512 | BG106: =IF(over_price?=2,$E73,IFERROR(IF(over_price?=0,INDEX('Material prices'!HH$8:HH$1008,$Q73+1),INDEX('Material prices'!PT$8:PT$1008,$Q73+1)),0)) -> 6963.575538 | BH106: =IF(over_price?=2,$E73,IFERROR(IF(over_price?=0,INDEX('Material prices'!HI$8:HI$1008,$Q73+1),INDEX('Material prices'!PU$8:PU$1008,$Q73+1)),0)) -> 6967.514642 | BI106: =IF(over_price?=2,$E73,IFERROR(IF(over_price?=0,INDEX('Material prices'!HJ$8:HJ$1008,$Q73+1),INDEX('Material prices'!PV$8:PV$1008,$Q73+1)),0)) -> 6965.892818 | BJ106: =IF(over_price?=2,$E73,IFERROR(IF(over_price?=0,INDEX('Material prices'!HK$8:HK$1008,$Q73+1),INDEX('Material prices'!PW$8:PW$1008,$Q73+1)),0)) -> 6964.100727 | BK106: =IF(over_price?=2,$E73,IFERROR(IF(over_price?=0,INDEX('Material prices'!HL$8:HL$1008,$Q73+1),INDEX('Material prices'!PX$8:PX$1008,$Q73+1)),0)) -> 6981.094781 | BL106: =IF(over_price?=2,$E73,IFERROR(IF(over_price?=0,INDEX('Material prices'!HM$8:HM$1008,$Q73+1),INDEX('Material prices'!PY$8:PY$1008,$Q73+1)),0)) -> 7001.929542 | BM106: =IF(over_price?=2,$E73,IFERROR(IF(over_price?=0,INDEX('Material prices'!HN$8:HN$1008,$Q73+1),INDEX('Material prices'!PZ$8:PZ$1008,$Q73+1)),0)) -> 7017.772666 | BN106: =IF(over_price?=2,$E73,IFERROR(IF(over_price?=0,INDEX('Material prices'!HO$8:HO$1008,$Q73+1),INDEX('Material prices'!QA$8:QA$1008,$Q73+1)),0)) -> 7036.022481 | BO106: =IF(over_price?=2,$E73,IFERROR(IF(over_price?=0,INDEX('Material prices'!HP$8:HP$1008,$Q73+1),INDEX('Material prices'!QB$8:QB$1008,$Q73+1)),0)) -> 7048.730985 | BP106: =IF(over_price?=2,$E73,IFERROR(IF(over_price?=0,INDEX('Material prices'!HQ$8:HQ$1008,$Q73+1),INDEX('Material prices'!QC$8:QC$1008,$Q73+1)),0)) -> 7067.537094 | BQ106: =IF(over_price?=2,$E73,IFERROR(IF(over_price?=0,INDEX('Material prices'!HR$8:HR$1008,$Q73+1),INDEX('Material prices'!QD$8:QD$1008,$Q73+1)),0)) -> 7073.46381 | BR106: =IF(over_price?=2,$E73,IFERROR(IF(over_price?=0,INDEX('Material prices'!HS$8:HS$1008,$Q73+1),INDEX('Material prices'!QE$8:QE$1008,$Q73+1)),0)) -> 7060.612302 | BS106: =IF(over_price?=2,$E73,IFERROR(IF(over_price?=0,INDEX('Material prices'!HT$8:HT$1008,$Q73+1),INDEX('Material prices'!QF$8:QF$1008,$Q73+1)),0)) -> 7060.89434 | BT106: =IF(over_price?=2,$E73,IFERROR(IF(over_price?=0,INDEX('Material prices'!HU$8:HU$1008,$Q73+1),INDEX('Material prices'!QG$8:QG$1008,$Q73+1)),0)) -> 7058.33976 | BU106: =IF(over_price?=2,$E73,IFERROR(IF(over_price?=0,INDEX('Material prices'!HV$8:HV$1008,$Q73+1),INDEX('Material prices'!QH$8:QH$1008,$Q73+1)),0)) -> 7044.758074 | BV106: =IF(over_price?=2,$E73,IFERROR(IF(over_price?=0,INDEX('Material prices'!HW$8:HW$1008,$Q73+1),INDEX('Material prices'!QI$8:QI$1008,$Q73+1)),0)) -> 7013.007671 | BW106: =IF(over_price?=2,$E73,IFERROR(IF(over_price?=0,INDEX('Material prices'!HX$8:HX$1008,$Q73+1),INDEX('Material prices'!QJ$8:QJ$1008,$Q73+1)),0)) -> 7003.234582 | BX106: =IF(over_price?=2,$E73,IFERROR(IF(over_price?=0,INDEX('Material prices'!HY$8:HY$1008,$Q73+1),INDEX('Material prices'!QK$8:QK$1008,$Q73+1)),0)) -> 7001.462567 | BY106: =IF(over_price?=2,$E73,IFERROR(IF(over_price?=0,INDEX('Material prices'!HZ$8:HZ$1008,$Q73+1),INDEX('Material prices'!QL$8:QL$1008,$Q73+1)),0)) -> 6999.948652 | BZ106: =IF(over_price?=2,$E73,IFERROR(IF(over_price?=0,INDEX('Material prices'!IA$8:IA$1008,$Q73+1),INDEX('Material prices'!QM$8:QM$1008,$Q73+1)),0)) -> 6997.191001 | CA106: =IF(over_price?=2,$E73,IFERROR(IF(over_price?=0,INDEX('Material prices'!IB$8:IB$1008,$Q73+1),INDEX('Material prices'!QN$8:QN$1008,$Q73+1)),0)) -> 6987.675966 | CB106: =IF(over_price?=2,$E73,IFERROR(IF(over_price?=0,INDEX('Material prices'!IC$8:IC$1008,$Q73+1),INDEX('Material prices'!QO$8:QO$1008,$Q73+1)),0)) -> 6976.102085 | CC106: =IF(over_price?=2,$E73,IFERROR(IF(over_price?=0,INDEX('Material prices'!ID$8:ID$1008,$Q73+1),INDEX('Material prices'!QP$8:QP$1008,$Q73+1)),0)) -> 6979.626031 | CD106: =IF(over_price?=2,$E73,IFERROR(IF(over_price?=0,INDEX('Material prices'!IE$8:IE$1008,$Q73+1),INDEX('Material prices'!QQ$8:QQ$1008,$Q73+1)),0)) -> 6974.051167 | CE106: =IF(over_price?=2,$E73,IFERROR(IF(over_price?=0,INDEX('Material prices'!IF$8:IF$1008,$Q73+1),INDEX('Material prices'!QR$8:QR$1008,$Q73+1)),0)) -> 6959.531373 | CF106: =IF(over_price?=2,$E73,IFERROR(IF(over_price?=0,INDEX('Material prices'!IG$8:IG$1008,$Q73+1),INDEX('Material prices'!QS$8:QS$1008,$Q73+1)),0)) -> 6950.855417 | CG106: =IF(over_price?=2,$E73,IFERROR(IF(over_price?=0,INDEX('Material prices'!IH$8:IH$1008,$Q73+1),INDEX('Material prices'!QT$8:QT$1008,$Q73+1)),0)) -> 6951.10329 | CH106: =SUMPRODUCT(AJ106:CG106,AJ$7:CG$7)/SUM(AJ$7:CG$7) -> 6979.128641
B107: Seabed Sustainability Fund | E107: 0 | F107: 0
B108: Environmental Liability Trust Fund | E108: ='User Interface'!D79 -> 0.01 | F108: ='User Interface'!D80/1000000 -> 500
E109: Interest [%] | F109: Bond [million USD] | AH109: Revenues for Processor and Integrated
B110: Environmental Bond | E110: 0 | F110: 0 | AH110: Nodule Value (content and yield) | AJ110: 1 | AK110: 2 | AL110: 3 | AM110: 4 | AN110: 5 | AO110: 6 | AP110: 7 | AQ110: 8 | AR110: 9 | AS110: 10 | AT110: 11 | AU110: 12 | AV110: 13 | AW110: 14 | AX110: 15 | AY110: 16 | AZ110: 17 | BA110: 18 | BB110: 19 | BC110: 20 | BD110: 21 | BE110: 22 | BF110: 23 | BG110: 24 | BH110: 25 | BI110: 26 | BJ110: 27 | BK110: 28 | BL110: 29 | BM110: 30 | BN110: 31 | BO110: 32 | BP110: 33 | BQ110: 34 | BR110: 35 | BS110: 36 | BT110: 37 | BU110: 38 | BV110: 39 | BW110: 40 | BX110: 41 | BY110: 42 | BZ110: 43 | CA110: 44 | CB110: 45 | CC110: 46 | CD110: 47 | CE110: 48 | CF110: 49 | CG110: 50 | CH110: Average
AH111: Revenues from Manganese fraction | AI111: USD/tonne nodule | AJ111: =$X$60*AJ103 -> 418.1616 | AK111: 418.1616 | AL111: 419.5361417 | AM111: 419.8375289 | AN111: 418.6950671 | AO111: 420.1575924 | AP111: 419.7976403 | AQ111: 420.4699311 | AR111: 419.9266118 | AS111: 420.1231334 | AT111: 420.4013444 | AU111: 420.5832201 | AV111: 421.1645775 | AW111: 420.0042954 | AX111: 419.9456628 | AY111: 420.5421538 | AZ111: 420.785918 | BA111: 420.4165539 | BB111: 421.1282857 | BC111: 421.9302313 | BD111: 422.3688947 | BE111: 421.553447 | BF111: 421.1410951 | BG111: 421.369164 | BH111: 421.6811331 | BI111: 420.8757453 | BJ111: 419.4799684 | BK111: 419.4400748 | BL111: 419.4486468 | BM111: 420.3292768 | BN111: 419.7024934 | BO111: 418.2109709 | BP111: =$X$60*BP103 -> 419.1518624 | BQ111: 420.2716313 | BR111: 421.180373 | BS111: 420.2728125 | BT111: 419.7346148 | BU111: 419.3225443 | BV111: 419.4075493 | BW111: 420.2072728 | BX111: 419.1393684 | BY111: 419.2733663 | BZ111: 419.1071268 | CA111: 419.2091131 | CB111: 418.8155291 | CC111: 418.8502275 | CD111: 419.5842126 | CE111: 418.8081255 | CF111: 418.9732528 | CG111: 418.2961771
B112: SPONSORING STATE | E112: Rate [%] | AH112: Revenues from Nickel fraction | AI112: USD/tonne nodule | AJ112: =$X$61*AJ104 -> 146.11285 | AK112: 118.4859 | AL112: 125.2784 | AM112: 145.6109492 | AN112: 163.151852 | AO112: 178.5246644 | AP112: 191.6407906 | AQ112: 204.0231899 | AR112: 214.6491883 | AS112: 224.0963324 | AT112: 232.9194723 | AU112: 241.2467772 | AV112: 247.555114 | AW112: 253.3161302 | AX112: 259.9589039 | AY112: 265.2926049 | AZ112: 269.031194 | BA112: 272.7850831 | BB112: 277.064761 | BC112: 279.7133468 | BD112: 282.2361468 | BE112: 284.8173347 | BF112: 287.3244053 | BG112: 289.7944251 | BH112: 291.6733307 | BI112: 292.7995328 | BJ112: 294.3189132 | BK112: 295.3497846 | BL112: 296.4851863 | BM112: 296.6152722 | BN112: 297.3119157 | BO112: 298.2462599 | BP112: =$X$61*BP104 -> 298.7086263 | BQ112: 299.3100734 | BR112: 299.5768946 | BS112: 300.4114388 | BT112: 300.97193 | BU112: 301.306285 | BV112: 301.7454697 | BW112: 301.9359189 | BX112: 302.8822618 | BY112: 303.401545 | BZ112: 303.6151533 | CA112: 304.4493132 | CB112: 304.2625793 | CC112: 304.0219654 | CD112: 304.7278818 | CE112: 304.8005407 | CF112: 304.5803075 | CG112: 304.561851
B113: Corporate Income Tax Rate | E113: ='User Interface'!D83 -> 0.25 | F113: % of profit declared in SS | P113: =B126 -> Ad-Valorem - Stage 1 | Q113: =E126 -> 0.06 | AH113: Revenues from Cobalt fraction | AI113: USD/tonne nodule | AJ113: =$X$62*AJ105 -> 52.77888 | AK113: 46.7313 | AL113: 104.4582 | AM113: 103.8722237 | AN113: 102.9818013 | AO113: 102.7581955 | AP113: 102.5170566 | AQ113: 102.4171111 | AR113: 101.9283099 | AS113: 101.7747813 | AT113: 101.52948 | AU113: 101.2651262 | AV113: 100.9511143 | AW113: 100.593853 | AX113: 100.3661266 | AY113: 99.94456365 | AZ113: 99.84362792 | BA113: 99.68619741 | BB113: 99.6889474 | BC113: 99.35313779 | BD113: 99.15641142 | BE113: 99.21453808 | BF113: 99.06176575 | BG113: 98.89197096 | BH113: 98.92690127 | BI113: 98.59504888 | BJ113: 98.3425965 | BK113: 98.50309961 | BL113: 98.77604748 | BM113: 98.88039197 | BN113: 98.69067618 | BO113: 98.67254916 | BP113: =$X$62*BP105 -> 98.35617275 | BQ113: 98.23522766 | BR113: 98.15345031 | BS113: 98.05473358 | BT113: 97.87314334 | BU113: 97.69844916 | BV113: 97.62002981 | BW113: 97.71573963 | BX113: 97.63890651 | BY113: 98.071311 | BZ113: 98.22634723 | CA113: 98.53669509 | CB113: 98.33351075 | CC113: 98.50332671 | CD113: 98.34227212 | CE113: 98.54562999 | CF113: 98.22894752 | CG113: 98.2724474
B114: Unlimited Carryforward of All Expenses? | E114: Yes | F114: (If Yes, depreciation not considered in accounting profit) | P114: =B127 -> Ad-Valorem - Stage 2 (additional royalty) | Q114: =E127 -> 0 | AH114: Revenues from Copper fraction | AI114: USD/tonne nodule | AJ114: =$X$63*AJ106 -> 54.3456936 | AK114: 47.70965628 | AL114: 60.459102 | AM114: 61.44765312 | AN114: 62.4096363 | AO114: 63.0883467 | AP114: 63.73044592 | AQ114: 64.10697253 | AR114: 64.79745472 | AS114: 65.35085136 | AT114: 65.70979478 | AU114: 66.42285023 | AV114: 66.64638746 | AW114: 66.70038723 | AX114: 67.08406972 | AY114: 67.24499889 | AZ114: 67.2859545 | BA114: 66.94737696 | BB114: 66.90339438 | BC114: 66.94976358 | BD114: 67.01037128 | BE114: 67.16696843 | BF114: 66.80553841 | BG114: 67.14697348 | BH114: 67.18495669 | BI114: 67.16931809 | BJ114: 67.15203767 | BK114: 67.31590453 | BL114: 67.5168058 | BM114: 67.66957471 | BN114: 67.84555037 | BO114: 67.96809339 | BP114: =$X$63*BP106 -> 68.14943318 | BQ114: 68.20658213 | BR114: 68.08266019 | BS114: 68.08537976 | BT114: 68.06074697 | BU114: 67.9297842 | BV114: 67.62362777 | BW114: 67.52938978 | BX114: 67.51230295 | BY114: 67.49770488 | BZ114: 67.47111395 | CA114: 67.37936427 | CB114: 67.26776196 | CC114: 67.30174197 | CD114: 67.24798578 | CE114: 67.10797722 | CF114: 67.02431844 | CG114: 67.02670859
B115: Administrative Tax | E115: 0 | F115: % of (Basket) Revenue | AH115: Gross Value PN [Mouth of Mine Value] | AI115: USD/tonne nodule | AJ115: =$Q$60*AJ103+$Q$61*AJ104+$Q$62*AJ105+$Q$63*AJ106 -> 740.903904 | AK115: 697.3347292 | AL115: 788.0920486 | AM115: 810.2386128 | AN115: 827.4546334 | AO115: 845.7526263 | AP115: 859.588879 | AQ115: 873.6707533 | AR115: 884.4444688 | AS115: 895.0414517 | AT115: 904.748327 | AU115: 914.1972744 | AV115: 921.3625308 | AW115: 925.7772482 | AX115: 932.8628946 | AY115: 938.8229383 | AZ115: 942.9559027 | BA115: 945.9355508 | BB115: 951.1856537 | BC115: 954.5211407 | BD115: 957.5000225 | BE115: 959.5533905 | BF115: 961.1529224 | BG115: 964.1859668 | BH115: 966.5936926 | BI115: 966.4765024 | BJ115: 966.2087836 | BK115: 967.6204868 | BL115: 969.3695096 | BM115: 970.7774213 | BN115: 970.7866377 | BO115: 970.2277437 | BP115: =$Q$60*BP103+$Q$61*BP104+$Q$62*BP105+$Q$63*BP106 -> 971.5891613 | BQ115: 973.3876617 | BR115: 974.4443394 | BS115: 974.2012909 | BT115: 973.9522788 | BU115: 973.4953385 | BV115: 973.6196564 | BW115: 974.7166018 | BX115: 974.4168145 | BY115: 975.6048061 | BZ115: 975.7977964 | CA115: 977.0523487 | CB115: 976.0554281 | CC115: 976.0782432 | CD115: 977.3876469 | CE115: 976.6854906 | CF115: 976.1716191 | CG115: 975.4537169 | CH115: =SUMPRODUCT(AJ115:CG115,AJ$7:CG$7)/SUM(AJ$7:CG$7) -> 956.3418807
AH116: Net Value per tonne of Nodule (PN) | AI116: USD/tonne nodule | AJ116: =SUM(AJ111:AJ114) -> 671.3990236 | AK116: =SUM(AK111:AK114) -> 631.0884563 | AL116: 709.7318437 | AM116: 730.7683549 | AN116: 747.2383566 | AO116: 764.5287989 | AP116: 777.6859334 | AQ116: 791.0172046 | AR116: 801.3015647 | AS116: 811.3450985 | AT116: =SUM(AT111:AT114) -> 820.5600915 | AU116: 829.5179737 | AV116: 836.3171934 | AW116: 840.6146658 | AX116: =SUM(AX111:AX114) -> 847.3547629 | AY116: 853.0243212 | AZ116: 856.9466944 | BA116: 859.8352114 | BB116: 864.7853884 | BC116: 867.9464795 | BD116: 870.7718242 | BE116: 872.7522882 | BF116: 874.3328045 | BG116: 877.2025335 | BH116: 879.4663218 | BI116: 879.4396451 | BJ116: 879.2935158 | BK116: 880.6088636 | BL116: 882.2266864 | BM116: 883.4945156 | BN116: 883.5506356 | BO116: 883.0978733 | BP116: 884.3660946 | BQ116: 886.0235145 | BR116: 886.993378 | BS116: 886.8243646 | BT116: 886.6404351 | BU116: 886.2570626 | BV116: 886.3966766 | BW116: 887.3883211 | BX116: 887.1728396 | BY116: 888.2439272 | BZ116: 888.4197412 | CA116: 889.5744857 | CB116: 888.6793811 | CC116: 888.6772616 | CD116: 889.9023522 | CE116: 889.2622735 | CF116: 888.8068263 | CG116: =SUM(CG111:CG114) -> 888.1571841 | CH116: =SUMPRODUCT(AJ116:CG116,AJ$7:CG$7)/SUM(AJ$7:CG$7) -> 869.7520636
B117: PROCESSING STATE | P117: =B131 -> Pre-Tax Profit-Based Royalty - Stage 1 | Q117: =E131 -> 0.3
B118: Corporate Income Tax Rate | E118: ='User Interface'!D84 -> 0.25 | F118: % of profit declared in SS | P118: =B132 -> Pre-Tax Profit-Based Royalty - Stage 2 (additional) | Q118: =E132 -> 0 | AH118: Production
B119: Unlimited Carryforward of All Expenses? | E119: Yes | F119: (If Yes, depreciation not considered in accounting profit) | AI119: Year | AJ119: 1 | AK119: 2 | AL119: 3 | AM119: 4 | AN119: 5 | AO119: 6 | AP119: 7 | AQ119: 8 | AR119: 9 | AS119: 10 | AT119: 11 | AU119: 12 | AV119: 13 | AW119: 14 | AX119: 15 | AY119: 16 | AZ119: 17 | BA119: 18 | BB119: 19 | BC119: 20 | BD119: 21 | BE119: 22 | BF119: 23 | BG119: 24 | BH119: 25 | BI119: 26 | BJ119: 27 | BK119: 28 | BL119: 29 | BM119: 30 | BN119: 31 | BO119: 32 | BP119: 33 | BQ119: 34 | BR119: 35 | BS119: 36 | BT119: 37 | BU119: 38 | BV119: 39 | BW119: 40 | BX119: 41 | BY119: 42 | BZ119: 43 | CA119: 44 | CB119: 45 | CC119: 46 | CD119: 47 | CE119: 48 | CF119: 49 | CG119: 50
AH120: Nodules Recovered | AI120: dry Mton nodules / annum | AJ120: =AJ94 -> 0 | AK120: 0 | AL120: 0 | AM120: 0 | AN120: 0 | AO120: 0 | AP120: 0 | AQ120: 0 | AR120: 0 | AS120: 0 | AT120: 1 | AU120: 2 | AV120: 3 | AW120: 3 | AX120: 3 | AY120: 3 | AZ120: 3 | BA120: 3 | BB120: 3 | BC120: 3 | BD120: 3 | BE120: 3 | BF120: 3 | BG120: 3 | BH120: 3 | BI120: 3 | BJ120: 3 | BK120: 3 | BL120: 3 | BM120: 3 | BN120: 3 | BO120: 3 | BP120: =BP94 -> 3 | BQ120: 3 | BR120: 3 | BS120: 3 | BT120: 0 | BU120: 0 | BV120: 0 | BW120: 0 | BX120: 0 | BY120: 0 | BZ120: 0 | CA120: 0 | CB120: 0 | CC120: 0 | CD120: 0 | CE120: 0 | CF120: 0 | CG120: 0
AH121: =AH116 -> Net Value per tonne of Nodule (PN) | AI121: USD/tonne nodule | AJ121: 671.3990236 | AK121: 631.0884563 | AL121: 709.7318437 | AM121: 730.7683549 | AN121: 747.2383566 | AO121: 764.5287989 | AP121: 777.6859334 | AQ121: 791.0172046 | AR121: 801.3015647 | AS121: 811.3450985 | AT121: 820.5600915 | AU121: 829.5179737 | AV121: 836.3171934 | AW121: 840.6146658 | AX121: 847.3547629 | AY121: 853.0243212 | AZ121: 856.9466944 | BA121: 859.8352114 | BB121: 864.7853884 | BC121: 867.9464795 | BD121: 870.7718242 | BE121: 872.7522882 | BF121: 874.3328045 | BG121: 877.2025335 | BH121: 879.4663218 | BI121: 879.4396451 | BJ121: 879.2935158 | BK121: 880.6088636 | BL121: 882.2266864 | BM121: 883.4945156 | BN121: =BN116 -> 883.5506356 | BO121: 883.0978733 | BP121: 884.3660946 | BQ121: 886.0235145 | BR121: 886.993378 | BS121: 886.8243646 | BT121: 886.6404351 | BU121: 886.2570626 | BV121: 886.3966766 | BW121: 887.3883211 | BX121: 887.1728396 | BY121: 888.2439272 | BZ121: 888.4197412 | CA121: 889.5744857 | CB121: 888.6793811 | CC121: 888.6772616 | CD121: 889.9023522 | CE121: 889.2622735 | CF121: 888.8068263 | CG121: 888.1571841
B122: Royalty and Profit-share Rates | AH122: Net Value | AI122: million USD | AJ122: =AJ121*AJ120 -> 0 | AK122: 0 | AL122: 0 | AM122: 0 | AN122: 0 | AO122: 0 | AP122: 0 | AQ122: 0 | AR122: 0 | AS122: 0 | AT122: 820.5600915 | AU122: 1659.035947 | AV122: 2508.95158 | AW122: 2521.843997 | AX122: 2542.064289 | AY122: 2559.072964 | AZ122: 2570.840083 | BA122: 2579.505634 | BB122: 2594.356165 | BC122: 2603.839438 | BD122: 2612.315473 | BE122: 2618.256865 | BF122: 2622.998414 | BG122: 2631.607601 | BH122: 2638.398965 | BI122: 2638.318935 | BJ122: 2637.880547 | BK122: 2641.826591 | BL122: 2646.680059 | BM122: 2650.483547 | BN122: 2650.651907 | BO122: 2649.29362 | BP122: =BP121*BP120 -> 2653.098284 | BQ122: 2658.070543 | BR122: 2660.980134 | BS122: 2660.473094 | BT122: 0 | BU122: 0 | BV122: 0 | BW122: 0 | BX122: 0 | BY122: 0 | BZ122: 0 | CA122: 0 | CB122: 0 | CC122: 0 | CD122: 0 | CE122: 0 | CF122: 0 | CG122: 0
B123: Production Year of Switch from Stage 1 to Stage 2 | E123: 5 | F123: Year
AH124: Revenues for Collector and Costs for Processor
B125: Royalty Basis | E125: Rate [%] | AH125: Nodule transfer price Calculation | AI125: Year | AJ125: 1 | AK125: 2 | AL125: 3 | AM125: 4 | AN125: 5 | AO125: 6 | AP125: 7 | AQ125: 8 | AR125: 9 | AS125: 10 | AT125: 11 | AU125: 12 | AV125: 13 | AW125: 14 | AX125: 15 | AY125: 16 | AZ125: 17 | BA125: 18 | BB125: 19 | BC125: 20 | BD125: 21 | BE125: 22 | BF125: 23 | BG125: 24 | BH125: 25 | BI125: 26 | BJ125: 27 | BK125: 28 | BL125: 29 | BM125: 30 | BN125: 31 | BO125: 32 | BP125: 33 | BQ125: 34 | BR125: 35 | BS125: 36 | BT125: 37 | BU125: 38 | BV125: 39 | BW125: 40 | BX125: 41 | BY125: 42 | BZ125: 43 | CA125: 44 | CB125: 45 | CC125: 46 | CD125: 47 | CE125: 48 | CF125: 49 | CG125: 50
B126: Ad-Valorem - Stage 1 | E126: ='User Interface'!C12 -> 0.06 | F126: % of (Basket) Revenue | AH126: Nodule metals value | AI126: USD/tonne of dry nodules | AJ126: =AJ116 -> 671.3990236 | AK126: 631.0884563 | AL126: 709.7318437 | AM126: 730.7683549 | AN126: 747.2383566 | AO126: 764.5287989 | AP126: 777.6859334 | AQ126: 791.0172046 | AR126: 801.3015647 | AS126: 811.3450985 | AT126: 820.5600915 | AU126: 829.5179737 | AV126: 836.3171934 | AW126: 840.6146658 | AX126: 847.3547629 | AY126: 853.0243212 | AZ126: 856.9466944 | BA126: 859.8352114 | BB126: 864.7853884 | BC126: 867.9464795 | BD126: 870.7718242 | BE126: 872.7522882 | BF126: 874.3328045 | BG126: 877.2025335 | BH126: 879.4663218 | BI126: 879.4396451 | BJ126: 879.2935158 | BK126: 880.6088636 | BL126: 882.2266864 | BM126: 883.4945156 | BN126: 883.5506356 | BO126: 883.0978733 | BP126: =BP116 -> 884.3660946 | BQ126: 886.0235145 | BR126: 886.993378 | BS126: 886.8243646 | BT126: 886.6404351 | BU126: 886.2570626 | BV126: 886.3966766 | BW126: 887.3883211 | BX126: 887.1728396 | BY126: 888.2439272 | BZ126: 888.4197412 | CA126: 889.5744857 | CB126: 888.6793811 | CC126: 888.6772616 | CD126: 889.9023522 | CE126: 889.2622735 | CF126: 888.8068263 | CG126: 888.1571841
B127: Ad-Valorem - Stage 2 (additional royalty) | E127: ='User Interface'!D12-'User Interface'!C12 -> 0 | F127: % of (Basket) Revenue | P127: ="BLD_"&P113 -> BLD_Ad-Valorem - Stage 1 | Q127: =E141 -> 0.01 | AH127: Nodule mass | AI127: dry tonne | AJ127: =AJ93 -> 0 | AK127: 0 | AL127: 0 | AM127: 0 | AN127: 0 | AO127: 0 | AP127: 0 | AQ127: 0 | AR127: 0 | AS127: 0 | AT127: 1000000 | AU127: 2000000 | AV127: 3000000 | AW127: 3000000 | AX127: 3000000 | AY127: 3000000 | AZ127: 3000000 | BA127: 3000000 | BB127: 3000000 | BC127: 3000000 | BD127: 3000000 | BE127: 3000000 | BF127: 3000000 | BG127: 3000000 | BH127: 3000000 | BI127: 3000000 | BJ127: 3000000 | BK127: 3000000 | BL127: 3000000 | BM127: 3000000 | BN127: 3000000 | BO127: 3000000 | BP127: =BP93 -> 3000000 | BQ127: 3000000 | BR127: 3000000 | BS127: 3000000 | BT127: 0 | BU127: 0 | BV127: 0 | BW127: 0 | BX127: 0 | BY127: 0 | BZ127: 0 | CA127: 0 | CB127: 0 | CC127: 0 | CD127: 0 | CE127: 0 | CF127: 0 | CG127: 0
B128: Ad-Valorem - Stage 2 | E128: =E126+E127 -> 0.06 | F128: % of (Basket) Revenue | P128: ="BLD_"&P114 -> BLD_Ad-Valorem - Stage 2 (additional royalty) | Q128: =F141 -> 0 | AH128: Annual extracted value | AI128: million USD | AJ128: =AJ127*AJ126/1000000 -> 0 | AK128: =AK127*AK126/1000000 -> 0 | AL128: 0 | AM128: 0 | AN128: 0 | AO128: 0 | AP128: 0 | AQ128: 0 | AR128: 0 | AS128: 0 | AT128: =AT127*AT126/1000000 -> 820.5600915 | AU128: 1659.035947 | AV128: 2508.95158 | AW128: =AW127*AW126/1000000 -> 2521.843997 | AX128: 2542.064289 | AY128: 2559.072964 | AZ128: 2570.840083 | BA128: 2579.505634 | BB128: 2594.356165 | BC128: 2603.839438 | BD128: 2612.315473 | BE128: 2618.256865 | BF128: 2622.998414 | BG128: 2631.607601 | BH128: 2638.398965 | BI128: 2638.318935 | BJ128: 2637.880547 | BK128: 2641.826591 | BL128: 2646.680059 | BM128: 2650.483547 | BN128: 2650.651907 | BO128: 2649.29362 | BP128: 2653.098284 | BQ128: 2658.070543 | BR128: 2660.980134 | BS128: 2660.473094 | BT128: 0 | BU128: 0 | BV128: 0 | BW128: 0 | BX128: 0 | BY128: 0 | BZ128: 0 | CA128: 0 | CB128: 0 | CC128: 0 | CD128: 0 | CE128: 0 | CF128: 0 | CG128: 0
P129: ="BLD_"&P117 -> BLD_Pre-Tax Profit-Based Royalty - Stage 1 | Q129: =E142 -> 0
P130: ="BLD_"&P118 -> BLD_Pre-Tax Profit-Based Royalty - Stage 2 (additional) | Q130: =F142 -> 0.1 | AI130: Collector IRR | AJ130: Processor IRR | AK130: Solver result cell (IRR diff) | AL130: Solver Correction Factor | AM130: Total correction | AN130: Nodule average transfer price
B131: Pre-Tax Profit-Based Royalty - Stage 1 | E131: 0.3 | AH131: Ad Valorem IRR | AI131: =AK43 -> 0.1698462308 | AJ131: =AK77 -> 0.1694079386 | AK131: =AI131-AJ131 -> 0.0004382921737 | AL131: 0.474609375 | AM131: =f_av -> 0.474609375 | AN131: =SUMPRODUCT(AJ137:CG137,$AJ$93:$CG$93)/SUM($AJ$93:$CG$93) -> 412.7924833
B132: Pre-Tax Profit-Based Royalty - Stage 2 (additional) | E132: 0 | AH132: Before tax IRR | AI132: =AK44 -> 0.1733428231 | AJ132: =AK78 -> 0.1735716982 | AK132: =AI132-AJ132 -> -0.0002288750971 | AL132: 0.4658203125 | AM132: =f_bt -> 0.4658203125 | AN132: =SUMPRODUCT(AJ138:CG138,$AJ$93:$CG$93)/SUM($AJ$93:$CG$93) -> 405.1481781
B133: Pre-Tax Profit-Based Royalty - Stage 2 | E133: =E131+E132 -> 0.3 | AH133: Specific IRR | AI133: =AK45 -> 0.1766299629 | AJ133: =AK79 -> 0.1767678545 | AK133: =AI133-AJ133 -> -0.0001378916258 | AL133: 0.458984375 | AM133: =f_sp -> 0.458984375 | AN133: =SUMPRODUCT(AJ139:CG139,$AJ$93:$CG$93)/SUM($AJ$93:$CG$93) -> 399.2026073
AH134: Blended IRR | AI134: =AK46 -> 0.1802567465 | AJ134: =AK80 -> 0.179928364 | AK134: =AI134-AJ134 -> 0.0003283824146 | AL134: 0.4521484375 | AM134: =f_bl -> 0.4521484375 | AN134: =SUMPRODUCT(AJ140:CG140,$AJ$93:$CG$93)/SUM($AJ$93:$CG$93) -> 393.2570366
B135: Specific Royalty | E135: 1.5 | F135: cents/lb nodule
AI136: Year | AJ136: 1 | AK136: 2 | AL136: 3 | AM136: 4 | AN136: 5 | AO136: 6 | AP136: 7 | AQ136: 8 | AR136: 9 | AS136: 10 | AT136: 11 | AU136: 12 | AV136: 13 | AW136: 14 | AX136: 15 | AY136: 16 | AZ136: 17 | BA136: 18 | BB136: 19 | BC136: 20 | BD136: 21 | BE136: 22 | BF136: 23 | BG136: 24 | BH136: 25 | BI136: 26 | BJ136: 27 | BK136: 28 | BL136: 29 | BM136: 30 | BN136: 31 | BO136: 32 | BP136: 33 | BQ136: 34 | BR136: 35 | BS136: 36 | BT136: 37 | BU136: 38 | BV136: 39 | BW136: 40 | BX136: 41 | BY136: 42 | BZ136: 43 | CA136: 44 | CB136: 45 | CC136: 46 | CD136: 47 | CE136: 48 | CF136: 49 | CG136: 50
B137: Blended | AH137: Nodule Transfer Price (Ad Valorem IRR) | AI137: USD/tonne of dry nodules | AJ137: =AJ$126*$AM131 -> 318.652271 | AK137: 299.5204978 | AL137: 336.8453868 | AM137: 346.8295122 | AN137: 354.6463294 | AO137: 362.8525354 | AP137: 369.0970348 | AQ137: 375.4241811 | AR137: 380.3052348 | AS137: 385.0719901 | AT137: 389.4455122 | AU137: 393.697007 | AV137: 396.9239805 | AW137: 398.9636012 | AX137: 402.1625144 | AY137: 404.8533399 | AZ137: 406.714935 | BA137: 408.0858523 | BB137: 410.4352527 | BC137: 411.9355362 | BD137: 413.2764713 | BE137: 414.216418 | BF137: 414.9665459 | BG137: 416.3285462 | BH137: 417.4029613 | BI137: 417.3903003 | BJ137: 417.320946 | BK137: 417.9452224 | BL137: 418.7130562 | BM137: 419.3147799 | BN137: 419.341415 | BO137: 419.1265297 | BP137: =BP$126*$AM131 -> 419.7284394 | BQ137: 420.5150664 | BR137: 420.9753728 | BS137: 420.8951574 | BT137: 420.8078628 | BU137: 420.6259106 | BV137: 420.6921727 | BW137: 421.1628165 | BX137: 421.0605469 | BY137: 421.5688951 | BZ137: 421.6523381 | CA137: 422.2003907 | CB137: 421.7755656 | CC137: 421.7745597 | CD137: 422.3559992 | CE137: 422.0522118 | CF137: 421.8360523 | CG137: 421.5277261
C138: Choose baseline scheme | E138: 1 | F138: (0=Specifc / 1=Ad-valorem) | AH138: Nodule Transfer Price (Before tax IRR) | AI138: USD/tonne of dry nodules | AJ138: =AJ$126*$AM132 -> 312.751303 | AK138: 293.9738219 | AL138: 330.6075092 | AM138: 340.4067434 | AN138: 348.0788048 | AO138: 356.133044 | AP138: 362.2619045 | AQ138: 368.4718815 | AR138: 373.2625453 | AS138: 377.9410273 | AT138: 382.2335583 | AU138: 386.4063217 | AV138: 389.5735364 | AW138: 391.5753863 | AX138: 394.7150605 | AY138: 397.3560559 | AZ138: 399.183177 | BA138: 400.5287069 | BB138: 402.8345999 | BC138: 404.3071003 | BD138: 405.6232033 | BE138: 406.5457436 | BF138: 407.2819802 | BG138: 408.6187583 | BH138: 409.6732768 | BI138: 409.6608503 | BJ138: 409.5927803 | BK138: 410.205496 | BL138: 410.9591107 | BM138: 411.5496914 | BN138: 411.5758332 | BO138: 411.3649273 | BP138: =BP$126*$AM132 -> 411.9556905 | BQ138: 412.7277504 | BR138: 413.1795325 | BS138: 413.1008027 | BT138: 413.0151246 | BU138: 412.8365418 | BV138: 412.9015769 | BW138: 413.3635051 | BX138: 413.2631294 | BY138: 413.7620638 | BZ138: 413.8439615 | CA138: 414.3818649 | CB138: 413.964907 | CC138: 413.9639197 | CD138: 414.5345918 | CE138: 414.2364301 | CF138: 414.0242736 | CG138: 413.7216571
AH139: Nodule Transfer Price (Specific IRR) | AI139: USD/tonne of dry nodules | AJ139: =AJ$126*$AM133 -> 308.1616612 | AK139: 289.6597407 | AL139: 325.7558267 | AM139: 335.4112566 | AN139: 342.9707301 | AO139: 350.9067729 | AP139: 356.9456921 | AQ139: 363.0645373 | AR139: 367.7848979 | AS139: 372.3947229 | AT139: 376.6242608 | AU139: 380.7357887 | AV139: 383.8565243 | AW139: 385.828997 | AX139: 388.9225963 | AY139: 391.5248349 | AZ139: 393.3251429 | BA139: 394.6509271 | BB139: 396.922981 | BC139: 398.3738724 | BD139: 399.6706615 | BE139: 400.5796635 | BF139: 401.3050958 | BG139: 402.6222566 | BH139: 403.6613 | BI139: 403.6490559 | BJ139: 403.5819848 | BK139: 404.1857089 | BL139: 404.9282643 | BM139: 405.5101781 | BN139: 405.5359363 | BO139: 405.3281255 | BP139: =BP$126*$AM133 -> 405.9102192 | BQ139: 406.670949 | BR139: 407.1161012 | BS139: 407.0385267 | BT139: 406.954106 | BU139: 406.778144 | BV139: 406.8422246 | BW139: 407.2973739 | BX139: 407.1984713 | BY139: 407.6900838 | BZ139: 407.7707797 | CA139: 408.3007893 | CB139: 407.8899503 | CC139: 407.8889775 | CD139: 408.4512749 | CE139: 408.1574888 | CF139: 407.9484457 | CG139: 407.6502701
E140: Stage 1 | F140: Stage 2 (+) | G140: Eff. Stage 2 | AH140: Nodule Transfer Price (Blended IRR) | AI140: USD/tonne of dry nodules | AJ140: =AJ$126*$AM134 -> 303.5720195 | AK140: 285.3456594 | AL140: 320.9041442 | AM140: 330.4157698 | AN140: 337.8626554 | AO140: 345.6805018 | AP140: 351.6294797 | AQ140: 357.6571931 | AR140: 362.3072505 | AS140: 366.8484186 | AT140: 371.0149633 | AU140: 375.0652557 | AV140: 378.1395122 | AW140: 380.0826077 | AX140: 383.1301321 | AY140: 385.693614 | AZ140: 387.4671089 | BA140: 388.7731473 | BB140: 391.0113622 | BC140: 392.4406445 | BD140: 393.7181197 | BE140: 394.6135834 | BF140: 395.3282114 | BG140: 396.6257549 | BH140: 397.6493232 | BI140: 397.6372614 | BJ140: 397.5711893 | BK140: 398.1659217 | BL140: 398.8974178 | BM140: 399.4706648 | BN140: 399.4960393 | BO140: 399.2913236 | BP140: =BP$126*$AM134 -> 399.8647478 | BQ140: 400.6141477 | BR140: 401.0526699 | BS140: 400.9762508 | BT140: 400.8930874 | BU140: 400.7197461 | BV140: 400.7828723 | BW140: 401.2312428 | BX140: 401.1338132 | BY140: 401.6181038 | BZ140: 401.6975978 | CA140: 402.2197138 | CB140: 401.8149936 | CC140: 401.8140353 | CD140: 402.3679581 | CE140: 402.0785475 | CF140: 401.8726177 | CG140: 401.5788831
B141: Ad Valorem | D141: percentage | E141: ='User Interface'!C14 -> 0.01 | F141: 0 | G141: =F141+E141 -> 0.01
B142: Pre-Tax Profit | D142: percentage | E142: 0 | F142: ='User Interface'!D14 -> 0.1 | G142: =F142+E142 -> 0.1
B143: Specific | E143: 1.5 | F143: cents/lb nodule | AH143: DETAILED CASH FLOWS
AH145: Collector
AH146: COMMON CASH FLOWS
AH147: Capital Expenditures | AJ147: 1 | AK147: 2 | AL147: 3 | AM147: 4 | AN147: 5 | AO147: 6 | AP147: 7 | AQ147: 8 | AR147: 9 | AS147: 10 | AT147: 11 | AU147: 12 | AV147: 13 | AW147: 14 | AX147: 15 | AY147: 16 | AZ147: 17 | BA147: 18 | BB147: 19 | BC147: 20 | BD147: 21 | BE147: 22 | BF147: 23 | BG147: 24 | BH147: 25 | BI147: 26 | BJ147: 27 | BK147: 28 | BL147: 29 | BM147: 30 | BN147: 31 | BO147: 32 | BP147: 33 | BQ147: 34 | BR147: 35 | BS147: 36 | BT147: 37 | BU147: 38 | BV147: 39 | BW147: 40 | BX147: 41 | BY147: 42 | BZ147: 43 | CA147: 44 | CB147: 45 | CC147: 46 | CD147: 47 | CE147: 48 | CF147: 49 | CG147: 50
AH148: =B31 -> Pre-Feasibility Phase | AJ148: =IF(AND(AJ85,UPPER(TRIM($J31))="YES"),($R31*$H31)/$Q$14,IF(AJ$147=$H14,$R31*$H$31,0)) -> 2.738205583 | AK148: 2.738205583 | AL148: 2.738205583 | AM148: 2.738205583 | AN148: 2.738205583 | AO148: 2.738205583 | AP148: 0 | AQ148: 0 | AR148: 0 | AS148: 0 | AT148: 0 | AU148: 0 | AV148: 0 | AW148: 0 | AX148: 0 | AY148: 0 | AZ148: 0 | BA148: 0 | BB148: 0 | BC148: 0 | BD148: 0 | BE148: 0 | BF148: 0 | BG148: 0 | BH148: 0 | BI148: 0 | BJ148: 0 | BK148: 0 | BL148: 0 | BM148: 0 | BN148: 0 | BO148: 0 | BP148: =IF(AND(BP85,UPPER(TRIM($J31))="YES"),($R31*$H31)/$Q$14,IF(BP$147=$H14,$R31*$H$31,0)) -> 0 | BQ148: 0 | BR148: 0 | BS148: 0 | BT148: 0 | BU148: 0 | BV148: 0 | BW148: 0 | BX148: 0 | BY148: 0 | BZ148: 0 | CA148: 0 | CB148: 0 | CC148: 0 | CD148: 0 | CE148: 0 | CF148: 0 | CG148: 0
AH149: =B32 -> Feasibility Phase | AJ149: =IF(AND(AJ86,UPPER(TRIM($J32))="YES"),($R32*$H$32)/$Q15,IF(AJ$147=$H15,$R32*$H$32,0)) -> 0 | AK149: 0 | AL149: 0 | AM149: 45.2778 | AN149: 45.2778 | AO149: 45.2778 | AP149: 45.2778 | AQ149: 0 | AR149: 0 | AS149: 0 | AT149: 0 | AU149: 0 | AV149: 0 | AW149: 0 | AX149: 0 | AY149: 0 | AZ149: 0 | BA149: 0 | BB149: 0 | BC149: 0 | BD149: 0 | BE149: 0 | BF149: 0 | BG149: 0 | BH149: 0 | BI149: 0 | BJ149: 0 | BK149: 0 | BL149: 0 | BM149: 0 | BN149: 0 | BO149: 0 | BP149: =IF(AND(BP86,UPPER(TRIM($J32))="YES"),($R32*$H$32)/$Q15,IF(BP$147=$H15,$R32*$H$32,0)) -> 0 | BQ149: 0 | BR149: 0 | BS149: 0 | BT149: 0 | BU149: 0 | BV149: 0 | BW149: 0 | BX149: 0 | BY149: 0 | BZ149: 0 | CA149: 0 | CB149: 0 | CC149: 0 | CD149: 0 | CE149: 0 | CF149: 0 | CG149: 0
AH150: =B33 -> Design & Build - Collection System | AJ150: =IF(AND(AJ87,UPPER(TRIM($J33))="YES"),($R33*$H$33)/$Q17,IF(AJ$147=$H17,$R33*$H$33,0)) -> 0 | AK150: 0 | AL150: 0 | AM150: 0 | AN150: 0 | AO150: 0 | AP150: 0 | AQ150: 212.6666667 | AR150: 212.6666667 | AS150: 212.6666667 | AT150: 0 | AU150: 0 | AV150: 0 | AW150: 0 | AX150: 0 | AY150: 0 | AZ150: 0 | BA150: 0 | BB150: 0 | BC150: 0 | BD150: 0 | BE150: 0 | BF150: 0 | BG150: 0 | BH150: 0 | BI150: 0 | BJ150: 0 | BK150: 0 | BL150: 0 | BM150: 0 | BN150: 0 | BO150: 0 | BP150: =IF(AND(BP87,UPPER(TRIM($J33))="YES"),($R33*$H$33)/$Q17,IF(BP$147=$H17,$R33*$H$33,0)) -> 0 | BQ150: 0 | BR150: 0 | BS150: 0 | BT150: 0 | BU150: 0 | BV150: 0 | BW150: 0 | BX150: 0 | BY150: 0 | BZ150: 0 | CA150: 0 | CB150: 0 | CC150: 0 | CD150: 0 | CE150: 0 | CF150: 0 | CG150: 0
AH151: =B34 -> Design & Build - Surface Vessels | AJ151: =IF(AND(AJ87,UPPER(TRIM($J34))="YES"),($R34*$H$34)/$Q17,IF(AJ$147=$H17,$R34*$H$34,0)) -> 0 | AK151: 0 | AL151: 0 | AM151: 0 | AN151: 0 | AO151: 0 | AP151: 0 | AQ151: 335 | AR151: 335 | AS151: 335 | AT151: 0 | AU151: 0 | AV151: 0 | AW151: 0 | AX151: 0 | AY151: 0 | AZ151: 0 | BA151: 0 | BB151: 0 | BC151: 0 | BD151: 0 | BE151: 0 | BF151: 0 | BG151: 0 | BH151: 0 | BI151: 0 | BJ151: 0 | BK151: 0 | BL151: 0 | BM151: 0 | BN151: 0 | BO151: 0 | BP151: =IF(AND(BP87,UPPER(TRIM($J34))="YES"),($R34*$H$34)/$Q17,IF(BP$147=$H17,$R34*$H$34,0)) -> 0 | BQ151: 0 | BR151: 0 | BS151: 0 | BT151: 0 | BU151: 0 | BV151: 0 | BW151: 0 | BX151: 0 | BY151: 0 | BZ151: 0 | CA151: 0 | CB151: 0 | CC151: 0 | CD151: 0 | CE151: 0 | CF151: 0 | CG151: 0
AH152: Operations (Maintenance, etc) | AJ152: =IF(SUM(AJ88:AJ89)=0,0,IF($W$40,NOT(MOD(SUM($AJ$88:AJ89),$W$40)),0)*$R$40*$I$40+IF($W$41,NOT(MOD(SUM($AJ$88:AJ89),$W$41)),0)*$R$41*$I$41+IF($W$42,NOT(MOD(SUM($AJ$88:AJ89),$W$42)),0)*$R$42*$I$42+IF($W$43,NOT(MOD(SUM($AJ$88:AJ89),$W$43)),0)*$R$43*$I$43+IF($W$44,NOT(MOD(SUM($AJ$88:AJ89),$W$44)),0)*$R$44*$I$44) -> 0 | AK152: =IF(SUM(AK88:AK89)=0,0,IF($W$40,NOT(MOD(SUM($AJ$88:AK89),$W$40)),0)*$R$40*$I$40+IF($W$41,NOT(MOD(SUM($AJ$88:AK89),$W$41)),0)*$R$41*$I$41+IF($W$42,NOT(MOD(SUM($AJ$88:AK89),$W$42)),0)*$R$42*$I$42+IF($W$43,NOT(MOD(SUM($AJ$88:AK89),$W$43)),0)*$R$43*$I$43+IF($W$44,NOT(MOD(SUM($AJ$88:AK89),$W$44)),0)*$R$44*$I$44) -> 0 | AL152: =IF(SUM(AL88:AL89)=0,0,IF($W$40,NOT(MOD(SUM($AJ$88:AL89),$W$40)),0)*$R$40*$I$40+IF($W$41,NOT(MOD(SUM($AJ$88:AL89),$W$41)),0)*$R$41*$I$41+IF($W$42,NOT(MOD(SUM($AJ$88:AL89),$W$42)),0)*$R$42*$I$42+IF($W$43,NOT(MOD(SUM($AJ$88:AL89),$W$43)),0)*$R$43*$I$43+IF($W$44,NOT(MOD(SUM($AJ$88:AL89),$W$44)),0)*$R$44*$I$44) -> 0 | AM152: =IF(SUM(AM88:AM89)=0,0,IF($W$40,NOT(MOD(SUM($AJ$88:AM89),$W$40)),0)*$R$40*$I$40+IF($W$41,NOT(MOD(SUM($AJ$88:AM89),$W$41)),0)*$R$41*$I$41+IF($W$42,NOT(MOD(SUM($AJ$88:AM89),$W$42)),0)*$R$42*$I$42+IF($W$43,NOT(MOD(SUM($AJ$88:AM89),$W$43)),0)*$R$43*$I$43+IF($W$44,NOT(MOD(SUM($AJ$88:AM89),$W$44)),0)*$R$44*$I$44) -> 0 | AN152: =IF(SUM(AN88:AN89)=0,0,IF($W$40,NOT(MOD(SUM($AJ$88:AN89),$W$40)),0)*$R$40*$I$40+IF($W$41,NOT(MOD(SUM($AJ$88:AN89),$W$41)),0)*$R$41*$I$41+IF($W$42,NOT(MOD(SUM($AJ$88:AN89),$W$42)),0)*$R$42*$I$42+IF($W$43,NOT(MOD(SUM($AJ$88:AN89),$W$43)),0)*$R$43*$I$43+IF($W$44,NOT(MOD(SUM($AJ$88:AN89),$W$44)),0)*$R$44*$I$44) -> 0 | AO152: =IF(SUM(AO88:AO89)=0,0,IF($W$40,NOT(MOD(SUM($AJ$88:AO89),$W$40)),0)*$R$40*$I$40+IF($W$41,NOT(MOD(SUM($AJ$88:AO89),$W$41)),0)*$R$41*$I$41+IF($W$42,NOT(MOD(SUM($AJ$88:AO89),$W$42)),0)*$R$42*$I$42+IF($W$43,NOT(MOD(SUM($AJ$88:AO89),$W$43)),0)*$R$43*$I$43+IF($W$44,NOT(MOD(SUM($AJ$88:AO89),$W$44)),0)*$R$44*$I$44) -> 0 | AP152: =IF(SUM(AP88:AP89)=0,0,IF($W$40,NOT(MOD(SUM($AJ$88:AP89),$W$40)),0)*$R$40*$I$40+IF($W$41,NOT(MOD(SUM($AJ$88:AP89),$W$41)),0)*$R$41*$I$41+IF($W$42,NOT(MOD(SUM($AJ$88:AP89),$W$42)),0)*$R$42*$I$42+IF($W$43,NOT(MOD(SUM($AJ$88:AP89),$W$43)),0)*$R$43*$I$43+IF($W$44,NOT(MOD(SUM($AJ$88:AP89),$W$44)),0)*$R$44*$I$44) -> 0 | AQ152: =IF(SUM(AQ88:AQ89)=0,0,IF($W$40,NOT(MOD(SUM($AJ$88:AQ89),$W$40)),0)*$R$40*$I$40+IF($W$41,NOT(MOD(SUM($AJ$88:AQ89),$W$41)),0)*$R$41*$I$41+IF($W$42,NOT(MOD(SUM($AJ$88:AQ89),$W$42)),0)*$R$42*$I$42+IF($W$43,NOT(MOD(SUM($AJ$88:AQ89),$W$43)),0)*$R$43*$I$43+IF($W$44,NOT(MOD(SUM($AJ$88:AQ89),$W$44)),0)*$R$44*$I$44) -> 0 | AR152: =IF(SUM(AR88:AR89)=0,0,IF($W$40,NOT(MOD(SUM($AJ$88:AR89),$W$40)),0)*$R$40*$I$40+IF($W$41,NOT(MOD(SUM($AJ$88:AR89),$W$41)),0)*$R$41*$I$41+IF($W$42,NOT(MOD(SUM($AJ$88:AR89),$W$42)),0)*$R$42*$I$42+IF($W$43,NOT(MOD(SUM($AJ$88:AR89),$W$43)),0)*$R$43*$I$43+IF($W$44,NOT(MOD(SUM($AJ$88:AR89),$W$44)),0)*$R$44*$I$44) -> 0 | AS152: =IF(SUM(AS88:AS89)=0,0,IF($W$40,NOT(MOD(SUM($AJ$88:AS89),$W$40)),0)*$R$40*$I$40+IF($W$41,NOT(MOD(SUM($AJ$88:AS89),$W$41)),0)*$R$41*$I$41+IF($W$42,NOT(MOD(SUM($AJ$88:AS89),$W$42)),0)*$R$42*$I$42+IF($W$43,NOT(MOD(SUM($AJ$88:AS89),$W$43)),0)*$R$43*$I$43+IF($W$44,NOT(MOD(SUM($AJ$88:AS89),$W$44)),0)*$R$44*$I$44) -> 0 | AT152: =IF(SUM(AT88:AT89)=0,0,IF($W$40,NOT(MOD(SUM($AJ$88:AT89),$W$40)),0)*$R$40*$I$40+IF($W$41,NOT(MOD(SUM($AJ$88:AT89),$W$41)),0)*$R$41*$I$41+IF($W$42,NOT(MOD(SUM($AJ$88:AT89),$W$42)),0)*$R$42*$I$42+IF($W$43,NOT(MOD(SUM($AJ$88:AT89),$W$43)),0)*$R$43*$I$43+IF($W$44,NOT(MOD(SUM($AJ$88:AT89),$W$44)),0)*$R$44*$I$44) -> 0 | AU152: =IF(SUM(AU88:AU89)=0,0,IF($W$40,NOT(MOD(SUM($AJ$88:AU89),$W$40)),0)*$R$40*$I$40+IF($W$41,NOT(MOD(SUM($AJ$88:AU89),$W$41)),0)*$R$41*$I$41+IF($W$42,NOT(MOD(SUM($AJ$88:AU89),$W$42)),0)*$R$42*$I$42+IF($W$43,NOT(MOD(SUM($AJ$88:AU89),$W$43)),0)*$R$43*$I$43+IF($W$44,NOT(MOD(SUM($AJ$88:AU89),$W$44)),0)*$R$44*$I$44) -> 40 | AV152: =IF(SUM(AV88:AV89)=0,0,IF($W$40,NOT(MOD(SUM($AJ$88:AV89),$W$40)),0)*$R$40*$I$40+IF($W$41,NOT(MOD(SUM($AJ$88:AV89),$W$41)),0)*$R$41*$I$41+IF($W$42,NOT(MOD(SUM($AJ$88:AV89),$W$42)),0)*$R$42*$I$42+IF($W$43,NOT(MOD(SUM($AJ$88:AV89),$W$43)),0)*$R$43*$I$43+IF($W$44,NOT(MOD(SUM($AJ$88:AV89),$W$44)),0)*$R$44*$I$44) -> 0 | AW152: =IF(SUM(AW88:AW89)=0,0,IF($W$40,NOT(MOD(SUM($AJ$88:AW89),$W$40)),0)*$R$40*$I$40+IF($W$41,NOT(MOD(SUM($AJ$88:AW89),$W$41)),0)*$R$41*$I$41+IF($W$42,NOT(MOD(SUM($AJ$88:AW89),$W$42)),0)*$R$42*$I$42+IF($W$43,NOT(MOD(SUM($AJ$88:AW89),$W$43)),0)*$R$43*$I$43+IF($W$44,NOT(MOD(SUM($AJ$88:AW89),$W$44)),0)*$R$44*$I$44) -> 40 | AX152: =IF(SUM(AX88:AX89)=0,0,IF($W$40,NOT(MOD(SUM($AJ$88:AX89),$W$40)),0)*$R$40*$I$40+IF($W$41,NOT(MOD(SUM($AJ$88:AX89),$W$41)),0)*$R$41*$I$41+IF($W$42,NOT(MOD(SUM($AJ$88:AX89),$W$42)),0)*$R$42*$I$42+IF($W$43,NOT(MOD(SUM($AJ$88:AX89),$W$43)),0)*$R$43*$I$43+IF($W$44,NOT(MOD(SUM($AJ$88:AX89),$W$44)),0)*$R$44*$I$44) -> 48.25 | AY152: =IF(SUM(AY88:AY89)=0,0,IF($W$40,NOT(MOD(SUM($AJ$88:AY89),$W$40)),0)*$R$40*$I$40+IF($W$41,NOT(MOD(SUM($AJ$88:AY89),$W$41)),0)*$R$41*$I$41+IF($W$42,NOT(MOD(SUM($AJ$88:AY89),$W$42)),0)*$R$42*$I$42+IF($W$43,NOT(MOD(SUM($AJ$88:AY89),$W$43)),0)*$R$43*$I$43+IF($W$44,NOT(MOD(SUM($AJ$88:AY89),$W$44)),0)*$R$44*$I$44) -> 40 | AZ152: =IF(SUM(AZ88:AZ89)=0,0,IF($W$40,NOT(MOD(SUM($AJ$88:AZ89),$W$40)),0)*$R$40*$I$40+IF($W$41,NOT(MOD(SUM($AJ$88:AZ89),$W$41)),0)*$R$41*$I$41+IF($W$42,NOT(MOD(SUM($AJ$88:AZ89),$W$42)),0)*$R$42*$I$42+IF($W$43,NOT(MOD(SUM($AJ$88:AZ89),$W$43)),0)*$R$43*$I$43+IF($W$44,NOT(MOD(SUM($AJ$88:AZ89),$W$44)),0)*$R$44*$I$44) -> 0 | BA152: =IF(SUM(BA88:BA89)=0,0,IF($W$40,NOT(MOD(SUM($AJ$88:BA89),$W$40)),0)*$R$40*$I$40+IF($W$41,NOT(MOD(SUM($AJ$88:BA89),$W$41)),0)*$R$41*$I$41+IF($W$42,NOT(MOD(SUM($AJ$88:BA89),$W$42)),0)*$R$42*$I$42+IF($W$43,NOT(MOD(SUM($AJ$88:BA89),$W$43)),0)*$R$43*$I$43+IF($W$44,NOT(MOD(SUM($AJ$88:BA89),$W$44)),0)*$R$44*$I$44) -> 40 | BB152: =IF(SUM(BB88:BB89)=0,0,IF($W$40,NOT(MOD(SUM($AJ$88:BB89),$W$40)),0)*$R$40*$I$40+IF($W$41,NOT(MOD(SUM($AJ$88:BB89),$W$41)),0)*$R$41*$I$41+IF($W$42,NOT(MOD(SUM($AJ$88:BB89),$W$42)),0)*$R$42*$I$42+IF($W$43,NOT(MOD(SUM($AJ$88:BB89),$W$43)),0)*$R$43*$I$43+IF($W$44,NOT(MOD(SUM($AJ$88:BB89),$W$44)),0)*$R$44*$I$44) -> 0 | BC152: =IF(SUM(BC88:BC89)=0,0,IF($W$40,NOT(MOD(SUM($AJ$88:BC89),$W$40)),0)*$R$40*$I$40+IF($W$41,NOT(MOD(SUM($AJ$88:BC89),$W$41)),0)*$R$41*$I$41+IF($W$42,NOT(MOD(SUM($AJ$88:BC89),$W$42)),0)*$R$42*$I$42+IF($W$43,NOT(MOD(SUM($AJ$88:BC89),$W$43)),0)*$R$43*$I$43+IF($W$44,NOT(MOD(SUM($AJ$88:BC89),$W$44)),0)*$R$44*$I$44) -> 88.25 | BD152: =IF(SUM(BD88:BD89)=0,0,IF($W$40,NOT(MOD(SUM($AJ$88:BD89),$W$40)),0)*$R$40*$I$40+IF($W$41,NOT(MOD(SUM($AJ$88:BD89),$W$41)),0)*$R$41*$I$41+IF($W$42,NOT(MOD(SUM($AJ$88:BD89),$W$42)),0)*$R$42*$I$42+IF($W$43,NOT(MOD(SUM($AJ$88:BD89),$W$43)),0)*$R$43*$I$43+IF($W$44,NOT(MOD(SUM($AJ$88:BD89),$W$44)),0)*$R$44*$I$44) -> 0 | BE152: =IF(SUM(BE88:BE89)=0,0,IF($W$40,NOT(MOD(SUM($AJ$88:BE89),$W$40)),0)*$R$40*$I$40+IF($W$41,NOT(MOD(SUM($AJ$88:BE89),$W$41)),0)*$R$41*$I$41+IF($W$42,NOT(MOD(SUM($AJ$88:BE89),$W$42)),0)*$R$42*$I$42+IF($W$43,NOT(MOD(SUM($AJ$88:BE89),$W$43)),0)*$R$43*$I$43+IF($W$44,NOT(MOD(SUM($AJ$88:BE89),$W$44)),0)*$R$44*$I$44) -> 40 | BF152: =IF(SUM(BF88:BF89)=0,0,IF($W$40,NOT(MOD(SUM($AJ$88:BF89),$W$40)),0)*$R$40*$I$40+IF($W$41,NOT(MOD(SUM($AJ$88:BF89),$W$41)),0)*$R$41*$I$41+IF($W$42,NOT(MOD(SUM($AJ$88:BF89),$W$42)),0)*$R$42*$I$42+IF($W$43,NOT(MOD(SUM($AJ$88:BF89),$W$43)),0)*$R$43*$I$43+IF($W$44,NOT(MOD(SUM($AJ$88:BF89),$W$44)),0)*$R$44*$I$44) -> 0 | BG152: =IF(SUM(BG88:BG89)=0,0,IF($W$40,NOT(MOD(SUM($AJ$88:BG89),$W$40)),0)*$R$40*$I$40+IF($W$41,NOT(MOD(SUM($AJ$88:BG89),$W$41)),0)*$R$41*$I$41+IF($W$42,NOT(MOD(SUM($AJ$88:BG89),$W$42)),0)*$R$42*$I$42+IF($W$43,NOT(MOD(SUM($AJ$88:BG89),$W$43)),0)*$R$43*$I$43+IF($W$44,NOT(MOD(SUM($AJ$88:BG89),$W$44)),0)*$R$44*$I$44) -> 40 | BH152: =IF(SUM(BH88:BH89)=0,0,IF($W$40,NOT(MOD(SUM($AJ$88:BH89),$W$40)),0)*$R$40*$I$40+IF($W$41,NOT(MOD(SUM($AJ$88:BH89),$W$41)),0)*$R$41*$I$41+IF($W$42,NOT(MOD(SUM($AJ$88:BH89),$W$42)),0)*$R$42*$I$42+IF($W$43,NOT(MOD(SUM($AJ$88:BH89),$W$43)),0)*$R$43*$I$43+IF($W$44,NOT(MOD(SUM($AJ$88:BH89),$W$44)),0)*$R$44*$I$44) -> 48.25 | BI152: =IF(SUM(BI88:BI89)=0,0,IF($W$40,NOT(MOD(SUM($AJ$88:BI89),$W$40)),0)*$R$40*$I$40+IF($W$41,NOT(MOD(SUM($AJ$88:BI89),$W$41)),0)*$R$41*$I$41+IF($W$42,NOT(MOD(SUM($AJ$88:BI89),$W$42)),0)*$R$42*$I$42+IF($W$43,NOT(MOD(SUM($AJ$88:BI89),$W$43)),0)*$R$43*$I$43+IF($W$44,NOT(MOD(SUM($AJ$88:BI89),$W$44)),0)*$R$44*$I$44) -> 40 | BJ152: =IF(SUM(BJ88:BJ89)=0,0,IF($W$40,NOT(MOD(SUM($AJ$88:BJ89),$W$40)),0)*$R$40*$I$40+IF($W$41,NOT(MOD(SUM($AJ$88:BJ89),$W$41)),0)*$R$41*$I$41+IF($W$42,NOT(MOD(SUM($AJ$88:BJ89),$W$42)),0)*$R$42*$I$42+IF($W$43,NOT(MOD(SUM($AJ$88:BJ89),$W$43)),0)*$R$43*$I$43+IF($W$44,NOT(MOD(SUM($AJ$88:BJ89),$W$44)),0)*$R$44*$I$44) -> 0 | BK152: =IF(SUM(BK88:BK89)=0,0,IF($W$40,NOT(MOD(SUM($AJ$88:BK89),$W$40)),0)*$R$40*$I$40+IF($W$41,NOT(MOD(SUM($AJ$88:BK89),$W$41)),0)*$R$41*$I$41+IF($W$42,NOT(MOD(SUM($AJ$88:BK89),$W$42)),0)*$R$42*$I$42+IF($W$43,NOT(MOD(SUM($AJ$88:BK89),$W$43)),0)*$R$43*$I$43+IF($W$44,NOT(MOD(SUM($AJ$88:BK89),$W$44)),0)*$R$44*$I$44) -> 40 | BL152: =IF(SUM(BL88:BL89)=0,0,IF($W$40,NOT(MOD(SUM($AJ$88:BL89),$W$40)),0)*$R$40*$I$40+IF($W$41,NOT(MOD(SUM($AJ$88:BL89),$W$41)),0)*$R$41*$I$41+IF($W$42,NOT(MOD(SUM($AJ$88:BL89),$W$42)),0)*$R$42*$I$42+IF($W$43,NOT(MOD(SUM($AJ$88:BL89),$W$43)),0)*$R$43*$I$43+IF($W$44,NOT(MOD(SUM($AJ$88:BL89),$W$44)),0)*$R$44*$I$44) -> 0 | BM152: =IF(SUM(BM88:BM89)=0,0,IF($W$40,NOT(MOD(SUM($AJ$88:BM89),$W$40)),0)*$R$40*$I$40+IF($W$41,NOT(MOD(SUM($AJ$88:BM89),$W$41)),0)*$R$41*$I$41+IF($W$42,NOT(MOD(SUM($AJ$88:BM89),$W$42)),0)*$R$42*$I$42+IF($W$43,NOT(MOD(SUM($AJ$88:BM89),$W$43)),0)*$R$43*$I$43+IF($W$44,NOT(MOD(SUM($AJ$88:BM89),$W$44)),0)*$R$44*$I$44) -> 88.25 | BN152: =IF(SUM(BN88:BN89)=0,0,IF($W$40,NOT(MOD(SUM($AJ$88:BN89),$W$40)),0)*$R$40*$I$40+IF($W$41,NOT(MOD(SUM($AJ$88:BN89),$W$41)),0)*$R$41*$I$41+IF($W$42,NOT(MOD(SUM($AJ$88:BN89),$W$42)),0)*$R$42*$I$42+IF($W$43,NOT(MOD(SUM($AJ$88:BN89),$W$43)),0)*$R$43*$I$43+IF($W$44,NOT(MOD(SUM($AJ$88:BN89),$W$44)),0)*$R$44*$I$44) -> 0 | BO152: =IF(SUM(BO88:BO89)=0,0,IF($W$40,NOT(MOD(SUM($AJ$88:BO89),$W$40)),0)*$R$40*$I$40+IF($W$41,NOT(MOD(SUM($AJ$88:BO89),$W$41)),0)*$R$41*$I$41+IF($W$42,NOT(MOD(SUM($AJ$88:BO89),$W$42)),0)*$R$42*$I$42+IF($W$43,NOT(MOD(SUM($AJ$88:BO89),$W$43)),0)*$R$43*$I$43+IF($W$44,NOT(MOD(SUM($AJ$88:BO89),$W$44)),0)*$R$44*$I$44) -> 40 | BP152: =IF(SUM(BP88:BP89)=0,0,IF($W$40,NOT(MOD(SUM($AJ$88:BP89),$W$40)),0)*$R$40*$I$40+IF($W$41,NOT(MOD(SUM($AJ$88:BP89),$W$41)),0)*$R$41*$I$41+IF($W$42,NOT(MOD(SUM($AJ$88:BP89),$W$42)),0)*$R$42*$I$42+IF($W$43,NOT(MOD(SUM($AJ$88:BP89),$W$43)),0)*$R$43*$I$43+IF($W$44,NOT(MOD(SUM($AJ$88:BP89),$W$44)),0)*$R$44*$I$44) -> 0 | BQ152: =IF(SUM(BQ88:BQ89)=0,0,IF($W$40,NOT(MOD(SUM($AJ$88:BQ89),$W$40)),0)*$R$40*$I$40+IF($W$41,NOT(MOD(SUM($AJ$88:BQ89),$W$41)),0)*$R$41*$I$41+IF($W$42,NOT(MOD(SUM($AJ$88:BQ89),$W$42)),0)*$R$42*$I$42+IF($W$43,NOT(MOD(SUM($AJ$88:BQ89),$W$43)),0)*$R$43*$I$43+IF($W$44,NOT(MOD(SUM($AJ$88:BQ89),$W$44)),0)*$R$44*$I$44) -> 40 | BR152: =IF(SUM(BR88:BR89)=0,0,IF($W$40,NOT(MOD(SUM($AJ$88:BR89),$W$40)),0)*$R$40*$I$40+IF($W$41,NOT(MOD(SUM($AJ$88:BR89),$W$41)),0)*$R$41*$I$41+IF($W$42,NOT(MOD(SUM($AJ$88:BR89),$W$42)),0)*$R$42*$I$42+IF($W$43,NOT(MOD(SUM($AJ$88:BR89),$W$43)),0)*$R$43*$I$43+IF($W$44,NOT(MOD(SUM($AJ$88:BR89),$W$44)),0)*$R$44*$I$44) -> 48.25 | BS152: =IF(SUM(BS88:BS89)=0,0,IF($W$40,NOT(MOD(SUM($AJ$88:BS89),$W$40)),0)*$R$40*$I$40+IF($W$41,NOT(MOD(SUM($AJ$88:BS89),$W$41)),0)*$R$41*$I$41+IF($W$42,NOT(MOD(SUM($AJ$88:BS89),$W$42)),0)*$R$42*$I$42+IF($W$43,NOT(MOD(SUM($AJ$88:BS89),$W$43)),0)*$R$43*$I$43+IF($W$44,NOT(MOD(SUM($AJ$88:BS89),$W$44)),0)*$R$44*$I$44) -> 40 | BT152: =IF(SUM(BT88:BT89)=0,0,IF($W$40,NOT(MOD(SUM($AJ$88:BT89),$W$40)),0)*$R$40*$I$40+IF($W$41,NOT(MOD(SUM($AJ$88:BT89),$W$41)),0)*$R$41*$I$41+IF($W$42,NOT(MOD(SUM($AJ$88:BT89),$W$42)),0)*$R$42*$I$42+IF($W$43,NOT(MOD(SUM($AJ$88:BT89),$W$43)),0)*$R$43*$I$43+IF($W$44,NOT(MOD(SUM($AJ$88:BT89),$W$44)),0)*$R$44*$I$44) -> 0 | BU152: =IF(SUM(BU88:BU89)=0,0,IF($W$40,NOT(MOD(SUM($AJ$88:BU89),$W$40)),0)*$R$40*$I$40+IF($W$41,NOT(MOD(SUM($AJ$88:BU89),$W$41)),0)*$R$41*$I$41+IF($W$42,NOT(MOD(SUM($AJ$88:BU89),$W$42)),0)*$R$42*$I$42+IF($W$43,NOT(MOD(SUM($AJ$88:BU89),$W$43)),0)*$R$43*$I$43+IF($W$44,NOT(MOD(SUM($AJ$88:BU89),$W$44)),0)*$R$44*$I$44) -> 0 | BV152: =IF(SUM(BV88:BV89)=0,0,IF($W$40,NOT(MOD(SUM($AJ$88:BV89),$W$40)),0)*$R$40*$I$40+IF($W$41,NOT(MOD(SUM($AJ$88:BV89),$W$41)),0)*$R$41*$I$41+IF($W$42,NOT(MOD(SUM($AJ$88:BV89),$W$42)),0)*$R$42*$I$42+IF($W$43,NOT(MOD(SUM($AJ$88:BV89),$W$43)),0)*$R$43*$I$43+IF($W$44,NOT(MOD(SUM($AJ$88:BV89),$W$44)),0)*$R$44*$I$44) -> 0 | BW152: =IF(SUM(BW88:BW89)=0,0,IF($W$40,NOT(MOD(SUM($AJ$88:BW89),$W$40)),0)*$R$40*$I$40+IF($W$41,NOT(MOD(SUM($AJ$88:BW89),$W$41)),0)*$R$41*$I$41+IF($W$42,NOT(MOD(SUM($AJ$88:BW89),$W$42)),0)*$R$42*$I$42+IF($W$43,NOT(MOD(SUM($AJ$88:BW89),$W$43)),0)*$R$43*$I$43+IF($W$44,NOT(MOD(SUM($AJ$88:BW89),$W$44)),0)*$R$44*$I$44) -> 0 | BX152: =IF(SUM(BX88:BX89)=0,0,IF($W$40,NOT(MOD(SUM($AJ$88:BX89),$W$40)),0)*$R$40*$I$40+IF($W$41,NOT(MOD(SUM($AJ$88:BX89),$W$41)),0)*$R$41*$I$41+IF($W$42,NOT(MOD(SUM($AJ$88:BX89),$W$42)),0)*$R$42*$I$42+IF($W$43,NOT(MOD(SUM($AJ$88:BX89),$W$43)),0)*$R$43*$I$43+IF($W$44,NOT(MOD(SUM($AJ$88:BX89),$W$44)),0)*$R$44*$I$44) -> 0 | BY152: =IF(SUM(BY88:BY89)=0,0,IF($W$40,NOT(MOD(SUM($AJ$88:BY89),$W$40)),0)*$R$40*$I$40+IF($W$41,NOT(MOD(SUM($AJ$88:BY89),$W$41)),0)*$R$41*$I$41+IF($W$42,NOT(MOD(SUM($AJ$88:BY89),$W$42)),0)*$R$42*$I$42+IF($W$43,NOT(MOD(SUM($AJ$88:BY89),$W$43)),0)*$R$43*$I$43+IF($W$44,NOT(MOD(SUM($AJ$88:BY89),$W$44)),0)*$R$44*$I$44) -> 0 | BZ152: =IF(SUM(BZ88:BZ89)=0,0,IF($W$40,NOT(MOD(SUM($AJ$88:BZ89),$W$40)),0)*$R$40*$I$40+IF($W$41,NOT(MOD(SUM($AJ$88:BZ89),$W$41)),0)*$R$41*$I$41+IF($W$42,NOT(MOD(SUM($AJ$88:BZ89),$W$42)),0)*$R$42*$I$42+IF($W$43,NOT(MOD(SUM($AJ$88:BZ89),$W$43)),0)*$R$43*$I$43+IF($W$44,NOT(MOD(SUM($AJ$88:BZ89),$W$44)),0)*$R$44*$I$44) -> 0 | CA152: =IF(SUM(CA88:CA89)=0,0,IF($W$40,NOT(MOD(SUM($AJ$88:CA89),$W$40)),0)*$R$40*$I$40+IF($W$41,NOT(MOD(SUM($AJ$88:CA89),$W$41)),0)*$R$41*$I$41+IF($W$42,NOT(MOD(SUM($AJ$88:CA89),$W$42)),0)*$R$42*$I$42+IF($W$43,NOT(MOD(SUM($AJ$88:CA89),$W$43)),0)*$R$43*$I$43+IF($W$44,NOT(MOD(SUM($AJ$88:CA89),$W$44)),0)*$R$44*$I$44) -> 0 | CB152: =IF(SUM(CB88:CB89)=0,0,IF($W$40,NOT(MOD(SUM($AJ$88:CB89),$W$40)),0)*$R$40*$I$40+IF($W$41,NOT(MOD(SUM($AJ$88:CB89),$W$41)),0)*$R$41*$I$41+IF($W$42,NOT(MOD(SUM($AJ$88:CB89),$W$42)),0)*$R$42*$I$42+IF($W$43,NOT(MOD(SUM($AJ$88:CB89),$W$43)),0)*$R$43*$I$43+IF($W$44,NOT(MOD(SUM($AJ$88:CB89),$W$44)),0)*$R$44*$I$44) -> 0 | CC152: =IF(SUM(CC88:CC89)=0,0,IF($W$40,NOT(MOD(SUM($AJ$88:CC89),$W$40)),0)*$R$40*$I$40+IF($W$41,NOT(MOD(SUM($AJ$88:CC89),$W$41)),0)*$R$41*$I$41+IF($W$42,NOT(MOD(SUM($AJ$88:CC89),$W$42)),0)*$R$42*$I$42+IF($W$43,NOT(MOD(SUM($AJ$88:CC89),$W$43)),0)*$R$43*$I$43+IF($W$44,NOT(MOD(SUM($AJ$88:CC89),$W$44)),0)*$R$44*$I$44) -> 0 | CD152: =IF(SUM(CD88:CD89)=0,0,IF($W$40,NOT(MOD(SUM($AJ$88:CD89),$W$40)),0)*$R$40*$I$40+IF($W$41,NOT(MOD(SUM($AJ$88:CD89),$W$41)),0)*$R$41*$I$41+IF($W$42,NOT(MOD(SUM($AJ$88:CD89),$W$42)),0)*$R$42*$I$42+IF($W$43,NOT(MOD(SUM($AJ$88:CD89),$W$43)),0)*$R$43*$I$43+IF($W$44,NOT(MOD(SUM($AJ$88:CD89),$W$44)),0)*$R$44*$I$44) -> 0 | CE152: =IF(SUM(CE88:CE89)=0,0,IF($W$40,NOT(MOD(SUM($AJ$88:CE89),$W$40)),0)*$R$40*$I$40+IF($W$41,NOT(MOD(SUM($AJ$88:CE89),$W$41)),0)*$R$41*$I$41+IF($W$42,NOT(MOD(SUM($AJ$88:CE89),$W$42)),0)*$R$42*$I$42+IF($W$43,NOT(MOD(SUM($AJ$88:CE89),$W$43)),0)*$R$43*$I$43+IF($W$44,NOT(MOD(SUM($AJ$88:CE89),$W$44)),0)*$R$44*$I$44) -> 0 | CF152: =IF(SUM(CF88:CF89)=0,0,IF($W$40,NOT(MOD(SUM($AJ$88:CF89),$W$40)),0)*$R$40*$I$40+IF($W$41,NOT(MOD(SUM($AJ$88:CF89),$W$41)),0)*$R$41*$I$41+IF($W$42,NOT(MOD(SUM($AJ$88:CF89),$W$42)),0)*$R$42*$I$42+IF($W$43,NOT(MOD(SUM($AJ$88:CF89),$W$43)),0)*$R$43*$I$43+IF($W$44,NOT(MOD(SUM($AJ$88:CF89),$W$44)),0)*$R$44*$I$44) -> 0 | CG152: =IF(SUM(CG88:CG89)=0,0,IF($W$40,NOT(MOD(SUM($AJ$88:CG89),$W$40)),0)*$R$40*$I$40+IF($W$41,NOT(MOD(SUM($AJ$88:CG89),$W$41)),0)*$R$41*$I$41+IF($W$42,NOT(MOD(SUM($AJ$88:CG89),$W$42)),0)*$R$42*$I$42+IF($W$43,NOT(MOD(SUM($AJ$88:CG89),$W$43)),0)*$R$43*$I$43+IF($W$44,NOT(MOD(SUM($AJ$88:CG89),$W$44)),0)*$R$44*$I$44) -> 0
AH153: Shutdown (Site restoration and Residual Value) | AJ153: =-IF(AJ90,(SUM($AJ$150:$CG$150)*$L$33+SUM($AJ$151:$CG$151)*$L$34-$C$53)/$Q$21,0) -> 0 | AK153: 0 | AL153: 0 | AM153: 0 | AN153: 0 | AO153: 0 | AP153: 0 | AQ153: 0 | AR153: 0 | AS153: 0 | AT153: 0 | AU153: 0 | AV153: 0 | AW153: 0 | AX153: 0 | AY153: 0 | AZ153: 0 | BA153: 0 | BB153: 0 | BC153: 0 | BD153: 0 | BE153: 0 | BF153: 0 | BG153: 0 | BH153: 0 | BI153: 0 | BJ153: 0 | BK153: 0 | BL153: 0 | BM153: 0 | BN153: 0 | BO153: 0 | BP153: =-IF(BP90,(SUM($AJ$150:$CG$150)*$L$33+SUM($AJ$151:$CG$151)*$L$34-$C$53)/$Q$21,0) -> 0 | BQ153: 0 | BR153: 0 | BS153: 0 | BT153: -196.45 | BU153: 0 | BV153: 0 | BW153: 0 | BX153: 0 | BY153: 0 | BZ153: 0 | CA153: 0 | CB153: 0 | CC153: 0 | CD153: 0 | CE153: 0 | CF153: 0 | CG153: 0
AH155: Operating Costs | AJ155: 1 | AK155: 2 | AL155: 3 | AM155: 4 | AN155: 5 | AO155: 6 | AP155: 7 | AQ155: 8 | AR155: 9 | AS155: 10 | AT155: 11 | AU155: 12 | AV155: 13 | AW155: 14 | AX155: 15 | AY155: 16 | AZ155: 17 | BA155: 18 | BB155: 19 | BC155: 20 | BD155: 21 | BE155: 22 | BF155: 23 | BG155: 24 | BH155: 25 | BI155: 26 | BJ155: 27 | BK155: 28 | BL155: 29 | BM155: 30 | BN155: 31 | BO155: 32 | BP155: 33 | BQ155: 34 | BR155: 35 | BS155: 36 | BT155: 37 | BU155: 38 | BV155: 39 | BW155: 40 | BX155: 41 | BY155: 42 | BZ155: 43 | CA155: 44 | CB155: 45 | CC155: 46 | CD155: 47 | CE155: 48 | CF155: 49 | CG155: 50
AH156: Operating Expenditures (Ramp Up) | AJ156: =AJ88*($R$48*$R$49*$C$8+$R$48*(1-$R$49)*AJ94) -> 0 | AK156: 0 | AL156: 0 | AM156: 0 | AN156: 0 | AO156: 0 | AP156: 0 | AQ156: 0 | AR156: 0 | AS156: 0 | AT156: 255.06 | AU156: 318.825 | AV156: 0 | AW156: 0 | AX156: 0 | AY156: 0 | AZ156: 0 | BA156: 0 | BB156: 0 | BC156: 0 | BD156: 0 | BE156: 0 | BF156: 0 | BG156: 0 | BH156: 0 | BI156: 0 | BJ156: 0 | BK156: 0 | BL156: 0 | BM156: 0 | BN156: 0 | BO156: 0 | BP156: =BP88*($R$48*$R$49*$C$8+$R$48*(1-$R$49)*BP94) -> 0 | BQ156: 0 | BR156: 0 | BS156: 0 | BT156: 0 | BU156: 0 | BV156: 0 | BW156: 0 | BX156: 0 | BY156: 0 | BZ156: 0 | CA156: 0 | CB156: 0 | CC156: 0 | CD156: 0 | CE156: 0 | CF156: 0 | CG156: 0
AH157: Operating Expenditures | AJ157: =AJ89*$R$48*AJ94 -> 0 | AK157: 0 | AL157: 0 | AM157: 0 | AN157: 0 | AO157: 0 | AP157: 0 | AQ157: 0 | AR157: 0 | AS157: 0 | AT157: 0 | AU157: 0 | AV157: 382.59 | AW157: 382.59 | AX157: 382.59 | AY157: 382.59 | AZ157: 382.59 | BA157: 382.59 | BB157: 382.59 | BC157: 382.59 | BD157: 382.59 | BE157: 382.59 | BF157: 382.59 | BG157: 382.59 | BH157: 382.59 | BI157: 382.59 | BJ157: 382.59 | BK157: 382.59 | BL157: 382.59 | BM157: 382.59 | BN157: 382.59 | BO157: 382.59 | BP157: =BP89*$R$48*BP94 -> 382.59 | BQ157: 382.59 | BR157: 382.59 | BS157: 382.59 | BT157: 0 | BU157: 0 | BV157: 0 | BW157: 0 | BX157: 0 | BY157: 0 | BZ157: 0 | CA157: 0 | CB157: 0 | CC157: 0 | CD157: 0 | CE157: 0 | CF157: 0 | CG157: 0
AJ159: 1 | AK159: 2 | AL159: 3 | AM159: 4 | AN159: 5 | AO159: 6 | AP159: 7 | AQ159: 8 | AR159: 9 | AS159: 10 | AT159: 11 | AU159: 12 | AV159: 13 | AW159: 14 | AX159: 15 | AY159: 16 | AZ159: 17 | BA159: 18 | BB159: 19 | BC159: 20 | BD159: 21 | BE159: 22 | BF159: 23 | BG159: 24 | BH159: 25 | BI159: 26 | BJ159: 27 | BK159: 28 | BL159: 29 | BM159: 30 | BN159: 31 | BO159: 32 | BP159: 33 | BQ159: 34 | BR159: 35 | BS159: 36 | BT159: 37 | BU159: 38 | BV159: 39 | BW159: 40 | BX159: 41 | BY159: 42 | BZ159: 43 | CA159: 44 | CB159: 45 | CC159: 46 | CD159: 47 | CE159: 48 | CF159: 49 | CG159: 50
AH160: Nodules Produced/Processed | AI160: million tonnes | AJ160: =AJ7 -> 0 | AK160: 0 | AL160: 0 | AM160: 0 | AN160: 0 | AO160: 0 | AP160: 0 | AQ160: 0 | AR160: 0 | AS160: 0 | AT160: 1 | AU160: 2 | AV160: 3 | AW160: 3 | AX160: 3 | AY160: 3 | AZ160: 3 | BA160: 3 | BB160: 3 | BC160: 3 | BD160: 3 | BE160: 3 | BF160: 3 | BG160: 3 | BH160: 3 | BI160: 3 | BJ160: 3 | BK160: 3 | BL160: 3 | BM160: 3 | BN160: 3 | BO160: 3 | BP160: =BP7 -> 3 | BQ160: 3 | BR160: 3 | BS160: 3 | BT160: 0 | BU160: 0 | BV160: 0 | BW160: 0 | BX160: 0 | BY160: 0 | BZ160: 0 | CA160: 0 | CB160: 0 | CC160: 0 | CD160: 0 | CE160: 0 | CF160: 0 | CG160: 0
AH164: Fees
AH165: Type | AI165: Year | AJ165: 1 | AK165: 2 | AL165: 3 | AM165: 4 | AN165: 5 | AO165: 6 | AP165: 7 | AQ165: 8 | AR165: 9 | AS165: 10 | AT165: 11 | AU165: 12 | AV165: 13 | AW165: 14 | AX165: 15 | AY165: 16 | AZ165: 17 | BA165: 18 | BB165: 19 | BC165: 20 | BD165: 21 | BE165: 22 | BF165: 23 | BG165: 24 | BH165: 25 | BI165: 26 | BJ165: 27 | BK165: 28 | BL165: 29 | BM165: 30 | BN165: 31 | BO165: 32 | BP165: 33 | BQ165: 34 | BR165: 35 | BS165: 36 | BT165: 37 | BU165: 38 | BV165: 39 | BW165: 40 | BX165: 41 | BY165: 42 | BZ165: 43 | CA165: 44 | CB165: 45 | CC165: 46 | CD165: 47 | CE165: 48 | CF165: 49 | CG165: 50
AH166: Exploration License Application Fee | AI166: million USD | AJ166: =IF(AJ165=MATCH(1,$AJ$85:$CG$85,0),$E$98,0) -> 0.5 | AK166: 0 | AL166: 0 | AM166: 0 | AN166: 0 | AO166: 0 | AP166: 0 | AQ166: 0 | AR166: 0 | AS166: 0 | AT166: 0 | AU166: 0 | AV166: 0 | AW166: 0 | AX166: 0 | AY166: 0 | AZ166: 0 | BA166: 0 | BB166: 0 | BC166: 0 | BD166: 0 | BE166: 0 | BF166: 0 | BG166: 0 | BH166: 0 | BI166: 0 | BJ166: 0 | BK166: 0 | BL166: 0 | BM166: 0 | BN166: 0 | BO166: 0 | BP166: =IF(BP165=MATCH(1,$AJ$85:$CG$85,0),$E$98,0) -> 0 | BQ166: 0 | BR166: 0 | BS166: 0 | BT166: 0 | BU166: 0 | BV166: 0 | BW166: 0 | BX166: 0 | BY166: 0 | BZ166: 0 | CA166: 0 | CB166: 0 | CC166: 0 | CD166: 0 | CE166: 0 | CF166: 0 | CG166: 0
AH167: Exploitation License Application Fee | AI167: million USD | AJ167: =IF(AJ165=MATCH(1,$AJ$86:$CG$86,0),$E$102,0) -> 0 | AK167: 0 | AL167: 0 | AM167: 1 | AN167: 0 | AO167: 0 | AP167: 0 | AQ167: 0 | AR167: 0 | AS167: 0 | AT167: 0 | AU167: 0 | AV167: 0 | AW167: 0 | AX167: 0 | AY167: 0 | AZ167: 0 | BA167: 0 | BB167: 0 | BC167: 0 | BD167: 0 | BE167: 0 | BF167: 0 | BG167: 0 | BH167: 0 | BI167: 0 | BJ167: 0 | BK167: 0 | BL167: 0 | BM167: 0 | BN167: 0 | BO167: 0 | BP167: =IF(BP165=MATCH(1,$AJ$86:$CG$86,0),$E$102,0) -> 0 | BQ167: 0 | BR167: 0 | BS167: 0 | BT167: 0 | BU167: 0 | BV167: 0 | BW167: 0 | BX167: 0 | BY167: 0 | BZ167: 0 | CA167: 0 | CB167: 0 | CC167: 0 | CD167: 0 | CE167: 0 | CF167: 0 | CG167: 0
AH168: Annual Exploration Admin Fees | AI168: million USD | AJ168: =IF(AJ$85=1,$E$99,0) -> 0.047 | AK168: 0.047 | AL168: 0.047 | AM168: 0.047 | AN168: 0.047 | AO168: 0.047 | AP168: 0 | AQ168: 0 | AR168: 0 | AS168: 0 | AT168: 0 | AU168: 0 | AV168: 0 | AW168: 0 | AX168: 0 | AY168: 0 | AZ168: 0 | BA168: 0 | BB168: 0 | BC168: 0 | BD168: 0 | BE168: 0 | BF168: 0 | BG168: 0 | BH168: 0 | BI168: 0 | BJ168: 0 | BK168: 0 | BL168: 0 | BM168: 0 | BN168: 0 | BO168: 0 | BP168: =IF(BP$85=1,$E$99,0) -> 0 | BQ168: 0 | BR168: 0 | BS168: 0 | BT168: 0 | BU168: 0 | BV168: 0 | BW168: 0 | BX168: 0 | BY168: 0 | BZ168: 0 | CA168: 0 | CB168: 0 | CC168: 0 | CD168: 0 | CE168: 0 | CF168: 0 | CG168: 0
AH169: Annual Exploitation Admin Fees | AI169: million USD | AJ169: =IF(SUM(AJ86:AJ89)>0,$E$103,0) -> 0 | AK169: 0 | AL169: 0 | AM169: 0.1 | AN169: 0.1 | AO169: 0.1 | AP169: 0.1 | AQ169: 0.1 | AR169: 0.1 | AS169: 0.1 | AT169: 0.1 | AU169: 0.1 | AV169: 0.1 | AW169: 0.1 | AX169: 0.1 | AY169: 0.1 | AZ169: 0.1 | BA169: 0.1 | BB169: 0.1 | BC169: 0.1 | BD169: 0.1 | BE169: 0.1 | BF169: 0.1 | BG169: 0.1 | BH169: 0.1 | BI169: 0.1 | BJ169: 0.1 | BK169: 0.1 | BL169: 0.1 | BM169: 0.1 | BN169: 0.1 | BO169: 0.1 | BP169: =IF(SUM(BP86:BP89)>0,$E$103,0) -> 0.1 | BQ169: 0.1 | BR169: 0.1 | BS169: 0.1 | BT169: 0 | BU169: 0 | BV169: 0 | BW169: 0 | BX169: 0 | BY169: 0 | BZ169: 0 | CA169: 0 | CB169: 0 | CC169: 0 | CD169: 0 | CE169: 0 | CF169: 0 | CG169: 0
AH170: Total Fees | AI170: million USD | AJ170: =SUM(AJ166:AJ169) -> 0.547 | AK170: 0.047 | AL170: 0.047 | AM170: 1.147 | AN170: 0.147 | AO170: 0.147 | AP170: 0.1 | AQ170: 0.1 | AR170: 0.1 | AS170: 0.1 | AT170: 0.1 | AU170: 0.1 | AV170: 0.1 | AW170: 0.1 | AX170: 0.1 | AY170: 0.1 | AZ170: 0.1 | BA170: 0.1 | BB170: 0.1 | BC170: 0.1 | BD170: 0.1 | BE170: 0.1 | BF170: 0.1 | BG170: 0.1 | BH170: 0.1 | BI170: 0.1 | BJ170: 0.1 | BK170: 0.1 | BL170: 0.1 | BM170: 0.1 | BN170: 0.1 | BO170: 0.1 | BP170: =SUM(BP166:BP169) -> 0.1 | BQ170: 0.1 | BR170: 0.1 | BS170: 0.1 | BT170: 0 | BU170: 0 | BV170: 0 | BW170: 0 | BX170: 0 | BY170: 0 | BZ170: 0 | CA170: 0 | CB170: 0 | CC170: 0 | CD170: 0 | CE170: 0 | CF170: 0 | CG170: 0
AH172: Environmental Fees and Levies
AH173: Type | AI173: Year | AJ173: 1 | AK173: 2 | AL173: 3 | AM173: 4 | AN173: 5 | AO173: 6 | AP173: 7 | AQ173: 8 | AR173: 9 | AS173: 10 | AT173: 11 | AU173: 12 | AV173: 13 | AW173: 14 | AX173: 15 | AY173: 16 | AZ173: 17 | BA173: 18 | BB173: 19 | BC173: 20 | BD173: 21 | BE173: 22 | BF173: 23 | BG173: 24 | BH173: 25 | BI173: 26 | BJ173: 27 | BK173: 28 | BL173: 29 | BM173: 30 | BN173: 31 | BO173: 32 | BP173: 33 | BQ173: 34 | BR173: 35 | BS173: 36 | BT173: 37 | BU173: 38 | BV173: 39 | BW173: 40 | BX173: 41 | BY173: 42 | BZ173: 43 | CA173: 44 | CB173: 45 | CC173: 46 | CD173: 47 | CE173: 48 | CF173: 49 | CG173: 50
AH174: Environmental Bond | AI174: million USD | AJ174: =IF(AJ122>0,-$E$110*$F$110,0) -> 0 | AK174: 0 | AL174: 0 | AM174: 0 | AN174: 0 | AO174: 0 | AP174: 0 | AQ174: 0 | AR174: 0 | AS174: 0 | AT174: 0 | AU174: 0 | AV174: 0 | AW174: 0 | AX174: 0 | AY174: 0 | AZ174: 0 | BA174: 0 | BB174: 0 | BC174: 0 | BD174: 0 | BE174: 0 | BF174: 0 | BG174: 0 | BH174: 0 | BI174: 0 | BJ174: 0 | BK174: 0 | BL174: 0 | BM174: 0 | BN174: 0 | BO174: 0 | BP174: =IF(BP122>0,-$E$110*$F$110,0) -> 0 | BQ174: 0 | BR174: 0 | BS174: 0 | BT174: 0 | BU174: 0 | BV174: 0 | BW174: 0 | BX174: 0 | BY174: 0 | BZ174: 0 | CA174: 0 | CB174: 0 | CC174: 0 | CD174: 0 | CE174: 0 | CF174: 0 | CG174: 0
AH175: Environmental Liability Trust Fund | AI175: million USD | AJ175: =IF(AJ122>0,$E$108*AJ115*$R$5,0) -> 0 | AK175: 0 | AL175: 0 | AM175: 0 | AN175: 0 | AO175: 0 | AP175: 0 | AQ175: 0 | AR175: 0 | AS175: 0 | AT175: 27.14244981 | AU175: 27.42591823 | AV175: 27.64087592 | AW175: 27.77331745 | AX175: 27.98588684 | AY175: 28.16468815 | AZ175: 28.28867708 | BA175: 28.37806652 | BB175: 28.53556961 | BC175: 28.63563422 | BD175: 28.72500068 | BE175: 28.78660172 | BF175: 28.83458767 | BG175: 28.925579 | BH175: 28.99781078 | BI175: 28.99429507 | BJ175: 28.98626351 | BK175: 29.0286146 | BL175: 29.08108529 | BM175: 29.12332264 | BN175: 29.12359913 | BO175: 29.10683231 | BP175: =IF(BP122>0,$E$108*BP115*$R$5,0) -> 29.14767484 | BQ175: 29.20162985 | BR175: 29.23333018 | BS175: 29.22603873 | BT175: 0 | BU175: 0 | BV175: 0 | BW175: 0 | BX175: 0 | BY175: 0 | BZ175: 0 | CA175: 0 | CB175: 0 | CC175: 0 | CD175: 0 | CE175: 0 | CF175: 0 | CG175: 0
AH176: ="Environmenal Trust Fund Level"&IF(AND($F$108,$E$108)," (target: "&TEXT($F$108,"#,###")&" M USD)","") -> Environmenal Trust Fund Level (target: 500 M USD) | AI176: million USD | AJ176: 0 | AK176: =MIN(AK175+AJ176,$F$108) -> 0 | AL176: 0 | AM176: 0 | AN176: 0 | AO176: 0 | AP176: 0 | AQ176: 0 | AR176: 0 | AS176: 0 | AT176: 27.14244981 | AU176: 54.56836804 | AV176: 82.20924397 | AW176: 109.9825614 | AX176: 137.9684483 | AY176: 166.1331364 | AZ176: 194.4218135 | BA176: 222.79988 | BB176: 251.3354496 | BC176: 279.9710838 | BD176: 308.6960845 | BE176: 337.4826862 | BF176: 366.3172739 | BG176: 395.2428529 | BH176: 424.2406637 | BI176: 453.2349588 | BJ176: 482.2212223 | BK176: 500 | BL176: 500 | BM176: 500 | BN176: 500 | BO176: 500 | BP176: 500 | BQ176: =MIN(BQ175+BP176,$F$108) -> 500 | BR176: 500 | BS176: 500 | BT176: 500 | BU176: 500 | BV176: 500 | BW176: 500 | BX176: 500 | BY176: 500 | BZ176: 500 | CA176: 500 | CB176: 500 | CC176: 500 | CD176: 500 | CE176: 500 | CF176: 500 | CG176: 500
AH177: Annual Payment (-)! | AI177: million USD | AJ177: 0 | AK177: =AJ176-AK176 -> 0 | AL177: 0 | AM177: 0 | AN177: 0 | AO177: 0 | AP177: 0 | AQ177: 0 | AR177: 0 | AS177: 0 | AT177: -27.14244981 | AU177: =AT176-AU176 -> -27.42591823 | AV177: -27.64087592 | AW177: -27.77331745 | AX177: -27.98588684 | AY177: -28.16468815 | AZ177: -28.28867708 | BA177: -28.37806652 | BB177: -28.53556961 | BC177: -28.63563422 | BD177: -28.72500068 | BE177: -28.78660172 | BF177: -28.83458767 | BG177: -28.925579 | BH177: -28.99781078 | BI177: -28.99429507 | BJ177: -28.98626351 | BK177: -17.77877774 | BL177: 0 | BM177: 0 | BN177: 0 | BO177: 0 | BP177: 0 | BQ177: =BP176-BQ176 -> 0 | BR177: 0 | BS177: 0 | BT177: 0 | BU177: 0 | BV177: 0 | BW177: 0 | BX177: 0 | BY177: 0 | BZ177: 0 | CA177: 0 | CB177: 0 | CC177: 0 | CD177: 0 | CE177: 0 | CF177: 0 | CG177: 0
AH178: Seabed Sustainability Fund | AI178: million USD | AJ178: =IF(AJ122>0,$E$107*AJ115*$R$5,0) -> 0 | AK178: 0 | AL178: 0 | AM178: 0 | AN178: 0 | AO178: 0 | AP178: 0 | AQ178: 0 | AR178: 0 | AS178: 0 | AT178: 0 | AU178: 0 | AV178: 0 | AW178: 0 | AX178: 0 | AY178: 0 | AZ178: 0 | BA178: 0 | BB178: 0 | BC178: 0 | BD178: 0 | BE178: 0 | BF178: 0 | BG178: 0 | BH178: 0 | BI178: 0 | BJ178: 0 | BK178: 0 | BL178: 0 | BM178: 0 | BN178: 0 | BO178: 0 | BP178: =IF(BP122>0,$E$107*BP115*$R$5,0) -> 0 | BQ178: 0 | BR178: 0 | BS178: 0 | BT178: 0 | BU178: 0 | BV178: 0 | BW178: 0 | BX178: 0 | BY178: 0 | BZ178: 0 | CA178: 0 | CB178: 0 | CC178: 0 | CD178: 0 | CE178: 0 | CF178: 0 | CG178: 0
AH179: ="Seabed Sustainability Fund Level"&IF(AND($F$108,$E$107)," (target: "&TEXT($F$107,"#,###")&" M USD)","") -> Seabed Sustainability Fund Level | AI179: million USD | AJ179: 0 | AK179: =MIN(AK178+AJ179,$F$107) -> 0 | AL179: 0 | AM179: 0 | AN179: 0 | AO179: 0 | AP179: 0 | AQ179: 0 | AR179: 0 | AS179: 0 | AT179: 0 | AU179: 0 | AV179: 0 | AW179: 0 | AX179: 0 | AY179: 0 | AZ179: 0 | BA179: 0 | BB179: 0 | BC179: 0 | BD179: 0 | BE179: 0 | BF179: 0 | BG179: 0 | BH179: 0 | BI179: 0 | BJ179: 0 | BK179: 0 | BL179: 0 | BM179: 0 | BN179: 0 | BO179: 0 | BP179: 0 | BQ179: =MIN(BQ178+BP179,$F$107) -> 0 | BR179: 0 | BS179: 0 | BT179: 0 | BU179: 0 | BV179: 0 | BW179: 0 | BX179: 0 | BY179: 0 | BZ179: 0 | CA179: 0 | CB179: 0 | CC179: 0 | CD179: 0 | CE179: 0 | CF179: 0 | CG179: 0
AH180: Annual Payment (-)! | AI180: million USD | AJ180: 0 | AK180: =AJ179-AK179 -> 0 | AL180: 0 | AM180: 0 | AN180: 0 | AO180: 0 | AP180: 0 | AQ180: 0 | AR180: 0 | AS180: 0 | AT180: 0 | AU180: 0 | AV180: 0 | AW180: 0 | AX180: 0 | AY180: 0 | AZ180: 0 | BA180: 0 | BB180: 0 | BC180: 0 | BD180: 0 | BE180: 0 | BF180: 0 | BG180: 0 | BH180: 0 | BI180: 0 | BJ180: 0 | BK180: 0 | BL180: 0 | BM180: 0 | BN180: 0 | BO180: 0 | BP180: 0 | BQ180: =BP179-BQ179 -> 0 | BR180: 0 | BS180: 0 | BT180: 0 | BU180: 0 | BV180: 0 | BW180: 0 | BX180: 0 | BY180: 0 | BZ180: 0 | CA180: 0 | CB180: 0 | CC180: 0 | CD180: 0 | CE180: 0 | CF180: 0 | CG180: 0
AH181: Total Environmental Levies | AI181: million USD | AJ181: =AJ174+AJ177+AJ180 -> 0 | AK181: =AK174+AK177+AK180 -> 0 | AL181: 0 | AM181: 0 | AN181: 0 | AO181: 0 | AP181: 0 | AQ181: 0 | AR181: 0 | AS181: 0 | AT181: -27.14244981 | AU181: -27.42591823 | AV181: -27.64087592 | AW181: -27.77331745 | AX181: -27.98588684 | AY181: -28.16468815 | AZ181: -28.28867708 | BA181: -28.37806652 | BB181: -28.53556961 | BC181: -28.63563422 | BD181: -28.72500068 | BE181: -28.78660172 | BF181: -28.83458767 | BG181: -28.925579 | BH181: -28.99781078 | BI181: -28.99429507 | BJ181: -28.98626351 | BK181: -17.77877774 | BL181: 0 | BM181: 0 | BN181: 0 | BO181: 0 | BP181: 0 | BQ181: 0 | BR181: 0 | BS181: 0 | BT181: 0 | BU181: 0 | BV181: 0 | BW181: 0 | BX181: 0 | BY181: 0 | BZ181: 0 | CA181: 0 | CB181: 0 | CC181: 0 | CD181: 0 | CE181: 0 | CF181: 0 | CG181: 0
AH184: Book Value of Depreciable Assets: Collection | AJ184: 1 | AK184: 2 | AL184: 3 | AM184: 4 | AN184: 5 | AO184: 6 | AP184: 7 | AQ184: 8 | AR184: 9 | AS184: 10 | AT184: 11 | AU184: 12 | AV184: 13 | AW184: 14 | AX184: 15 | AY184: 16 | AZ184: 17 | BA184: 18 | BB184: 19 | BC184: 20 | BD184: 21 | BE184: 22 | BF184: 23 | BG184: 24 | BH184: 25 | BI184: 26 | BJ184: 27 | BK184: 28 | BL184: 29 | BM184: 30 | BN184: 31 | BO184: 32 | BP184: 33 | BQ184: 34 | BR184: 35 | BS184: 36 | BT184: 37 | BU184: 38 | BV184: 39 | BW184: 40 | BX184: 41 | BY184: 42 | BZ184: 43 | CA184: 44 | CB184: 45 | CC184: 46 | CD184: 47 | CE184: 48 | CF184: 49 | CG184: 50
B185: Depreciation Methods | AH185: Pre-Feasibility Phase [PFS] | AJ185: =AJ148 -> 2.738205583 | AK185: =AK148+AJ185 -> 5.476411167 | AL185: 8.21461675 | AM185: 10.95282233 | AN185: 13.69102792 | AO185: 16.4292335 | AP185: 16.4292335 | AQ185: 16.4292335 | AR185: 16.4292335 | AS185: 16.4292335 | AT185: 16.4292335 | AU185: 16.4292335 | AV185: 16.4292335 | AW185: 16.4292335 | AX185: 16.4292335 | AY185: 16.4292335 | AZ185: 16.4292335 | BA185: 16.4292335 | BB185: 16.4292335 | BC185: 16.4292335 | BD185: 16.4292335 | BE185: 16.4292335 | BF185: 16.4292335 | BG185: 16.4292335 | BH185: 16.4292335 | BI185: 16.4292335 | BJ185: 16.4292335 | BK185: 16.4292335 | BL185: 16.4292335 | BM185: 16.4292335 | BN185: 16.4292335 | BO185: 16.4292335 | BP185: 16.4292335 | BQ185: =BQ148+BP185 -> 16.4292335 | BR185: 16.4292335 | BS185: 16.4292335 | BT185: 16.4292335 | BU185: 16.4292335 | BV185: 16.4292335 | BW185: 16.4292335 | BX185: 16.4292335 | BY185: 16.4292335 | BZ185: 16.4292335 | CA185: 16.4292335 | CB185: 16.4292335 | CC185: 16.4292335 | CD185: 16.4292335 | CE185: 16.4292335 | CF185: 16.4292335 | CG185: 16.4292335
B186: SL | AH186: Feasibility Phase [FS] | AJ186: =AJ149 -> 0 | AK186: =AK149+AJ186 -> 0 | AL186: 0 | AM186: 45.2778 | AN186: 90.5556 | AO186: 135.8334 | AP186: 181.1112 | AQ186: 181.1112 | AR186: 181.1112 | AS186: 181.1112 | AT186: 181.1112 | AU186: 181.1112 | AV186: 181.1112 | AW186: 181.1112 | AX186: 181.1112 | AY186: 181.1112 | AZ186: 181.1112 | BA186: 181.1112 | BB186: 181.1112 | BC186: 181.1112 | BD186: 181.1112 | BE186: 181.1112 | BF186: 181.1112 | BG186: 181.1112 | BH186: 181.1112 | BI186: 181.1112 | BJ186: 181.1112 | BK186: 181.1112 | BL186: 181.1112 | BM186: 181.1112 | BN186: 181.1112 | BO186: 181.1112 | BP186: 181.1112 | BQ186: =BQ149+BP186 -> 181.1112 | BR186: 181.1112 | BS186: 181.1112 | BT186: 181.1112 | BU186: 181.1112 | BV186: 181.1112 | BW186: 181.1112 | BX186: 181.1112 | BY186: 181.1112 | BZ186: 181.1112 | CA186: 181.1112 | CB186: 181.1112 | CC186: 181.1112 | CD186: 181.1112 | CE186: 181.1112 | CF186: 181.1112 | CG186: 181.1112
B187: DB | AH187: Design & Build - Collection System | AJ187: =AJ150-AJ193 -> 0 | AK187: =AK150+AJ187-AK193 -> 0 | AL187: 0 | AM187: 0 | AN187: 0 | AO187: 0 | AP187: 0 | AQ187: 212.6666667 | AR187: 425.3333333 | AS187: 638 | AT187: 503.382 | AU187: 397.168398 | AV187: 313.365866 | AW187: 247.2456683 | AX187: 195.0768323 | AY187: 153.9156207 | AZ187: 121.4394247 | BA187: 95.8157061 | BB187: 95.8157061 | BC187: 95.8157061 | BD187: 95.8157061 | BE187: 95.8157061 | BF187: 95.8157061 | BG187: 95.8157061 | BH187: 95.8157061 | BI187: 95.8157061 | BJ187: 95.8157061 | BK187: 95.8157061 | BL187: 95.8157061 | BM187: 95.8157061 | BN187: 95.8157061 | BO187: 95.8157061 | BP187: 95.8157061 | BQ187: =BQ150+BP187-BQ193 -> 95.8157061 | BR187: 95.8157061 | BS187: 95.8157061 | BT187: 95.8157061 | BU187: 95.8157061 | BV187: 95.8157061 | BW187: 95.8157061 | BX187: 95.8157061 | BY187: 95.8157061 | BZ187: 95.8157061 | CA187: 95.8157061 | CB187: 95.8157061 | CC187: 95.8157061 | CD187: 95.8157061 | CE187: 95.8157061 | CF187: 95.8157061 | CG187: 95.8157061
B188: DDB | AH188: Design & Build - Surface Vessels | AJ188: =AJ151-AJ194 -> 0 | AK188: =AK151+AJ188-AK194 -> 0 | AL188: 0 | AM188: 0 | AN188: 0 | AO188: 0 | AP188: 0 | AQ188: 335 | AR188: 670 | AS188: 1005 | AT188: 792.945 | AU188: 625.633605 | AV188: 493.6249143 | AW188: 389.4700574 | AX188: 307.2918753 | AY188: 242.4532896 | AZ188: 191.2956455 | BA188: 150.9322643 | BB188: 150.9322643 | BC188: 150.9322643 | BD188: 150.9322643 | BE188: 150.9322643 | BF188: 150.9322643 | BG188: 150.9322643 | BH188: 150.9322643 | BI188: 150.9322643 | BJ188: 150.9322643 | BK188: 150.9322643 | BL188: 150.9322643 | BM188: 150.9322643 | BN188: 150.9322643 | BO188: 150.9322643 | BP188: 150.9322643 | BQ188: =BQ151+BP188-BQ194 -> 150.9322643 | BR188: 150.9322643 | BS188: 150.9322643 | BT188: 150.9322643 | BU188: 150.9322643 | BV188: 150.9322643 | BW188: 150.9322643 | BX188: 150.9322643 | BY188: 150.9322643 | BZ188: 150.9322643 | CA188: 150.9322643 | CB188: 150.9322643 | CC188: 150.9322643 | CD188: 150.9322643 | CE188: 150.9322643 | CF188: 150.9322643 | CG188: 150.9322643
B189: SYD
B190: None | AH190: Depreciation
AH191: Pre-Feasibility Phase [PFS]
AH192: Feasibility Phase [FS]
AH193: Design & Build - Collection System | AJ193: =IF(OR(AJ$576<$I89,AJ$576>=($I89+$F89)),0,IF(UPPER(TRIM($E89))="SL",$X33*(1-$J89)/$F89,IF(UPPER(TRIM($E89))="DB",DB($X33,$X33*$J89,$F89,AJ$576-$I89+1,12),IF(UPPER(TRIM($E89))="DDB",DDB($X33,$X33*$J89,$F89,AJ$576-$I89+1),IF(UPPER(TRIM($E89))="SYD",SYD($X33,$X33*$J89,$F89,AJ$576-$I89+1),IF(UPPER(TRIM($E89))="NONE",0,NA())))))) -> 0 | AK193: 0 | AL193: 0 | AM193: 0 | AN193: 0 | AO193: 0 | AP193: 0 | AQ193: 0 | AR193: 0 | AS193: 0 | AT193: 134.618 | AU193: 106.213602 | AV193: 83.80253198 | AW193: 66.12019773 | AX193: 52.16883601 | AY193: 41.16121161 | AZ193: 32.47619596 | BA193: 25.62371861 | BB193: 0 | BC193: 0 | BD193: 0 | BE193: 0 | BF193: 0 | BG193: 0 | BH193: 0 | BI193: 0 | BJ193: 0 | BK193: 0 | BL193: 0 | BM193: 0 | BN193: 0 | BO193: 0 | BP193: =IF(OR(BP$576<$I89,BP$576>=($I89+$F89)),0,IF(UPPER(TRIM($E89))="SL",$X33*(1-$J89)/$F89,IF(UPPER(TRIM($E89))="DB",DB($X33,$X33*$J89,$F89,BP$576-$I89+1,12),IF(UPPER(TRIM($E89))="DDB",DDB($X33,$X33*$J89,$F89,BP$576-$I89+1),IF(UPPER(TRIM($E89))="SYD",SYD($X33,$X33*$J89,$F89,BP$576-$I89+1),IF(UPPER(TRIM($E89))="NONE",0,NA())))))) -> 0 | BQ193: 0 | BR193: 0 | BS193: 0 | BT193: 0 | BU193: 0 | BV193: 0 | BW193: 0 | BX193: 0 | BY193: 0 | BZ193: 0 | CA193: 0 | CB193: 0 | CC193: 0 | CD193: 0 | CE193: 0 | CF193: 0 | CG193: 0
AH194: Design & Build - Surface Vessels | AJ194: =IF(OR(AJ$576<$I90,AJ$576>=($I90+$F90)),0,IF(UPPER(TRIM($E90))="SL",$X34*(1-$J90)/$F90,IF(UPPER(TRIM($E90))="DB",DB($X34,$X34*$J90,$F90,AJ$576-$I90+1,12),IF(UPPER(TRIM($E90))="DDB",DDB($X34,$X34*$J90,$F90,AJ$576-$I90+1),IF(UPPER(TRIM($E90))="SYD",SYD($X34,$X34*$J90,$F90,AJ$576-$I90+1),IF(UPPER(TRIM($E90))="NONE",0,NA())))))) -> 0 | AK194: 0 | AL194: 0 | AM194: 0 | AN194: 0 | AO194: 0 | AP194: 0 | AQ194: 0 | AR194: 0 | AS194: 0 | AT194: 212.055 | AU194: 167.311395 | AV194: 132.0086907 | AW194: 104.1548569 | AX194: 82.17818212 | AY194: 64.83858569 | AZ194: 51.15764411 | BA194: 40.3633812 | BB194: 0 | BC194: 0 | BD194: 0 | BE194: 0 | BF194: 0 | BG194: 0 | BH194: 0 | BI194: 0 | BJ194: 0 | BK194: 0 | BL194: 0 | BM194: 0 | BN194: 0 | BO194: 0 | BP194: =IF(OR(BP$576<$I90,BP$576>=($I90+$F90)),0,IF(UPPER(TRIM($E90))="SL",$X34*(1-$J90)/$F90,IF(UPPER(TRIM($E90))="DB",DB($X34,$X34*$J90,$F90,BP$576-$I90+1,12),IF(UPPER(TRIM($E90))="DDB",DDB($X34,$X34*$J90,$F90,BP$576-$I90+1),IF(UPPER(TRIM($E90))="SYD",SYD($X34,$X34*$J90,$F90,BP$576-$I90+1),IF(UPPER(TRIM($E90))="NONE",0,NA())))))) -> 0 | BQ194: 0 | BR194: 0 | BS194: 0 | BT194: 0 | BU194: 0 | BV194: 0 | BW194: 0 | BX194: 0 | BY194: 0 | BZ194: 0 | CA194: 0 | CB194: 0 | CC194: 0 | CD194: 0 | CE194: 0 | CF194: 0 | CG194: 0
AH197: Accounting Profit Calculations: Collection Common Cash Flows | AJ197: 1 | AK197: 2 | AL197: 3 | AM197: 4 | AN197: 5 | AO197: 6 | AP197: 7 | AQ197: 8 | AR197: 9 | AS197: 10 | AT197: 11 | AU197: 12 | AV197: 13 | AW197: 14 | AX197: 15 | AY197: 16 | AZ197: 17 | BA197: 18 | BB197: 19 | BC197: 20 | BD197: 21 | BE197: 22 | BF197: 23 | BG197: 24 | BH197: 25 | BI197: 26 | BJ197: 27 | BK197: 28 | BL197: 29 | BM197: 30 | BN197: 31 | BO197: 32 | BP197: 33 | BQ197: 34 | BR197: 35 | BS197: 36 | BT197: 37 | BU197: 38 | BV197: 39 | BW197: 40 | BX197: 41 | BY197: 42 | BZ197: 43 | CA197: 44 | CB197: 45 | CC197: 46 | CD197: 47 | CE197: 48 | CF197: 49 | CG197: 50
AH198: Capital Costs | AJ198: =-(SUM(AJ148:AJ151)) -> -2.738205583 | AK198: =-(SUM(AK148:AK151)) -> -2.738205583 | AL198: -2.738205583 | AM198: -48.01600558 | AN198: -48.01600558 | AO198: -48.01600558 | AP198: -45.2778 | AQ198: -547.6666667 | AR198: -547.6666667 | AS198: -547.6666667 | AT198: 0 | AU198: 0 | AV198: 0 | AW198: 0 | AX198: 0 | AY198: 0 | AZ198: 0 | BA198: 0 | BB198: 0 | BC198: 0 | BD198: 0 | BE198: 0 | BF198: 0 | BG198: 0 | BH198: 0 | BI198: 0 | BJ198: 0 | BK198: 0 | BL198: 0 | BM198: 0 | BN198: 0 | BO198: 0 | BP198: 0 | BQ198: 0 | BR198: 0 | BS198: 0 | BT198: 0 | BU198: 0 | BV198: 0 | BW198: 0 | BX198: 0 | BY198: 0 | BZ198: 0 | CA198: 0 | CB198: 0 | CC198: 0 | CD198: 0 | CE198: 0 | CF198: 0 | CG198: 0
AH199: Revenues (Ad Valorem) | AI199: million USD | AJ199: system specific
AH200: Operating Costs | AI200: million USD | AJ200: =-SUM(AJ156:AJ157) -> 0 | AK200: =-SUM(AK156:AK157) -> 0 | AL200: 0 | AM200: 0 | AN200: 0 | AO200: 0 | AP200: 0 | AQ200: 0 | AR200: 0 | AS200: 0 | AT200: -255.06 | AU200: -318.825 | AV200: -382.59 | AW200: -382.59 | AX200: -382.59 | AY200: -382.59 | AZ200: -382.59 | BA200: -382.59 | BB200: -382.59 | BC200: -382.59 | BD200: -382.59 | BE200: -382.59 | BF200: -382.59 | BG200: -382.59 | BH200: -382.59 | BI200: -382.59 | BJ200: -382.59 | BK200: -382.59 | BL200: -382.59 | BM200: -382.59 | BN200: -382.59 | BO200: -382.59 | BP200: -382.59 | BQ200: -382.59 | BR200: -382.59 | BS200: -382.59 | BT200: 0 | BU200: 0 | BV200: 0 | BW200: 0 | BX200: 0 | BY200: 0 | BZ200: 0 | CA200: 0 | CB200: 0 | CC200: 0 | CD200: 0 | CE200: 0 | CF200: 0 | CG200: 0
AH201: Capital Maintenance & Salvage Costs | AI201: million USD | AJ201: =-(AJ152+AJ153) -> 0 | AK201: =-(AK152+AK153) -> 0 | AL201: 0 | AM201: 0 | AN201: 0 | AO201: 0 | AP201: 0 | AQ201: 0 | AR201: 0 | AS201: 0 | AT201: 0 | AU201: -40 | AV201: 0 | AW201: -40 | AX201: -48.25 | AY201: -40 | AZ201: 0 | BA201: -40 | BB201: 0 | BC201: -88.25 | BD201: 0 | BE201: -40 | BF201: 0 | BG201: -40 | BH201: -48.25 | BI201: -40 | BJ201: 0 | BK201: -40 | BL201: 0 | BM201: -88.25 | BN201: 0 | BO201: -40 | BP201: 0 | BQ201: -40 | BR201: -48.25 | BS201: -40 | BT201: 196.45 | BU201: 0 | BV201: 0 | BW201: 0 | BX201: 0 | BY201: 0 | BZ201: 0 | CA201: 0 | CB201: 0 | CC201: 0 | CD201: 0 | CE201: 0 | CF201: 0 | CG201: 0
AH202: Finance Cost | AJ202: =IF(SUM(AJ88:AJ89)=0,0,-SUM($X$31*(1-$K$31),$X$32*(1-$K$32),$X$33*(1-$K$33),$X$34*(1-$K$34)))*$D$80 -> 0 | AK202: 0 | AL202: 0 | AM202: 0 | AN202: 0 | AO202: 0 | AP202: 0 | AQ202: 0 | AR202: 0 | AS202: 0 | AT202: 0 | AU202: 0 | AV202: 0 | AW202: 0 | AX202: 0 | AY202: 0 | AZ202: 0 | BA202: 0 | BB202: 0 | BC202: 0 | BD202: 0 | BE202: 0 | BF202: 0 | BG202: 0 | BH202: 0 | BI202: 0 | BJ202: 0 | BK202: 0 | BL202: 0 | BM202: 0 | BN202: 0 | BO202: 0 | BP202: =IF(SUM(BP88:BP89)=0,0,-SUM($X$31*(1-$K$31),$X$32*(1-$K$32),$X$33*(1-$K$33),$X$34*(1-$K$34)))*$D$80 -> 0 | BQ202: 0 | BR202: 0 | BS202: 0 | BT202: 0 | BU202: 0 | BV202: 0 | BW202: 0 | BX202: 0 | BY202: 0 | BZ202: 0 | CA202: 0 | CB202: 0 | CC202: 0 | CD202: 0 | CE202: 0 | CF202: 0 | CG202: 0
AH203: Fees | AI203: million USD | AJ203: =-AJ170 -> -0.547 | AK203: -0.047 | AL203: -0.047 | AM203: -1.147 | AN203: -0.147 | AO203: -0.147 | AP203: -0.1 | AQ203: -0.1 | AR203: -0.1 | AS203: -0.1 | AT203: -0.1 | AU203: -0.1 | AV203: -0.1 | AW203: -0.1 | AX203: -0.1 | AY203: -0.1 | AZ203: -0.1 | BA203: -0.1 | BB203: -0.1 | BC203: -0.1 | BD203: -0.1 | BE203: -0.1 | BF203: -0.1 | BG203: -0.1 | BH203: -0.1 | BI203: -0.1 | BJ203: -0.1 | BK203: -0.1 | BL203: -0.1 | BM203: -0.1 | BN203: -0.1 | BO203: -0.1 | BP203: =-BP170 -> -0.1 | BQ203: -0.1 | BR203: -0.1 | BS203: -0.1 | BT203: 0 | BU203: 0 | BV203: 0 | BW203: 0 | BX203: 0 | BY203: 0 | BZ203: 0 | CA203: 0 | CB203: 0 | CC203: 0 | CD203: 0 | CE203: 0 | CF203: 0 | CG203: 0
AH204: Environmental Levies | AI204: million USD | AJ204: =AJ181 -> 0 | AK204: 0 | AL204: 0 | AM204: 0 | AN204: 0 | AO204: 0 | AP204: 0 | AQ204: 0 | AR204: 0 | AS204: 0 | AT204: -27.14244981 | AU204: -27.42591823 | AV204: -27.64087592 | AW204: -27.77331745 | AX204: -27.98588684 | AY204: -28.16468815 | AZ204: -28.28867708 | BA204: -28.37806652 | BB204: -28.53556961 | BC204: -28.63563422 | BD204: -28.72500068 | BE204: -28.78660172 | BF204: -28.83458767 | BG204: -28.925579 | BH204: -28.99781078 | BI204: -28.99429507 | BJ204: -28.98626351 | BK204: -17.77877774 | BL204: 0 | BM204: 0 | BN204: 0 | BO204: 0 | BP204: =BP181 -> 0 | BQ204: 0 | BR204: 0 | BS204: 0 | BT204: 0 | BU204: 0 | BV204: 0 | BW204: 0 | BX204: 0 | BY204: 0 | BZ204: 0 | CA204: 0 | CB204: 0 | CC204: 0 | CD204: 0 | CE204: 0 | CF204: 0 | CG204: 0
AH205: Depreciation Costs | AI205: million USD | AJ205: =IF(UPPER($E$114)="YES",0,-SUM(AJ193:AJ194)) -> 0 | AK205: 0 | AL205: 0 | AM205: 0 | AN205: 0 | AO205: 0 | AP205: 0 | AQ205: 0 | AR205: 0 | AS205: 0 | AT205: 0 | AU205: 0 | AV205: 0 | AW205: 0 | AX205: 0 | AY205: 0 | AZ205: 0 | BA205: 0 | BB205: 0 | BC205: 0 | BD205: 0 | BE205: 0 | BF205: 0 | BG205: 0 | BH205: 0 | BI205: 0 | BJ205: 0 | BK205: 0 | BL205: 0 | BM205: 0 | BN205: 0 | BO205: 0 | BP205: =IF(UPPER($E$114)="YES",0,-SUM(BP193:BP194)) -> 0 | BQ205: 0 | BR205: 0 | BS205: 0 | BT205: 0 | BU205: 0 | BV205: 0 | BW205: 0 | BX205: 0 | BY205: 0 | BZ205: 0 | CA205: 0 | CB205: 0 | CC205: 0 | CD205: 0 | CE205: 0 | CF205: 0 | CG205: 0
AH209: SYSTEM-SPECIFIC CASH FLOWS
AH211: Accounting Profit: Collection
AH212: Ad Valorem | AJ212: 1 | AK212: 2 | AL212: 3 | AM212: 4 | AN212: 5 | AO212: 6 | AP212: 7 | AQ212: 8 | AR212: 9 | AS212: 10 | AT212: 11 | AU212: 12 | AV212: 13 | AW212: 14 | AX212: 15 | AY212: 16 | AZ212: 17 | BA212: 18 | BB212: 19 | BC212: 20 | BD212: 21 | BE212: 22 | BF212: 23 | BG212: 24 | BH212: 25 | BI212: 26 | BJ212: 27 | BK212: 28 | BL212: 29 | BM212: 30 | BN212: 31 | BO212: 32 | BP212: 33 | BQ212: 34 | BR212: 35 | BS212: 36 | BT212: 37 | BU212: 38 | BV212: 39 | BW212: 40 | BX212: 41 | BY212: 42 | BZ212: 43 | CA212: 44 | CB212: 45 | CC212: 46 | CD212: 47 | CE212: 48 | CF212: 49 | CG212: 50
AH213: Revenues (Ad Valorem) | AI213: million USD | AJ213: =AJ$137*AJ$127/1000000 -> 0 | AK213: 0 | AL213: 0 | AM213: 0 | AN213: 0 | AO213: 0 | AP213: 0 | AQ213: 0 | AR213: 0 | AS213: 0 | AT213: 389.4455122 | AU213: 787.3940141 | AV213: 1190.771941 | AW213: 1196.890803 | AX213: 1206.487543 | AY213: 1214.56002 | AZ213: 1220.144805 | BA213: 1224.257557 | BB213: 1231.305758 | BC213: 1235.806609 | BD213: 1239.829414 | BE213: 1242.649254 | BF213: 1244.899638 | BG213: 1248.985639 | BH213: 1252.208884 | BI213: 1252.170901 | BJ213: 1251.962838 | BK213: 1253.835667 | BL213: 1256.139169 | BM213: 1257.94434 | BN213: 1258.024245 | BO213: 1257.379589 | BP213: =BP$137*BP$127/1000000 -> 1259.185318 | BQ213: 1261.545199 | BR213: 1262.926118 | BS213: 1262.685472 | BT213: 0 | BU213: 0 | BV213: 0 | BW213: 0 | BX213: 0 | BY213: 0 | BZ213: 0 | CA213: 0 | CB213: 0 | CC213: 0 | CD213: 0 | CE213: 0 | CF213: 0 | CG213: 0
AH214: Operating Costs | AI214: million USD | AJ214: =AJ$200 -> 0 | AK214: 0 | AL214: 0 | AM214: 0 | AN214: 0 | AO214: 0 | AP214: 0 | AQ214: 0 | AR214: 0 | AS214: 0 | AT214: -255.06 | AU214: -318.825 | AV214: -382.59 | AW214: -382.59 | AX214: -382.59 | AY214: -382.59 | AZ214: -382.59 | BA214: -382.59 | BB214: -382.59 | BC214: -382.59 | BD214: -382.59 | BE214: -382.59 | BF214: -382.59 | BG214: -382.59 | BH214: -382.59 | BI214: -382.59 | BJ214: -382.59 | BK214: -382.59 | BL214: -382.59 | BM214: -382.59 | BN214: -382.59 | BO214: -382.59 | BP214: =BP$200 -> -382.59 | BQ214: -382.59 | BR214: -382.59 | BS214: -382.59 | BT214: 0 | BU214: 0 | BV214: 0 | BW214: 0 | BX214: 0 | BY214: 0 | BZ214: 0 | CA214: 0 | CB214: 0 | CC214: 0 | CD214: 0 | CE214: 0 | CF214: 0 | CG214: 0
AH215: Capital Maintenance Costs | AI215: million USD | AJ215: =AJ$201 -> 0 | AK215: 0 | AL215: 0 | AM215: 0 | AN215: 0 | AO215: 0 | AP215: 0 | AQ215: 0 | AR215: 0 | AS215: 0 | AT215: 0 | AU215: -40 | AV215: 0 | AW215: -40 | AX215: -48.25 | AY215: -40 | AZ215: 0 | BA215: -40 | BB215: 0 | BC215: -88.25 | BD215: 0 | BE215: -40 | BF215: 0 | BG215: -40 | BH215: -48.25 | BI215: -40 | BJ215: 0 | BK215: -40 | BL215: 0 | BM215: -88.25 | BN215: 0 | BO215: -40 | BP215: =BP$201 -> 0 | BQ215: -40 | BR215: -48.25 | BS215: -40 | BT215: 196.45 | BU215: 0 | BV215: 0 | BW215: 0 | BX215: 0 | BY215: 0 | BZ215: 0 | CA215: 0 | CB215: 0 | CC215: 0 | CD215: 0 | CE215: 0 | CF215: 0 | CG215: 0
AH216: Finance Cost | AI216: million USD | AJ216: =AJ$202 -> 0 | AK216: 0 | AL216: 0 | AM216: 0 | AN216: 0 | AO216: 0 | AP216: 0 | AQ216: 0 | AR216: 0 | AS216: 0 | AT216: 0 | AU216: 0 | AV216: 0 | AW216: 0 | AX216: 0 | AY216: 0 | AZ216: 0 | BA216: 0 | BB216: 0 | BC216: 0 | BD216: 0 | BE216: 0 | BF216: 0 | BG216: 0 | BH216: 0 | BI216: 0 | BJ216: 0 | BK216: 0 | BL216: 0 | BM216: 0 | BN216: 0 | BO216: 0 | BP216: =BP$202 -> 0 | BQ216: 0 | BR216: 0 | BS216: 0 | BT216: 0 | BU216: 0 | BV216: 0 | BW216: 0 | BX216: 0 | BY216: 0 | BZ216: 0 | CA216: 0 | CB216: 0 | CC216: 0 | CD216: 0 | CE216: 0 | CF216: 0 | CG216: 0
AH217: Fees | AI217: million USD | AJ217: =AJ$203 -> -0.547 | AK217: -0.047 | AL217: -0.047 | AM217: -1.147 | AN217: -0.147 | AO217: -0.147 | AP217: -0.1 | AQ217: -0.1 | AR217: -0.1 | AS217: -0.1 | AT217: -0.1 | AU217: -0.1 | AV217: -0.1 | AW217: -0.1 | AX217: -0.1 | AY217: -0.1 | AZ217: -0.1 | BA217: -0.1 | BB217: -0.1 | BC217: -0.1 | BD217: -0.1 | BE217: -0.1 | BF217: -0.1 | BG217: -0.1 | BH217: -0.1 | BI217: -0.1 | BJ217: -0.1 | BK217: -0.1 | BL217: -0.1 | BM217: -0.1 | BN217: -0.1 | BO217: -0.1 | BP217: =BP$203 -> -0.1 | BQ217: -0.1 | BR217: -0.1 | BS217: -0.1 | BT217: 0 | BU217: 0 | BV217: 0 | BW217: 0 | BX217: 0 | BY217: 0 | BZ217: 0 | CA217: 0 | CB217: 0 | CC217: 0 | CD217: 0 | CE217: 0 | CF217: 0 | CG217: 0
AH218: Environmental & Other Levies | AI218: million USD | AJ218: =AJ$204 -> 0 | AK218: 0 | AL218: 0 | AM218: 0 | AN218: 0 | AO218: 0 | AP218: 0 | AQ218: 0 | AR218: 0 | AS218: 0 | AT218: -27.14244981 | AU218: -27.42591823 | AV218: -27.64087592 | AW218: -27.77331745 | AX218: -27.98588684 | AY218: -28.16468815 | AZ218: -28.28867708 | BA218: -28.37806652 | BB218: -28.53556961 | BC218: -28.63563422 | BD218: -28.72500068 | BE218: -28.78660172 | BF218: -28.83458767 | BG218: -28.925579 | BH218: -28.99781078 | BI218: -28.99429507 | BJ218: -28.98626351 | BK218: -17.77877774 | BL218: 0 | BM218: 0 | BN218: 0 | BO218: 0 | BP218: =BP$204 -> 0 | BQ218: 0 | BR218: 0 | BS218: 0 | BT218: 0 | BU218: 0 | BV218: 0 | BW218: 0 | BX218: 0 | BY218: 0 | BZ218: 0 | CA218: 0 | CB218: 0 | CC218: 0 | CD218: 0 | CE218: 0 | CF218: 0 | CG218: 0
AH219: Net Operating Revenue | AI219: million USD | AJ219: =SUM(AJ213:AJ218) -> -0.547 | AK219: -0.047 | AL219: -0.047 | AM219: -1.147 | AN219: -0.147 | AO219: -0.147 | AP219: -0.1 | AQ219: -0.1 | AR219: -0.1 | AS219: -0.1 | AT219: 107.1430624 | AU219: 401.0430958 | AV219: 780.4410654 | AW219: 746.4274861 | AX219: 747.5616565 | AY219: 763.7053316 | AZ219: 809.166128 | BA219: 773.1894903 | BB219: 820.0801886 | BC219: 736.2309743 | BD219: 828.4144131 | BE219: 791.1726524 | BF219: 833.37505 | BG219: 797.3700596 | BH219: 792.2710731 | BI219: 800.4866059 | BJ219: 840.2865744 | BK219: 813.3668894 | BL219: 873.4491687 | BM219: 787.0043397 | BN219: 875.3342449 | BO219: 834.6895892 | BP219: =SUM(BP213:BP218) -> 876.4953183 | BQ219: 838.8551993 | BR219: 831.9861183 | BS219: 839.9954723 | BT219: 196.45 | BU219: 0 | BV219: 0 | BW219: 0 | BX219: 0 | BY219: 0 | BZ219: 0 | CA219: 0 | CB219: 0 | CC219: 0 | CD219: 0 | CE219: 0 | CF219: 0 | CG219: 0
... 400 more rows

Sheet Material prices
IK1: USER | RF1: Historic Data for Plots | RJ1: 1998$/ton | RK1: Copper | RL1: Nickel | RM1: Cobalt | RN1: Manganese | RP1: Year | RQ1: Manganese ($2015) | RR1: Nickel ($2015) | RS1: Cobalt ($2015) | RT1: Copper ($2015) | RU1: Historic Average for Plotting | RV1: Manganese | RW1: Nickel | RX1: Cobalt | RY1: Copper
C2: Use Default or User Provided Prices | D2: =IF(over_price?=2,1,0) -> 0 | E2: (0= Default / 1=User) | AA2: DEFAULT | AB2: Manganese | AC2: =AB2 -> Manganese | AD2: =AB2 -> Manganese | AE2: =AB2 -> Manganese | AF2: =AB2 -> Manganese | AG2: =AB2 -> Manganese | AH2: =AB2 -> Manganese | AI2: =AB2 -> Manganese | AJ2: =AB2 -> Manganese | AK2: =AB2 -> Manganese | AL2: =AB2 -> Manganese | AM2: =AB2 -> Manganese | AN2: =AB2 -> Manganese | AO2: =AB2 -> Manganese | AP2: =AB2 -> Manganese | AQ2: =AB2 -> Manganese | AR2: =AB2 -> Manganese | AS2: =AB2 -> Manganese | AT2: =AB2 -> Manganese | AU2: =AB2 -> Manganese | AV2: =AB2 -> Manganese | AW2: =AB2 -> Manganese | AX2: =AB2 -> Manganese | AY2: =AB2 -> Manganese | AZ2: =AB2 -> Manganese | BA2: =AB2 -> Manganese | BB2: =AB2 -> Manganese | BC2: =AB2 -> Manganese | BD2: =AB2 -> Manganese | BE2: =AB2 -> Manganese | BF2: =AB2 -> Manganese | BG2: =AB2 -> Manganese | BH2: =AB2 -> Manganese | BI2: =AB2 -> Manganese | BJ2: =AB2 -> Manganese | BK2: =AB2 -> Manganese | BL2: =AB2 -> Manganese | BM2: =AB2 -> Manganese | BN2: =AB2 -> Manganese | BO2: =AB2 -> Manganese | BP2: =AB2 -> Manganese | BQ2: =AB2 -> Manganese | BR2: =AB2 -> Manganese | BS2: =AB2 -> Manganese | BT2: =AB2 -> Manganese | BU2: =AB2 -> Manganese | BV2: =AB2 -> Manganese | BW2: =AB2 -> Manganese | BX2: =AB2 -> Manganese | BY2: =AB2 -> Manganese | BZ2: =AB2 -> Manganese | CD2: DEFAULT | CE2: Nickel | CF2: Nickel | CG2: Nickel | CH2: Nickel | CI2: Nickel | CJ2: Nickel | CK2: Nickel | CL2: Nickel | CM2: Nickel | CN2: Nickel | CO2: Nickel | CP2: Nickel | CQ2: Nickel | CR2: Nickel | CS2: Nickel | CT2: Nickel | CU2: Nickel | CV2: Nickel | CW2: Nickel | CX2: Nickel | CY2: Nickel | CZ2: Nickel | DA2: Nickel | DB2: Nickel | DC2: Nickel | DD2: Nickel | DE2: Nickel | DF2: Nickel | DG2: Nickel | DH2: Nickel | DI2: Nickel | DJ2: Nickel | DK2: Nickel | DL2: Nickel | DM2: Nickel | DN2: Nickel | DO2: Nickel | DP2: Nickel | DQ2: Nickel | DR2: Nickel | DS2: Nickel | DT2: Nickel | DU2: Nickel | DV2: Nickel | DW2: Nickel | DX2: Nickel | DY2: Nickel | DZ2: Nickel | EA2: Nickel | EB2: Nickel | EC2: Nickel | EG2: DEFAULT | EH2: Cobalt | EI2: Cobalt | EJ2: Cobalt | EK2: Cobalt | EL2: Cobalt | EM2: Cobalt | EN2: Cobalt | EO2: Cobalt | EP2: Cobalt | EQ2: Cobalt | ER2: Cobalt | ES2: Cobalt | ET2: Cobalt | EU2: Cobalt | EV2: Cobalt | EW2: Cobalt | EX2: Cobalt | EY2: Cobalt | EZ2: Cobalt | FA2: Cobalt | FB2: Cobalt | FC2: Cobalt | FD2: Cobalt | FE2: Cobalt | FF2: Cobalt | FG2: Cobalt | FH2: Cobalt | FI2: Cobalt | FJ2: Cobalt | FK2: Cobalt | FL2: Cobalt | FM2: Cobalt | FN2: Cobalt | FO2: Cobalt | FP2: Cobalt | FQ2: Cobalt | FR2: Cobalt | FS2: Cobalt | FT2: Cobalt | FU2: Cobalt | FV2: Cobalt | FW2: Cobalt | FX2: Cobalt | FY2: Cobalt | FZ2: Cobalt | GA2: Cobalt | GB2: Cobalt | GC2: Cobalt | GD2: Cobalt | GE2: Cobalt | GF2: Cobalt | GJ2: DEFAULT | GK2: Copper | GL2: Copper | GM2: Copper | GN2: Copper | GO2: Copper | GP2: Copper | GQ2: Copper | GR2: Copper | GS2: Copper | GT2: Copper | GU2: Copper | GV2: Copper | GW2: Copper | GX2: Copper | GY2: Copper | GZ2: Copper | HA2: Copper | HB2: Copper | HC2: Copper | HD2: Copper | HE2: Copper | HF2: Copper | HG2: Copper | HH2: Copper | HI2: Copper | HJ2: Copper | HK2: Copper | HL2: Copper | HM2: Copper | HN2: Copper | HO2: Copper | HP2: Copper | HQ2: Copper | HR2: Copper | HS2: Copper | HT2: Copper | HU2: Copper | HV2: Copper | HW2: Copper | HX2: Copper | HY2: Copper | HZ2: Copper | IA2: Copper | IB2: Copper | IC2: Copper | ID2: Copper | IE2: Copper | IF2: Copper | IG2: Copper | IH2: Copper | II2: Copper | IM2: USER | IN2: Manganese | IO2: =IN2 -> Manganese | IP2: =IN2 -> Manganese | IQ2: =IN2 -> Manganese | IR2: =IN2 -> Manganese | IS2: =IN2 -> Manganese | IT2: =IN2 -> Manganese | IU2: =IN2 -> Manganese | IV2: =IN2 -> Manganese | IW2: =IN2 -> Manganese | IX2: =IN2 -> Manganese | IY2: =IN2 -> Manganese | IZ2: =IN2 -> Manganese | JA2: =IN2 -> Manganese | JB2: =IN2 -> Manganese | JC2: =IN2 -> Manganese | JD2: =IN2 -> Manganese | JE2: =IN2 -> Manganese | JF2: =IN2 -> Manganese | JG2: =IN2 -> Manganese | JH2: =IN2 -> Manganese | JI2: =IN2 -> Manganese | JJ2: =IN2 -> Manganese | JK2: =IN2 -> Manganese | JL2: =IN2 -> Manganese | JM2: =IN2 -> Manganese | JN2: =IN2 -> Manganese | JO2: =IN2 -> Manganese | JP2: =IN2 -> Manganese | JQ2: =IN2 -> Manganese | JR2: =IN2 -> Manganese | JS2: =IN2 -> Manganese | JT2: =IN2 -> Manganese | JU2: =IN2 -> Manganese | JV2: =IN2 -> Manganese | JW2: =IN2 -> Manganese | JX2: =IN2 -> Manganese | JY2: =IN2 -> Manganese | JZ2: =IN2 -> Manganese | KA2: =IN2 -> Manganese | KB2: =IN2 -> Manganese | KC2: =IN2 -> Manganese | KD2: =IN2 -> Manganese | KE2: =IN2 -> Manganese | KF2: =IN2 -> Manganese | KG2: =IN2 -> Manganese | KH2: =IN2 -> Manganese | KI2: =IN2 -> Manganese | KJ2: =IN2 -> Manganese | KK2: =IN2 -> Manganese | KL2: =IN2 -> Manganese | KP2: USER | KQ2: Nickel | KR2: Nickel | KS2: Nickel | KT2: Nickel | KU2: Nickel | KV2: Nickel | KW2: Nickel | KX2: Nickel | KY2: Nickel | KZ2: Nickel | LA2: Nickel | LB2: Nickel | LC2: Nickel | LD2: Nickel | LE2: Nickel | LF2: Nickel | LG2: Nickel | LH2: Nickel | LI2: Nickel | LJ2: Nickel | LK2: Nickel | LL2: Nickel | LM2: Nickel | LN2: Nickel | LO2: Nickel | LP2: Nickel | LQ2: Nickel | LR2: Nickel | LS2: Nickel | LT2: Nickel | LU2: Nickel | LV2: Nickel | LW2: Nickel | LX2: Nickel | LY2: Nickel | LZ2: Nickel | MA2: Nickel | MB2: Nickel | MC2: Nickel | MD2: Nickel | ME2: Nickel | MF2: Nickel | MG2: Nickel | MH2: Nickel | MI2: Nickel | MJ2: Nickel | MK2: Nickel | ML2: Nickel | MM2: Nickel | MN2: Nickel | MO2: Nickel | MS2: USER | MT2: Cobalt | MU2: Cobalt | MV2: Cobalt | MW2: Cobalt | MX2: Cobalt | MY2: Cobalt | MZ2: Cobalt | NA2: Cobalt | NB2: Cobalt | NC2: Cobalt | ND2: Cobalt | NE2: Cobalt | NF2: Cobalt | NG2: Cobalt | NH2: Cobalt | NI2: Cobalt | NJ2: Cobalt | NK2: Cobalt | NL2: Cobalt | NM2: Cobalt | NN2: Cobalt | NO2: Cobalt | NP2: Cobalt | NQ2: Cobalt | NR2: Cobalt | NS2: Cobalt | NT2: Cobalt | NU2: Cobalt | NV2: Cobalt | NW2: Cobalt | NX2: Cobalt | NY2: Cobalt | NZ2: Cobalt | OA2: Cobalt | OB2: Cobalt | OC2: Cobalt | OD2: Cobalt | OE2: Cobalt | OF2: Cobalt | OG2: Cobalt | OH2: Cobalt | OI2: Cobalt | OJ2: Cobalt | OK2: Cobalt | OL2: Cobalt | OM2: Cobalt | ON2: Cobalt | OO2: Cobalt | OP2: Cobalt | OQ2: Cobalt | OR2: Cobalt | OV2: USER | OW2: Copper | OX2: Copper | OY2: Copper | OZ2: Copper | PA2: Copper | PB2: Copper | PC2: Copper | PD2: Copper | PE2: Copper | PF2: Copper | PG2: Copper | PH2: Copper | PI2: Copper | PJ2: Copper | PK2: Copper | PL2: Copper | PM2: Copper | PN2: Copper | PO2: Copper | PP2: Copper | PQ2: Copper | PR2: Copper | PS2: Copper | PT2: Copper | PU2: Copper | PV2: Copper | PW2: Copper | PX2: Copper | PY2: Copper | PZ2: Copper | QA2: Copper | QB2: Copper | QC2: Copper | QD2: Copper | QE2: Copper | QF2: Copper | QG2: Copper | QH2: Copper | QI2: Copper | QJ2: Copper | QK2: Copper | QL2: Copper | QM2: Copper | QN2: Copper | QO2: Copper | QP2: Copper | QQ2: Copper | QR2: Copper | QS2: Copper | QT2: Copper | QU2: Copper | RJ2: 1900 | RK2: 7000 | RL2: 22000 | RM2: 97000 | RN2: 450 | RP2: 1900 | RQ2: 652.8776978 | RR2: 31970.44335 | RS2: 140915.4229 | RT2: 10167.09512 | RV2: =AVERAGE(RQ$2:RQ$117) -> 815.1778111 | RW2: =AVERAGE(RR$2:RR$117) -> 15424.86198 | RX2: =AVERAGE(RS$2:RS$117) -> 56120.70681 | RY2: =AVERAGE(RT$2:RT$117) -> 5621.827631
AC3: 1 | AD3: 2 | AE3: 3 | AF3: 4 | AG3: 5 | AH3: 6 | AI3: 7 | AJ3: 8 | AK3: 9 | AL3: 10 | AM3: 11 | AN3: 12 | AO3: 13 | AP3: 14 | AQ3: 15 | AR3: 16 | AS3: 17 | AT3: 18 | AU3: 19 | AV3: 20 | AW3: 21 | AX3: 22 | AY3: 23 | AZ3: 24 | BA3: 25 | BB3: 26 | BC3: 27 | BD3: 28 | BE3: 29 | BF3: 30 | BG3: 31 | BH3: 32 | BI3: 33 | BJ3: 34 | BK3: 35 | BL3: 36 | BM3: 37 | BN3: 38 | BO3: 39 | BP3: 40 | BQ3: 41 | BR3: 42 | BS3: 43 | BT3: 44 | BU3: 45 | BV3: 46 | BW3: 47 | BX3: 48 | BY3: 49 | BZ3: 50 | IO3: 1 | IP3: 2 | IQ3: 3 | IR3: 4 | IS3: 5 | IT3: 6 | IU3: 7 | IV3: 8 | IW3: 9 | IX3: 10 | IY3: 11 | IZ3: 12 | JA3: 13 | JB3: 14 | JC3: 15 | JD3: 16 | JE3: 17 | JF3: 18 | JG3: 19 | JH3: 20 | JI3: 21 | JJ3: 22 | JK3: 23 | JL3: 24 | JM3: 25 | JN3: 26 | JO3: 27 | JP3: 28 | JQ3: 29 | JR3: 30 | JS3: 31 | JT3: 32 | JU3: 33 | JV3: 34 | JW3: 35 | JX3: 36 | JY3: 37 | JZ3: 38 | KA3: 39 | KB3: 40 | KC3: 41 | KD3: 42 | KE3: 43 | KF3: 44 | KG3: 45 | KH3: 46 | KI3: 47 | KJ3: 48 | KK3: 49 | KL3: 50 | RJ3: 1901 | RK3: 7000 | RL3: 24000 | RM3: 110000 | RN3: 510 | RP3: 1901 | RQ3: 739.9280576 | RR3: 34876.84729 | RS3: 159800.995 | RT3: 10167.09512 | RV3: 815.1778111 | RW3: 15424.86198 | RX3: 56120.70681 | RY3: 5621.827631
AB4: 2015 | AC4: 2016 | AD4: 2017 | AE4: 2018 | AF4: 2019 | AG4: 2020 | AH4: 2021 | AI4: 2022 | AJ4: 2023 | AK4: 2024 | AL4: 2025 | AM4: 2026 | AN4: 2027 | AO4: 2028 | AP4: 2029 | AQ4: 2030 | AR4: 2031 | AS4: 2032 | AT4: 2033 | AU4: 2034 | AV4: 2035 | AW4: 2036 | AX4: 2037 | AY4: 2038 | AZ4: 2039 | BA4: 2040 | BB4: 2041 | BC4: 2042 | BD4: 2043 | BE4: 2044 | BF4: 2045 | BG4: 2046 | BH4: 2047 | BI4: 2048 | BJ4: 2049 | BK4: 2050 | BL4: 2051 | BM4: 2052 | BN4: 2053 | BO4: 2054 | BP4: 2055 | BQ4: 2056 | BR4: 2057 | BS4: 2058 | BT4: 2059 | BU4: 2060 | BV4: 2061 | BW4: 2062 | BX4: 2063 | BY4: 2064 | BZ4: 2065 | CE4: 2015 | CF4: 2016 | CG4: 2017 | CH4: 2018 | CI4: 2019 | CJ4: 2020 | CK4: 2021 | CL4: 2022 | CM4: 2023 | CN4: 2024 | CO4: 2025 | CP4: 2026 | CQ4: 2027 | CR4: 2028 | CS4: 2029 | CT4: 2030 | CU4: 2031 | CV4: 2032 | CW4: 2033 | CX4: 2034 | CY4: 2035 | CZ4: 2036 | DA4: 2037 | DB4: 2038 | DC4: 2039 | DD4: 2040 | DE4: 2041 | DF4: 2042 | DG4: 2043 | DH4: 2044 | DI4: 2045 | DJ4: 2046 | DK4: 2047 | DL4: 2048 | DM4: 2049 | DN4: 2050 | DO4: 2051 | DP4: 2052 | DQ4: 2053 | DR4: 2054 | DS4: 2055 | DT4: 2056 | DU4: 2057 | DV4: 2058 | DW4: 2059 | DX4: 2060 | DY4: 2061 | DZ4: 2062 | EA4: 2063 | EB4: 2064 | EC4: 2065 | EH4: 2015 | EI4: 2016 | EJ4: 2017 | EK4: 2018 | EL4: 2019 | EM4: 2020 | EN4: 2021 | EO4: 2022 | EP4: 2023 | EQ4: 2024 | ER4: 2025 | ES4: 2026 | ET4: 2027 | EU4: 2028 | EV4: 2029 | EW4: 2030 | EX4: 2031 | EY4: 2032 | EZ4: 2033 | FA4: 2034 | FB4: 2035 | FC4: 2036 | FD4: 2037 | FE4: 2038 | FF4: 2039 | FG4: 2040 | FH4: 2041 | FI4: 2042 | FJ4: 2043 | FK4: 2044 | FL4: 2045 | FM4: 2046 | FN4: 2047 | FO4: 2048 | FP4: 2049 | FQ4: 2050 | FR4: 2051 | FS4: 2052 | FT4: 2053 | FU4: 2054 | FV4: 2055 | FW4: 2056 | FX4: 2057 | FY4: 2058 | FZ4: 2059 | GA4: 2060 | GB4: 2061 | GC4: 2062 | GD4: 2063 | GE4: 2064 | GF4: 2065 | GK4: 2015 | GL4: 2016 | GM4: 2017 | GN4: 2018 | GO4: 2019 | GP4: 2020 | GQ4: 2021 | GR4: 2022 | GS4: 2023 | GT4: 2024 | GU4: 2025 | GV4: 2026 | GW4: 2027 | GX4: 2028 | GY4: 2029 | GZ4: 2030 | HA4: 2031 | HB4: 2032 | HC4: 2033 | HD4: 2034 | HE4: 2035 | HF4: 2036 | HG4: 2037 | HH4: 2038 | HI4: 2039 | HJ4: 2040 | HK4: 2041 | HL4: 2042 | HM4: 2043 | HN4: 2044 | HO4: 2045 | HP4: 2046 | HQ4: 2047 | HR4: 2048 | HS4: 2049 | HT4: 2050 | HU4: 2051 | HV4: 2052 | HW4: 2053 | HX4: 2054 | HY4: 2055 | HZ4: 2056 | IA4: 2057 | IB4: 2058 | IC4: 2059 | ID4: 2060 | IE4: 2061 | IF4: 2062 | IG4: 2063 | IH4: 2064 | II4: 2065 | IN4: 2015 | IO4: 2016 | IP4: 2017 | IQ4: 2018 | IR4: 2019 | IS4: 2020 | IT4: 2021 | IU4: 2022 | IV4: 2023 | IW4: 2024 | IX4: 2025 | IY4: 2026 | IZ4: 2027 | JA4: 2028 | JB4: 2029 | JC4: 2030 | JD4: 2031 | JE4: 2032 | JF4: 2033 | JG4: 2034 | JH4: 2035 | JI4: 2036 | JJ4: 2037 | JK4: 2038 | JL4: 2039 | JM4: 2040 | JN4: 2041 | JO4: 2042 | JP4: 2043 | JQ4: 2044 | JR4: 2045 | JS4: 2046 | JT4: 2047 | JU4: 2048 | JV4: 2049 | JW4: 2050 | JX4: 2051 | JY4: 2052 | JZ4: 2053 | KA4: 2054 | KB4: 2055 | KC4: 2056 | KD4: 2057 | KE4: 2058 | KF4: 2059 | KG4: 2060 | KH4: 2061 | KI4: 2062 | KJ4: 2063 | KK4: 2064 | KL4: 2065 | KQ4: 2015 | KR4: 2016 | KS4: 2017 | KT4: 2018 | KU4: 2019 | KV4: 2020 | KW4: 2021 | KX4: 2022 | KY4: 2023 | KZ4: 2024 | LA4: 2025 | LB4: 2026 | LC4: 2027 | LD4: 2028 | LE4: 2029 | LF4: 2030 | LG4: 2031 | LH4: 2032 | LI4: 2033 | LJ4: 2034 | LK4: 2035 | LL4: 2036 | LM4: 2037 | LN4: 2038 | LO4: 2039 | LP4: 2040 | LQ4: 2041 | LR4: 2042 | LS4: 2043 | LT4: 2044 | LU4: 2045 | LV4: 2046 | LW4: 2047 | LX4: 2048 | LY4: 2049 | LZ4: 2050 | MA4: 2051 | MB4: 2052 | MC4: 2053 | MD4: 2054 | ME4: 2055 | MF4: 2056 | MG4: 2057 | MH4: 2058 | MI4: 2059 | MJ4: 2060 | MK4: 2061 | ML4: 2062 | MM4: 2063 | MN4: 2064 | MO4: 2065 | MT4: 2015 | MU4: 2016 | MV4: 2017 | MW4: 2018 | MX4: 2019 | MY4: 2020 | MZ4: 2021 | NA4: 2022 | NB4: 2023 | NC4: 2024 | ND4: 2025 | NE4: 2026 | NF4: 2027 | NG4: 2028 | NH4: 2029 | NI4: 2030 | NJ4: 2031 | NK4: 2032 | NL4: 2033 | NM4: 2034 | NN4: 2035 | NO4: 2036 | NP4: 2037 | NQ4: 2038 | NR4: 2039 | NS4: 2040 | NT4: 2041 | NU4: 2042 | NV4: 2043 | NW4: 2044 | NX4: 2045 | NY4: 2046 | NZ4: 2047 | OA4: 2048 | OB4: 2049 | OC4: 2050 | OD4: 2051 | OE4: 2052 | OF4: 2053 | OG4: 2054 | OH4: 2055 | OI4: 2056 | OJ4: 2057 | OK4: 2058 | OL4: 2059 | OM4: 2060 | ON4: 2061 | OO4: 2062 | OP4: 2063 | OQ4: 2064 | OR4: 2065 | OW4: 2015 | OX4: 2016 | OY4: 2017 | OZ4: 2018 | PA4: 2019 | PB4: 2020 | PC4: 2021 | PD4: 2022 | PE4: 2023 | PF4: 2024 | PG4: 2025 | PH4: 2026 | PI4: 2027 | PJ4: 2028 | PK4: 2029 | PL4: 2030 | PM4: 2031 | PN4: 2032 | PO4: 2033 | PP4: 2034 | PQ4: 2035 | PR4: 2036 | PS4: 2037 | PT4: 2038 | PU4: 2039 | PV4: 2040 | PW4: 2041 | PX4: 2042 | PY4: 2043 | PZ4: 2044 | QA4: 2045 | QB4: 2046 | QC4: 2047 | QD4: 2048 | QE4: 2049 | QF4: 2050 | QG4: 2051 | QH4: 2052 | QI4: 2053 | QJ4: 2054 | QK4: 2055 | QL4: 2056 | QM4: 2057 | QN4: 2058 | QO4: 2059 | QP4: 2060 | QQ4: 2061 | QR4: 2062 | QS4: 2063 | QT4: 2064 | QU4: 2065 | RJ4: 1902 | RK4: 4800 | RL4: 19000 | RM4: 106000 | RN4: 500 | RP4: 1902 | RQ4: 725.4196643 | RR4: 27610.83744 | RS4: 153990.0498 | RT4: 6971.722365 | RV4: 815.1778111 | RW4: 15424.86198 | RX4: 56120.70681 | RY4: 5621.827631
A5: Manganese | C5: Default | D5: User Provided | E5: USED | AA5: 0.5 | AB5: =MEDIAN(AB9:AB1008) -> 1636 | AC5: =MEDIAN(AC9:AC1008) -> 1636 | AD5: 1635.935258 | AE5: 1641.741801 | AF5: 1635.463546 | AG5: 1641.106747 | AH5: 1638.532873 | AI5: 1642.792268 | AJ5: 1648.206827 | AK5: 1638.377794 | AL5: 1641.340573 | AM5: 1647.025591 | AN5: 1638.967603 | AO5: 1651.435571 | AP5: 1648.7363 | AQ5: 1645.277875 | AR5: 1650.985413 | AS5: 1643.699668 | AT5: 1646.000618 | AU5: 1647.793186 | AV5: 1654.307625 | AW5: 1646.751163 | AX5: 1648.348697 | AY5: 1648.617941 | AZ5: 1647.621434 | BA5: 1645.214099 | BB5: 1644.991873 | BC5: 1650.475721 | BD5: 1647.938114 | BE5: 1652.35988 | BF5: 1639.253622 | BG5: 1629.015323 | BH5: 1640.146963 | BI5: 1646.784713 | BJ5: 1651.648095 | BK5: 1647.236254 | BL5: 1642.068364 | BM5: 1637.574075 | BN5: 1644.435093 | BO5: 1641.08499 | BP5: 1646.336023 | BQ5: 1641.852479 | BR5: 1638.306998 | BS5: 1635.969166 | BT5: 1637.334927 | BU5: 1645.292963 | BV5: 1647.114596 | BW5: 1639.772221 | BX5: 1647.040341 | BY5: 1644.037634 | BZ5: 1642.906696 | CD5: 0.5 | CE5: =_xlfn.PERCENTILE.EXC(CE8:CE1008,$GJ5) -> 11831 | CF5: 9594 | CG5: 10144 | CH5: 11717.16576 | CI5: 13131.06414 | CJ5: 14436.54902 | CK5: 15573.94518 | CL5: 16532.08178 | CM5: 17416.62608 | CN5: 18298.62096 | CO5: 19014.74937 | CP5: 19613.39369 | CQ5: 20195.54333 | CR5: 20655.92729 | CS5: 21159.01914 | CT5: 21531.86459 | CU5: 21892.38722 | CV5: 22224.59434 | CW5: 22512.49403 | CX5: 22734.09185 | CY5: 22905.40054 | CZ5: 23139.17494 | DA5: 23253.04494 | DB5: 23470.59437 | DC5: 23644.41788 | DD5: 23633.24531 | DE5: 23822.62858 | DF5: 23910.53897 | DG5: 24062.58356 | DH5: 24076.8926 | DI5: 24058.7429 | DJ5: 24057.11834 | DK5: 24197.13109 | DL5: 24330.60751 | DM5: 24330.25126 | DN5: 24310.61291 | DO5: 24405.00917 | DP5: 24457.72464 | DQ5: 24467.66061 | DR5: 24594.75992 | DS5: 24558.2748 | DT5: 24672.28152 | DU5: 24682.60815 | DV5: 24718.60907 | DW5: 24704.3557 | DX5: 24615.75327 | DY5: 24570.49316 | DZ5: 24738.13283 | EA5: 24528.23747 | EB5: 24618.69973 | EC5: 24668.00291 | EG5: 0.5 | EH5: =_xlfn.PERCENTILE.EXC(EH8:EH1008,$GJ5) -> 29568 | EI5: 26180 | EJ5: 58520 | EK5: 58128.47024 | EL5: 58129.76728 | EM5: 57743.98116 | EN5: 57334.2604 | EO5: 57400.37363 | EP5: 57221.51292 | EQ5: 56806.92755 | ER5: 56504.12313 | ES5: 56353.54755 | ET5: 56323.71574 | EU5: 56469.0229 | EV5: 56652.04774 | EW5: 56358.33159 | EX5: 56199.52943 | EY5: 56072.57631 | EZ5: 56183.30809 | FA5: 56125.43249 | FB5: 55793.21 | FC5: 55610.95377 | FD5: 55295.25876 | FE5: 55114.83733 | FF5: 55214.15828 | FG5: 54941.41218 | FH5: 54682.00005 | FI5: 54745.31264 | FJ5: 55050.83176 | FK5: 55105.53257 | FL5: 54863.53742 | FM5: 55012.2936 | FN5: 54483.44177 | FO5: 54621.78883 | FP5: 54293.81179 | FQ5: 54505.21705 | FR5: 54557.44262 | FS5: 54711.15566 | FT5: 54748.45454 | FU5: 54469.66049 | FV5: 54331.55515 | FW5: 54174.508 | FX5: 54607.62946 | FY5: 54661.90619 | FZ5: 55009.4941 | GA5: 54582.40938 | GB5: 55039.00965 | GC5: 54888.11225 | GD5: 54898.99271 | GE5: 54782.34158 | GF5: 54998.61096 | GJ5: 0.5 | GK5: =_xlfn.PERCENTILE.EXC(GK8:GK1008,$GJ5) -> 5636 | GL5: 4947.8 | GM5: 6270 | GN5: 6369.624463 | GO5: 6477.358401 | GP5: 6588.434278 | GQ5: 6620.19027 | GR5: 6637.708867 | GS5: 6725.047033 | GT5: 6756.568727 | GU5: 6807.563507 | GV5: 6887.413388 | GW5: 6924.741593 | GX5: 6951.483537 | GY5: 6958.873073 | GZ5: 6910.461893 | HA5: 6967.236281 | HB5: 6966.206917 | HC5: 6963.17798 | HD5: 6965.711999 | HE5: 6991.989021 | HF5: 6996.976926 | HG5: 7022.181434 | HH5: 6986.309476 | HI5: 6948.18833 | HJ5: 6968.170226 | HK5: 6989.09633 | HL5: 6976.903291 | HM5: 6944.302132 | HN5: 6983.218345 | HO5: 6974.920977 | HP5: 6985.436467 | HQ5: 6955.612591 | HR5: 6993.745878 | HS5: 6962.360796 | HT5: 6978.415921 | HU5: 6981.541458 | HV5: 6988.946611 | HW5: 7049.664576 | HX5: 7048.947931 | HY5: 7062.42946 | HZ5: 7046.966844 | IA5: 7039.936466 | IB5: 7041.715354 | IC5: 7055.50765 | ID5: 7030.541289 | IE5: 7035.032173 | IF5: 6991.365112 | IG5: 6991.976213 | IH5: 6998.283055 | II5: 7005.318947 | IM5: 0.5 | IN5: =MEDIAN(IN9:IN1008) -> 353 | IO5: =MEDIAN(IO9:IO1008) -> 341 | IP5: 526.7077159 | IQ5: 680.0763522 | IR5: 821.1906052 | IS5: 942.1393264 | IT5: 1029.687574 | IU5: 1118.370444 | IV5: 1189.914497 | IW5: 1253.822831 | IX5: 1307.005158 | IY5: 1358.567588 | IZ5: 1395.42145 | JA5: 1432.141277 | JB5: 1464.143743 | JC5: 1486.380198 | JD5: 1503.460896 | JE5: 1527.979589 | JF5: 1555.626169 | JG5: 1579.669502 | JH5: 1573.645856 | JI5: 1583.96301 | JJ5: 1592.813289 | JK5: 1599.264634 | JL5: 1608.627417 | JM5: 1609.724337 | JN5: 1616.517173 | JO5: 1619.050385 | JP5: 1621.290054 | JQ5: 1628.445455 | JR5: 1625.959895 | JS5: 1634.147435 | JT5: 1636.974313 | JU5: 1639.821851 | JV5: 1639.120171 | JW5: 1637.632371 | JX5: 1628.850946 | JY5: 1631.081212 | JZ5: 1633.296804 | KA5: 1642.885412 | KB5: 1647.700516 | KC5: 1647.747078 | KD5: 1644.148683 | KE5: 1643.814826 | KF5: 1633.753658 | KG5: 1636.371309 | KH5: 1636.15392 | KI5: 1644.085415 | KJ5: 1643.429509 | KK5: 1643.7991 | KL5: 1658.439891 | KP5: 0.5 | KQ5: =_xlfn.PERCENTILE.EXC(KQ8:KQ1008,$GJ5) -> 10014.38765 | KR5: 9594 | KS5: 10144 | KT5: 11717.16576 | KU5: 13131.06414 | KV5: 14436.54902 | KW5: 15573.94518 | KX5: 16532.08178 | KY5: 17416.62608 | KZ5: 18298.62096 | LA5: 19014.74937 | LB5: 19613.39369 | LC5: 20195.54333 | LD5: 20655.92729 | LE5: 21159.01914 | LF5: 21531.86459 | LG5: 21892.38722 | LH5: 22224.59434 | LI5: 22512.49403 | LJ5: 22734.09185 | LK5: 22905.40054 | LL5: 23139.17494 | LM5: 23253.04494 | LN5: 23470.59437 | LO5: 23644.41788 | LP5: 23633.24531 | LQ5: 23822.62858 | LR5: 23910.53897 | LS5: 24062.58356 | LT5: 24076.8926 | LU5: 24058.7429 | LV5: 24057.11834 | LW5: 24197.13109 | LX5: 24330.60751 | LY5: 24330.25126 | LZ5: 24310.61291 | MA5: 24405.00917 | MB5: 24457.72464 | MC5: 24467.66061 | MD5: 24594.75992 | ME5: 24558.2748 | MF5: 24672.28152 | MG5: 24682.60815 | MH5: 24718.60907 | MI5: 24704.3557 | MJ5: 24615.75327 | MK5: 24570.49316 | ML5: 24738.13283 | MM5: 24528.23747 | MN5: 24618.69973 | MO5: 24668.00291 | MS5: 0.5 | MT5: =_xlfn.PERCENTILE.EXC(MT8:MT1008,$GJ5) -> 29568 | MU5: 26180 | MV5: 58520 | MW5: 58128.47024 | MX5: 58129.76728 | MY5: 57743.98116 | MZ5: 57334.2604 | NA5: 57400.37363 | NB5: 57221.51292 | NC5: 56806.92755 | ND5: 56504.12313 | NE5: 56353.54755 | NF5: 56323.71574 | NG5: 56469.0229 | NH5: 56652.04774 | NI5: 56358.33159 | NJ5: 56199.52943 | NK5: 56072.57631 | NL5: 56183.30809 | NM5: 56125.43249 | NN5: 55793.21 | NO5: 55610.95377 | NP5: 55295.25876 | NQ5: 55114.83733 | NR5: 55214.15828 | NS5: 54941.41218 | NT5: 54682.00005 | NU5: 54745.31264 | NV5: 55050.83176 | NW5: 55105.53257 | NX5: 54863.53742 | NY5: 55012.2936 | NZ5: 54483.44177 | OA5: 54621.78883 | OB5: 54293.81179 | OC5: 54505.21705 | OD5: 54557.44262 | OE5: 54711.15566 | OF5: 54748.45454 | OG5: 54469.66049 | OH5: 54331.55515 | OI5: 54174.508 | OJ5: 54607.62946 | OK5: 54661.90619 | OL5: 55009.4941 | OM5: 54582.40938 | ON5: 55039.00965 | OO5: 54888.11225 | OP5: 54898.99271 | OQ5: 54782.34158 | OR5: 54998.61096 | OV5: 0.5 | OW5: =_xlfn.PERCENTILE.EXC(OW8:OW1008,$GJ5) -> 5636 | OX5: 4947.8 | OY5: 6270 | OZ5: 6369.624463 | PA5: 6477.358401 | PB5: 6588.434278 | PC5: 6620.19027 | PD5: 6637.708867 | PE5: 6725.047033 | PF5: 6756.568727 | PG5: 6807.563507 | PH5: 6887.413388 | PI5: 6924.741593 | PJ5: 6951.483537 | PK5: 6958.873073 | PL5: 6910.461893 | PM5: 6967.236281 | PN5: 6966.206917 | PO5: 6963.17798 | PP5: 6965.711999 | PQ5: 6991.989021 | PR5: 6996.976926 | PS5: 7022.181434 | PT5: 6986.309476 | PU5: 6948.18833 | PV5: 6968.170226 | PW5: 6989.09633 | PX5: 6976.903291 | PY5: 6944.302132 | PZ5: 6983.218345 | QA5: 6974.920977 | QB5: 6985.436467 | QC5: 6955.612591 | QD5: 6993.745878 | QE5: 6962.360796 | QF5: 6978.415921 | QG5: 6981.541458 | QH5: 6988.946611 | QI5: 7049.664576 | QJ5: 7048.947931 | QK5: 7062.42946 | QL5: 7046.966844 | QM5: 7039.936466 | QN5: 7041.715354 | QO5: 7055.50765 | QP5: 7030.541289 | QQ5: 7035.032173 | QR5: 6991.365112 | QS5: 6991.976213 | QT5: 6998.283055 | QU5: 7005.318947 | RJ5: 1903 | RK5: 5300 | RL5: 16000 | RM5: 110000 | RN5: 790 | RP5: 1903 | RQ5: 1146.16307 | RR5: 23251.23153 | RS5: 159800.995 | RT5: 7697.943445 | RV5: 815.1778111 | RW5: 15424.86198 | RX5: 56120.70681 | RY5: 5621.827631
B6: Long Term Price Trend | C6: 1636 | D6: ='Financial Model'!D70 -> 1640 | E6: =IF($D$2=0,C6,D6) -> 1636 | AA6: 0.05 | AB6: =_xlfn.PERCENTILE.EXC(AB$9:AB$1008,$IM6) -> 1636 | AC6: 1636 | AD6: 1483.303441 | AE6: 1426.470829 | AF6: 1387.750565 | AG6: 1374.237458 | AH6: 1357.180009 | AI6: 1353.689489 | AJ6: 1346.492603 | AK6: 1347.969234 | AL6: =_xlfn.PERCENTILE.EXC(AL$9:AL$1008,$IM6) -> 1334.752862 | AM6: 1345.449414 | AN6: 1347.480837 | AO6: 1331.663989 | AP6: 1340.647437 | AQ6: 1342.194288 | AR6: 1337.529717 | AS6: 1330.379708 | AT6: 1349.276465 | AU6: 1348.108409 | AV6: =_xlfn.PERCENTILE.EXC(AV$9:AV$1008,$IM6) -> 1342.755283 | AW6: 1335.256519 | AX6: 1324.32207 | AY6: 1331.083545 | AZ6: 1326.092732 | BA6: 1315.545496 | BB6: 1302.16319 | BC6: 1311.176387 | BD6: 1301.976964 | BE6: 1309.447516 | BF6: =_xlfn.PERCENTILE.EXC(BF$9:BF$1008,$IM6) -> 1329.448843 | BG6: 1321.31319 | BH6: 1318.110296 | BI6: 1296.135599 | BJ6: 1323.81506 | BK6: 1320.493768 | BL6: 1313.473943 | BM6: 1315.898761 | BN6: 1333.492799 | BO6: 1326.724778 | BP6: =_xlfn.PERCENTILE.EXC(BP$9:BP$1008,$IM6) -> 1306.58176 | BQ6: 1300.82246 | BR6: 1299.528489 | BS6: 1331.269446 | BT6: 1325.576962 | BU6: 1297.282704 | BV6: 1291.722057 | BW6: 1295.394089 | BX6: 1298.585053 | BY6: 1301.251305 | BZ6: 1319.484135 | CD6: 0.05 | CE6: 11831 | CF6: 9594 | CG6: 10144 | CH6: 10178.01598 | CI6: 10917.08232 | CJ6: 11706.43025 | CK6: 12620.72074 | CL6: 13776.23332 | CM6: 14507.12705 | CN6: 15248.23752 | CO6: 15599.46218 | CP6: 16102.67882 | CQ6: 16560.95594 | CR6: 16887.52216 | CS6: 17584.50792 | CT6: 17946.99784 | CU6: 18322.12529 | CV6: 18694.81937 | CW6: 18956.14584 | CX6: 19286.06285 | CY6: 19354.85363 | CZ6: 19410.76231 | DA6: 19781.63428 | DB6: 19986.35441 | DC6: 20043.01924 | DD6: 20178.97857 | DE6: 20145.28917 | DF6: 20208.79411 | DG6: 20452.12726 | DH6: 20450.68155 | DI6: 20556.6699 | DJ6: 20748.72448 | DK6: 20485.30096 | DL6: 20762.40965 | DM6: 20852.41944 | DN6: 20855.89426 | DO6: 20803.65066 | DP6: 20821.26127 | DQ6: 20982.18342 | DR6: 20937.27597 | DS6: 21045.42378 | DT6: 21144.8246 | DU6: 21270.20573 | DV6: 21043.86098 | DW6: 20923.42118 | DX6: 21171.72095 | DY6: 21317.25337 | DZ6: 21270.45219 | EA6: 21089.72244 | EB6: 20989.48677 | EC6: 21122.08828 | EG6: 0.05 | EH6: 29568 | EI6: 26180 | EJ6: 58520 | EK6: 53213.39829 | EL6: 51166.21675 | EM6: 49902.7146 | EN6: 48788.28889 | EO6: 47467.75561 | EP6: 47054.78025 | EQ6: 46533.83402 | ER6: 46483.32792 | ES6: 45981.12595 | ET6: 45809.4232 | EU6: 45042.12908 | EV6: 44839.07855 | EW6: 44178.36082 | EX6: 44279.70342 | EY6: 43682.39192 | EZ6: 43527.13155 | FA6: 43372.90629 | FB6: 43428.1107 | FC6: 43304.75454 | FD6: 43502.52986 | FE6: 43208.17601 | FF6: 42829.66007 | FG6: 42732.21481 | FH6: 42721.62126 | FI6: 43007.37054 | FJ6: 42621.77569 | FK6: 42519.46173 | FL6: 42488.22454 | FM6: 42451.15703 | FN6: 41825.10285 | FO6: 42579.63176 | FP6: 42236.75643 | FQ6: 42381.08998 | FR6: 42650.19156 | FS6: 41954.77684 | FT6: 42192.04096 | FU6: 42322.28126 | FV6: 42426.30999 | FW6: 42105.40978 | FX6: 41623.68131 | FY6: 42504.5208 | FZ6: 42578.84082 | GA6: 42208.71435 | GB6: 42474.44767 | GC6: 42094.9146 | GD6: 42136.93326 | GE6: 42413.54178 | GF6: 42446.79722 | GJ6: 0.05 | GK6: 5636 | GL6: 4947.8 | GM6: 6270 | GN6: 5538.273752 | GO6: 5461.473448 | GP6: 5258.402853 | GQ6: 5174.54245 | GR6: 5171.591206 | GS6: 5161.478031 | GT6: 5216.658629 | GU6: 5233.863659 | GV6: 5317.537696 | GW6: 5274.060511 | GX6: 5302.483991 | GY6: 5297.790026 | GZ6: 5413.330735 | HA6: 5320.267391 | HB6: 5416.428195 | HC6: 5420.62978 | HD6: 5416.223961 | HE6: 5391.626109 | HF6: 5357.810115 | HG6: 5245.079364 | HH6: 5405.100384 | HI6: 5331.699373 | HJ6: 5379.623736 | HK6: 5376.084126 | HL6: 5377.072672 | HM6: 5370.634032 | HN6: 5414.408938 | HO6: 5399.054106 | HP6: 5387.827514 | HQ6: 5404.328799 | HR6: 5340.713921 | HS6: 5316.478428 | HT6: 5363.658937 | HU6: 5390.31569 | HV6: 5395.981261 | HW6: 5308.517165 | HX6: 5333.576956 | HY6: 5459.979962 | HZ6: 5455.548225 | IA6: 5469.547439 | IB6: 5455.406263 | IC6: 5579.989305 | ID6: 5529.604035 | IE6: 5407.467914 | IF6: 5328.78598 | IG6: 5438.50941 | IH6: 5325.481416 | II6: 5385.365566 | IM6: 0.05 | IN6: =_xlfn.PERCENTILE.EXC(IN$9:IN$1008,$IM6) -> 353 | IO6: 341 | IP6: 371.515401 | IQ6: 460.2891785 | IR6: 568.6437949 | IS6: 649.1124245 | IT6: 730.9443793 | IU6: 814.6854369 | IV6: 869.2910724 | IW6: 948.6368618 | IX6: =_xlfn.PERCENTILE.EXC(IX$9:IX$1008,$IM6) -> 981.8891851 | IY6: 1045.265301 | IZ6: 1073.522217 | JA6: 1097.432796 | JB6: 1121.850977 | JC6: 1160.687831 | JD6: 1193.950072 | JE6: 1188.170606 | JF6: 1190.549667 | JG6: 1237.221551 | JH6: =_xlfn.PERCENTILE.EXC(JH$9:JH$1008,$IM6) -> 1244.25004 | JI6: 1283.877855 | JJ6: 1296.289397 | JK6: 1292.652695 | JL6: 1293.712256 | JM6: 1281.673579 | JN6: 1268.891696 | JO6: 1296.310609 | JP6: 1302.162926 | JQ6: 1308.389309 | JR6: =_xlfn.PERCENTILE.EXC(JR$9:JR$1008,$IM6) -> 1305.1034 | JS6: 1332.975917 | JT6: 1335.321383 | JU6: 1351.068574 | JV6: 1329.117785 | JW6: 1332.211362 | JX6: 1318.944902 | JY6: 1315.560151 | JZ6: 1317.705073 | KA6: 1336.395632 | KB6: =_xlfn.PERCENTILE.EXC(KB$9:KB$1008,$IM6) -> 1317.000398 | KC6: 1301.360431 | KD6: 1316.549698 | KE6: 1319.95565 | KF6: 1312.939044 | KG6: 1301.997565 | KH6: 1284.172512 | KI6: 1308.084766 | KJ6: 1319.654775 | KK6: 1317.479361 | KL6: 1313.908633 | KP6: 0.05 | KQ6: 11831 | KR6: 9594 | KS6: 10144 | KT6: 10178.01598 | KU6: 10917.08232 | KV6: 11706.43025 | KW6: 12620.72074 | KX6: 13776.23332 | KY6: 14507.12705 | KZ6: 15248.23752 | LA6: 15599.46218 | LB6: 16102.67882 | LC6: 16560.95594 | LD6: 16887.52216 | LE6: 17584.50792 | LF6: 17946.99784 | LG6: 18322.12529 | LH6: 18694.81937 | LI6: 18956.14584 | LJ6: 19286.06285 | LK6: 19354.85363 | LL6: 19410.76231 | LM6: 19781.63428 | LN6: 19986.35441 | LO6: 20043.01924 | LP6: 20178.97857 | LQ6: 20145.28917 | LR6: 20208.79411 | LS6: 20452.12726 | LT6: 20450.68155 | LU6: 20556.6699 | LV6: 20748.72448 | LW6: 20485.30096 | LX6: 20762.40965 | LY6: 20852.41944 | LZ6: 20855.89426 | MA6: 20803.65066 | MB6: 20821.26127 | MC6: 20982.18342 | MD6: 20937.27597 | ME6: 21045.42378 | MF6: 21144.8246 | MG6: 21270.20573 | MH6: 21043.86098 | MI6: 20923.42118 | MJ6: 21171.72095 | MK6: 21317.25337 | ML6: 21270.45219 | MM6: 21089.72244 | MN6: 20989.48677 | MO6: 21122.08828 | MS6: 0.05 | MT6: 29568 | MU6: 26180 | MV6: 58520 | MW6: 53213.39829 | MX6: 51166.21675 | MY6: 49902.7146 | MZ6: 48788.28889 | NA6: 47467.75561 | NB6: 47054.78025 | NC6: 46533.83402 | ND6: 46483.32792 | NE6: 45981.12595 | NF6: 45809.4232 | NG6: 45042.12908 | NH6: 44839.07855 | NI6: 44178.36082 | NJ6: 44279.70342 | NK6: 43682.39192 | NL6: 43527.13155 | NM6: 43372.90629 | NN6: 43428.1107 | NO6: 43304.75454 | NP6: 43502.52986 | NQ6: 43208.17601 | NR6: 42829.66007 | NS6: 42732.21481 | NT6: 42721.62126 | NU6: 43007.37054 | NV6: 42621.77569 | NW6: 42519.46173 | NX6: 42488.22454 | NY6: 42451.15703 | NZ6: 41825.10285 | OA6: 42579.63176 | OB6: 42236.75643 | OC6: 42381.08998 | OD6: 42650.19156 | OE6: 41954.77684 | OF6: 42192.04096 | OG6: 42322.28126 | OH6: 42426.30999 | OI6: 42105.40978 | OJ6: 41623.68131 | OK6: 42504.5208 | OL6: 42578.84082 | OM6: 42208.71435 | ON6: 42474.44767 | OO6: 42094.9146 | OP6: 42136.93326 | OQ6: 42413.54178 | OR6: 42446.79722 | OV6: 0.05 | OW6: 5636 | OX6: 4947.8 | OY6: 6270 | OZ6: 5538.273752 | PA6: 5461.473448 | PB6: 5258.402853 | PC6: 5174.54245 | PD6: 5171.591206 | PE6: 5161.478031 | PF6: 5216.658629 | PG6: 5233.863659 | PH6: 5317.537696 | PI6: 5274.060511 | PJ6: 5302.483991 | PK6: 5297.790026 | PL6: 5413.330735 | PM6: 5320.267391 | PN6: 5416.428195 | PO6: 5420.62978 | PP6: 5416.223961 | PQ6: 5391.626109 | PR6: 5357.810115 | PS6: 5245.079364 | PT6: 5405.100384 | PU6: 5331.699373 | PV6: 5379.623736 | PW6: 5376.084126 | PX6: 5377.072672 | PY6: 5370.634032 | PZ6: 5414.408938 | QA6: 5399.054106 | QB6: 5387.827514 | QC6: 5404.328799 | QD6: 5340.713921 | QE6: 5316.478428 | QF6: 5363.658937 | QG6: 5390.31569 | QH6: 5395.981261 | QI6: 5308.517165 | QJ6: 5333.576956 | QK6: 5459.979962 | QL6: 5455.548225 | QM6: 5469.547439 | QN6: 5455.406263 | QO6: 5579.989305 | QP6: 5529.604035 | QQ6: 5407.467914 | QR6: 5328.78598 | QS6: 5438.50941 | QT6: 5325.481416 | QU6: 5385.365566 | RJ6: 1904 | RK6: 5100 | RL6: 16000 | RM6: 113000 | RN6: 430 | RP6: 1904 | RQ6: 623.8609113 | RR6: 23251.23153 | RS6: 164159.204 | RT6: 7407.455013 | RV6: 815.1778111 | RW6: 15424.86198 | RX6: 56120.70681 | RY6: 5621.827631
B7: Coeff | C7: 0.86 | D7: =C7 -> 0.86 | E7: =IF($D$2=0,C7,D7) -> 0.86 | AA7: 0.95 | AB7: 1636 | AC7: 1636 | AD7: 1805.382714 | AE7: 1856.866872 | AF7: 1893.890586 | AG7: 1930.434757 | AH7: 1930.762567 | AI7: 1935.901799 | AJ7: 1939.947052 | AK7: 1945.508764 | AL7: 1958.512729 | AM7: 1955.518957 | AN7: 1955.315878 | AO7: 1951.630522 | AP7: 1957.899582 | AQ7: 1953.942688 | AR7: 1958.957577 | AS7: 1953.31923 | AT7: 1970.416876 | AU7: 1974.834571 | AV7: 1969.559824 | AW7: 1966.210102 | AX7: 1985.119933 | AY7: 1969.638108 | AZ7: 1972.014717 | BA7: 1958.1184 | BB7: 1956.320916 | BC7: 1954.24966 | BD7: 1957.023053 | BE7: 1986.681398 | BF7: 1965.360407 | BG7: 1984.746097 | BH7: 1981.172779 | BI7: 1965.648298 | BJ7: 1967.023887 | BK7: 1958.970994 | BL7: 1963.84315 | BM7: 1949.75129 | BN7: 1952.389068 | BO7: 1962.771786 | BP7: 1953.616575 | BQ7: 1957.849629 | BR7: 1961.055971 | BS7: 1976.126543 | BT7: 1975.115706 | BU7: 1949.170673 | BV7: 1953.233772 | BW7: 1957.350699 | BX7: 1965.86072 | BY7: 1966.448234 | BZ7: 1958.32423 | CD7: 0.95 | CE7: 11831 | CF7: 9594 | CG7: 10144 | CH7: 13367.3868 | CI7: 15439.38981 | CJ7: 16914.72897 | CK7: 18440.34084 | CL7: 19523.57377 | CM7: 20521.3292 | CN7: 21495.55161 | CO7: 22307.06939 | CP7: 22946.56798 | CQ7: 23806.49848 | CR7: 24336.36797 | CS7: 24780.01056 | CT7: 25219.00833 | CU7: 25483.48246 | CV7: 25756.46474 | CW7: 26099.60972 | CX7: 26362.87298 | CY7: 26623.75332 | CZ7: 26644.21353 | DA7: 26895.8134 | DB7: 27140.0736 | DC7: 27279.45076 | DD7: 27305.24945 | DE7: 27354.1805 | DF7: 27471.65214 | DG7: 27505.64044 | DH7: 27487.19558 | DI7: 27681.36146 | DJ7: 27989.16879 | DK7: 28015.59146 | DL7: 27989.21897 | DM7: 28033.81253 | DN7: 27976.13534 | DO7: 28121.55795 | DP7: 28054.48206 | DQ7: 28118.25157 | DR7: 28317.20907 | DS7: 28140.92178 | DT7: 28192.9432 | DU7: 28214.80509 | DV7: 28327.25316 | DW7: 28132.30476 | DX7: 28148.17839 | DY7: 28127.57531 | DZ7: 28180.29929 | EA7: 28231.24868 | EB7: 28321.7137 | EC7: 28391.74712 | EG7: 0.95 | EH7: 29568 | EI7: 26180 | EJ7: 58520 | EK7: 63244.63652 | EL7: 65012.07023 | EM7: 65696.14358 | EN7: 66155.17198 | EO7: 66773.82503 | EP7: 66697.61283 | EQ7: 67538.83708 | ER7: 67534.20916 | ES7: 67966.00339 | ET7: 68311.19834 | EU7: 68689.48716 | EV7: 67897.35624 | EW7: 67646.28936 | EX7: 67477.58935 | EY7: 67158.24676 | EZ7: 67429.899 | FA7: 68081.44263 | FB7: 68430.64824 | FC7: 68473.55526 | FD7: 67685.43906 | FE7: 68260.68049 | FF7: 67396.17873 | FG7: 67883.93072 | FH7: 67673.06933 | FI7: 68127.80469 | FJ7: 67517.94758 | FK7: 67951.20959 | FL7: 67532.39879 | FM7: 67057.77187 | FN7: 66636.97818 | FO7: 67221.97376 | FP7: 67416.63699 | FQ7: 67488.70941 | FR7: 67780.92525 | FS7: 67999.49529 | FT7: 68267.51111 | FU7: 67805.25065 | FV7: 67979.75843 | FW7: 68055.64467 | FX7: 67909.03592 | FY7: 67815.81507 | FZ7: 67493.77504 | GA7: 67187.04526 | GB7: 67455.29449 | GC7: 67079.37522 | GD7: 67522.30137 | GE7: 67204.93151 | GF7: 67704.95098 | GJ7: 0.95 | GK7: 5636 | GL7: 4947.8 | GM7: 6270 | GN7: 7199.410419 | GO7: 7578.454814 | GP7: 7829.156889 | GQ7: 8029.394948 | GR7: 8083.388263 | GS7: 8176.52297 | GT7: 8317.81612 | GU7: 8353.210747 | GV7: 8483.636822 | GW7: 8433.154746 | GX7: 8488.469864 | GY7: 8519.818624 | GZ7: 8502.388862 | HA7: 8572.982021 | HB7: 8587.503309 | HC7: 8620.911076 | HD7: 8573.899567 | HE7: 8505.449117 | HF7: 8537.09031 | HG7: 8593.566618 | HH7: 8561.87829 | HI7: 8576.71629 | HJ7: 8529.548698 | HK7: 8589.442421 | HL7: 8620.191712 | HM7: 8628.622505 | HN7: 8691.628104 | HO7: 8728.208752 | HP7: 8613.1518 | HQ7: 8683.299784 | HR7: 8617.525384 | HS7: 8642.998178 | HT7: 8595.686625 | HU7: 8578.096212 | HV7: 8636.542989 | HW7: 8611.78162 | HX7: 8580.843018 | HY7: 8583.831688 | HZ7: 8509.305254 | IA7: 8656.767429 | IB7: 8675.237244 | IC7: 8595.1328 | ID7: 8546.854515 | IE7: 8564.695682 | IF7: 8598.76736 | IG7: 8684.95729 | IH7: 8655.549525 | II7: 8651.532084 | IM7: 0.95 | IN7: 353 | IO7: 341 | IP7: 698.0313518 | IQ7: 905.565923 | IR7: 1069.035649 | IS7: 1201.425114 | IT7: 1336.966117 | IU7: 1433.349769 | IV7: 1518.368568 | IW7: 1559.969442 | IX7: 1609.734963 | IY7: 1656.064132 | IZ7: 1725.792898 | JA7: 1762.642536 | JB7: 1774.871714 | JC7: 1808.817125 | JD7: 1813.098828 | JE7: 1834.154962 | JF7: 1860.849422 | JG7: 1879.302421 | JH7: 1890.986175 | JI7: 1893.385999 | JJ7: 1904.336018 | JK7: 1914.404897 | JL7: 1931.095329 | JM7: 1917.905177 | JN7: 1943.219051 | JO7: 1941.073609 | JP7: 1960.14654 | JQ7: 1969.52414 | JR7: 1957.587514 | JS7: 1951.577526 | JT7: 1953.469602 | JU7: 1953.535135 | JV7: 1973.36282 | JW7: 1969.81777 | JX7: 1955.546993 | JY7: 1960.637533 | JZ7: 1965.768694 | KA7: 1968.37558 | KB7: 1964.808586 | KC7: 1973.958383 | KD7: 1961.583025 | KE7: 1969.044603 | KF7: 1983.872481 | KG7: 1959.353419 | KH7: 1957.6996 | KI7: 1965.435623 | KJ7: 1967.941765 | KK7: 1964.455614 | KL7: 1965.28972 | KP7: 0.95 | KQ7: 11831 | KR7: 9594 | KS7: 10144 | KT7: 13367.3868 | KU7: 15439.38981 | KV7: 16914.72897 | KW7: 18440.34084 | KX7: 19523.57377 | KY7: 20521.3292 | KZ7: 21495.55161 | LA7: 22307.06939 | LB7: 22946.56798 | LC7: 23806.49848 | LD7: 24336.36797 | LE7: 24780.01056 | LF7: 25219.00833 | LG7: 25483.48246 | LH7: 25756.46474 | LI7: 26099.60972 | LJ7: 26362.87298 | LK7: 26623.75332 | LL7: 26644.21353 | LM7: 26895.8134 | LN7: 27140.0736 | LO7: 27279.45076 | LP7: 27305.24945 | LQ7: 27354.1805 | LR7: 27471.65214 | LS7: 27505.64044 | LT7: 27487.19558 | LU7: 27681.36146 | LV7: 27989.16879 | LW7: 28015.59146 | LX7: 27989.21897 | LY7: 28033.81253 | LZ7: 27976.13534 | MA7: 28121.55795 | MB7: 28054.48206 | MC7: 28118.25157 | MD7: 28317.20907 | ME7: 28140.92178 | MF7: 28192.9432 | MG7: 28214.80509 | MH7: 28327.25316 | MI7: 28132.30476 | MJ7: 28148.17839 | MK7: 28127.57531 | ML7: 28180.29929 | MM7: 28231.24868 | MN7: 28321.7137 | MO7: 28391.74712 | MS7: 0.95 | MT7: 29568 | MU7: 26180 | MV7: 58520 | MW7: 63244.63652 | MX7: 65012.07023 | MY7: 65696.14358 | MZ7: 66155.17198 | NA7: 66773.82503 | NB7: 66697.61283 | NC7: 67538.83708 | ND7: 67534.20916 | NE7: 67966.00339 | NF7: 68311.19834 | NG7: 68689.48716 | NH7: 67897.35624 | NI7: 67646.28936 | NJ7: 67477.58935 | NK7: 67158.24676 | NL7: 67429.899 | NM7: 68081.44263 | NN7: 68430.64824 | NO7: 68473.55526 | NP7: 67685.43906 | NQ7: 68260.68049 | NR7: 67396.17873 | NS7: 67883.93072 | NT7: 67673.06933 | NU7: 68127.80469 | NV7: 67517.94758 | NW7: 67951.20959 | NX7: 67532.39879 | NY7: 67057.77187 | NZ7: 66636.97818 | OA7: 67221.97376 | OB7: 67416.63699 | OC7: 67488.70941 | OD7: 67780.92525 | OE7: 67999.49529 | OF7: 68267.51111 | OG7: 67805.25065 | OH7: 67979.75843 | OI7: 68055.64467 | OJ7: 67909.03592 | OK7: 67815.81507 | OL7: 67493.77504 | OM7: 67187.04526 | ON7: 67455.29449 | OO7: 67079.37522 | OP7: 67522.30137 | OQ7: 67204.93151 | OR7: 67704.95098 | OV7: 0.95 | OW7: 5636 | OX7: 4947.8 | OY7: 6270 | OZ7: 7199.410419 | PA7: 7578.454814 | PB7: 7829.156889 | PC7: 8029.394948 | PD7: 8083.388263 | PE7: 8176.52297 | PF7: 8317.81612 | PG7: 8353.210747 | PH7: 8483.636822 | PI7: 8433.154746 | PJ7: 8488.469864 | PK7: 8519.818624 | PL7: 8502.388862 | PM7: 8572.982021 | PN7: 8587.503309 | PO7: 8620.911076 | PP7: 8573.899567 | PQ7: 8505.449117 | PR7: 8537.09031 | PS7: 8593.566618 | PT7: 8561.87829 | PU7: 8576.71629 | PV7: 8529.548698 | PW7: 8589.442421 | PX7: 8620.191712 | PY7: 8628.622505 | PZ7: 8691.628104 | QA7: 8728.208752 | QB7: 8613.1518 | QC7: 8683.299784 | QD7: 8617.525384 | QE7: 8642.998178 | QF7: 8595.686625 | QG7: 8578.096212 | QH7: 8636.542989 | QI7: 8611.78162 | QJ7: 8580.843018 | QK7: 8583.831688 | QL7: 8509.305254 | QM7: 8656.767429 | QN7: 8675.237244 | QO7: 8595.1328 | QP7: 8546.854515 | QQ7: 8564.695682 | QR7: 8598.76736 | QS7: 8684.95729 | QT7: 8655.549525 | QU7: 8651.532084 | RJ7: 1905 | RK7: 6300 | RL7: 16000 | RM7: 110000 | RN7: 520 | RP7: 1905 | RQ7: 754.4364508 | RR7: 23251.23153 | RS7: 159800.995 | RT7: 9150.385604 | RV7: 815.1778111 | RW7: 15424.86198 | RX7: 56120.70681 | RY7: 5621.827631
B8: Uncertainty | C8: 100 | D8: =C8 -> 100 | E8: =IF($D$2=0,C8,D8) -> 100 | AA8: AVERAGE | AB8: =AVERAGE(AB10:AB1008) -> 1636 | AC8: =AVERAGE(AC10:AC1008) -> 1636 | AD8: 1641.377706 | AE8: 1642.556842 | AF8: 1638.087117 | AG8: 1643.809047 | AH8: 1642.400784 | AI8: 1645.031029 | AJ8: 1642.905367 | AK8: 1643.674231 | AL8: 1644.762693 | AM8: 1645.474257 | AN8: 1647.748738 | AO8: 1643.209294 | AP8: 1642.979901 | AQ8: 1645.313591 | AR8: 1646.267285 | AS8: 1644.822198 | AT8: 1647.606751 | AU8: 1650.744254 | AV8: 1652.460464 | AW8: 1649.270137 | AX8: 1647.656867 | AY8: 1648.549155 | AZ8: 1649.769691 | BA8: 1646.618722 | BB8: 1641.157936 | BC8: 1641.001858 | BD8: 1641.035394 | BE8: 1644.480739 | BF8: 1642.028534 | BG8: 1636.193157 | BH8: 1639.874266 | BI8: 1644.255209 | BJ8: 1647.810536 | BK8: 1644.25983 | BL8: 1642.154205 | BM8: 1640.542035 | BN8: 1640.874606 | BO8: 1644.003415 | BP8: 1639.825385 | BQ8: 1640.349634 | BR8: 1639.699244 | BS8: 1640.098252 | BT8: 1638.558408 | BU8: 1638.694161 | BV8: 1641.565777 | BW8: 1638.529443 | BX8: 1639.17548 | BY8: 1636.526515 | BZ8: 1641.290534 | CD8: AVERAGE | CE8: =AVERAGE(CE10:CE1008) -> 11831 | CF8: =AVERAGE(CF10:CF1008) -> 9594 | CG8: 10144 | CH8: 11790.36026 | CI8: 13210.67627 | CJ8: 14455.43841 | CK8: 15517.47293 | CL8: 16520.09634 | CM8: 17380.50107 | CN8: 18145.45202 | CO8: 18859.8763 | CP8: 19534.152 | CQ8: 20044.94851 | CR8: 20511.42754 | CS8: 21049.30396 | CT8: 21481.18258 | CU8: 21783.90235 | CV8: 22087.86098 | CW8: 22434.3936 | CX8: 22648.85399 | CY8: 22853.1293 | CZ8: 23062.13237 | DA8: 23265.13403 | DB8: 23465.13563 | DC8: 23617.27374 | DD8: 23708.4642 | DE8: 23831.49094 | DF8: 23914.96232 | DG8: 24006.89768 | DH8: 24017.43094 | DI8: 24073.83933 | DJ8: 24149.49473 | DK8: 24186.9333 | DL8: 24235.63347 | DM8: 24257.23843 | DN8: 24324.81286 | DO8: 24370.19676 | DP8: 24397.27004 | DQ8: 24432.83156 | DR8: 24448.25255 | DS8: 24524.8795 | DT8: 24566.92672 | DU8: 24584.22294 | DV8: 24651.76625 | DW8: 24636.64609 | DX8: 24617.16319 | DY8: 24674.32241 | DZ8: 24680.20573 | EA8: 24662.37308 | EB8: 24660.87863 | EC8: 24664.49023 | EG8: AVERAGE | EH8: =AVERAGE(EH10:EH1008) -> 29568 | EI8: =AVERAGE(EI10:EI1008) -> 26180 | EJ8: 58520 | EK8: 58191.72196 | EL8: 57692.88587 | EM8: 57567.61651 | EN8: 57432.52468 | EO8: 57376.53283 | EP8: 57102.69465 | EQ8: 57016.68421 | ER8: 56879.2605 | ES8: 56731.16313 | ET8: 56555.24613 | EU8: 56355.09973 | EV8: 56227.52189 | EW8: 55991.35219 | EX8: 55934.80556 | EY8: 55846.60919 | EZ8: 55848.1498 | FA8: 55660.02117 | FB8: 55549.81032 | FC8: 55582.37427 | FD8: 55496.78754 | FE8: 55401.6644 | FF8: 55421.2332 | FG8: 55235.3215 | FH8: 55093.89159 | FI8: 55183.80931 | FJ8: 55336.72128 | FK8: 55395.17757 | FL8: 55288.89422 | FM8: 55278.73902 | FN8: 55101.49734 | FO8: 55033.74098 | FP8: 54987.92735 | FQ8: 54932.62385 | FR8: 54830.89263 | FS8: 54733.02474 | FT8: 54689.09233 | FU8: 54742.71128 | FV8: 54699.66751 | FW8: 54941.91092 | FX8: 55028.76595 | FY8: 55202.6303 | FZ8: 55088.80154 | GA8: 55183.93653 | GB8: 55093.70987 | GC8: 55207.63585 | GD8: 55030.2227 | GE8: 55054.59238 | GF8: 55278.5823 | GJ8: AVERAGE | GK8: =AVERAGE(GK10:GK1008) -> 5636 | GL8: =AVERAGE(GL10:GL1008) -> 4947.8 | GM8: 6270 | GN8: 6372.519146 | GO8: 6472.283025 | GP8: 6542.669685 | GQ8: 6609.259527 | GR8: 6648.307773 | GS8: 6719.915243 | GT8: 6777.306055 | GU8: 6814.530809 | GV8: 6888.479272 | GW8: 6911.661529 | GX8: 6917.261654 | GY8: 6957.052011 | GZ8: 6973.741407 | HA8: 6977.988768 | HB8: 6942.876087 | HC8: 6938.314809 | HD8: 6943.123595 | HE8: 6949.409005 | HF8: 6965.649143 | HG8: 6928.166512 | HH8: 6963.575538 | HI8: 6967.514642 | HJ8: 6965.892818 | HK8: 6964.100727 | HL8: 6981.094781 | HM8: 7001.929542 | HN8: 7017.772666 | HO8: 7036.022481 | HP8: 7048.730985 | HQ8: 7067.537094 | HR8: 7073.46381 | HS8: 7060.612302 | HT8: 7060.89434 | HU8: 7058.33976 | HV8: 7044.758074 | HW8: 7013.007671 | HX8: 7003.234582 | HY8: 7001.462567 | HZ8: 6999.948652 | IA8: 6997.191001 | IB8: 6987.675966 | IC8: 6976.102085 | ID8: 6979.626031 | IE8: 6974.051167 | IF8: 6959.531373 | IG8: 6950.855417 | IH8: 6951.10329 | II8: 6931.26283 | IM8: AVERAGE | IN8: =AVERAGE(IN10:IN1008) -> 353 | IO8: =AVERAGE(IO10:IO1008) -> 341 | IP8: 527.8028201 | IQ8: 681.1038671 | IR8: 819.7384975 | IS8: 934.098768 | IT8: 1028.339564 | IU8: 1120.648843 | IV8: 1192.83234 | IW8: 1251.159854 | IX8: 1306.041597 | IY8: 1350.403324 | IZ8: 1397.528918 | JA8: 1430.13551 | JB8: 1457.316168 | JC8: 1482.565352 | JD8: 1504.969831 | JE8: 1525.117612 | JF8: 1544.29835 | JG8: 1566.671476 | JH8: 1574.324411 | JI8: 1586.304228 | JJ8: 1595.858737 | JK8: 1601.961509 | JL8: 1607.181853 | JM8: 1607.164776 | JN8: 1615.317432 | JO8: 1621.973982 | JP8: 1622.944836 | JQ8: 1627.097466 | JR8: 1631.963658 | JS8: 1637.353231 | JT8: 1641.363597 | JU8: 1636.431804 | JV8: 1639.273309 | JW8: 1640.469278 | JX8: 1636.477514 | JY8: 1636.564644 | JZ8: 1639.177475 | KA8: 1645.23172 | KB8: 1643.756708 | KC8: 1641.998043 | KD8: 1642.499283 | KE8: 1641.805256 | KF8: 1635.100918 | KG8: 1629.957552 | KH8: 1634.369969 | KI8: 1638.639194 | KJ8: 1637.187709 | KK8: 1642.816841 | KL8: 1651.241239 | KP8: AVERAGE | KQ8: =AVERAGE(KQ10:KQ1008) -> 10014.38765 | KR8: =AVERAGE(KR10:KR1008) -> 10117.91326 | KS8: 10208.43303 | KT8: 11577.62956 | KU8: 12818.71593 | KV8: 13935.79508 | KW8: 14910.53097 | KX8: 15801.83282 | KY8: 16581.93068 | KZ8: 17285.36778 | LA8: 17919.15086 | LB8: 18467.53947 | LC8: 19007.8764 | LD8: 19488.88071 | LE8: 19894.80719 | LF8: 20299.02962 | LG8: 20539.55345 | LH8: 20776.21372 | LI8: 21053.05175 | LJ8: 21251.63384 | LK8: 21435.07675 | LL8: 21576.72903 | LM8: 21702.22876 | LN8: 21809.52623 | LO8: 21980.27988 | LP8: 22108.47922 | LQ8: 22225.27951 | LR8: 22355.12032 | LS8: 22406.31862 | LT8: 22463.457 | LU8: 22508.22293 | LV8: 22551.78214 | LW8: 22551.35349 | LX8: 22545.60907 | LY8: 22587.0506 | LZ8: 22675.04023 | MA8: 22710.11818 | MB8: 22724.47147 | MC8: 22723.87095 | MD8: 22755.73846 | ME8: 22768.19111 | MF8: 22772.20795 | MG8: 22797.1625 | MH8: 22828.7078 | MI8: 22811.32114 | MJ8: 22853.79073 | MK8: 22862.24616 | ML8: 22817.74892 | MM8: 22822.95629 | MN8: 22845.12985 | MO8: 22866.93343 | MS8: AVERAGE | MT8: =AVERAGE(MT10:MT1008) -> 29568 | MU8: =AVERAGE(MU10:MU1008) -> 26180 | MV8: 58520 | MW8: 58099.05459 | MX8: 57958.57572 | MY8: 57662.81523 | MZ8: 57491.18765 | NA8: 57321.43595 | NB8: 57209.16936 | NC8: 57108.94084 | ND8: 56950.32997 | NE8: 56804.95493 | NF8: 56828.17007 | NG8: 56692.69279 | NH8: 56643.03237 | NI8: 56626.03738 | NJ8: 56466.2421 | NK8: 56332.76734 | NL8: 56203.4804 | NM8: 56334.10911 | NN8: 56358.85705 | NO8: 56434.92617 | NP8: 56329.45957 | NQ8: 56135.38071 | NR8: 56258.95565 | NS8: 56098.86001 | NT8: 56142.00182 | NU8: 56016.20975 | NV8: 55849.29379 | NW8: 55821.55373 | NX8: 55701.11818 | NY8: 55700.97543 | NZ8: 55499.45719 | OA8: 55546.74362 | OB8: 55445.80178 | OC8: 55392.8016 | OD8: 55495.18483 | OE8: 55424.16427 | OF8: 55361.56402 | OG8: 55273.88671 | OH8: 55216.4617 | OI8: 55316.21764 | OJ8: 55226.49627 | OK8: 55307.91338 | OL8: 55271.40919 | OM8: 55260.49885 | ON8: 55205.59319 | OO8: 55238.19881 | OP8: 55375.73404 | OQ8: 55345.37047 | OR8: 55355.42656 | OV8: AVERAGE | OW8: =AVERAGE(OW10:OW1008) -> 5636 | OX8: =AVERAGE(OX10:OX1008) -> 4947.8 | OY8: 6270 | OZ8: 6360.972762 | PA8: 6456.440752 | PB8: 6513.097156 | PC8: 6584.599121 | PD8: 6637.931621 | PE8: 6663.187463 | PF8: 6735.258868 | PG8: 6756.105602 | PH8: 6808.655219 | PI8: 6808.647878 | PJ8: 6845.789944 | PK8: 6855.97626 | PL8: 6852.025848 | PM8: 6866.5116 | PN8: 6878.084337 | PO8: 6857.37353 | PP8: 6873.779513 | PQ8: 6902.251555 | PR8: 6924.292254 | PS8: 6924.732722 | PT8: 6920.757008 | PU8: 6919.376544 | PV8: 6923.956069 | PW8: 6970.846253 | PX8: 6985.690173 | PY8: 6973.322885 | PZ8: 6977.339459 | QA8: 6970.511181 | QB8: 6977.691093 | QC8: 6960.195817 | QD8: 6962.721813 | QE8: 6956.094229 | QF8: 6951.604094 | QG8: 6954.851712 | QH8: 6974.84136 | QI8: 6974.584299 | QJ8: 6961.077573 | QK8: 6959.45222 | QL8: 6987.023461 | QM8: 6985.147077 | QN8: 6950.433054 | QO8: 6946.359115 | QP8: 6964.982686 | QQ8: 6964.939395 | QR8: 6964.549397 | QS8: 6966.61547 | QT8: 6958.444305 | QU8: 6920.039089 | RJ8: 1906 | RK8: 7700 | RL8: 16000 | RM8: 108000 | RN8: 870 | RP8: 1906 | RQ8: 1262.230216 | RR8: 23251.23153 | RS8: 156895.5224 | RT8: 11183.80463 | RV8: 815.1778111 | RW8: 15424.86198 | RX8: 56120.70681 | RY8: 5621.827631
